Workbook

Sheet リスト (hidden)
B1: 加工チャート | D1: 停機チャート
B2: S加工 | D2: G/D清掃 | F2: A | G2: C | H2: ｺｰﾄ | I2: S | J2: 日東尾道 | K2: FWP | L2: 内 | M2: 合定
B3: T試作加工 | D3: 片付け | F3: B | G3: C2 | H3: 巻返し | I3: T | J3: 巴川 | K3: ABS | L3: 外 | M3: 合短
B4: U試作加工 | D4: 切替え | F4: C | G4: C3 | H4: 欠点取 | I4: U | J4: ﾊﾟﾅｯｸ | K4: 紙管 | M4: 良短
B5: 技術試作加工 | D5: ｵｰﾌﾞﾝ掃除 | F5: D | G5: S | H5: 検品 | I5: 技 | J5: 古河電工 | K5: CFRP | M5: 保留
B6: 未配台 | D6: 幅替え | H6: 手直し | J6: 日東豊橋 | K6: Kコア | M6: ＮＧ
D7: 品質ﾄﾗﾌﾞﾙ | H7: その他 | J7: 日栄化工
D8: 設備ﾄﾗﾌﾞﾙ | J8: 藤産業
D9: 工務ﾒﾝﾃ・工事 | J9: 住友ﾍﾞｰｸﾗｲﾄ
D10: ﾒﾝﾃﾅﾝｽ | J10: ＰＥＤＪ
D11: 安全活動 | J11: 東洋包材
D12: その他 | J12: ＮＧＫ
D13: 他マシン応援 | J13: 日立化成
D14: 未配台 | J14: Linxense
D15: 公休日 | J15: 東海電気
J16: 利昌
J17: FUJIKURA
J18: 3MJPP
J19: きもと
J20: 東洋機材
J21: KERAFOL
J22: リンテック
J23: 積水化学
J24: 京ｾﾗ
J25: ﾊﾟﾅｿﾆｯｸAIS
J26: ﾅｶﾞｾｹﾑﾃｯｸ
J27: 栗村化学（ﾕﾙﾁｮﾝ）
J28: 三栄産業
J29: 新ﾀｯｸ化成
J30: ﾘｹﾝﾃｸﾉｽ
J31: 真田KOA
J32: ｻﾑｽﾝ日本研究所
J33: その他

Sheet ｱｰｽ点検 (hidden)
B2: ｱｰｽ点検 | N2: ○： | O2: 導通有り | P2: ×： | Q2: 導通無し
B3: NO | C3: 実施日 | D3: 2020???? | E3: 20211105
B4: 1 | C4: 台車CF4 | E4: ×
B5: 2 | C5: 循環ﾎﾟﾝﾌﾟｱﾝｶｰ | E5: ○
B6: 3 | C6: 循環ﾎﾟﾝﾌﾟｼﾘｺﾝ | E6: ○
B7: 4 | C7: 調合桶ｱﾝｶｰ | E7: ×
B8: 5 | C8: 調合桶ｼﾘｺﾝ | E8: ×
B9: 6 | C9: ｻｰﾋﾞｽﾀﾝｸｼﾘｺﾝ | E9: ○
B10: 7 | C10: ｻｰﾋﾞｽﾀﾝｸｱﾝｶｰ | E10: ○
B11: 8 | C11: ﾄﾞﾗﾑ缶台車 | E11: ×
B12: 9 | C12: 溶剤供給装置 | E12: ○
B13: 10 | C13: 撹拌機本体 | E13: ○
B14: 11 | C14: 撹拌機台車 | E14: ×
B15: 12 | C15: ｱﾝｶｰ移動台車 | E15: ×
B16: 13 | C16: ｶｰｺﾞﾃﾅｰ | E16: ×

Sheet 稼働チャートまとめ (hidden)
A1: 日 | D1: 2024 | E1: 2024 | F1: 2024 | G1: 2024 | H1: 2024 | I1: 2024 | J1: 2024 | K1: 2024 | L1: 2024 | M1: 2025 | N1: 2025 | O1: 2025
D2: 4 | E2: 5 | F2: 6 | G2: 7 | H2: 8 | I2: 9 | J2: 10 | K2: 11 | L2: 12 | M2: 1 | N2: 2 | O2: 3
D3: 2024-04-01 | E3: 2020-05-01 | F3: 2020-06-01 | G3: 2020-07-01 | H3: 2020-08-01 | I3: 2020-09-01 | J3: 2020-10-01 | K3: 2020-11-01 | L3: 2020-12-01 | M3: 2021-01-01 | N3: 2021-02-01 | O3: 2021-03-01
B4: S加工 | D4: =SUMIFS('CF-2'!$BD$17:$BD$15852,'CF-2'!$B$17:$B$15852,D$1,'CF-2'!$C$17:$C$15852,D$2,'CF-2'!$BB$17:$BB$15852,$B$4) -> 13.06944444 | E4: =SUMIFS('CF-2'!$BD$17:$BD$15852,'CF-2'!$B$17:$B$15852,E$1,'CF-2'!$C$17:$C$15852,E$2,'CF-2'!$BB$17:$BB$15852,$B$4) -> 11.86111111 | F4: =SUMIFS('CF-2'!$BD$17:$BD$15852,'CF-2'!$B$17:$B$15852,F$1,'CF-2'!$C$17:$C$15852,F$2,'CF-2'!$BB$17:$BB$15852,$B$4) -> 12.59722222 | G4: =SUMIFS('CF-2'!$BD$17:$BD$15852,'CF-2'!$B$17:$B$15852,G$1,'CF-2'!$C$17:$C$15852,G$2,'CF-2'!$BB$17:$BB$15852,$B$4) -> 14.35416667 | H4: =SUMIFS('CF-2'!$BD$17:$BD$15852,'CF-2'!$B$17:$B$15852,H$1,'CF-2'!$C$17:$C$15852,H$2,'CF-2'!$BB$17:$BB$15852,$B$4) -> 7.638888889 | I4: =SUMIFS('CF-2'!$BD$17:$BD$15852,'CF-2'!$B$17:$B$15852,I$1,'CF-2'!$C$17:$C$15852,I$2,'CF-2'!$BB$17:$BB$15852,$B$4) -> 11.12847222 | J4: =SUMIFS('CF-2'!$BD$17:$BD$15852,'CF-2'!$B$17:$B$15852,J$1,'CF-2'!$C$17:$C$15852,J$2,'CF-2'!$BB$17:$BB$15852,$B$4) -> 15.42013889 | K4: =SUMIFS('CF-2'!$BD$17:$BD$15852,'CF-2'!$B$17:$B$15852,K$1,'CF-2'!$C$17:$C$15852,K$2,'CF-2'!$BB$17:$BB$15852,$B$4) -> 13.53472222 | L4: =SUMIFS('CF-2'!$BD$17:$BD$15852,'CF-2'!$B$17:$B$15852,L$1,'CF-2'!$C$17:$C$15852,L$2,'CF-2'!$BB$17:$BB$15852,$B$4) -> 3.993055556 | M4: =SUMIFS('CF-2'!$BD$17:$BD$15852,'CF-2'!$B$17:$B$15852,M$1,'CF-2'!$C$17:$C$15852,M$2,'CF-2'!$BB$17:$BB$15852,$B$4) -> 0 | N4: =SUMIFS('CF-2'!$BD$17:$BD$15852,'CF-2'!$B$17:$B$15852,N$1,'CF-2'!$C$17:$C$15852,N$2,'CF-2'!$BB$17:$BB$15852,$B$4) -> 0 | O4: =SUMIFS('CF-2'!$BD$17:$BD$15852,'CF-2'!$B$17:$B$15852,O$1,'CF-2'!$C$17:$C$15852,O$2,'CF-2'!$BB$17:$BB$15852,$B$4) -> 0
B5: T試作加工 | D5: =SUMIFS('CF-2'!$BD$17:$BD$15852,'CF-2'!$B$17:$B$15852,D$1,'CF-2'!$C$17:$C$15852,D$2,'CF-2'!$BB$17:$BB$15852,$B$5) -> 0.1736111111 | E5: =SUMIFS('CF-2'!$BD$17:$BD$15852,'CF-2'!$B$17:$B$15852,E$1,'CF-2'!$C$17:$C$15852,E$2,'CF-2'!$BB$17:$BB$15852,$B$5) -> 0.4375 | F5: =SUMIFS('CF-2'!$BD$17:$BD$15852,'CF-2'!$B$17:$B$15852,F$1,'CF-2'!$C$17:$C$15852,F$2,'CF-2'!$BB$17:$BB$15852,$B$5) -> 0.3506944444 | G5: =SUMIFS('CF-2'!$BD$17:$BD$15852,'CF-2'!$B$17:$B$15852,G$1,'CF-2'!$C$17:$C$15852,G$2,'CF-2'!$BB$17:$BB$15852,$B$5) -> 0.1770833333 | H5: =SUMIFS('CF-2'!$BD$17:$BD$15852,'CF-2'!$B$17:$B$15852,H$1,'CF-2'!$C$17:$C$15852,H$2,'CF-2'!$BB$17:$BB$15852,$B$5) -> 0.4722222222 | I5: =SUMIFS('CF-2'!$BD$17:$BD$15852,'CF-2'!$B$17:$B$15852,I$1,'CF-2'!$C$17:$C$15852,I$2,'CF-2'!$BB$17:$BB$15852,$B$5) -> 0.3923611111 | J5: =SUMIFS('CF-2'!$BD$17:$BD$15852,'CF-2'!$B$17:$B$15852,J$1,'CF-2'!$C$17:$C$15852,J$2,'CF-2'!$BB$17:$BB$15852,$B$5) -> 0.5590277778 | K5: =SUMIFS('CF-2'!$BD$17:$BD$15852,'CF-2'!$B$17:$B$15852,K$1,'CF-2'!$C$17:$C$15852,K$2,'CF-2'!$BB$17:$BB$15852,$B$5) -> 0.9409722222 | L5: =SUMIFS('CF-2'!$BD$17:$BD$15852,'CF-2'!$B$17:$B$15852,L$1,'CF-2'!$C$17:$C$15852,L$2,'CF-2'!$BB$17:$BB$15852,$B$5) -> 0.6145833333 | M5: =SUMIFS('CF-2'!$BD$17:$BD$15852,'CF-2'!$B$17:$B$15852,M$1,'CF-2'!$C$17:$C$15852,M$2,'CF-2'!$BB$17:$BB$15852,$B$5) -> 0 | N5: =SUMIFS('CF-2'!$BD$17:$BD$15852,'CF-2'!$B$17:$B$15852,N$1,'CF-2'!$C$17:$C$15852,N$2,'CF-2'!$BB$17:$BB$15852,$B$5) -> 0 | O5: =SUMIFS('CF-2'!$BD$17:$BD$15852,'CF-2'!$B$17:$B$15852,O$1,'CF-2'!$C$17:$C$15852,O$2,'CF-2'!$BB$17:$BB$15852,$B$5) -> 0
B6: U試作加工 | D6: =SUMIFS('CF-2'!$BD$17:$BD$15852,'CF-2'!$B$17:$B$15852,D$1,'CF-2'!$C$17:$C$15852,D$2,'CF-2'!$BB$17:$BB$15852,$B$6) -> 2.100694444 | E6: =SUMIFS('CF-2'!$BD$17:$BD$15852,'CF-2'!$B$17:$B$15852,E$1,'CF-2'!$C$17:$C$15852,E$2,'CF-2'!$BB$17:$BB$15852,$B$6) -> 2.430555556 | F6: =SUMIFS('CF-2'!$BD$17:$BD$15852,'CF-2'!$B$17:$B$15852,F$1,'CF-2'!$C$17:$C$15852,F$2,'CF-2'!$BB$17:$BB$15852,$B$6) -> 1.53125 | G6: =SUMIFS('CF-2'!$BD$17:$BD$15852,'CF-2'!$B$17:$B$15852,G$1,'CF-2'!$C$17:$C$15852,G$2,'CF-2'!$BB$17:$BB$15852,$B$6) -> 1.378472222 | H6: =SUMIFS('CF-2'!$BD$17:$BD$15852,'CF-2'!$B$17:$B$15852,H$1,'CF-2'!$C$17:$C$15852,H$2,'CF-2'!$BB$17:$BB$15852,$B$6) -> 0.5451388889 | I6: =SUMIFS('CF-2'!$BD$17:$BD$15852,'CF-2'!$B$17:$B$15852,I$1,'CF-2'!$C$17:$C$15852,I$2,'CF-2'!$BB$17:$BB$15852,$B$6) -> 1.430555556 | J6: =SUMIFS('CF-2'!$BD$17:$BD$15852,'CF-2'!$B$17:$B$15852,J$1,'CF-2'!$C$17:$C$15852,J$2,'CF-2'!$BB$17:$BB$15852,$B$6) -> 0.8055555556 | K6: =SUMIFS('CF-2'!$BD$17:$BD$15852,'CF-2'!$B$17:$B$15852,K$1,'CF-2'!$C$17:$C$15852,K$2,'CF-2'!$BB$17:$BB$15852,$B$6) -> 0.1319444444 | L6: =SUMIFS('CF-2'!$BD$17:$BD$15852,'CF-2'!$B$17:$B$15852,L$1,'CF-2'!$C$17:$C$15852,L$2,'CF-2'!$BB$17:$BB$15852,$B$6) -> 0.53125 | M6: =SUMIFS('CF-2'!$BD$17:$BD$15852,'CF-2'!$B$17:$B$15852,M$1,'CF-2'!$C$17:$C$15852,M$2,'CF-2'!$BB$17:$BB$15852,$B$6) -> 0 | N6: =SUMIFS('CF-2'!$BD$17:$BD$15852,'CF-2'!$B$17:$B$15852,N$1,'CF-2'!$C$17:$C$15852,N$2,'CF-2'!$BB$17:$BB$15852,$B$6) -> 0 | O6: =SUMIFS('CF-2'!$BD$17:$BD$15852,'CF-2'!$B$17:$B$15852,O$1,'CF-2'!$C$17:$C$15852,O$2,'CF-2'!$BB$17:$BB$15852,$B$6) -> 0
B7: 技術試作加工 | D7: =SUMIFS('CF-2'!$BD$17:$BD$15852,'CF-2'!$B$17:$B$15852,D$1,'CF-2'!$C$17:$C$15852,D$2,'CF-2'!$BB$17:$BB$15852,$B$7) -> 0 | E7: =SUMIFS('CF-2'!$BD$17:$BD$15852,'CF-2'!$B$17:$B$15852,E$1,'CF-2'!$C$17:$C$15852,E$2,'CF-2'!$BB$17:$BB$15852,$B$7) -> 0 | F7: =SUMIFS('CF-2'!$BD$17:$BD$15852,'CF-2'!$B$17:$B$15852,F$1,'CF-2'!$C$17:$C$15852,F$2,'CF-2'!$BB$17:$BB$15852,$B$7) -> 0 | G7: =SUMIFS('CF-2'!$BD$17:$BD$15852,'CF-2'!$B$17:$B$15852,G$1,'CF-2'!$C$17:$C$15852,G$2,'CF-2'!$BB$17:$BB$15852,$B$7) -> 0 | H7: =SUMIFS('CF-2'!$BD$17:$BD$15852,'CF-2'!$B$17:$B$15852,H$1,'CF-2'!$C$17:$C$15852,H$2,'CF-2'!$BB$17:$BB$15852,$B$7) -> 0 | I7: =SUMIFS('CF-2'!$BD$17:$BD$15852,'CF-2'!$B$17:$B$15852,I$1,'CF-2'!$C$17:$C$15852,I$2,'CF-2'!$BB$17:$BB$15852,$B$7) -> 0 | J7: =SUMIFS('CF-2'!$BD$17:$BD$15852,'CF-2'!$B$17:$B$15852,J$1,'CF-2'!$C$17:$C$15852,J$2,'CF-2'!$BB$17:$BB$15852,$B$7) -> 0 | K7: =SUMIFS('CF-2'!$BD$17:$BD$15852,'CF-2'!$B$17:$B$15852,K$1,'CF-2'!$C$17:$C$15852,K$2,'CF-2'!$BB$17:$BB$15852,$B$7) -> 0 | L7: =SUMIFS('CF-2'!$BD$17:$BD$15852,'CF-2'!$B$17:$B$15852,L$1,'CF-2'!$C$17:$C$15852,L$2,'CF-2'!$BB$17:$BB$15852,$B$7) -> 0 | M7: =SUMIFS('CF-2'!$BD$17:$BD$15852,'CF-2'!$B$17:$B$15852,M$1,'CF-2'!$C$17:$C$15852,M$2,'CF-2'!$BB$17:$BB$15852,$B$7) -> 0 | N7: =SUMIFS('CF-2'!$BD$17:$BD$15852,'CF-2'!$B$17:$B$15852,N$1,'CF-2'!$C$17:$C$15852,N$2,'CF-2'!$BB$17:$BB$15852,$B$7) -> 0 | O7: =SUMIFS('CF-2'!$BD$17:$BD$15852,'CF-2'!$B$17:$B$15852,O$1,'CF-2'!$C$17:$C$15852,O$2,'CF-2'!$BB$17:$BB$15852,$B$7) -> 0
B8: G/D清掃 | D8: =SUMIFS('CF-2'!$BE$17:$BE$15852,'CF-2'!$B$17:$B$15852,D$1,'CF-2'!$C$17:$C$15852,D$2,'CF-2'!$BC$17:$BC$15852,$B$8) -> 0.6319444444 | E8: =SUMIFS('CF-2'!$BE$17:$BE$15852,'CF-2'!$B$17:$B$15852,E$1,'CF-2'!$C$17:$C$15852,E$2,'CF-2'!$BC$17:$BC$15852,$B$8) -> 0.5138888889 | F8: =SUMIFS('CF-2'!$BE$17:$BE$15852,'CF-2'!$B$17:$B$15852,F$1,'CF-2'!$C$17:$C$15852,F$2,'CF-2'!$BC$17:$BC$15852,$B$8) -> 0.7361111111 | G8: =SUMIFS('CF-2'!$BE$17:$BE$15852,'CF-2'!$B$17:$B$15852,G$1,'CF-2'!$C$17:$C$15852,G$2,'CF-2'!$BC$17:$BC$15852,$B$8) -> 1.121527778 | H8: =SUMIFS('CF-2'!$BE$17:$BE$15852,'CF-2'!$B$17:$B$15852,H$1,'CF-2'!$C$17:$C$15852,H$2,'CF-2'!$BC$17:$BC$15852,$B$8) -> 0.4548611111 | I8: =SUMIFS('CF-2'!$BE$17:$BE$15852,'CF-2'!$B$17:$B$15852,I$1,'CF-2'!$C$17:$C$15852,I$2,'CF-2'!$BC$17:$BC$15852,$B$8) -> 0.4201388889 | J8: =SUMIFS('CF-2'!$BE$17:$BE$15852,'CF-2'!$B$17:$B$15852,J$1,'CF-2'!$C$17:$C$15852,J$2,'CF-2'!$BC$17:$BC$15852,$B$8) -> 0.9722222222 | K8: =SUMIFS('CF-2'!$BE$17:$BE$15852,'CF-2'!$B$17:$B$15852,K$1,'CF-2'!$C$17:$C$15852,K$2,'CF-2'!$BC$17:$BC$15852,$B$8) -> 0.3854166667 | L8: =SUMIFS('CF-2'!$BE$17:$BE$15852,'CF-2'!$B$17:$B$15852,L$1,'CF-2'!$C$17:$C$15852,L$2,'CF-2'!$BC$17:$BC$15852,$B$8) -> 0.5347222222 | M8: =SUMIFS('CF-2'!$BE$17:$BE$15852,'CF-2'!$B$17:$B$15852,M$1,'CF-2'!$C$17:$C$15852,M$2,'CF-2'!$BC$17:$BC$15852,$B$8) -> 0 | N8: =SUMIFS('CF-2'!$BE$17:$BE$15852,'CF-2'!$B$17:$B$15852,N$1,'CF-2'!$C$17:$C$15852,N$2,'CF-2'!$BC$17:$BC$15852,$B$8) -> 0 | O8: =SUMIFS('CF-2'!$BE$17:$BE$15852,'CF-2'!$B$17:$B$15852,O$1,'CF-2'!$C$17:$C$15852,O$2,'CF-2'!$BC$17:$BC$15852,$B$8) -> 0
B9: 片付け | D9: =SUMIFS('CF-2'!$BE$17:$BE$15852,'CF-2'!$B$17:$B$15852,D$1,'CF-2'!$C$17:$C$15852,D$2,'CF-2'!$BC$17:$BC$15852,$B$9) -> 1.246527778 | E9: =SUMIFS('CF-2'!$BE$17:$BE$15852,'CF-2'!$B$17:$B$15852,E$1,'CF-2'!$C$17:$C$15852,E$2,'CF-2'!$BC$17:$BC$15852,$B$9) -> 1.260416667 | F9: =SUMIFS('CF-2'!$BE$17:$BE$15852,'CF-2'!$B$17:$B$15852,F$1,'CF-2'!$C$17:$C$15852,F$2,'CF-2'!$BC$17:$BC$15852,$B$9) -> 1.086805556 | G9: =SUMIFS('CF-2'!$BE$17:$BE$15852,'CF-2'!$B$17:$B$15852,G$1,'CF-2'!$C$17:$C$15852,G$2,'CF-2'!$BC$17:$BC$15852,$B$9) -> 1.121527778 | H9: =SUMIFS('CF-2'!$BE$17:$BE$15852,'CF-2'!$B$17:$B$15852,H$1,'CF-2'!$C$17:$C$15852,H$2,'CF-2'!$BC$17:$BC$15852,$B$9) -> 0.7256944444 | I9: =SUMIFS('CF-2'!$BE$17:$BE$15852,'CF-2'!$B$17:$B$15852,I$1,'CF-2'!$C$17:$C$15852,I$2,'CF-2'!$BC$17:$BC$15852,$B$9) -> 1.326388889 | J9: =SUMIFS('CF-2'!$BE$17:$BE$15852,'CF-2'!$B$17:$B$15852,J$1,'CF-2'!$C$17:$C$15852,J$2,'CF-2'!$BC$17:$BC$15852,$B$9) -> 1.038194444 | K9: =SUMIFS('CF-2'!$BE$17:$BE$15852,'CF-2'!$B$17:$B$15852,K$1,'CF-2'!$C$17:$C$15852,K$2,'CF-2'!$BC$17:$BC$15852,$B$9) -> 1.118055556 | L9: =SUMIFS('CF-2'!$BE$17:$BE$15852,'CF-2'!$B$17:$B$15852,L$1,'CF-2'!$C$17:$C$15852,L$2,'CF-2'!$BC$17:$BC$15852,$B$9) -> 0.2569444444 | M9: =SUMIFS('CF-2'!$BE$17:$BE$15852,'CF-2'!$B$17:$B$15852,M$1,'CF-2'!$C$17:$C$15852,M$2,'CF-2'!$BC$17:$BC$15852,$B$9) -> 0 | N9: =SUMIFS('CF-2'!$BE$17:$BE$15852,'CF-2'!$B$17:$B$15852,N$1,'CF-2'!$C$17:$C$15852,N$2,'CF-2'!$BC$17:$BC$15852,$B$9) -> 0 | O9: =SUMIFS('CF-2'!$BE$17:$BE$15852,'CF-2'!$B$17:$B$15852,O$1,'CF-2'!$C$17:$C$15852,O$2,'CF-2'!$BC$17:$BC$15852,$B$9) -> 0
B10: 切替え | D10: =SUMIFS('CF-2'!$BE$17:$BE$15852,'CF-2'!$B$17:$B$15852,D$1,'CF-2'!$C$17:$C$15852,D$2,'CF-2'!$BC$17:$BC$15852,$B$10) -> 2.513888889 | E10: =SUMIFS('CF-2'!$BE$17:$BE$15852,'CF-2'!$B$17:$B$15852,E$1,'CF-2'!$C$17:$C$15852,E$2,'CF-2'!$BC$17:$BC$15852,$B$10) -> 2.114583333 | F10: =SUMIFS('CF-2'!$BE$17:$BE$15852,'CF-2'!$B$17:$B$15852,F$1,'CF-2'!$C$17:$C$15852,F$2,'CF-2'!$BC$17:$BC$15852,$B$10) -> 2.878472222 | G10: =SUMIFS('CF-2'!$BE$17:$BE$15852,'CF-2'!$B$17:$B$15852,G$1,'CF-2'!$C$17:$C$15852,G$2,'CF-2'!$BC$17:$BC$15852,$B$10) -> 2.149305556 | H10: =SUMIFS('CF-2'!$BE$17:$BE$15852,'CF-2'!$B$17:$B$15852,H$1,'CF-2'!$C$17:$C$15852,H$2,'CF-2'!$BC$17:$BC$15852,$B$10) -> 1.034722222 | I10: =SUMIFS('CF-2'!$BE$17:$BE$15852,'CF-2'!$B$17:$B$15852,I$1,'CF-2'!$C$17:$C$15852,I$2,'CF-2'!$BC$17:$BC$15852,$B$10) -> 2.097222222 | J10: =SUMIFS('CF-2'!$BE$17:$BE$15852,'CF-2'!$B$17:$B$15852,J$1,'CF-2'!$C$17:$C$15852,J$2,'CF-2'!$BC$17:$BC$15852,$B$10) -> 1.611111111 | K10: =SUMIFS('CF-2'!$BE$17:$BE$15852,'CF-2'!$B$17:$B$15852,K$1,'CF-2'!$C$17:$C$15852,K$2,'CF-2'!$BC$17:$BC$15852,$B$10) -> 1.642361111 | L10: =SUMIFS('CF-2'!$BE$17:$BE$15852,'CF-2'!$B$17:$B$15852,L$1,'CF-2'!$C$17:$C$15852,L$2,'CF-2'!$BC$17:$BC$15852,$B$10) -> 0.8472222222 | M10: =SUMIFS('CF-2'!$BE$17:$BE$15852,'CF-2'!$B$17:$B$15852,M$1,'CF-2'!$C$17:$C$15852,M$2,'CF-2'!$BC$17:$BC$15852,$B$10) -> 0 | N10: =SUMIFS('CF-2'!$BE$17:$BE$15852,'CF-2'!$B$17:$B$15852,N$1,'CF-2'!$C$17:$C$15852,N$2,'CF-2'!$BC$17:$BC$15852,$B$10) -> 0 | O10: =SUMIFS('CF-2'!$BE$17:$BE$15852,'CF-2'!$B$17:$B$15852,O$1,'CF-2'!$C$17:$C$15852,O$2,'CF-2'!$BC$17:$BC$15852,$B$10) -> 0
B11: ｵｰﾌﾞﾝ掃除 | D11: =SUMIFS('CF-2'!$BE$17:$BE$15852,'CF-2'!$B$17:$B$15852,D$1,'CF-2'!$C$17:$C$15852,D$2,'CF-2'!$BC$17:$BC$15852,$B$11) -> 1.152777778 | E11: =SUMIFS('CF-2'!$BE$17:$BE$15852,'CF-2'!$B$17:$B$15852,E$1,'CF-2'!$C$17:$C$15852,E$2,'CF-2'!$BC$17:$BC$15852,$B$11) -> 1.371527778 | F11: =SUMIFS('CF-2'!$BE$17:$BE$15852,'CF-2'!$B$17:$B$15852,F$1,'CF-2'!$C$17:$C$15852,F$2,'CF-2'!$BC$17:$BC$15852,$B$11) -> 0.6041666667 | G11: =SUMIFS('CF-2'!$BE$17:$BE$15852,'CF-2'!$B$17:$B$15852,G$1,'CF-2'!$C$17:$C$15852,G$2,'CF-2'!$BC$17:$BC$15852,$B$11) -> 1.503472222 | H11: =SUMIFS('CF-2'!$BE$17:$BE$15852,'CF-2'!$B$17:$B$15852,H$1,'CF-2'!$C$17:$C$15852,H$2,'CF-2'!$BC$17:$BC$15852,$B$11) -> 1.298611111 | I11: =SUMIFS('CF-2'!$BE$17:$BE$15852,'CF-2'!$B$17:$B$15852,I$1,'CF-2'!$C$17:$C$15852,I$2,'CF-2'!$BC$17:$BC$15852,$B$11) -> 1.430555556 | J11: =SUMIFS('CF-2'!$BE$17:$BE$15852,'CF-2'!$B$17:$B$15852,J$1,'CF-2'!$C$17:$C$15852,J$2,'CF-2'!$BC$17:$BC$15852,$B$11) -> 1.336805556 | K11: =SUMIFS('CF-2'!$BE$17:$BE$15852,'CF-2'!$B$17:$B$15852,K$1,'CF-2'!$C$17:$C$15852,K$2,'CF-2'!$BC$17:$BC$15852,$B$11) -> 0.3888888889 | L11: =SUMIFS('CF-2'!$BE$17:$BE$15852,'CF-2'!$B$17:$B$15852,L$1,'CF-2'!$C$17:$C$15852,L$2,'CF-2'!$BC$17:$BC$15852,$B$11) -> 0.5138888889 | M11: =SUMIFS('CF-2'!$BE$17:$BE$15852,'CF-2'!$B$17:$B$15852,M$1,'CF-2'!$C$17:$C$15852,M$2,'CF-2'!$BC$17:$BC$15852,$B$11) -> 0 | N11: =SUMIFS('CF-2'!$BE$17:$BE$15852,'CF-2'!$B$17:$B$15852,N$1,'CF-2'!$C$17:$C$15852,N$2,'CF-2'!$BC$17:$BC$15852,$B$11) -> 0 | O11: =SUMIFS('CF-2'!$BE$17:$BE$15852,'CF-2'!$B$17:$B$15852,O$1,'CF-2'!$C$17:$C$15852,O$2,'CF-2'!$BC$17:$BC$15852,$B$11) -> 0
B12: 幅替え | D12: =SUMIFS('CF-2'!$BE$17:$BE$15852,'CF-2'!$B$17:$B$15852,D$1,'CF-2'!$C$17:$C$15852,D$2,'CF-2'!$BC$17:$BC$15852,$B$12) -> 0.5243055556 | E12: =SUMIFS('CF-2'!$BE$17:$BE$15852,'CF-2'!$B$17:$B$15852,E$1,'CF-2'!$C$17:$C$15852,E$2,'CF-2'!$BC$17:$BC$15852,$B$12) -> 0.5451388889 | F12: =SUMIFS('CF-2'!$BE$17:$BE$15852,'CF-2'!$B$17:$B$15852,F$1,'CF-2'!$C$17:$C$15852,F$2,'CF-2'!$BC$17:$BC$15852,$B$12) -> 0.7152777778 | G12: =SUMIFS('CF-2'!$BE$17:$BE$15852,'CF-2'!$B$17:$B$15852,G$1,'CF-2'!$C$17:$C$15852,G$2,'CF-2'!$BC$17:$BC$15852,$B$12) -> 0.2847222222 | H12: =SUMIFS('CF-2'!$BE$17:$BE$15852,'CF-2'!$B$17:$B$15852,H$1,'CF-2'!$C$17:$C$15852,H$2,'CF-2'!$BC$17:$BC$15852,$B$12) -> 0.3020833333 | I12: =SUMIFS('CF-2'!$BE$17:$BE$15852,'CF-2'!$B$17:$B$15852,I$1,'CF-2'!$C$17:$C$15852,I$2,'CF-2'!$BC$17:$BC$15852,$B$12) -> 0.5902777778 | J12: =SUMIFS('CF-2'!$BE$17:$BE$15852,'CF-2'!$B$17:$B$15852,J$1,'CF-2'!$C$17:$C$15852,J$2,'CF-2'!$BC$17:$BC$15852,$B$12) -> 0.3784722222 | K12: =SUMIFS('CF-2'!$BE$17:$BE$15852,'CF-2'!$B$17:$B$15852,K$1,'CF-2'!$C$17:$C$15852,K$2,'CF-2'!$BC$17:$BC$15852,$B$12) -> 0.4027777778 | L12: =SUMIFS('CF-2'!$BE$17:$BE$15852,'CF-2'!$B$17:$B$15852,L$1,'CF-2'!$C$17:$C$15852,L$2,'CF-2'!$BC$17:$BC$15852,$B$12) -> 0.2777777778 | M12: =SUMIFS('CF-2'!$BE$17:$BE$15852,'CF-2'!$B$17:$B$15852,M$1,'CF-2'!$C$17:$C$15852,M$2,'CF-2'!$BC$17:$BC$15852,$B$12) -> 0 | N12: =SUMIFS('CF-2'!$BE$17:$BE$15852,'CF-2'!$B$17:$B$15852,N$1,'CF-2'!$C$17:$C$15852,N$2,'CF-2'!$BC$17:$BC$15852,$B$12) -> 0 | O12: =SUMIFS('CF-2'!$BE$17:$BE$15852,'CF-2'!$B$17:$B$15852,O$1,'CF-2'!$C$17:$C$15852,O$2,'CF-2'!$BC$17:$BC$15852,$B$12) -> 0
B13: 品質ﾄﾗﾌﾞﾙ | D13: =SUMIFS('CF-2'!$BE$17:$BE$15852,'CF-2'!$B$17:$B$15852,D$1,'CF-2'!$C$17:$C$15852,D$2,'CF-2'!$BC$17:$BC$15852,$B$13) -> 0.04166666667 | E13: =SUMIFS('CF-2'!$BE$17:$BE$15852,'CF-2'!$B$17:$B$15852,E$1,'CF-2'!$C$17:$C$15852,E$2,'CF-2'!$BC$17:$BC$15852,$B$13) -> 0.1180555556 | F13: =SUMIFS('CF-2'!$BE$17:$BE$15852,'CF-2'!$B$17:$B$15852,F$1,'CF-2'!$C$17:$C$15852,F$2,'CF-2'!$BC$17:$BC$15852,$B$13) -> 0.2361111111 | G13: =SUMIFS('CF-2'!$BE$17:$BE$15852,'CF-2'!$B$17:$B$15852,G$1,'CF-2'!$C$17:$C$15852,G$2,'CF-2'!$BC$17:$BC$15852,$B$13) -> 0.2708333333 | H13: =SUMIFS('CF-2'!$BE$17:$BE$15852,'CF-2'!$B$17:$B$15852,H$1,'CF-2'!$C$17:$C$15852,H$2,'CF-2'!$BC$17:$BC$15852,$B$13) -> 0.1944444444 | I13: =SUMIFS('CF-2'!$BE$17:$BE$15852,'CF-2'!$B$17:$B$15852,I$1,'CF-2'!$C$17:$C$15852,I$2,'CF-2'!$BC$17:$BC$15852,$B$13) -> 0.6979166667 | J13: =SUMIFS('CF-2'!$BE$17:$BE$15852,'CF-2'!$B$17:$B$15852,J$1,'CF-2'!$C$17:$C$15852,J$2,'CF-2'!$BC$17:$BC$15852,$B$13) -> 0.4861111111 | K13: =SUMIFS('CF-2'!$BE$17:$BE$15852,'CF-2'!$B$17:$B$15852,K$1,'CF-2'!$C$17:$C$15852,K$2,'CF-2'!$BC$17:$BC$15852,$B$13) -> 0 | L13: =SUMIFS('CF-2'!$BE$17:$BE$15852,'CF-2'!$B$17:$B$15852,L$1,'CF-2'!$C$17:$C$15852,L$2,'CF-2'!$BC$17:$BC$15852,$B$13) -> 0.4479166667 | M13: =SUMIFS('CF-2'!$BE$17:$BE$15852,'CF-2'!$B$17:$B$15852,M$1,'CF-2'!$C$17:$C$15852,M$2,'CF-2'!$BC$17:$BC$15852,$B$13) -> 0 | N13: =SUMIFS('CF-2'!$BE$17:$BE$15852,'CF-2'!$B$17:$B$15852,N$1,'CF-2'!$C$17:$C$15852,N$2,'CF-2'!$BC$17:$BC$15852,$B$13) -> 0 | O13: =SUMIFS('CF-2'!$BE$17:$BE$15852,'CF-2'!$B$17:$B$15852,O$1,'CF-2'!$C$17:$C$15852,O$2,'CF-2'!$BC$17:$BC$15852,$B$13) -> 0
B14: 設備ﾄﾗﾌﾞﾙ | D14: =SUMIFS('CF-2'!$BE$17:$BE$15852,'CF-2'!$B$17:$B$15852,D$1,'CF-2'!$C$17:$C$15852,D$2,'CF-2'!$BC$17:$BC$15852,$B$14) -> 0.1354166667 | E14: =SUMIFS('CF-2'!$BE$17:$BE$15852,'CF-2'!$B$17:$B$15852,E$1,'CF-2'!$C$17:$C$15852,E$2,'CF-2'!$BC$17:$BC$15852,$B$14) -> 0.1354166667 | F14: =SUMIFS('CF-2'!$BE$17:$BE$15852,'CF-2'!$B$17:$B$15852,F$1,'CF-2'!$C$17:$C$15852,F$2,'CF-2'!$BC$17:$BC$15852,$B$14) -> 0.2638888889 | G14: =SUMIFS('CF-2'!$BE$17:$BE$15852,'CF-2'!$B$17:$B$15852,G$1,'CF-2'!$C$17:$C$15852,G$2,'CF-2'!$BC$17:$BC$15852,$B$14) -> 0.84375 | H14: =SUMIFS('CF-2'!$BE$17:$BE$15852,'CF-2'!$B$17:$B$15852,H$1,'CF-2'!$C$17:$C$15852,H$2,'CF-2'!$BC$17:$BC$15852,$B$14) -> 0 | I14: =SUMIFS('CF-2'!$BE$17:$BE$15852,'CF-2'!$B$17:$B$15852,I$1,'CF-2'!$C$17:$C$15852,I$2,'CF-2'!$BC$17:$BC$15852,$B$14) -> 0.4131944444 | J14: =SUMIFS('CF-2'!$BE$17:$BE$15852,'CF-2'!$B$17:$B$15852,J$1,'CF-2'!$C$17:$C$15852,J$2,'CF-2'!$BC$17:$BC$15852,$B$14) -> 0.4131944444 | K14: =SUMIFS('CF-2'!$BE$17:$BE$15852,'CF-2'!$B$17:$B$15852,K$1,'CF-2'!$C$17:$C$15852,K$2,'CF-2'!$BC$17:$BC$15852,$B$14) -> 0.08680555556 | L14: =SUMIFS('CF-2'!$BE$17:$BE$15852,'CF-2'!$B$17:$B$15852,L$1,'CF-2'!$C$17:$C$15852,L$2,'CF-2'!$BC$17:$BC$15852,$B$14) -> 0.2465277778 | M14: =SUMIFS('CF-2'!$BE$17:$BE$15852,'CF-2'!$B$17:$B$15852,M$1,'CF-2'!$C$17:$C$15852,M$2,'CF-2'!$BC$17:$BC$15852,$B$14) -> 0 | N14: =SUMIFS('CF-2'!$BE$17:$BE$15852,'CF-2'!$B$17:$B$15852,N$1,'CF-2'!$C$17:$C$15852,N$2,'CF-2'!$BC$17:$BC$15852,$B$14) -> 0 | O14: =SUMIFS('CF-2'!$BE$17:$BE$15852,'CF-2'!$B$17:$B$15852,O$1,'CF-2'!$C$17:$C$15852,O$2,'CF-2'!$BC$17:$BC$15852,$B$14) -> 0
B15: 計画ﾒﾝﾃ | D15: =SUMIFS('CF-2'!$BE$17:$BE$15852,'CF-2'!$B$17:$B$15852,D$1,'CF-2'!$C$17:$C$15852,D$2,'CF-2'!$BC$17:$BC$15852,$B$15) -> 0 | E15: =SUMIFS('CF-2'!$BE$17:$BE$15852,'CF-2'!$B$17:$B$15852,E$1,'CF-2'!$C$17:$C$15852,E$2,'CF-2'!$BC$17:$BC$15852,$B$15) -> 1.083333333 | F15: =SUMIFS('CF-2'!$BE$17:$BE$15852,'CF-2'!$B$17:$B$15852,F$1,'CF-2'!$C$17:$C$15852,F$2,'CF-2'!$BC$17:$BC$15852,$B$15) -> 0 | G15: =SUMIFS('CF-2'!$BE$17:$BE$15852,'CF-2'!$B$17:$B$15852,G$1,'CF-2'!$C$17:$C$15852,G$2,'CF-2'!$BC$17:$BC$15852,$B$15) -> 0.21875 | H15: =SUMIFS('CF-2'!$BE$17:$BE$15852,'CF-2'!$B$17:$B$15852,H$1,'CF-2'!$C$17:$C$15852,H$2,'CF-2'!$BC$17:$BC$15852,$B$15) -> 5.427083333 | I15: =SUMIFS('CF-2'!$BE$17:$BE$15852,'CF-2'!$B$17:$B$15852,I$1,'CF-2'!$C$17:$C$15852,I$2,'CF-2'!$BC$17:$BC$15852,$B$15) -> 0.7777777778 | J15: =SUMIFS('CF-2'!$BE$17:$BE$15852,'CF-2'!$B$17:$B$15852,J$1,'CF-2'!$C$17:$C$15852,J$2,'CF-2'!$BC$17:$BC$15852,$B$15) -> 0 | K15: =SUMIFS('CF-2'!$BE$17:$BE$15852,'CF-2'!$B$17:$B$15852,K$1,'CF-2'!$C$17:$C$15852,K$2,'CF-2'!$BC$17:$BC$15852,$B$15) -> 2.045138889 | L15: =SUMIFS('CF-2'!$BE$17:$BE$15852,'CF-2'!$B$17:$B$15852,L$1,'CF-2'!$C$17:$C$15852,L$2,'CF-2'!$BC$17:$BC$15852,$B$15) -> 0 | M15: =SUMIFS('CF-2'!$BE$17:$BE$15852,'CF-2'!$B$17:$B$15852,M$1,'CF-2'!$C$17:$C$15852,M$2,'CF-2'!$BC$17:$BC$15852,$B$15) -> 0 | N15: =SUMIFS('CF-2'!$BE$17:$BE$15852,'CF-2'!$B$17:$B$15852,N$1,'CF-2'!$C$17:$C$15852,N$2,'CF-2'!$BC$17:$BC$15852,$B$15) -> 0 | O15: =SUMIFS('CF-2'!$BE$17:$BE$15852,'CF-2'!$B$17:$B$15852,O$1,'CF-2'!$C$17:$C$15852,O$2,'CF-2'!$BC$17:$BC$15852,$B$15) -> 0
B16: 安全活動 | D16: =SUMIFS('CF-2'!$BE$17:$BE$15852,'CF-2'!$B$17:$B$15852,D$1,'CF-2'!$C$17:$C$15852,D$2,'CF-2'!$BC$17:$BC$15852,$B$16) -> 0 | E16: =SUMIFS('CF-2'!$BE$17:$BE$15852,'CF-2'!$B$17:$B$15852,E$1,'CF-2'!$C$17:$C$15852,E$2,'CF-2'!$BC$17:$BC$15852,$B$16) -> 0 | F16: =SUMIFS('CF-2'!$BE$17:$BE$15852,'CF-2'!$B$17:$B$15852,F$1,'CF-2'!$C$17:$C$15852,F$2,'CF-2'!$BC$17:$BC$15852,$B$16) -> 0 | G16: =SUMIFS('CF-2'!$BE$17:$BE$15852,'CF-2'!$B$17:$B$15852,G$1,'CF-2'!$C$17:$C$15852,G$2,'CF-2'!$BC$17:$BC$15852,$B$16) -> 0 | H16: =SUMIFS('CF-2'!$BE$17:$BE$15852,'CF-2'!$B$17:$B$15852,H$1,'CF-2'!$C$17:$C$15852,H$2,'CF-2'!$BC$17:$BC$15852,$B$16) -> 0 | I16: =SUMIFS('CF-2'!$BE$17:$BE$15852,'CF-2'!$B$17:$B$15852,I$1,'CF-2'!$C$17:$C$15852,I$2,'CF-2'!$BC$17:$BC$15852,$B$16) -> 0 | J16: =SUMIFS('CF-2'!$BE$17:$BE$15852,'CF-2'!$B$17:$B$15852,J$1,'CF-2'!$C$17:$C$15852,J$2,'CF-2'!$BC$17:$BC$15852,$B$16) -> 0 | K16: =SUMIFS('CF-2'!$BE$17:$BE$15852,'CF-2'!$B$17:$B$15852,K$1,'CF-2'!$C$17:$C$15852,K$2,'CF-2'!$BC$17:$BC$15852,$B$16) -> 0 | L16: =SUMIFS('CF-2'!$BE$17:$BE$15852,'CF-2'!$B$17:$B$15852,L$1,'CF-2'!$C$17:$C$15852,L$2,'CF-2'!$BC$17:$BC$15852,$B$16) -> 0 | M16: =SUMIFS('CF-2'!$BE$17:$BE$15852,'CF-2'!$B$17:$B$15852,M$1,'CF-2'!$C$17:$C$15852,M$2,'CF-2'!$BC$17:$BC$15852,$B$16) -> 0 | N16: =SUMIFS('CF-2'!$BE$17:$BE$15852,'CF-2'!$B$17:$B$15852,N$1,'CF-2'!$C$17:$C$15852,N$2,'CF-2'!$BC$17:$BC$15852,$B$16) -> 0 | O16: =SUMIFS('CF-2'!$BE$17:$BE$15852,'CF-2'!$B$17:$B$15852,O$1,'CF-2'!$C$17:$C$15852,O$2,'CF-2'!$BC$17:$BC$15852,$B$16) -> 0
B17: その他 | D17: =SUMIFS('CF-2'!$BE$17:$BE$15852,'CF-2'!$B$17:$B$15852,D$1,'CF-2'!$C$17:$C$15852,D$2,'CF-2'!$BC$17:$BC$15852,$B$17) -> 0.03472222222 | E17: =SUMIFS('CF-2'!$BE$17:$BE$15852,'CF-2'!$B$17:$B$15852,E$1,'CF-2'!$C$17:$C$15852,E$2,'CF-2'!$BC$17:$BC$15852,$B$17) -> 0 | F17: =SUMIFS('CF-2'!$BE$17:$BE$15852,'CF-2'!$B$17:$B$15852,F$1,'CF-2'!$C$17:$C$15852,F$2,'CF-2'!$BC$17:$BC$15852,$B$17) -> 0 | G17: =SUMIFS('CF-2'!$BE$17:$BE$15852,'CF-2'!$B$17:$B$15852,G$1,'CF-2'!$C$17:$C$15852,G$2,'CF-2'!$BC$17:$BC$15852,$B$17) -> 0.04166666667 | H17: =SUMIFS('CF-2'!$BE$17:$BE$15852,'CF-2'!$B$17:$B$15852,H$1,'CF-2'!$C$17:$C$15852,H$2,'CF-2'!$BC$17:$BC$15852,$B$17) -> 2.322916667 | I17: =SUMIFS('CF-2'!$BE$17:$BE$15852,'CF-2'!$B$17:$B$15852,I$1,'CF-2'!$C$17:$C$15852,I$2,'CF-2'!$BC$17:$BC$15852,$B$17) -> 0.2708333333 | J17: =SUMIFS('CF-2'!$BE$17:$BE$15852,'CF-2'!$B$17:$B$15852,J$1,'CF-2'!$C$17:$C$15852,J$2,'CF-2'!$BC$17:$BC$15852,$B$17) -> 0 | K17: =SUMIFS('CF-2'!$BE$17:$BE$15852,'CF-2'!$B$17:$B$15852,K$1,'CF-2'!$C$17:$C$15852,K$2,'CF-2'!$BC$17:$BC$15852,$B$17) -> 0.1805555556 | L17: =SUMIFS('CF-2'!$BE$17:$BE$15852,'CF-2'!$B$17:$B$15852,L$1,'CF-2'!$C$17:$C$15852,L$2,'CF-2'!$BC$17:$BC$15852,$B$17) -> 0 | M17: =SUMIFS('CF-2'!$BE$17:$BE$15852,'CF-2'!$B$17:$B$15852,M$1,'CF-2'!$C$17:$C$15852,M$2,'CF-2'!$BC$17:$BC$15852,$B$17) -> 0 | N17: =SUMIFS('CF-2'!$BE$17:$BE$15852,'CF-2'!$B$17:$B$15852,N$1,'CF-2'!$C$17:$C$15852,N$2,'CF-2'!$BC$17:$BC$15852,$B$17) -> 0 | O17: =SUMIFS('CF-2'!$BE$17:$BE$15852,'CF-2'!$B$17:$B$15852,O$1,'CF-2'!$C$17:$C$15852,O$2,'CF-2'!$BC$17:$BC$15852,$B$17) -> 0
B18: 未配台 | D18: =SUM(D19:D21) -> 0.375 | E18: =SUM(E19:E21) -> 0.1284722222 | F18: 0 | G18: 0.5347222222 | H18: 0 | I18: 0.2847222222 | J18: 0.04166666667 | K18: 0.1423611111 | L18: 0 | M18: 0 | N18: 0 | O18: 0
B19: ﾒﾝﾃﾅﾝｽ | D19: =SUMIFS('CF-2'!$BE$17:$BE$15852,'CF-2'!$B$17:$B$15852,D$1,'CF-2'!$C$17:$C$15852,D$2,'CF-2'!$BC$17:$BC$15852,$B$19) -> 0.375 | E19: =SUMIFS('CF-2'!$BE$17:$BE$15852,'CF-2'!$B$17:$B$15852,E$1,'CF-2'!$C$17:$C$15852,E$2,'CF-2'!$BC$17:$BC$15852,$B$19) -> 0.1284722222 | F19: =SUMIFS('CF-2'!$BE$17:$BE$15852,'CF-2'!$B$17:$B$15852,F$1,'CF-2'!$C$17:$C$15852,F$2,'CF-2'!$BC$17:$BC$15852,$B$19) -> 0 | G19: =SUMIFS('CF-2'!$BE$17:$BE$15852,'CF-2'!$B$17:$B$15852,G$1,'CF-2'!$C$17:$C$15852,G$2,'CF-2'!$BC$17:$BC$15852,$B$19) -> 0.5347222222 | H19: =SUMIFS('CF-2'!$BE$17:$BE$15852,'CF-2'!$B$17:$B$15852,H$1,'CF-2'!$C$17:$C$15852,H$2,'CF-2'!$BC$17:$BC$15852,$B$19) -> 0 | I19: =SUMIFS('CF-2'!$BE$17:$BE$15852,'CF-2'!$B$17:$B$15852,I$1,'CF-2'!$C$17:$C$15852,I$2,'CF-2'!$BC$17:$BC$15852,$B$19) -> 0.2847222222 | J19: =SUMIFS('CF-2'!$BE$17:$BE$15852,'CF-2'!$B$17:$B$15852,J$1,'CF-2'!$C$17:$C$15852,J$2,'CF-2'!$BC$17:$BC$15852,$B$19) -> 0.04166666667 | K19: =SUMIFS('CF-2'!$BE$17:$BE$15852,'CF-2'!$B$17:$B$15852,K$1,'CF-2'!$C$17:$C$15852,K$2,'CF-2'!$BC$17:$BC$15852,$B$19) -> 0.1423611111 | L19: =SUMIFS('CF-2'!$BE$17:$BE$15852,'CF-2'!$B$17:$B$15852,L$1,'CF-2'!$C$17:$C$15852,L$2,'CF-2'!$BC$17:$BC$15852,$B$19) -> 0 | M19: =SUMIFS('CF-2'!$BE$17:$BE$15852,'CF-2'!$B$17:$B$15852,M$1,'CF-2'!$C$17:$C$15852,M$2,'CF-2'!$BC$17:$BC$15852,$B$19) -> 0 | N19: =SUMIFS('CF-2'!$BE$17:$BE$15852,'CF-2'!$B$17:$B$15852,N$1,'CF-2'!$C$17:$C$15852,N$2,'CF-2'!$BC$17:$BC$15852,$B$19) -> 0 | O19: =SUMIFS('CF-2'!$BE$17:$BE$15852,'CF-2'!$B$17:$B$15852,O$1,'CF-2'!$C$17:$C$15852,O$2,'CF-2'!$BC$17:$BC$15852,$B$19) -> 0
B20: 他ﾏｼﾝ応援 | D20: =SUMIFS('CF-2'!$BE$17:$BE$15852,'CF-2'!$B$17:$B$15852,D$1,'CF-2'!$C$17:$C$15852,D$2,'CF-2'!$BC$17:$BC$15852,$B$20) -> 0 | E20: =SUMIFS('CF-2'!$BE$17:$BE$15852,'CF-2'!$B$17:$B$15852,E$1,'CF-2'!$C$17:$C$15852,E$2,'CF-2'!$BC$17:$BC$15852,$B$20) -> 0 | F20: =SUMIFS('CF-2'!$BE$17:$BE$15852,'CF-2'!$B$17:$B$15852,F$1,'CF-2'!$C$17:$C$15852,F$2,'CF-2'!$BC$17:$BC$15852,$B$20) -> 0 | G20: =SUMIFS('CF-2'!$BE$17:$BE$15852,'CF-2'!$B$17:$B$15852,G$1,'CF-2'!$C$17:$C$15852,G$2,'CF-2'!$BC$17:$BC$15852,$B$20) -> 0 | H20: =SUMIFS('CF-2'!$BE$17:$BE$15852,'CF-2'!$B$17:$B$15852,H$1,'CF-2'!$C$17:$C$15852,H$2,'CF-2'!$BC$17:$BC$15852,$B$20) -> 0 | I20: =SUMIFS('CF-2'!$BE$17:$BE$15852,'CF-2'!$B$17:$B$15852,I$1,'CF-2'!$C$17:$C$15852,I$2,'CF-2'!$BC$17:$BC$15852,$B$20) -> 0 | J20: =SUMIFS('CF-2'!$BE$17:$BE$15852,'CF-2'!$B$17:$B$15852,J$1,'CF-2'!$C$17:$C$15852,J$2,'CF-2'!$BC$17:$BC$15852,$B$20) -> 0 | K20: =SUMIFS('CF-2'!$BE$17:$BE$15852,'CF-2'!$B$17:$B$15852,K$1,'CF-2'!$C$17:$C$15852,K$2,'CF-2'!$BC$17:$BC$15852,$B$20) -> 0 | L20: =SUMIFS('CF-2'!$BE$17:$BE$15852,'CF-2'!$B$17:$B$15852,L$1,'CF-2'!$C$17:$C$15852,L$2,'CF-2'!$BC$17:$BC$15852,$B$20) -> 0 | M20: =SUMIFS('CF-2'!$BE$17:$BE$15852,'CF-2'!$B$17:$B$15852,M$1,'CF-2'!$C$17:$C$15852,M$2,'CF-2'!$BC$17:$BC$15852,$B$20) -> 0 | N20: =SUMIFS('CF-2'!$BE$17:$BE$15852,'CF-2'!$B$17:$B$15852,N$1,'CF-2'!$C$17:$C$15852,N$2,'CF-2'!$BC$17:$BC$15852,$B$20) -> 0 | O20: =SUMIFS('CF-2'!$BE$17:$BE$15852,'CF-2'!$B$17:$B$15852,O$1,'CF-2'!$C$17:$C$15852,O$2,'CF-2'!$BC$17:$BC$15852,$B$20) -> 0
B21: その他. | D21: =SUMIFS('CF-2'!$BE$17:$BE$15852,'CF-2'!$B$17:$B$15852,D$1,'CF-2'!$C$17:$C$15852,D$2,'CF-2'!$BC$17:$BC$15852,$B$21) -> 0 | E21: =SUMIFS('CF-2'!$BE$17:$BE$15852,'CF-2'!$B$17:$B$15852,E$1,'CF-2'!$C$17:$C$15852,E$2,'CF-2'!$BC$17:$BC$15852,$B$21) -> 0 | F21: =SUMIFS('CF-2'!$BE$17:$BE$15852,'CF-2'!$B$17:$B$15852,F$1,'CF-2'!$C$17:$C$15852,F$2,'CF-2'!$BC$17:$BC$15852,$B$21) -> 0 | G21: =SUMIFS('CF-2'!$BE$17:$BE$15852,'CF-2'!$B$17:$B$15852,G$1,'CF-2'!$C$17:$C$15852,G$2,'CF-2'!$BC$17:$BC$15852,$B$21) -> 0 | H21: =SUMIFS('CF-2'!$BE$17:$BE$15852,'CF-2'!$B$17:$B$15852,H$1,'CF-2'!$C$17:$C$15852,H$2,'CF-2'!$BC$17:$BC$15852,$B$21) -> 0 | I21: =SUMIFS('CF-2'!$BE$17:$BE$15852,'CF-2'!$B$17:$B$15852,I$1,'CF-2'!$C$17:$C$15852,I$2,'CF-2'!$BC$17:$BC$15852,$B$21) -> 0 | J21: =SUMIFS('CF-2'!$BE$17:$BE$15852,'CF-2'!$B$17:$B$15852,J$1,'CF-2'!$C$17:$C$15852,J$2,'CF-2'!$BC$17:$BC$15852,$B$21) -> 0 | K21: =SUMIFS('CF-2'!$BE$17:$BE$15852,'CF-2'!$B$17:$B$15852,K$1,'CF-2'!$C$17:$C$15852,K$2,'CF-2'!$BC$17:$BC$15852,$B$21) -> 0 | L21: =SUMIFS('CF-2'!$BE$17:$BE$15852,'CF-2'!$B$17:$B$15852,L$1,'CF-2'!$C$17:$C$15852,L$2,'CF-2'!$BC$17:$BC$15852,$B$21) -> 0 | M21: =SUMIFS('CF-2'!$BE$17:$BE$15852,'CF-2'!$B$17:$B$15852,M$1,'CF-2'!$C$17:$C$15852,M$2,'CF-2'!$BC$17:$BC$15852,$B$21) -> 0 | N21: =SUMIFS('CF-2'!$BE$17:$BE$15852,'CF-2'!$B$17:$B$15852,N$1,'CF-2'!$C$17:$C$15852,N$2,'CF-2'!$BC$17:$BC$15852,$B$21) -> 0 | O21: =SUMIFS('CF-2'!$BE$17:$BE$15852,'CF-2'!$B$17:$B$15852,O$1,'CF-2'!$C$17:$C$15852,O$2,'CF-2'!$BC$17:$BC$15852,$B$21) -> 0
B22: 公休日 | D22: =SUMIFS('CF-2'!$BE$17:$BE$15852,'CF-2'!$B$17:$B$15852,D$1,'CF-2'!$C$17:$C$15852,D$2,'CF-2'!$BC$17:$BC$15852,$B$22) -> 8 | E22: =SUMIFS('CF-2'!$BE$17:$BE$15852,'CF-2'!$B$17:$B$15852,E$1,'CF-2'!$C$17:$C$15852,E$2,'CF-2'!$BC$17:$BC$15852,$B$22) -> 9 | F22: =SUMIFS('CF-2'!$BE$17:$BE$15852,'CF-2'!$B$17:$B$15852,F$1,'CF-2'!$C$17:$C$15852,F$2,'CF-2'!$BC$17:$BC$15852,$B$22) -> 9 | G22: =SUMIFS('CF-2'!$BE$17:$BE$15852,'CF-2'!$B$17:$B$15852,G$1,'CF-2'!$C$17:$C$15852,G$2,'CF-2'!$BC$17:$BC$15852,$B$22) -> 7 | H22: =SUMIFS('CF-2'!$BE$17:$BE$15852,'CF-2'!$B$17:$B$15852,H$1,'CF-2'!$C$17:$C$15852,H$2,'CF-2'!$BC$17:$BC$15852,$B$22) -> 10.58333333 | I22: =SUMIFS('CF-2'!$BE$17:$BE$15852,'CF-2'!$B$17:$B$15852,I$1,'CF-2'!$C$17:$C$15852,I$2,'CF-2'!$BC$17:$BC$15852,$B$22) -> 8.739583333 | J22: =SUMIFS('CF-2'!$BE$17:$BE$15852,'CF-2'!$B$17:$B$15852,J$1,'CF-2'!$C$17:$C$15852,J$2,'CF-2'!$BC$17:$BC$15852,$B$22) -> 7.9375 | K22: =SUMIFS('CF-2'!$BE$17:$BE$15852,'CF-2'!$B$17:$B$15852,K$1,'CF-2'!$C$17:$C$15852,K$2,'CF-2'!$BC$17:$BC$15852,$B$22) -> 9 | L22: =SUMIFS('CF-2'!$BE$17:$BE$15852,'CF-2'!$B$17:$B$15852,L$1,'CF-2'!$C$17:$C$15852,L$2,'CF-2'!$BC$17:$BC$15852,$B$22) -> 2 | M22: =SUMIFS('CF-2'!$BE$17:$BE$15852,'CF-2'!$B$17:$B$15852,M$1,'CF-2'!$C$17:$C$15852,M$2,'CF-2'!$BC$17:$BC$15852,$B$22) -> 0 | N22: =SUMIFS('CF-2'!$BE$17:$BE$15852,'CF-2'!$B$17:$B$15852,N$1,'CF-2'!$C$17:$C$15852,N$2,'CF-2'!$BC$17:$BC$15852,$B$22) -> 0 | O22: =SUMIFS('CF-2'!$BE$17:$BE$15852,'CF-2'!$B$17:$B$15852,O$1,'CF-2'!$C$17:$C$15852,O$2,'CF-2'!$BC$17:$BC$15852,$B$22) -> 0
B23: 加工時間 | D23: =SUM(D4:D7) -> 15.34375 | E23: =SUM(E4:E7) -> 14.72916667 | F23: 14.47916667 | G23: 15.90972222 | H23: 8.65625 | I23: 12.95138889 | J23: 16.78472222 | K23: 14.60763889 | L23: 5.138888889 | M23: =SUM(M4:M7) -> 0 | N23: =SUM(N4:N7) -> 0 | O23: =SUM(O4:O7) -> 0
B24: 停機時間 | D24: =SUM(D8:D17) -> 6.28125 | E24: =SUM(E8:E17) -> 7.142361111 | F24: 6.520833333 | G24: 7.555555556 | H24: 11.76041667 | I24: 8.024305556 | J24: 6.236111111 | K24: 6.25 | L24: 3.125 | M24: 0 | N24: 0 | O24: 0
B25: 稼働率 | D25: =IFERROR(D23/D26,"") -> 0.6974431818 | E25: =IFERROR(E23/E26,"") -> 0.6695075758 | F25: 0.689484127 | G25: 0.6629050926 | H25: =IFERROR(H23/H26,"") -> 0.4239795918 | I25: 0.6091785073 | J25: 0.7277928335 | K25: 0.6956018519 | L25: 0.6218487395 | M25: =IFERROR(M23/M26,"") ->  | N25: =IFERROR(N23/N26,"") ->  | O25: =IFERROR(O23/O26,"") -> 
D26: =SUM(D4:D18) -> 22 | E26: =SUM(E4:E18) -> 22 | F26: =SUM(F4:F18) -> 21 | G26: 24 | H26: =SUM(H4:H18) -> 20.41666667 | I26: 21.26041667 | J26: 23.0625 | K26: 21 | L26: 8.263888889 | M26: =SUM(M4:M18) -> 0 | N26: =SUM(N4:N18) -> 0 | O26: =SUM(O4:O18) -> 0

Sheet 稼働チャート２４ (hidden)
A1: 2024 | B1: 12 | E1: 1 | F1: 2 | G1: 3 | H1: 4 | I1: 5 | J1: 6 | K1: 7 | L1: 8 | M1: 9 | N1: 10 | O1: 11 | P1: 12 | Q1: 13 | R1: 14 | S1: 15 | T1: 16 | U1: 17 | V1: 18 | W1: 19 | X1: 20 | Y1: 21 | Z1: 22 | AA1: 23 | AB1: 24 | AC1: 25 | AD1: 26 | AE1: 27 | AF1: 28 | AG1: 29 | AH1: 30 | AI1: 31
C2: S加工 | E2: =SUMIFS('CF-2'!$BD$17:$BD$16964,'CF-2'!$B$17:$B$16964,$A$1,'CF-2'!$C$17:$C$16964,$B$1,'CF-2'!$BB$17:$BB$16964,$C2,'CF-2'!$D$17:$D$16964,E$1) -> 0 | F2: =SUMIFS('CF-2'!$BD$17:$BD$16964,'CF-2'!$B$17:$B$16964,$A$1,'CF-2'!$C$17:$C$16964,$B$1,'CF-2'!$BB$17:$BB$16964,$C2,'CF-2'!$D$17:$D$16964,F$1) -> 0.6180555556 | G2: =SUMIFS('CF-2'!$BD$17:$BD$16964,'CF-2'!$B$17:$B$16964,$A$1,'CF-2'!$C$17:$C$16964,$B$1,'CF-2'!$BB$17:$BB$16964,$C2,'CF-2'!$D$17:$D$16964,G$1) -> 0.5277777778 | H2: =SUMIFS('CF-2'!$BD$17:$BD$16964,'CF-2'!$B$17:$B$16964,$A$1,'CF-2'!$C$17:$C$16964,$B$1,'CF-2'!$BB$17:$BB$16964,$C2,'CF-2'!$D$17:$D$16964,H$1) -> 0.3819444444 | I2: =SUMIFS('CF-2'!$BD$17:$BD$16964,'CF-2'!$B$17:$B$16964,$A$1,'CF-2'!$C$17:$C$16964,$B$1,'CF-2'!$BB$17:$BB$16964,$C2,'CF-2'!$D$17:$D$16964,I$1) -> 0.3888888889 | J2: =SUMIFS('CF-2'!$BD$17:$BD$16964,'CF-2'!$B$17:$B$16964,$A$1,'CF-2'!$C$17:$C$16964,$B$1,'CF-2'!$BB$17:$BB$16964,$C2,'CF-2'!$D$17:$D$16964,J$1) -> 0.6354166667 | K2: =SUMIFS('CF-2'!$BD$17:$BD$16964,'CF-2'!$B$17:$B$16964,$A$1,'CF-2'!$C$17:$C$16964,$B$1,'CF-2'!$BB$17:$BB$16964,$C2,'CF-2'!$D$17:$D$16964,K$1) -> 0.6770833333 | L2: =SUMIFS('CF-2'!$BD$17:$BD$16964,'CF-2'!$B$17:$B$16964,$A$1,'CF-2'!$C$17:$C$16964,$B$1,'CF-2'!$BB$17:$BB$16964,$C2,'CF-2'!$D$17:$D$16964,L$1) -> 0 | M2: =SUMIFS('CF-2'!$BD$17:$BD$16964,'CF-2'!$B$17:$B$16964,$A$1,'CF-2'!$C$17:$C$16964,$B$1,'CF-2'!$BB$17:$BB$16964,$C2,'CF-2'!$D$17:$D$16964,M$1) -> 0.2986111111 | N2: =SUMIFS('CF-2'!$BD$17:$BD$16964,'CF-2'!$B$17:$B$16964,$A$1,'CF-2'!$C$17:$C$16964,$B$1,'CF-2'!$BB$17:$BB$16964,$C2,'CF-2'!$D$17:$D$16964,N$1) -> 0.4652777778 | O2: =SUMIFS('CF-2'!$BD$17:$BD$16964,'CF-2'!$B$17:$B$16964,$A$1,'CF-2'!$C$17:$C$16964,$B$1,'CF-2'!$BB$17:$BB$16964,$C2,'CF-2'!$D$17:$D$16964,O$1) -> 0.2777777778 | P2: =SUMIFS('CF-2'!$BD$17:$BD$16964,'CF-2'!$B$17:$B$16964,$A$1,'CF-2'!$C$17:$C$16964,$B$1,'CF-2'!$BB$17:$BB$16964,$C2,'CF-2'!$D$17:$D$16964,P$1) -> 0.9375 | Q2: =SUMIFS('CF-2'!$BD$17:$BD$16964,'CF-2'!$B$17:$B$16964,$A$1,'CF-2'!$C$17:$C$16964,$B$1,'CF-2'!$BB$17:$BB$16964,$C2,'CF-2'!$D$17:$D$16964,Q$1) -> 0.8159722222 | R2: =SUMIFS('CF-2'!$BD$17:$BD$16964,'CF-2'!$B$17:$B$16964,$A$1,'CF-2'!$C$17:$C$16964,$B$1,'CF-2'!$BB$17:$BB$16964,$C2,'CF-2'!$D$17:$D$16964,R$1) -> 0 | S2: =SUMIFS('CF-2'!$BD$17:$BD$16964,'CF-2'!$B$17:$B$16964,$A$1,'CF-2'!$C$17:$C$16964,$B$1,'CF-2'!$BB$17:$BB$16964,$C2,'CF-2'!$D$17:$D$16964,S$1) -> 0 | T2: =SUMIFS('CF-2'!$BD$17:$BD$16964,'CF-2'!$B$17:$B$16964,$A$1,'CF-2'!$C$17:$C$16964,$B$1,'CF-2'!$BB$17:$BB$16964,$C2,'CF-2'!$D$17:$D$16964,T$1) -> 0.7013888889 | U2: =SUMIFS('CF-2'!$BD$17:$BD$16964,'CF-2'!$B$17:$B$16964,$A$1,'CF-2'!$C$17:$C$16964,$B$1,'CF-2'!$BB$17:$BB$16964,$C2,'CF-2'!$D$17:$D$16964,U$1) -> 0.25 | V2: =SUMIFS('CF-2'!$BD$17:$BD$16964,'CF-2'!$B$17:$B$16964,$A$1,'CF-2'!$C$17:$C$16964,$B$1,'CF-2'!$BB$17:$BB$16964,$C2,'CF-2'!$D$17:$D$16964,V$1) -> 0.2013888889 | W2: =SUMIFS('CF-2'!$BD$17:$BD$16964,'CF-2'!$B$17:$B$16964,$A$1,'CF-2'!$C$17:$C$16964,$B$1,'CF-2'!$BB$17:$BB$16964,$C2,'CF-2'!$D$17:$D$16964,W$1) -> 0 | X2: =SUMIFS('CF-2'!$BD$17:$BD$16964,'CF-2'!$B$17:$B$16964,$A$1,'CF-2'!$C$17:$C$16964,$B$1,'CF-2'!$BB$17:$BB$16964,$C2,'CF-2'!$D$17:$D$16964,X$1) -> 0 | Y2: =SUMIFS('CF-2'!$BD$17:$BD$16964,'CF-2'!$B$17:$B$16964,$A$1,'CF-2'!$C$17:$C$16964,$B$1,'CF-2'!$BB$17:$BB$16964,$C2,'CF-2'!$D$17:$D$16964,Y$1) -> 0 | Z2: =SUMIFS('CF-2'!$BD$17:$BD$16964,'CF-2'!$B$17:$B$16964,$A$1,'CF-2'!$C$17:$C$16964,$B$1,'CF-2'!$BB$17:$BB$16964,$C2,'CF-2'!$D$17:$D$16964,Z$1) -> 0 | AA2: =SUMIFS('CF-2'!$BD$17:$BD$16964,'CF-2'!$B$17:$B$16964,$A$1,'CF-2'!$C$17:$C$16964,$B$1,'CF-2'!$BB$17:$BB$16964,$C2,'CF-2'!$D$17:$D$16964,AA$1) -> 0 | AB2: =SUMIFS('CF-2'!$BD$17:$BD$16964,'CF-2'!$B$17:$B$16964,$A$1,'CF-2'!$C$17:$C$16964,$B$1,'CF-2'!$BB$17:$BB$16964,$C2,'CF-2'!$D$17:$D$16964,AB$1) -> 0 | AC2: =SUMIFS('CF-2'!$BD$17:$BD$16964,'CF-2'!$B$17:$B$16964,$A$1,'CF-2'!$C$17:$C$16964,$B$1,'CF-2'!$BB$17:$BB$16964,$C2,'CF-2'!$D$17:$D$16964,AC$1) -> 0 | AD2: =SUMIFS('CF-2'!$BD$17:$BD$16964,'CF-2'!$B$17:$B$16964,$A$1,'CF-2'!$C$17:$C$16964,$B$1,'CF-2'!$BB$17:$BB$16964,$C2,'CF-2'!$D$17:$D$16964,AD$1) -> 0 | AE2: =SUMIFS('CF-2'!$BD$17:$BD$16964,'CF-2'!$B$17:$B$16964,$A$1,'CF-2'!$C$17:$C$16964,$B$1,'CF-2'!$BB$17:$BB$16964,$C2,'CF-2'!$D$17:$D$16964,AE$1) -> 0 | AF2: =SUMIFS('CF-2'!$BD$17:$BD$16964,'CF-2'!$B$17:$B$16964,$A$1,'CF-2'!$C$17:$C$16964,$B$1,'CF-2'!$BB$17:$BB$16964,$C2,'CF-2'!$D$17:$D$16964,AF$1) -> 0 | AG2: =SUMIFS('CF-2'!$BD$17:$BD$16964,'CF-2'!$B$17:$B$16964,$A$1,'CF-2'!$C$17:$C$16964,$B$1,'CF-2'!$BB$17:$BB$16964,$C2,'CF-2'!$D$17:$D$16964,AG$1) -> 0 | AH2: =SUMIFS('CF-2'!$BD$17:$BD$16964,'CF-2'!$B$17:$B$16964,$A$1,'CF-2'!$C$17:$C$16964,$B$1,'CF-2'!$BB$17:$BB$16964,$C2,'CF-2'!$D$17:$D$16964,AH$1) -> 0 | AI2: =SUMIFS('CF-2'!$BD$17:$BD$16964,'CF-2'!$B$17:$B$16964,$A$1,'CF-2'!$C$17:$C$16964,$B$1,'CF-2'!$BB$17:$BB$16964,$C2,'CF-2'!$D$17:$D$16964,AI$1) -> 0 | AJ2: =SUM(E2:AI2) -> 7.177083333 | AK2: =AJ2 -> 7.177083333
C3: T試作加工 | E3: =SUMIFS('CF-2'!$BD$17:$BD$16964,'CF-2'!$B$17:$B$16964,$A$1,'CF-2'!$C$17:$C$16964,$B$1,'CF-2'!$BB$17:$BB$16964,$C3,'CF-2'!$D$17:$D$16964,E$1) -> 0 | F3: =SUMIFS('CF-2'!$BD$17:$BD$16964,'CF-2'!$B$17:$B$16964,$A$1,'CF-2'!$C$17:$C$16964,$B$1,'CF-2'!$BB$17:$BB$16964,$C3,'CF-2'!$D$17:$D$16964,F$1) -> 0 | G3: =SUMIFS('CF-2'!$BD$17:$BD$16964,'CF-2'!$B$17:$B$16964,$A$1,'CF-2'!$C$17:$C$16964,$B$1,'CF-2'!$BB$17:$BB$16964,$C3,'CF-2'!$D$17:$D$16964,G$1) -> 0 | H3: =SUMIFS('CF-2'!$BD$17:$BD$16964,'CF-2'!$B$17:$B$16964,$A$1,'CF-2'!$C$17:$C$16964,$B$1,'CF-2'!$BB$17:$BB$16964,$C3,'CF-2'!$D$17:$D$16964,H$1) -> 0 | I3: =SUMIFS('CF-2'!$BD$17:$BD$16964,'CF-2'!$B$17:$B$16964,$A$1,'CF-2'!$C$17:$C$16964,$B$1,'CF-2'!$BB$17:$BB$16964,$C3,'CF-2'!$D$17:$D$16964,I$1) -> 0 | J3: =SUMIFS('CF-2'!$BD$17:$BD$16964,'CF-2'!$B$17:$B$16964,$A$1,'CF-2'!$C$17:$C$16964,$B$1,'CF-2'!$BB$17:$BB$16964,$C3,'CF-2'!$D$17:$D$16964,J$1) -> 0 | K3: =SUMIFS('CF-2'!$BD$17:$BD$16964,'CF-2'!$B$17:$B$16964,$A$1,'CF-2'!$C$17:$C$16964,$B$1,'CF-2'!$BB$17:$BB$16964,$C3,'CF-2'!$D$17:$D$16964,K$1) -> 0 | L3: =SUMIFS('CF-2'!$BD$17:$BD$16964,'CF-2'!$B$17:$B$16964,$A$1,'CF-2'!$C$17:$C$16964,$B$1,'CF-2'!$BB$17:$BB$16964,$C3,'CF-2'!$D$17:$D$16964,L$1) -> 0 | M3: =SUMIFS('CF-2'!$BD$17:$BD$16964,'CF-2'!$B$17:$B$16964,$A$1,'CF-2'!$C$17:$C$16964,$B$1,'CF-2'!$BB$17:$BB$16964,$C3,'CF-2'!$D$17:$D$16964,M$1) -> 0 | N3: =SUMIFS('CF-2'!$BD$17:$BD$16964,'CF-2'!$B$17:$B$16964,$A$1,'CF-2'!$C$17:$C$16964,$B$1,'CF-2'!$BB$17:$BB$16964,$C3,'CF-2'!$D$17:$D$16964,N$1) -> 0.08680555556 | O3: =SUMIFS('CF-2'!$BD$17:$BD$16964,'CF-2'!$B$17:$B$16964,$A$1,'CF-2'!$C$17:$C$16964,$B$1,'CF-2'!$BB$17:$BB$16964,$C3,'CF-2'!$D$17:$D$16964,O$1) -> 0.5277777778 | P3: =SUMIFS('CF-2'!$BD$17:$BD$16964,'CF-2'!$B$17:$B$16964,$A$1,'CF-2'!$C$17:$C$16964,$B$1,'CF-2'!$BB$17:$BB$16964,$C3,'CF-2'!$D$17:$D$16964,P$1) -> 0 | Q3: =SUMIFS('CF-2'!$BD$17:$BD$16964,'CF-2'!$B$17:$B$16964,$A$1,'CF-2'!$C$17:$C$16964,$B$1,'CF-2'!$BB$17:$BB$16964,$C3,'CF-2'!$D$17:$D$16964,Q$1) -> 0 | R3: =SUMIFS('CF-2'!$BD$17:$BD$16964,'CF-2'!$B$17:$B$16964,$A$1,'CF-2'!$C$17:$C$16964,$B$1,'CF-2'!$BB$17:$BB$16964,$C3,'CF-2'!$D$17:$D$16964,R$1) -> 0 | S3: =SUMIFS('CF-2'!$BD$17:$BD$16964,'CF-2'!$B$17:$B$16964,$A$1,'CF-2'!$C$17:$C$16964,$B$1,'CF-2'!$BB$17:$BB$16964,$C3,'CF-2'!$D$17:$D$16964,S$1) -> 0 | T3: =SUMIFS('CF-2'!$BD$17:$BD$16964,'CF-2'!$B$17:$B$16964,$A$1,'CF-2'!$C$17:$C$16964,$B$1,'CF-2'!$BB$17:$BB$16964,$C3,'CF-2'!$D$17:$D$16964,T$1) -> 0 | U3: =SUMIFS('CF-2'!$BD$17:$BD$16964,'CF-2'!$B$17:$B$16964,$A$1,'CF-2'!$C$17:$C$16964,$B$1,'CF-2'!$BB$17:$BB$16964,$C3,'CF-2'!$D$17:$D$16964,U$1) -> 0 | V3: =SUMIFS('CF-2'!$BD$17:$BD$16964,'CF-2'!$B$17:$B$16964,$A$1,'CF-2'!$C$17:$C$16964,$B$1,'CF-2'!$BB$17:$BB$16964,$C3,'CF-2'!$D$17:$D$16964,V$1) -> 0 | W3: =SUMIFS('CF-2'!$BD$17:$BD$16964,'CF-2'!$B$17:$B$16964,$A$1,'CF-2'!$C$17:$C$16964,$B$1,'CF-2'!$BB$17:$BB$16964,$C3,'CF-2'!$D$17:$D$16964,W$1) -> 0 | X3: =SUMIFS('CF-2'!$BD$17:$BD$16964,'CF-2'!$B$17:$B$16964,$A$1,'CF-2'!$C$17:$C$16964,$B$1,'CF-2'!$BB$17:$BB$16964,$C3,'CF-2'!$D$17:$D$16964,X$1) -> 0 | Y3: =SUMIFS('CF-2'!$BD$17:$BD$16964,'CF-2'!$B$17:$B$16964,$A$1,'CF-2'!$C$17:$C$16964,$B$1,'CF-2'!$BB$17:$BB$16964,$C3,'CF-2'!$D$17:$D$16964,Y$1) -> 0 | Z3: =SUMIFS('CF-2'!$BD$17:$BD$16964,'CF-2'!$B$17:$B$16964,$A$1,'CF-2'!$C$17:$C$16964,$B$1,'CF-2'!$BB$17:$BB$16964,$C3,'CF-2'!$D$17:$D$16964,Z$1) -> 0 | AA3: =SUMIFS('CF-2'!$BD$17:$BD$16964,'CF-2'!$B$17:$B$16964,$A$1,'CF-2'!$C$17:$C$16964,$B$1,'CF-2'!$BB$17:$BB$16964,$C3,'CF-2'!$D$17:$D$16964,AA$1) -> 0 | AB3: =SUMIFS('CF-2'!$BD$17:$BD$16964,'CF-2'!$B$17:$B$16964,$A$1,'CF-2'!$C$17:$C$16964,$B$1,'CF-2'!$BB$17:$BB$16964,$C3,'CF-2'!$D$17:$D$16964,AB$1) -> 0 | AC3: =SUMIFS('CF-2'!$BD$17:$BD$16964,'CF-2'!$B$17:$B$16964,$A$1,'CF-2'!$C$17:$C$16964,$B$1,'CF-2'!$BB$17:$BB$16964,$C3,'CF-2'!$D$17:$D$16964,AC$1) -> 0 | AD3: =SUMIFS('CF-2'!$BD$17:$BD$16964,'CF-2'!$B$17:$B$16964,$A$1,'CF-2'!$C$17:$C$16964,$B$1,'CF-2'!$BB$17:$BB$16964,$C3,'CF-2'!$D$17:$D$16964,AD$1) -> 0 | AE3: =SUMIFS('CF-2'!$BD$17:$BD$16964,'CF-2'!$B$17:$B$16964,$A$1,'CF-2'!$C$17:$C$16964,$B$1,'CF-2'!$BB$17:$BB$16964,$C3,'CF-2'!$D$17:$D$16964,AE$1) -> 0 | AF3: =SUMIFS('CF-2'!$BD$17:$BD$16964,'CF-2'!$B$17:$B$16964,$A$1,'CF-2'!$C$17:$C$16964,$B$1,'CF-2'!$BB$17:$BB$16964,$C3,'CF-2'!$D$17:$D$16964,AF$1) -> 0 | AG3: =SUMIFS('CF-2'!$BD$17:$BD$16964,'CF-2'!$B$17:$B$16964,$A$1,'CF-2'!$C$17:$C$16964,$B$1,'CF-2'!$BB$17:$BB$16964,$C3,'CF-2'!$D$17:$D$16964,AG$1) -> 0 | AH3: =SUMIFS('CF-2'!$BD$17:$BD$16964,'CF-2'!$B$17:$B$16964,$A$1,'CF-2'!$C$17:$C$16964,$B$1,'CF-2'!$BB$17:$BB$16964,$C3,'CF-2'!$D$17:$D$16964,AH$1) -> 0 | AI3: =SUMIFS('CF-2'!$BD$17:$BD$16964,'CF-2'!$B$17:$B$16964,$A$1,'CF-2'!$C$17:$C$16964,$B$1,'CF-2'!$BB$17:$BB$16964,$C3,'CF-2'!$D$17:$D$16964,AI$1) -> 0 | AJ3: =SUM(E3:AI3) -> 0.6145833333 | AK3: =AJ3 -> 0.6145833333
C4: U試作加工 | E4: =SUMIFS('CF-2'!$BD$17:$BD$16964,'CF-2'!$B$17:$B$16964,$A$1,'CF-2'!$C$17:$C$16964,$B$1,'CF-2'!$BB$17:$BB$16964,$C4,'CF-2'!$D$17:$D$16964,E$1) -> 0 | F4: =SUMIFS('CF-2'!$BD$17:$BD$16964,'CF-2'!$B$17:$B$16964,$A$1,'CF-2'!$C$17:$C$16964,$B$1,'CF-2'!$BB$17:$BB$16964,$C4,'CF-2'!$D$17:$D$16964,F$1) -> 0 | G4: =SUMIFS('CF-2'!$BD$17:$BD$16964,'CF-2'!$B$17:$B$16964,$A$1,'CF-2'!$C$17:$C$16964,$B$1,'CF-2'!$BB$17:$BB$16964,$C4,'CF-2'!$D$17:$D$16964,G$1) -> 0.02430555556 | H4: =SUMIFS('CF-2'!$BD$17:$BD$16964,'CF-2'!$B$17:$B$16964,$A$1,'CF-2'!$C$17:$C$16964,$B$1,'CF-2'!$BB$17:$BB$16964,$C4,'CF-2'!$D$17:$D$16964,H$1) -> 0 | I4: =SUMIFS('CF-2'!$BD$17:$BD$16964,'CF-2'!$B$17:$B$16964,$A$1,'CF-2'!$C$17:$C$16964,$B$1,'CF-2'!$BB$17:$BB$16964,$C4,'CF-2'!$D$17:$D$16964,I$1) -> 0.2222222222 | J4: =SUMIFS('CF-2'!$BD$17:$BD$16964,'CF-2'!$B$17:$B$16964,$A$1,'CF-2'!$C$17:$C$16964,$B$1,'CF-2'!$BB$17:$BB$16964,$C4,'CF-2'!$D$17:$D$16964,J$1) -> 0.2847222222 | K4: =SUMIFS('CF-2'!$BD$17:$BD$16964,'CF-2'!$B$17:$B$16964,$A$1,'CF-2'!$C$17:$C$16964,$B$1,'CF-2'!$BB$17:$BB$16964,$C4,'CF-2'!$D$17:$D$16964,K$1) -> 0 | L4: =SUMIFS('CF-2'!$BD$17:$BD$16964,'CF-2'!$B$17:$B$16964,$A$1,'CF-2'!$C$17:$C$16964,$B$1,'CF-2'!$BB$17:$BB$16964,$C4,'CF-2'!$D$17:$D$16964,L$1) -> 0 | M4: =SUMIFS('CF-2'!$BD$17:$BD$16964,'CF-2'!$B$17:$B$16964,$A$1,'CF-2'!$C$17:$C$16964,$B$1,'CF-2'!$BB$17:$BB$16964,$C4,'CF-2'!$D$17:$D$16964,M$1) -> 0 | N4: =SUMIFS('CF-2'!$BD$17:$BD$16964,'CF-2'!$B$17:$B$16964,$A$1,'CF-2'!$C$17:$C$16964,$B$1,'CF-2'!$BB$17:$BB$16964,$C4,'CF-2'!$D$17:$D$16964,N$1) -> 0 | O4: =SUMIFS('CF-2'!$BD$17:$BD$16964,'CF-2'!$B$17:$B$16964,$A$1,'CF-2'!$C$17:$C$16964,$B$1,'CF-2'!$BB$17:$BB$16964,$C4,'CF-2'!$D$17:$D$16964,O$1) -> 0.1041666667 | P4: =SUMIFS('CF-2'!$BD$17:$BD$16964,'CF-2'!$B$17:$B$16964,$A$1,'CF-2'!$C$17:$C$16964,$B$1,'CF-2'!$BB$17:$BB$16964,$C4,'CF-2'!$D$17:$D$16964,P$1) -> 0 | Q4: =SUMIFS('CF-2'!$BD$17:$BD$16964,'CF-2'!$B$17:$B$16964,$A$1,'CF-2'!$C$17:$C$16964,$B$1,'CF-2'!$BB$17:$BB$16964,$C4,'CF-2'!$D$17:$D$16964,Q$1) -> 0 | R4: =SUMIFS('CF-2'!$BD$17:$BD$16964,'CF-2'!$B$17:$B$16964,$A$1,'CF-2'!$C$17:$C$16964,$B$1,'CF-2'!$BB$17:$BB$16964,$C4,'CF-2'!$D$17:$D$16964,R$1) -> 0 | S4: =SUMIFS('CF-2'!$BD$17:$BD$16964,'CF-2'!$B$17:$B$16964,$A$1,'CF-2'!$C$17:$C$16964,$B$1,'CF-2'!$BB$17:$BB$16964,$C4,'CF-2'!$D$17:$D$16964,S$1) -> 0 | T4: =SUMIFS('CF-2'!$BD$17:$BD$16964,'CF-2'!$B$17:$B$16964,$A$1,'CF-2'!$C$17:$C$16964,$B$1,'CF-2'!$BB$17:$BB$16964,$C4,'CF-2'!$D$17:$D$16964,T$1) -> 0.1006944444 | U4: =SUMIFS('CF-2'!$BD$17:$BD$16964,'CF-2'!$B$17:$B$16964,$A$1,'CF-2'!$C$17:$C$16964,$B$1,'CF-2'!$BB$17:$BB$16964,$C4,'CF-2'!$D$17:$D$16964,U$1) -> 0.3506944444 | V4: =SUMIFS('CF-2'!$BD$17:$BD$16964,'CF-2'!$B$17:$B$16964,$A$1,'CF-2'!$C$17:$C$16964,$B$1,'CF-2'!$BB$17:$BB$16964,$C4,'CF-2'!$D$17:$D$16964,V$1) -> 0 | W4: =SUMIFS('CF-2'!$BD$17:$BD$16964,'CF-2'!$B$17:$B$16964,$A$1,'CF-2'!$C$17:$C$16964,$B$1,'CF-2'!$BB$17:$BB$16964,$C4,'CF-2'!$D$17:$D$16964,W$1) -> 0 | X4: =SUMIFS('CF-2'!$BD$17:$BD$16964,'CF-2'!$B$17:$B$16964,$A$1,'CF-2'!$C$17:$C$16964,$B$1,'CF-2'!$BB$17:$BB$16964,$C4,'CF-2'!$D$17:$D$16964,X$1) -> 0 | Y4: =SUMIFS('CF-2'!$BD$17:$BD$16964,'CF-2'!$B$17:$B$16964,$A$1,'CF-2'!$C$17:$C$16964,$B$1,'CF-2'!$BB$17:$BB$16964,$C4,'CF-2'!$D$17:$D$16964,Y$1) -> 0 | Z4: =SUMIFS('CF-2'!$BD$17:$BD$16964,'CF-2'!$B$17:$B$16964,$A$1,'CF-2'!$C$17:$C$16964,$B$1,'CF-2'!$BB$17:$BB$16964,$C4,'CF-2'!$D$17:$D$16964,Z$1) -> 0 | AA4: =SUMIFS('CF-2'!$BD$17:$BD$16964,'CF-2'!$B$17:$B$16964,$A$1,'CF-2'!$C$17:$C$16964,$B$1,'CF-2'!$BB$17:$BB$16964,$C4,'CF-2'!$D$17:$D$16964,AA$1) -> 0 | AB4: =SUMIFS('CF-2'!$BD$17:$BD$16964,'CF-2'!$B$17:$B$16964,$A$1,'CF-2'!$C$17:$C$16964,$B$1,'CF-2'!$BB$17:$BB$16964,$C4,'CF-2'!$D$17:$D$16964,AB$1) -> 0 | AC4: =SUMIFS('CF-2'!$BD$17:$BD$16964,'CF-2'!$B$17:$B$16964,$A$1,'CF-2'!$C$17:$C$16964,$B$1,'CF-2'!$BB$17:$BB$16964,$C4,'CF-2'!$D$17:$D$16964,AC$1) -> 0 | AD4: =SUMIFS('CF-2'!$BD$17:$BD$16964,'CF-2'!$B$17:$B$16964,$A$1,'CF-2'!$C$17:$C$16964,$B$1,'CF-2'!$BB$17:$BB$16964,$C4,'CF-2'!$D$17:$D$16964,AD$1) -> 0 | AE4: =SUMIFS('CF-2'!$BD$17:$BD$16964,'CF-2'!$B$17:$B$16964,$A$1,'CF-2'!$C$17:$C$16964,$B$1,'CF-2'!$BB$17:$BB$16964,$C4,'CF-2'!$D$17:$D$16964,AE$1) -> 0 | AF4: =SUMIFS('CF-2'!$BD$17:$BD$16964,'CF-2'!$B$17:$B$16964,$A$1,'CF-2'!$C$17:$C$16964,$B$1,'CF-2'!$BB$17:$BB$16964,$C4,'CF-2'!$D$17:$D$16964,AF$1) -> 0 | AG4: =SUMIFS('CF-2'!$BD$17:$BD$16964,'CF-2'!$B$17:$B$16964,$A$1,'CF-2'!$C$17:$C$16964,$B$1,'CF-2'!$BB$17:$BB$16964,$C4,'CF-2'!$D$17:$D$16964,AG$1) -> 0 | AH4: =SUMIFS('CF-2'!$BD$17:$BD$16964,'CF-2'!$B$17:$B$16964,$A$1,'CF-2'!$C$17:$C$16964,$B$1,'CF-2'!$BB$17:$BB$16964,$C4,'CF-2'!$D$17:$D$16964,AH$1) -> 0 | AI4: =SUMIFS('CF-2'!$BD$17:$BD$16964,'CF-2'!$B$17:$B$16964,$A$1,'CF-2'!$C$17:$C$16964,$B$1,'CF-2'!$BB$17:$BB$16964,$C4,'CF-2'!$D$17:$D$16964,AI$1) -> 0 | AJ4: 1.086805556 | AK4: 1.086805556
C5: 技術試作加工 | E5: =SUMIFS('CF-2'!$BD$17:$BD$16964,'CF-2'!$B$17:$B$16964,$A$1,'CF-2'!$C$17:$C$16964,$B$1,'CF-2'!$BB$17:$BB$16964,$C5,'CF-2'!$D$17:$D$16964,E$1) -> 0 | F5: =SUMIFS('CF-2'!$BD$17:$BD$16964,'CF-2'!$B$17:$B$16964,$A$1,'CF-2'!$C$17:$C$16964,$B$1,'CF-2'!$BB$17:$BB$16964,$C5,'CF-2'!$D$17:$D$16964,F$1) -> 0 | G5: =SUMIFS('CF-2'!$BD$17:$BD$16964,'CF-2'!$B$17:$B$16964,$A$1,'CF-2'!$C$17:$C$16964,$B$1,'CF-2'!$BB$17:$BB$16964,$C5,'CF-2'!$D$17:$D$16964,G$1) -> 0 | H5: =SUMIFS('CF-2'!$BD$17:$BD$16964,'CF-2'!$B$17:$B$16964,$A$1,'CF-2'!$C$17:$C$16964,$B$1,'CF-2'!$BB$17:$BB$16964,$C5,'CF-2'!$D$17:$D$16964,H$1) -> 0 | I5: =SUMIFS('CF-2'!$BD$17:$BD$16964,'CF-2'!$B$17:$B$16964,$A$1,'CF-2'!$C$17:$C$16964,$B$1,'CF-2'!$BB$17:$BB$16964,$C5,'CF-2'!$D$17:$D$16964,I$1) -> 0 | J5: =SUMIFS('CF-2'!$BD$17:$BD$16964,'CF-2'!$B$17:$B$16964,$A$1,'CF-2'!$C$17:$C$16964,$B$1,'CF-2'!$BB$17:$BB$16964,$C5,'CF-2'!$D$17:$D$16964,J$1) -> 0 | K5: =SUMIFS('CF-2'!$BD$17:$BD$16964,'CF-2'!$B$17:$B$16964,$A$1,'CF-2'!$C$17:$C$16964,$B$1,'CF-2'!$BB$17:$BB$16964,$C5,'CF-2'!$D$17:$D$16964,K$1) -> 0 | L5: =SUMIFS('CF-2'!$BD$17:$BD$16964,'CF-2'!$B$17:$B$16964,$A$1,'CF-2'!$C$17:$C$16964,$B$1,'CF-2'!$BB$17:$BB$16964,$C5,'CF-2'!$D$17:$D$16964,L$1) -> 0 | M5: =SUMIFS('CF-2'!$BD$17:$BD$16964,'CF-2'!$B$17:$B$16964,$A$1,'CF-2'!$C$17:$C$16964,$B$1,'CF-2'!$BB$17:$BB$16964,$C5,'CF-2'!$D$17:$D$16964,M$1) -> 0 | N5: =SUMIFS('CF-2'!$BD$17:$BD$16964,'CF-2'!$B$17:$B$16964,$A$1,'CF-2'!$C$17:$C$16964,$B$1,'CF-2'!$BB$17:$BB$16964,$C5,'CF-2'!$D$17:$D$16964,N$1) -> 0 | O5: =SUMIFS('CF-2'!$BD$17:$BD$16964,'CF-2'!$B$17:$B$16964,$A$1,'CF-2'!$C$17:$C$16964,$B$1,'CF-2'!$BB$17:$BB$16964,$C5,'CF-2'!$D$17:$D$16964,O$1) -> 0 | P5: =SUMIFS('CF-2'!$BD$17:$BD$16964,'CF-2'!$B$17:$B$16964,$A$1,'CF-2'!$C$17:$C$16964,$B$1,'CF-2'!$BB$17:$BB$16964,$C5,'CF-2'!$D$17:$D$16964,P$1) -> 0 | Q5: =SUMIFS('CF-2'!$BD$17:$BD$16964,'CF-2'!$B$17:$B$16964,$A$1,'CF-2'!$C$17:$C$16964,$B$1,'CF-2'!$BB$17:$BB$16964,$C5,'CF-2'!$D$17:$D$16964,Q$1) -> 0 | R5: =SUMIFS('CF-2'!$BD$17:$BD$16964,'CF-2'!$B$17:$B$16964,$A$1,'CF-2'!$C$17:$C$16964,$B$1,'CF-2'!$BB$17:$BB$16964,$C5,'CF-2'!$D$17:$D$16964,R$1) -> 0 | S5: =SUMIFS('CF-2'!$BD$17:$BD$16964,'CF-2'!$B$17:$B$16964,$A$1,'CF-2'!$C$17:$C$16964,$B$1,'CF-2'!$BB$17:$BB$16964,$C5,'CF-2'!$D$17:$D$16964,S$1) -> 0 | T5: =SUMIFS('CF-2'!$BD$17:$BD$16964,'CF-2'!$B$17:$B$16964,$A$1,'CF-2'!$C$17:$C$16964,$B$1,'CF-2'!$BB$17:$BB$16964,$C5,'CF-2'!$D$17:$D$16964,T$1) -> 0 | U5: =SUMIFS('CF-2'!$BD$17:$BD$16964,'CF-2'!$B$17:$B$16964,$A$1,'CF-2'!$C$17:$C$16964,$B$1,'CF-2'!$BB$17:$BB$16964,$C5,'CF-2'!$D$17:$D$16964,U$1) -> 0 | V5: =SUMIFS('CF-2'!$BD$17:$BD$16964,'CF-2'!$B$17:$B$16964,$A$1,'CF-2'!$C$17:$C$16964,$B$1,'CF-2'!$BB$17:$BB$16964,$C5,'CF-2'!$D$17:$D$16964,V$1) -> 0 | W5: =SUMIFS('CF-2'!$BD$17:$BD$16964,'CF-2'!$B$17:$B$16964,$A$1,'CF-2'!$C$17:$C$16964,$B$1,'CF-2'!$BB$17:$BB$16964,$C5,'CF-2'!$D$17:$D$16964,W$1) -> 0 | X5: =SUMIFS('CF-2'!$BD$17:$BD$16964,'CF-2'!$B$17:$B$16964,$A$1,'CF-2'!$C$17:$C$16964,$B$1,'CF-2'!$BB$17:$BB$16964,$C5,'CF-2'!$D$17:$D$16964,X$1) -> 0 | Y5: =SUMIFS('CF-2'!$BD$17:$BD$16964,'CF-2'!$B$17:$B$16964,$A$1,'CF-2'!$C$17:$C$16964,$B$1,'CF-2'!$BB$17:$BB$16964,$C5,'CF-2'!$D$17:$D$16964,Y$1) -> 0 | Z5: =SUMIFS('CF-2'!$BD$17:$BD$16964,'CF-2'!$B$17:$B$16964,$A$1,'CF-2'!$C$17:$C$16964,$B$1,'CF-2'!$BB$17:$BB$16964,$C5,'CF-2'!$D$17:$D$16964,Z$1) -> 0 | AA5: =SUMIFS('CF-2'!$BD$17:$BD$16964,'CF-2'!$B$17:$B$16964,$A$1,'CF-2'!$C$17:$C$16964,$B$1,'CF-2'!$BB$17:$BB$16964,$C5,'CF-2'!$D$17:$D$16964,AA$1) -> 0 | AB5: =SUMIFS('CF-2'!$BD$17:$BD$16964,'CF-2'!$B$17:$B$16964,$A$1,'CF-2'!$C$17:$C$16964,$B$1,'CF-2'!$BB$17:$BB$16964,$C5,'CF-2'!$D$17:$D$16964,AB$1) -> 0 | AC5: =SUMIFS('CF-2'!$BD$17:$BD$16964,'CF-2'!$B$17:$B$16964,$A$1,'CF-2'!$C$17:$C$16964,$B$1,'CF-2'!$BB$17:$BB$16964,$C5,'CF-2'!$D$17:$D$16964,AC$1) -> 0 | AD5: =SUMIFS('CF-2'!$BD$17:$BD$16964,'CF-2'!$B$17:$B$16964,$A$1,'CF-2'!$C$17:$C$16964,$B$1,'CF-2'!$BB$17:$BB$16964,$C5,'CF-2'!$D$17:$D$16964,AD$1) -> 0 | AE5: =SUMIFS('CF-2'!$BD$17:$BD$16964,'CF-2'!$B$17:$B$16964,$A$1,'CF-2'!$C$17:$C$16964,$B$1,'CF-2'!$BB$17:$BB$16964,$C5,'CF-2'!$D$17:$D$16964,AE$1) -> 0 | AF5: =SUMIFS('CF-2'!$BD$17:$BD$16964,'CF-2'!$B$17:$B$16964,$A$1,'CF-2'!$C$17:$C$16964,$B$1,'CF-2'!$BB$17:$BB$16964,$C5,'CF-2'!$D$17:$D$16964,AF$1) -> 0 | AG5: =SUMIFS('CF-2'!$BD$17:$BD$16964,'CF-2'!$B$17:$B$16964,$A$1,'CF-2'!$C$17:$C$16964,$B$1,'CF-2'!$BB$17:$BB$16964,$C5,'CF-2'!$D$17:$D$16964,AG$1) -> 0 | AH5: =SUMIFS('CF-2'!$BD$17:$BD$16964,'CF-2'!$B$17:$B$16964,$A$1,'CF-2'!$C$17:$C$16964,$B$1,'CF-2'!$BB$17:$BB$16964,$C5,'CF-2'!$D$17:$D$16964,AH$1) -> 0 | AI5: =SUMIFS('CF-2'!$BD$17:$BD$16964,'CF-2'!$B$17:$B$16964,$A$1,'CF-2'!$C$17:$C$16964,$B$1,'CF-2'!$BB$17:$BB$16964,$C5,'CF-2'!$D$17:$D$16964,AI$1) -> 0 | AJ5: 0 | AK5: 0
C6: G/D清掃 | E6: =SUMIFS('CF-2'!$BE$17:$BE$16964,'CF-2'!$B$17:$B$16964,$A$1,'CF-2'!$C$17:$C$16964,$B$1,'CF-2'!$BC$17:$BC$16964,$C6,'CF-2'!$D$17:$D$16964,E$1) -> 0 | F6: =SUMIFS('CF-2'!$BE$17:$BE$16964,'CF-2'!$B$17:$B$16964,$A$1,'CF-2'!$C$17:$C$16964,$B$1,'CF-2'!$BC$17:$BC$16964,$C6,'CF-2'!$D$17:$D$16964,F$1) -> 0 | G6: =SUMIFS('CF-2'!$BE$17:$BE$16964,'CF-2'!$B$17:$B$16964,$A$1,'CF-2'!$C$17:$C$16964,$B$1,'CF-2'!$BC$17:$BC$16964,$C6,'CF-2'!$D$17:$D$16964,G$1) -> 0.04513888889 | H6: =SUMIFS('CF-2'!$BE$17:$BE$16964,'CF-2'!$B$17:$B$16964,$A$1,'CF-2'!$C$17:$C$16964,$B$1,'CF-2'!$BC$17:$BC$16964,$C6,'CF-2'!$D$17:$D$16964,H$1) -> 0.01041666667 | I6: =SUMIFS('CF-2'!$BE$17:$BE$16964,'CF-2'!$B$17:$B$16964,$A$1,'CF-2'!$C$17:$C$16964,$B$1,'CF-2'!$BC$17:$BC$16964,$C6,'CF-2'!$D$17:$D$16964,I$1) -> 0.1979166667 | J6: =SUMIFS('CF-2'!$BE$17:$BE$16964,'CF-2'!$B$17:$B$16964,$A$1,'CF-2'!$C$17:$C$16964,$B$1,'CF-2'!$BC$17:$BC$16964,$C6,'CF-2'!$D$17:$D$16964,J$1) -> 0.05208333333 | K6: =SUMIFS('CF-2'!$BE$17:$BE$16964,'CF-2'!$B$17:$B$16964,$A$1,'CF-2'!$C$17:$C$16964,$B$1,'CF-2'!$BC$17:$BC$16964,$C6,'CF-2'!$D$17:$D$16964,K$1) -> 0.09375 | L6: =SUMIFS('CF-2'!$BE$17:$BE$16964,'CF-2'!$B$17:$B$16964,$A$1,'CF-2'!$C$17:$C$16964,$B$1,'CF-2'!$BC$17:$BC$16964,$C6,'CF-2'!$D$17:$D$16964,L$1) -> 0 | M6: =SUMIFS('CF-2'!$BE$17:$BE$16964,'CF-2'!$B$17:$B$16964,$A$1,'CF-2'!$C$17:$C$16964,$B$1,'CF-2'!$BC$17:$BC$16964,$C6,'CF-2'!$D$17:$D$16964,M$1) -> 0.06944444444 | N6: =SUMIFS('CF-2'!$BE$17:$BE$16964,'CF-2'!$B$17:$B$16964,$A$1,'CF-2'!$C$17:$C$16964,$B$1,'CF-2'!$BC$17:$BC$16964,$C6,'CF-2'!$D$17:$D$16964,N$1) -> 0.04166666667 | O6: =SUMIFS('CF-2'!$BE$17:$BE$16964,'CF-2'!$B$17:$B$16964,$A$1,'CF-2'!$C$17:$C$16964,$B$1,'CF-2'!$BC$17:$BC$16964,$C6,'CF-2'!$D$17:$D$16964,O$1) -> 0.02430555556 | P6: =SUMIFS('CF-2'!$BE$17:$BE$16964,'CF-2'!$B$17:$B$16964,$A$1,'CF-2'!$C$17:$C$16964,$B$1,'CF-2'!$BC$17:$BC$16964,$C6,'CF-2'!$D$17:$D$16964,P$1) -> 0.01388888889 | Q6: =SUMIFS('CF-2'!$BE$17:$BE$16964,'CF-2'!$B$17:$B$16964,$A$1,'CF-2'!$C$17:$C$16964,$B$1,'CF-2'!$BC$17:$BC$16964,$C6,'CF-2'!$D$17:$D$16964,Q$1) -> 0 | R6: =SUMIFS('CF-2'!$BE$17:$BE$16964,'CF-2'!$B$17:$B$16964,$A$1,'CF-2'!$C$17:$C$16964,$B$1,'CF-2'!$BC$17:$BC$16964,$C6,'CF-2'!$D$17:$D$16964,R$1) -> 0 | S6: =SUMIFS('CF-2'!$BE$17:$BE$16964,'CF-2'!$B$17:$B$16964,$A$1,'CF-2'!$C$17:$C$16964,$B$1,'CF-2'!$BC$17:$BC$16964,$C6,'CF-2'!$D$17:$D$16964,S$1) -> 0 | T6: =SUMIFS('CF-2'!$BE$17:$BE$16964,'CF-2'!$B$17:$B$16964,$A$1,'CF-2'!$C$17:$C$16964,$B$1,'CF-2'!$BC$17:$BC$16964,$C6,'CF-2'!$D$17:$D$16964,T$1) -> 0 | U6: =SUMIFS('CF-2'!$BE$17:$BE$16964,'CF-2'!$B$17:$B$16964,$A$1,'CF-2'!$C$17:$C$16964,$B$1,'CF-2'!$BC$17:$BC$16964,$C6,'CF-2'!$D$17:$D$16964,U$1) -> 0.03819444444 | V6: =SUMIFS('CF-2'!$BE$17:$BE$16964,'CF-2'!$B$17:$B$16964,$A$1,'CF-2'!$C$17:$C$16964,$B$1,'CF-2'!$BC$17:$BC$16964,$C6,'CF-2'!$D$17:$D$16964,V$1) -> 0 | W6: =SUMIFS('CF-2'!$BE$17:$BE$16964,'CF-2'!$B$17:$B$16964,$A$1,'CF-2'!$C$17:$C$16964,$B$1,'CF-2'!$BC$17:$BC$16964,$C6,'CF-2'!$D$17:$D$16964,W$1) -> 0 | X6: =SUMIFS('CF-2'!$BE$17:$BE$16964,'CF-2'!$B$17:$B$16964,$A$1,'CF-2'!$C$17:$C$16964,$B$1,'CF-2'!$BC$17:$BC$16964,$C6,'CF-2'!$D$17:$D$16964,X$1) -> 0 | Y6: =SUMIFS('CF-2'!$BE$17:$BE$16964,'CF-2'!$B$17:$B$16964,$A$1,'CF-2'!$C$17:$C$16964,$B$1,'CF-2'!$BC$17:$BC$16964,$C6,'CF-2'!$D$17:$D$16964,Y$1) -> 0 | Z6: =SUMIFS('CF-2'!$BE$17:$BE$16964,'CF-2'!$B$17:$B$16964,$A$1,'CF-2'!$C$17:$C$16964,$B$1,'CF-2'!$BC$17:$BC$16964,$C6,'CF-2'!$D$17:$D$16964,Z$1) -> 0 | AA6: =SUMIFS('CF-2'!$BE$17:$BE$16964,'CF-2'!$B$17:$B$16964,$A$1,'CF-2'!$C$17:$C$16964,$B$1,'CF-2'!$BC$17:$BC$16964,$C6,'CF-2'!$D$17:$D$16964,AA$1) -> 0 | AB6: =SUMIFS('CF-2'!$BE$17:$BE$16964,'CF-2'!$B$17:$B$16964,$A$1,'CF-2'!$C$17:$C$16964,$B$1,'CF-2'!$BC$17:$BC$16964,$C6,'CF-2'!$D$17:$D$16964,AB$1) -> 0 | AC6: =SUMIFS('CF-2'!$BE$17:$BE$16964,'CF-2'!$B$17:$B$16964,$A$1,'CF-2'!$C$17:$C$16964,$B$1,'CF-2'!$BC$17:$BC$16964,$C6,'CF-2'!$D$17:$D$16964,AC$1) -> 0 | AD6: =SUMIFS('CF-2'!$BE$17:$BE$16964,'CF-2'!$B$17:$B$16964,$A$1,'CF-2'!$C$17:$C$16964,$B$1,'CF-2'!$BC$17:$BC$16964,$C6,'CF-2'!$D$17:$D$16964,AD$1) -> 0 | AE6: =SUMIFS('CF-2'!$BE$17:$BE$16964,'CF-2'!$B$17:$B$16964,$A$1,'CF-2'!$C$17:$C$16964,$B$1,'CF-2'!$BC$17:$BC$16964,$C6,'CF-2'!$D$17:$D$16964,AE$1) -> 0 | AF6: =SUMIFS('CF-2'!$BE$17:$BE$16964,'CF-2'!$B$17:$B$16964,$A$1,'CF-2'!$C$17:$C$16964,$B$1,'CF-2'!$BC$17:$BC$16964,$C6,'CF-2'!$D$17:$D$16964,AF$1) -> 0 | AG6: =SUMIFS('CF-2'!$BE$17:$BE$16964,'CF-2'!$B$17:$B$16964,$A$1,'CF-2'!$C$17:$C$16964,$B$1,'CF-2'!$BC$17:$BC$16964,$C6,'CF-2'!$D$17:$D$16964,AG$1) -> 0 | AH6: =SUMIFS('CF-2'!$BE$17:$BE$16964,'CF-2'!$B$17:$B$16964,$A$1,'CF-2'!$C$17:$C$16964,$B$1,'CF-2'!$BC$17:$BC$16964,$C6,'CF-2'!$D$17:$D$16964,AH$1) -> 0 | AI6: =SUMIFS('CF-2'!$BE$17:$BE$16964,'CF-2'!$B$17:$B$16964,$A$1,'CF-2'!$C$17:$C$16964,$B$1,'CF-2'!$BC$17:$BC$16964,$C6,'CF-2'!$D$17:$D$16964,AI$1) -> 0 | AJ6: 0.5868055556 | AK6: 0.5868055556
C7: 片付け | E7: =SUMIFS('CF-2'!$BE$17:$BE$16964,'CF-2'!$B$17:$B$16964,$A$1,'CF-2'!$C$17:$C$16964,$B$1,'CF-2'!$BC$17:$BC$16964,$C7,'CF-2'!$D$17:$D$16964,E$1) -> 0 | F7: =SUMIFS('CF-2'!$BE$17:$BE$16964,'CF-2'!$B$17:$B$16964,$A$1,'CF-2'!$C$17:$C$16964,$B$1,'CF-2'!$BC$17:$BC$16964,$C7,'CF-2'!$D$17:$D$16964,F$1) -> 0 | G7: =SUMIFS('CF-2'!$BE$17:$BE$16964,'CF-2'!$B$17:$B$16964,$A$1,'CF-2'!$C$17:$C$16964,$B$1,'CF-2'!$BC$17:$BC$16964,$C7,'CF-2'!$D$17:$D$16964,G$1) -> 0 | H7: =SUMIFS('CF-2'!$BE$17:$BE$16964,'CF-2'!$B$17:$B$16964,$A$1,'CF-2'!$C$17:$C$16964,$B$1,'CF-2'!$BC$17:$BC$16964,$C7,'CF-2'!$D$17:$D$16964,H$1) -> 0.09375 | I7: =SUMIFS('CF-2'!$BE$17:$BE$16964,'CF-2'!$B$17:$B$16964,$A$1,'CF-2'!$C$17:$C$16964,$B$1,'CF-2'!$BC$17:$BC$16964,$C7,'CF-2'!$D$17:$D$16964,I$1) -> 0.04861111111 | J7: =SUMIFS('CF-2'!$BE$17:$BE$16964,'CF-2'!$B$17:$B$16964,$A$1,'CF-2'!$C$17:$C$16964,$B$1,'CF-2'!$BC$17:$BC$16964,$C7,'CF-2'!$D$17:$D$16964,J$1) -> 0 | K7: =SUMIFS('CF-2'!$BE$17:$BE$16964,'CF-2'!$B$17:$B$16964,$A$1,'CF-2'!$C$17:$C$16964,$B$1,'CF-2'!$BC$17:$BC$16964,$C7,'CF-2'!$D$17:$D$16964,K$1) -> 0.1145833333 | L7: =SUMIFS('CF-2'!$BE$17:$BE$16964,'CF-2'!$B$17:$B$16964,$A$1,'CF-2'!$C$17:$C$16964,$B$1,'CF-2'!$BC$17:$BC$16964,$C7,'CF-2'!$D$17:$D$16964,L$1) -> 0 | M7: =SUMIFS('CF-2'!$BE$17:$BE$16964,'CF-2'!$B$17:$B$16964,$A$1,'CF-2'!$C$17:$C$16964,$B$1,'CF-2'!$BC$17:$BC$16964,$C7,'CF-2'!$D$17:$D$16964,M$1) -> 0 | N7: =SUMIFS('CF-2'!$BE$17:$BE$16964,'CF-2'!$B$17:$B$16964,$A$1,'CF-2'!$C$17:$C$16964,$B$1,'CF-2'!$BC$17:$BC$16964,$C7,'CF-2'!$D$17:$D$16964,N$1) -> 0 | O7: =SUMIFS('CF-2'!$BE$17:$BE$16964,'CF-2'!$B$17:$B$16964,$A$1,'CF-2'!$C$17:$C$16964,$B$1,'CF-2'!$BC$17:$BC$16964,$C7,'CF-2'!$D$17:$D$16964,O$1) -> 0.07291666667 | P7: =SUMIFS('CF-2'!$BE$17:$BE$16964,'CF-2'!$B$17:$B$16964,$A$1,'CF-2'!$C$17:$C$16964,$B$1,'CF-2'!$BC$17:$BC$16964,$C7,'CF-2'!$D$17:$D$16964,P$1) -> 0 | Q7: =SUMIFS('CF-2'!$BE$17:$BE$16964,'CF-2'!$B$17:$B$16964,$A$1,'CF-2'!$C$17:$C$16964,$B$1,'CF-2'!$BC$17:$BC$16964,$C7,'CF-2'!$D$17:$D$16964,Q$1) -> 0.04513888889 | R7: =SUMIFS('CF-2'!$BE$17:$BE$16964,'CF-2'!$B$17:$B$16964,$A$1,'CF-2'!$C$17:$C$16964,$B$1,'CF-2'!$BC$17:$BC$16964,$C7,'CF-2'!$D$17:$D$16964,R$1) -> 0.03125 | S7: =SUMIFS('CF-2'!$BE$17:$BE$16964,'CF-2'!$B$17:$B$16964,$A$1,'CF-2'!$C$17:$C$16964,$B$1,'CF-2'!$BC$17:$BC$16964,$C7,'CF-2'!$D$17:$D$16964,S$1) -> 0 | T7: =SUMIFS('CF-2'!$BE$17:$BE$16964,'CF-2'!$B$17:$B$16964,$A$1,'CF-2'!$C$17:$C$16964,$B$1,'CF-2'!$BC$17:$BC$16964,$C7,'CF-2'!$D$17:$D$16964,T$1) -> 0 | U7: =SUMIFS('CF-2'!$BE$17:$BE$16964,'CF-2'!$B$17:$B$16964,$A$1,'CF-2'!$C$17:$C$16964,$B$1,'CF-2'!$BC$17:$BC$16964,$C7,'CF-2'!$D$17:$D$16964,U$1) -> 0.1284722222 | V7: =SUMIFS('CF-2'!$BE$17:$BE$16964,'CF-2'!$B$17:$B$16964,$A$1,'CF-2'!$C$17:$C$16964,$B$1,'CF-2'!$BC$17:$BC$16964,$C7,'CF-2'!$D$17:$D$16964,V$1) -> 0 | W7: =SUMIFS('CF-2'!$BE$17:$BE$16964,'CF-2'!$B$17:$B$16964,$A$1,'CF-2'!$C$17:$C$16964,$B$1,'CF-2'!$BC$17:$BC$16964,$C7,'CF-2'!$D$17:$D$16964,W$1) -> 0 | X7: =SUMIFS('CF-2'!$BE$17:$BE$16964,'CF-2'!$B$17:$B$16964,$A$1,'CF-2'!$C$17:$C$16964,$B$1,'CF-2'!$BC$17:$BC$16964,$C7,'CF-2'!$D$17:$D$16964,X$1) -> 0 | Y7: =SUMIFS('CF-2'!$BE$17:$BE$16964,'CF-2'!$B$17:$B$16964,$A$1,'CF-2'!$C$17:$C$16964,$B$1,'CF-2'!$BC$17:$BC$16964,$C7,'CF-2'!$D$17:$D$16964,Y$1) -> 0 | Z7: =SUMIFS('CF-2'!$BE$17:$BE$16964,'CF-2'!$B$17:$B$16964,$A$1,'CF-2'!$C$17:$C$16964,$B$1,'CF-2'!$BC$17:$BC$16964,$C7,'CF-2'!$D$17:$D$16964,Z$1) -> 0 | AA7: =SUMIFS('CF-2'!$BE$17:$BE$16964,'CF-2'!$B$17:$B$16964,$A$1,'CF-2'!$C$17:$C$16964,$B$1,'CF-2'!$BC$17:$BC$16964,$C7,'CF-2'!$D$17:$D$16964,AA$1) -> 0 | AB7: =SUMIFS('CF-2'!$BE$17:$BE$16964,'CF-2'!$B$17:$B$16964,$A$1,'CF-2'!$C$17:$C$16964,$B$1,'CF-2'!$BC$17:$BC$16964,$C7,'CF-2'!$D$17:$D$16964,AB$1) -> 0 | AC7: =SUMIFS('CF-2'!$BE$17:$BE$16964,'CF-2'!$B$17:$B$16964,$A$1,'CF-2'!$C$17:$C$16964,$B$1,'CF-2'!$BC$17:$BC$16964,$C7,'CF-2'!$D$17:$D$16964,AC$1) -> 0 | AD7: =SUMIFS('CF-2'!$BE$17:$BE$16964,'CF-2'!$B$17:$B$16964,$A$1,'CF-2'!$C$17:$C$16964,$B$1,'CF-2'!$BC$17:$BC$16964,$C7,'CF-2'!$D$17:$D$16964,AD$1) -> 0 | AE7: =SUMIFS('CF-2'!$BE$17:$BE$16964,'CF-2'!$B$17:$B$16964,$A$1,'CF-2'!$C$17:$C$16964,$B$1,'CF-2'!$BC$17:$BC$16964,$C7,'CF-2'!$D$17:$D$16964,AE$1) -> 0 | AF7: =SUMIFS('CF-2'!$BE$17:$BE$16964,'CF-2'!$B$17:$B$16964,$A$1,'CF-2'!$C$17:$C$16964,$B$1,'CF-2'!$BC$17:$BC$16964,$C7,'CF-2'!$D$17:$D$16964,AF$1) -> 0 | AG7: =SUMIFS('CF-2'!$BE$17:$BE$16964,'CF-2'!$B$17:$B$16964,$A$1,'CF-2'!$C$17:$C$16964,$B$1,'CF-2'!$BC$17:$BC$16964,$C7,'CF-2'!$D$17:$D$16964,AG$1) -> 0 | AH7: =SUMIFS('CF-2'!$BE$17:$BE$16964,'CF-2'!$B$17:$B$16964,$A$1,'CF-2'!$C$17:$C$16964,$B$1,'CF-2'!$BC$17:$BC$16964,$C7,'CF-2'!$D$17:$D$16964,AH$1) -> 0 | AI7: =SUMIFS('CF-2'!$BE$17:$BE$16964,'CF-2'!$B$17:$B$16964,$A$1,'CF-2'!$C$17:$C$16964,$B$1,'CF-2'!$BC$17:$BC$16964,$C7,'CF-2'!$D$17:$D$16964,AI$1) -> 0 | AJ7: 0.5347222222 | AK7: 0.5347222222
C8: 切替え | E8: =SUMIFS('CF-2'!$BE$17:$BE$16964,'CF-2'!$B$17:$B$16964,$A$1,'CF-2'!$C$17:$C$16964,$B$1,'CF-2'!$BC$17:$BC$16964,$C8,'CF-2'!$D$17:$D$16964,E$1) -> 0 | F8: =SUMIFS('CF-2'!$BE$17:$BE$16964,'CF-2'!$B$17:$B$16964,$A$1,'CF-2'!$C$17:$C$16964,$B$1,'CF-2'!$BC$17:$BC$16964,$C8,'CF-2'!$D$17:$D$16964,F$1) -> 0.1840277778 | G8: =SUMIFS('CF-2'!$BE$17:$BE$16964,'CF-2'!$B$17:$B$16964,$A$1,'CF-2'!$C$17:$C$16964,$B$1,'CF-2'!$BC$17:$BC$16964,$C8,'CF-2'!$D$17:$D$16964,G$1) -> 0.125 | H8: =SUMIFS('CF-2'!$BE$17:$BE$16964,'CF-2'!$B$17:$B$16964,$A$1,'CF-2'!$C$17:$C$16964,$B$1,'CF-2'!$BC$17:$BC$16964,$C8,'CF-2'!$D$17:$D$16964,H$1) -> 0 | I8: =SUMIFS('CF-2'!$BE$17:$BE$16964,'CF-2'!$B$17:$B$16964,$A$1,'CF-2'!$C$17:$C$16964,$B$1,'CF-2'!$BC$17:$BC$16964,$C8,'CF-2'!$D$17:$D$16964,I$1) -> 0.1145833333 | J8: =SUMIFS('CF-2'!$BE$17:$BE$16964,'CF-2'!$B$17:$B$16964,$A$1,'CF-2'!$C$17:$C$16964,$B$1,'CF-2'!$BC$17:$BC$16964,$C8,'CF-2'!$D$17:$D$16964,J$1) -> 0.006944444444 | K8: =SUMIFS('CF-2'!$BE$17:$BE$16964,'CF-2'!$B$17:$B$16964,$A$1,'CF-2'!$C$17:$C$16964,$B$1,'CF-2'!$BC$17:$BC$16964,$C8,'CF-2'!$D$17:$D$16964,K$1) -> 0 | L8: =SUMIFS('CF-2'!$BE$17:$BE$16964,'CF-2'!$B$17:$B$16964,$A$1,'CF-2'!$C$17:$C$16964,$B$1,'CF-2'!$BC$17:$BC$16964,$C8,'CF-2'!$D$17:$D$16964,L$1) -> 0 | M8: =SUMIFS('CF-2'!$BE$17:$BE$16964,'CF-2'!$B$17:$B$16964,$A$1,'CF-2'!$C$17:$C$16964,$B$1,'CF-2'!$BC$17:$BC$16964,$C8,'CF-2'!$D$17:$D$16964,M$1) -> 0.4166666667 | N8: =SUMIFS('CF-2'!$BE$17:$BE$16964,'CF-2'!$B$17:$B$16964,$A$1,'CF-2'!$C$17:$C$16964,$B$1,'CF-2'!$BC$17:$BC$16964,$C8,'CF-2'!$D$17:$D$16964,N$1) -> 0 | O8: =SUMIFS('CF-2'!$BE$17:$BE$16964,'CF-2'!$B$17:$B$16964,$A$1,'CF-2'!$C$17:$C$16964,$B$1,'CF-2'!$BC$17:$BC$16964,$C8,'CF-2'!$D$17:$D$16964,O$1) -> 0.2222222222 | P8: =SUMIFS('CF-2'!$BE$17:$BE$16964,'CF-2'!$B$17:$B$16964,$A$1,'CF-2'!$C$17:$C$16964,$B$1,'CF-2'!$BC$17:$BC$16964,$C8,'CF-2'!$D$17:$D$16964,P$1) -> 0 | Q8: =SUMIFS('CF-2'!$BE$17:$BE$16964,'CF-2'!$B$17:$B$16964,$A$1,'CF-2'!$C$17:$C$16964,$B$1,'CF-2'!$BC$17:$BC$16964,$C8,'CF-2'!$D$17:$D$16964,Q$1) -> 0.1145833333 | R8: =SUMIFS('CF-2'!$BE$17:$BE$16964,'CF-2'!$B$17:$B$16964,$A$1,'CF-2'!$C$17:$C$16964,$B$1,'CF-2'!$BC$17:$BC$16964,$C8,'CF-2'!$D$17:$D$16964,R$1) -> 0 | S8: =SUMIFS('CF-2'!$BE$17:$BE$16964,'CF-2'!$B$17:$B$16964,$A$1,'CF-2'!$C$17:$C$16964,$B$1,'CF-2'!$BC$17:$BC$16964,$C8,'CF-2'!$D$17:$D$16964,S$1) -> 0 | T8: =SUMIFS('CF-2'!$BE$17:$BE$16964,'CF-2'!$B$17:$B$16964,$A$1,'CF-2'!$C$17:$C$16964,$B$1,'CF-2'!$BC$17:$BC$16964,$C8,'CF-2'!$D$17:$D$16964,T$1) -> 0.1631944444 | U8: =SUMIFS('CF-2'!$BE$17:$BE$16964,'CF-2'!$B$17:$B$16964,$A$1,'CF-2'!$C$17:$C$16964,$B$1,'CF-2'!$BC$17:$BC$16964,$C8,'CF-2'!$D$17:$D$16964,U$1) -> 0.2326388889 | V8: =SUMIFS('CF-2'!$BE$17:$BE$16964,'CF-2'!$B$17:$B$16964,$A$1,'CF-2'!$C$17:$C$16964,$B$1,'CF-2'!$BC$17:$BC$16964,$C8,'CF-2'!$D$17:$D$16964,V$1) -> 0.2777777778 | W8: =SUMIFS('CF-2'!$BE$17:$BE$16964,'CF-2'!$B$17:$B$16964,$A$1,'CF-2'!$C$17:$C$16964,$B$1,'CF-2'!$BC$17:$BC$16964,$C8,'CF-2'!$D$17:$D$16964,W$1) -> 0 | X8: =SUMIFS('CF-2'!$BE$17:$BE$16964,'CF-2'!$B$17:$B$16964,$A$1,'CF-2'!$C$17:$C$16964,$B$1,'CF-2'!$BC$17:$BC$16964,$C8,'CF-2'!$D$17:$D$16964,X$1) -> 0 | Y8: =SUMIFS('CF-2'!$BE$17:$BE$16964,'CF-2'!$B$17:$B$16964,$A$1,'CF-2'!$C$17:$C$16964,$B$1,'CF-2'!$BC$17:$BC$16964,$C8,'CF-2'!$D$17:$D$16964,Y$1) -> 0 | Z8: =SUMIFS('CF-2'!$BE$17:$BE$16964,'CF-2'!$B$17:$B$16964,$A$1,'CF-2'!$C$17:$C$16964,$B$1,'CF-2'!$BC$17:$BC$16964,$C8,'CF-2'!$D$17:$D$16964,Z$1) -> 0 | AA8: =SUMIFS('CF-2'!$BE$17:$BE$16964,'CF-2'!$B$17:$B$16964,$A$1,'CF-2'!$C$17:$C$16964,$B$1,'CF-2'!$BC$17:$BC$16964,$C8,'CF-2'!$D$17:$D$16964,AA$1) -> 0 | AB8: =SUMIFS('CF-2'!$BE$17:$BE$16964,'CF-2'!$B$17:$B$16964,$A$1,'CF-2'!$C$17:$C$16964,$B$1,'CF-2'!$BC$17:$BC$16964,$C8,'CF-2'!$D$17:$D$16964,AB$1) -> 0 | AC8: =SUMIFS('CF-2'!$BE$17:$BE$16964,'CF-2'!$B$17:$B$16964,$A$1,'CF-2'!$C$17:$C$16964,$B$1,'CF-2'!$BC$17:$BC$16964,$C8,'CF-2'!$D$17:$D$16964,AC$1) -> 0 | AD8: =SUMIFS('CF-2'!$BE$17:$BE$16964,'CF-2'!$B$17:$B$16964,$A$1,'CF-2'!$C$17:$C$16964,$B$1,'CF-2'!$BC$17:$BC$16964,$C8,'CF-2'!$D$17:$D$16964,AD$1) -> 0 | AE8: =SUMIFS('CF-2'!$BE$17:$BE$16964,'CF-2'!$B$17:$B$16964,$A$1,'CF-2'!$C$17:$C$16964,$B$1,'CF-2'!$BC$17:$BC$16964,$C8,'CF-2'!$D$17:$D$16964,AE$1) -> 0 | AF8: =SUMIFS('CF-2'!$BE$17:$BE$16964,'CF-2'!$B$17:$B$16964,$A$1,'CF-2'!$C$17:$C$16964,$B$1,'CF-2'!$BC$17:$BC$16964,$C8,'CF-2'!$D$17:$D$16964,AF$1) -> 0 | AG8: =SUMIFS('CF-2'!$BE$17:$BE$16964,'CF-2'!$B$17:$B$16964,$A$1,'CF-2'!$C$17:$C$16964,$B$1,'CF-2'!$BC$17:$BC$16964,$C8,'CF-2'!$D$17:$D$16964,AG$1) -> 0 | AH8: =SUMIFS('CF-2'!$BE$17:$BE$16964,'CF-2'!$B$17:$B$16964,$A$1,'CF-2'!$C$17:$C$16964,$B$1,'CF-2'!$BC$17:$BC$16964,$C8,'CF-2'!$D$17:$D$16964,AH$1) -> 0 | AI8: =SUMIFS('CF-2'!$BE$17:$BE$16964,'CF-2'!$B$17:$B$16964,$A$1,'CF-2'!$C$17:$C$16964,$B$1,'CF-2'!$BC$17:$BC$16964,$C8,'CF-2'!$D$17:$D$16964,AI$1) -> 0 | AJ8: 1.857638889 | AK8: 1.857638889
C9: ｵｰﾌﾞﾝ掃除 | E9: =SUMIFS('CF-2'!$BE$17:$BE$16964,'CF-2'!$B$17:$B$16964,$A$1,'CF-2'!$C$17:$C$16964,$B$1,'CF-2'!$BC$17:$BC$16964,$C9,'CF-2'!$D$17:$D$16964,E$1) -> 0 | F9: =SUMIFS('CF-2'!$BE$17:$BE$16964,'CF-2'!$B$17:$B$16964,$A$1,'CF-2'!$C$17:$C$16964,$B$1,'CF-2'!$BC$17:$BC$16964,$C9,'CF-2'!$D$17:$D$16964,F$1) -> 0 | G9: =SUMIFS('CF-2'!$BE$17:$BE$16964,'CF-2'!$B$17:$B$16964,$A$1,'CF-2'!$C$17:$C$16964,$B$1,'CF-2'!$BC$17:$BC$16964,$C9,'CF-2'!$D$17:$D$16964,G$1) -> 0 | H9: =SUMIFS('CF-2'!$BE$17:$BE$16964,'CF-2'!$B$17:$B$16964,$A$1,'CF-2'!$C$17:$C$16964,$B$1,'CF-2'!$BC$17:$BC$16964,$C9,'CF-2'!$D$17:$D$16964,H$1) -> 0.5138888889 | I9: =SUMIFS('CF-2'!$BE$17:$BE$16964,'CF-2'!$B$17:$B$16964,$A$1,'CF-2'!$C$17:$C$16964,$B$1,'CF-2'!$BC$17:$BC$16964,$C9,'CF-2'!$D$17:$D$16964,I$1) -> 0 | J9: =SUMIFS('CF-2'!$BE$17:$BE$16964,'CF-2'!$B$17:$B$16964,$A$1,'CF-2'!$C$17:$C$16964,$B$1,'CF-2'!$BC$17:$BC$16964,$C9,'CF-2'!$D$17:$D$16964,J$1) -> 0 | K9: =SUMIFS('CF-2'!$BE$17:$BE$16964,'CF-2'!$B$17:$B$16964,$A$1,'CF-2'!$C$17:$C$16964,$B$1,'CF-2'!$BC$17:$BC$16964,$C9,'CF-2'!$D$17:$D$16964,K$1) -> 0 | L9: =SUMIFS('CF-2'!$BE$17:$BE$16964,'CF-2'!$B$17:$B$16964,$A$1,'CF-2'!$C$17:$C$16964,$B$1,'CF-2'!$BC$17:$BC$16964,$C9,'CF-2'!$D$17:$D$16964,L$1) -> 0 | M9: =SUMIFS('CF-2'!$BE$17:$BE$16964,'CF-2'!$B$17:$B$16964,$A$1,'CF-2'!$C$17:$C$16964,$B$1,'CF-2'!$BC$17:$BC$16964,$C9,'CF-2'!$D$17:$D$16964,M$1) -> 0 | N9: =SUMIFS('CF-2'!$BE$17:$BE$16964,'CF-2'!$B$17:$B$16964,$A$1,'CF-2'!$C$17:$C$16964,$B$1,'CF-2'!$BC$17:$BC$16964,$C9,'CF-2'!$D$17:$D$16964,N$1) -> 0 | O9: =SUMIFS('CF-2'!$BE$17:$BE$16964,'CF-2'!$B$17:$B$16964,$A$1,'CF-2'!$C$17:$C$16964,$B$1,'CF-2'!$BC$17:$BC$16964,$C9,'CF-2'!$D$17:$D$16964,O$1) -> 0 | P9: =SUMIFS('CF-2'!$BE$17:$BE$16964,'CF-2'!$B$17:$B$16964,$A$1,'CF-2'!$C$17:$C$16964,$B$1,'CF-2'!$BC$17:$BC$16964,$C9,'CF-2'!$D$17:$D$16964,P$1) -> 0 | Q9: =SUMIFS('CF-2'!$BE$17:$BE$16964,'CF-2'!$B$17:$B$16964,$A$1,'CF-2'!$C$17:$C$16964,$B$1,'CF-2'!$BC$17:$BC$16964,$C9,'CF-2'!$D$17:$D$16964,Q$1) -> 0 | R9: =SUMIFS('CF-2'!$BE$17:$BE$16964,'CF-2'!$B$17:$B$16964,$A$1,'CF-2'!$C$17:$C$16964,$B$1,'CF-2'!$BC$17:$BC$16964,$C9,'CF-2'!$D$17:$D$16964,R$1) -> 0 | S9: =SUMIFS('CF-2'!$BE$17:$BE$16964,'CF-2'!$B$17:$B$16964,$A$1,'CF-2'!$C$17:$C$16964,$B$1,'CF-2'!$BC$17:$BC$16964,$C9,'CF-2'!$D$17:$D$16964,S$1) -> 0 | T9: =SUMIFS('CF-2'!$BE$17:$BE$16964,'CF-2'!$B$17:$B$16964,$A$1,'CF-2'!$C$17:$C$16964,$B$1,'CF-2'!$BC$17:$BC$16964,$C9,'CF-2'!$D$17:$D$16964,T$1) -> 0 | U9: =SUMIFS('CF-2'!$BE$17:$BE$16964,'CF-2'!$B$17:$B$16964,$A$1,'CF-2'!$C$17:$C$16964,$B$1,'CF-2'!$BC$17:$BC$16964,$C9,'CF-2'!$D$17:$D$16964,U$1) -> 0 | V9: =SUMIFS('CF-2'!$BE$17:$BE$16964,'CF-2'!$B$17:$B$16964,$A$1,'CF-2'!$C$17:$C$16964,$B$1,'CF-2'!$BC$17:$BC$16964,$C9,'CF-2'!$D$17:$D$16964,V$1) -> 0 | W9: =SUMIFS('CF-2'!$BE$17:$BE$16964,'CF-2'!$B$17:$B$16964,$A$1,'CF-2'!$C$17:$C$16964,$B$1,'CF-2'!$BC$17:$BC$16964,$C9,'CF-2'!$D$17:$D$16964,W$1) -> 0 | X9: =SUMIFS('CF-2'!$BE$17:$BE$16964,'CF-2'!$B$17:$B$16964,$A$1,'CF-2'!$C$17:$C$16964,$B$1,'CF-2'!$BC$17:$BC$16964,$C9,'CF-2'!$D$17:$D$16964,X$1) -> 0 | Y9: =SUMIFS('CF-2'!$BE$17:$BE$16964,'CF-2'!$B$17:$B$16964,$A$1,'CF-2'!$C$17:$C$16964,$B$1,'CF-2'!$BC$17:$BC$16964,$C9,'CF-2'!$D$17:$D$16964,Y$1) -> 0 | Z9: =SUMIFS('CF-2'!$BE$17:$BE$16964,'CF-2'!$B$17:$B$16964,$A$1,'CF-2'!$C$17:$C$16964,$B$1,'CF-2'!$BC$17:$BC$16964,$C9,'CF-2'!$D$17:$D$16964,Z$1) -> 0 | AA9: =SUMIFS('CF-2'!$BE$17:$BE$16964,'CF-2'!$B$17:$B$16964,$A$1,'CF-2'!$C$17:$C$16964,$B$1,'CF-2'!$BC$17:$BC$16964,$C9,'CF-2'!$D$17:$D$16964,AA$1) -> 0 | AB9: =SUMIFS('CF-2'!$BE$17:$BE$16964,'CF-2'!$B$17:$B$16964,$A$1,'CF-2'!$C$17:$C$16964,$B$1,'CF-2'!$BC$17:$BC$16964,$C9,'CF-2'!$D$17:$D$16964,AB$1) -> 0 | AC9: =SUMIFS('CF-2'!$BE$17:$BE$16964,'CF-2'!$B$17:$B$16964,$A$1,'CF-2'!$C$17:$C$16964,$B$1,'CF-2'!$BC$17:$BC$16964,$C9,'CF-2'!$D$17:$D$16964,AC$1) -> 0 | AD9: =SUMIFS('CF-2'!$BE$17:$BE$16964,'CF-2'!$B$17:$B$16964,$A$1,'CF-2'!$C$17:$C$16964,$B$1,'CF-2'!$BC$17:$BC$16964,$C9,'CF-2'!$D$17:$D$16964,AD$1) -> 0 | AE9: =SUMIFS('CF-2'!$BE$17:$BE$16964,'CF-2'!$B$17:$B$16964,$A$1,'CF-2'!$C$17:$C$16964,$B$1,'CF-2'!$BC$17:$BC$16964,$C9,'CF-2'!$D$17:$D$16964,AE$1) -> 0 | AF9: =SUMIFS('CF-2'!$BE$17:$BE$16964,'CF-2'!$B$17:$B$16964,$A$1,'CF-2'!$C$17:$C$16964,$B$1,'CF-2'!$BC$17:$BC$16964,$C9,'CF-2'!$D$17:$D$16964,AF$1) -> 0 | AG9: =SUMIFS('CF-2'!$BE$17:$BE$16964,'CF-2'!$B$17:$B$16964,$A$1,'CF-2'!$C$17:$C$16964,$B$1,'CF-2'!$BC$17:$BC$16964,$C9,'CF-2'!$D$17:$D$16964,AG$1) -> 0 | AH9: =SUMIFS('CF-2'!$BE$17:$BE$16964,'CF-2'!$B$17:$B$16964,$A$1,'CF-2'!$C$17:$C$16964,$B$1,'CF-2'!$BC$17:$BC$16964,$C9,'CF-2'!$D$17:$D$16964,AH$1) -> 0 | AI9: =SUMIFS('CF-2'!$BE$17:$BE$16964,'CF-2'!$B$17:$B$16964,$A$1,'CF-2'!$C$17:$C$16964,$B$1,'CF-2'!$BC$17:$BC$16964,$C9,'CF-2'!$D$17:$D$16964,AI$1) -> 0 | AJ9: 0.5138888889 | AK9: 0.5138888889
C10: 幅替え | E10: =SUMIFS('CF-2'!$BE$17:$BE$16964,'CF-2'!$B$17:$B$16964,$A$1,'CF-2'!$C$17:$C$16964,$B$1,'CF-2'!$BC$17:$BC$16964,$C10,'CF-2'!$D$17:$D$16964,E$1) -> 0 | F10: =SUMIFS('CF-2'!$BE$17:$BE$16964,'CF-2'!$B$17:$B$16964,$A$1,'CF-2'!$C$17:$C$16964,$B$1,'CF-2'!$BC$17:$BC$16964,$C10,'CF-2'!$D$17:$D$16964,F$1) -> 0.01388888889 | G10: =SUMIFS('CF-2'!$BE$17:$BE$16964,'CF-2'!$B$17:$B$16964,$A$1,'CF-2'!$C$17:$C$16964,$B$1,'CF-2'!$BC$17:$BC$16964,$C10,'CF-2'!$D$17:$D$16964,G$1) -> 0.1666666667 | H10: =SUMIFS('CF-2'!$BE$17:$BE$16964,'CF-2'!$B$17:$B$16964,$A$1,'CF-2'!$C$17:$C$16964,$B$1,'CF-2'!$BC$17:$BC$16964,$C10,'CF-2'!$D$17:$D$16964,H$1) -> 0 | I10: =SUMIFS('CF-2'!$BE$17:$BE$16964,'CF-2'!$B$17:$B$16964,$A$1,'CF-2'!$C$17:$C$16964,$B$1,'CF-2'!$BC$17:$BC$16964,$C10,'CF-2'!$D$17:$D$16964,I$1) -> 0.02777777778 | J10: =SUMIFS('CF-2'!$BE$17:$BE$16964,'CF-2'!$B$17:$B$16964,$A$1,'CF-2'!$C$17:$C$16964,$B$1,'CF-2'!$BC$17:$BC$16964,$C10,'CF-2'!$D$17:$D$16964,J$1) -> 0.02083333333 | K10: =SUMIFS('CF-2'!$BE$17:$BE$16964,'CF-2'!$B$17:$B$16964,$A$1,'CF-2'!$C$17:$C$16964,$B$1,'CF-2'!$BC$17:$BC$16964,$C10,'CF-2'!$D$17:$D$16964,K$1) -> 0 | L10: =SUMIFS('CF-2'!$BE$17:$BE$16964,'CF-2'!$B$17:$B$16964,$A$1,'CF-2'!$C$17:$C$16964,$B$1,'CF-2'!$BC$17:$BC$16964,$C10,'CF-2'!$D$17:$D$16964,L$1) -> 0 | M10: =SUMIFS('CF-2'!$BE$17:$BE$16964,'CF-2'!$B$17:$B$16964,$A$1,'CF-2'!$C$17:$C$16964,$B$1,'CF-2'!$BC$17:$BC$16964,$C10,'CF-2'!$D$17:$D$16964,M$1) -> 0 | N10: =SUMIFS('CF-2'!$BE$17:$BE$16964,'CF-2'!$B$17:$B$16964,$A$1,'CF-2'!$C$17:$C$16964,$B$1,'CF-2'!$BC$17:$BC$16964,$C10,'CF-2'!$D$17:$D$16964,N$1) -> 0.04861111111 | O10: =SUMIFS('CF-2'!$BE$17:$BE$16964,'CF-2'!$B$17:$B$16964,$A$1,'CF-2'!$C$17:$C$16964,$B$1,'CF-2'!$BC$17:$BC$16964,$C10,'CF-2'!$D$17:$D$16964,O$1) -> 0.05902777778 | P10: =SUMIFS('CF-2'!$BE$17:$BE$16964,'CF-2'!$B$17:$B$16964,$A$1,'CF-2'!$C$17:$C$16964,$B$1,'CF-2'!$BC$17:$BC$16964,$C10,'CF-2'!$D$17:$D$16964,P$1) -> 0.04861111111 | Q10: =SUMIFS('CF-2'!$BE$17:$BE$16964,'CF-2'!$B$17:$B$16964,$A$1,'CF-2'!$C$17:$C$16964,$B$1,'CF-2'!$BC$17:$BC$16964,$C10,'CF-2'!$D$17:$D$16964,Q$1) -> 0.02430555556 | R10: =SUMIFS('CF-2'!$BE$17:$BE$16964,'CF-2'!$B$17:$B$16964,$A$1,'CF-2'!$C$17:$C$16964,$B$1,'CF-2'!$BC$17:$BC$16964,$C10,'CF-2'!$D$17:$D$16964,R$1) -> 0 | S10: =SUMIFS('CF-2'!$BE$17:$BE$16964,'CF-2'!$B$17:$B$16964,$A$1,'CF-2'!$C$17:$C$16964,$B$1,'CF-2'!$BC$17:$BC$16964,$C10,'CF-2'!$D$17:$D$16964,S$1) -> 0 | T10: =SUMIFS('CF-2'!$BE$17:$BE$16964,'CF-2'!$B$17:$B$16964,$A$1,'CF-2'!$C$17:$C$16964,$B$1,'CF-2'!$BC$17:$BC$16964,$C10,'CF-2'!$D$17:$D$16964,T$1) -> 0.03472222222 | U10: =SUMIFS('CF-2'!$BE$17:$BE$16964,'CF-2'!$B$17:$B$16964,$A$1,'CF-2'!$C$17:$C$16964,$B$1,'CF-2'!$BC$17:$BC$16964,$C10,'CF-2'!$D$17:$D$16964,U$1) -> 0 | V10: =SUMIFS('CF-2'!$BE$17:$BE$16964,'CF-2'!$B$17:$B$16964,$A$1,'CF-2'!$C$17:$C$16964,$B$1,'CF-2'!$BC$17:$BC$16964,$C10,'CF-2'!$D$17:$D$16964,V$1) -> 0.5555555556 | W10: =SUMIFS('CF-2'!$BE$17:$BE$16964,'CF-2'!$B$17:$B$16964,$A$1,'CF-2'!$C$17:$C$16964,$B$1,'CF-2'!$BC$17:$BC$16964,$C10,'CF-2'!$D$17:$D$16964,W$1) -> 0 | X10: =SUMIFS('CF-2'!$BE$17:$BE$16964,'CF-2'!$B$17:$B$16964,$A$1,'CF-2'!$C$17:$C$16964,$B$1,'CF-2'!$BC$17:$BC$16964,$C10,'CF-2'!$D$17:$D$16964,X$1) -> 0 | Y10: =SUMIFS('CF-2'!$BE$17:$BE$16964,'CF-2'!$B$17:$B$16964,$A$1,'CF-2'!$C$17:$C$16964,$B$1,'CF-2'!$BC$17:$BC$16964,$C10,'CF-2'!$D$17:$D$16964,Y$1) -> 0 | Z10: =SUMIFS('CF-2'!$BE$17:$BE$16964,'CF-2'!$B$17:$B$16964,$A$1,'CF-2'!$C$17:$C$16964,$B$1,'CF-2'!$BC$17:$BC$16964,$C10,'CF-2'!$D$17:$D$16964,Z$1) -> 0 | AA10: =SUMIFS('CF-2'!$BE$17:$BE$16964,'CF-2'!$B$17:$B$16964,$A$1,'CF-2'!$C$17:$C$16964,$B$1,'CF-2'!$BC$17:$BC$16964,$C10,'CF-2'!$D$17:$D$16964,AA$1) -> 0 | AB10: =SUMIFS('CF-2'!$BE$17:$BE$16964,'CF-2'!$B$17:$B$16964,$A$1,'CF-2'!$C$17:$C$16964,$B$1,'CF-2'!$BC$17:$BC$16964,$C10,'CF-2'!$D$17:$D$16964,AB$1) -> 0 | AC10: =SUMIFS('CF-2'!$BE$17:$BE$16964,'CF-2'!$B$17:$B$16964,$A$1,'CF-2'!$C$17:$C$16964,$B$1,'CF-2'!$BC$17:$BC$16964,$C10,'CF-2'!$D$17:$D$16964,AC$1) -> 0 | AD10: =SUMIFS('CF-2'!$BE$17:$BE$16964,'CF-2'!$B$17:$B$16964,$A$1,'CF-2'!$C$17:$C$16964,$B$1,'CF-2'!$BC$17:$BC$16964,$C10,'CF-2'!$D$17:$D$16964,AD$1) -> 0 | AE10: =SUMIFS('CF-2'!$BE$17:$BE$16964,'CF-2'!$B$17:$B$16964,$A$1,'CF-2'!$C$17:$C$16964,$B$1,'CF-2'!$BC$17:$BC$16964,$C10,'CF-2'!$D$17:$D$16964,AE$1) -> 0 | AF10: =SUMIFS('CF-2'!$BE$17:$BE$16964,'CF-2'!$B$17:$B$16964,$A$1,'CF-2'!$C$17:$C$16964,$B$1,'CF-2'!$BC$17:$BC$16964,$C10,'CF-2'!$D$17:$D$16964,AF$1) -> 0 | AG10: =SUMIFS('CF-2'!$BE$17:$BE$16964,'CF-2'!$B$17:$B$16964,$A$1,'CF-2'!$C$17:$C$16964,$B$1,'CF-2'!$BC$17:$BC$16964,$C10,'CF-2'!$D$17:$D$16964,AG$1) -> 0 | AH10: =SUMIFS('CF-2'!$BE$17:$BE$16964,'CF-2'!$B$17:$B$16964,$A$1,'CF-2'!$C$17:$C$16964,$B$1,'CF-2'!$BC$17:$BC$16964,$C10,'CF-2'!$D$17:$D$16964,AH$1) -> 0 | AI10: =SUMIFS('CF-2'!$BE$17:$BE$16964,'CF-2'!$B$17:$B$16964,$A$1,'CF-2'!$C$17:$C$16964,$B$1,'CF-2'!$BC$17:$BC$16964,$C10,'CF-2'!$D$17:$D$16964,AI$1) -> 0 | AJ10: 1 | AK10: 1
C11: 品質ﾄﾗﾌﾞﾙ | E11: =SUMIFS('CF-2'!$BE$17:$BE$16964,'CF-2'!$B$17:$B$16964,$A$1,'CF-2'!$C$17:$C$16964,$B$1,'CF-2'!$BC$17:$BC$16964,$C11,'CF-2'!$D$17:$D$16964,E$1) -> 0 | F11: =SUMIFS('CF-2'!$BE$17:$BE$16964,'CF-2'!$B$17:$B$16964,$A$1,'CF-2'!$C$17:$C$16964,$B$1,'CF-2'!$BC$17:$BC$16964,$C11,'CF-2'!$D$17:$D$16964,F$1) -> 0.1840277778 | G11: =SUMIFS('CF-2'!$BE$17:$BE$16964,'CF-2'!$B$17:$B$16964,$A$1,'CF-2'!$C$17:$C$16964,$B$1,'CF-2'!$BC$17:$BC$16964,$C11,'CF-2'!$D$17:$D$16964,G$1) -> 0.1111111111 | H11: =SUMIFS('CF-2'!$BE$17:$BE$16964,'CF-2'!$B$17:$B$16964,$A$1,'CF-2'!$C$17:$C$16964,$B$1,'CF-2'!$BC$17:$BC$16964,$C11,'CF-2'!$D$17:$D$16964,H$1) -> 0 | I11: =SUMIFS('CF-2'!$BE$17:$BE$16964,'CF-2'!$B$17:$B$16964,$A$1,'CF-2'!$C$17:$C$16964,$B$1,'CF-2'!$BC$17:$BC$16964,$C11,'CF-2'!$D$17:$D$16964,I$1) -> 0 | J11: =SUMIFS('CF-2'!$BE$17:$BE$16964,'CF-2'!$B$17:$B$16964,$A$1,'CF-2'!$C$17:$C$16964,$B$1,'CF-2'!$BC$17:$BC$16964,$C11,'CF-2'!$D$17:$D$16964,J$1) -> 0 | K11: =SUMIFS('CF-2'!$BE$17:$BE$16964,'CF-2'!$B$17:$B$16964,$A$1,'CF-2'!$C$17:$C$16964,$B$1,'CF-2'!$BC$17:$BC$16964,$C11,'CF-2'!$D$17:$D$16964,K$1) -> 0.1145833333 | L11: =SUMIFS('CF-2'!$BE$17:$BE$16964,'CF-2'!$B$17:$B$16964,$A$1,'CF-2'!$C$17:$C$16964,$B$1,'CF-2'!$BC$17:$BC$16964,$C11,'CF-2'!$D$17:$D$16964,L$1) -> 0 | M11: =SUMIFS('CF-2'!$BE$17:$BE$16964,'CF-2'!$B$17:$B$16964,$A$1,'CF-2'!$C$17:$C$16964,$B$1,'CF-2'!$BC$17:$BC$16964,$C11,'CF-2'!$D$17:$D$16964,M$1) -> 0.03819444444 | N11: =SUMIFS('CF-2'!$BE$17:$BE$16964,'CF-2'!$B$17:$B$16964,$A$1,'CF-2'!$C$17:$C$16964,$B$1,'CF-2'!$BC$17:$BC$16964,$C11,'CF-2'!$D$17:$D$16964,N$1) -> 0 | O11: =SUMIFS('CF-2'!$BE$17:$BE$16964,'CF-2'!$B$17:$B$16964,$A$1,'CF-2'!$C$17:$C$16964,$B$1,'CF-2'!$BC$17:$BC$16964,$C11,'CF-2'!$D$17:$D$16964,O$1) -> 0 | P11: =SUMIFS('CF-2'!$BE$17:$BE$16964,'CF-2'!$B$17:$B$16964,$A$1,'CF-2'!$C$17:$C$16964,$B$1,'CF-2'!$BC$17:$BC$16964,$C11,'CF-2'!$D$17:$D$16964,P$1) -> 0 | Q11: =SUMIFS('CF-2'!$BE$17:$BE$16964,'CF-2'!$B$17:$B$16964,$A$1,'CF-2'!$C$17:$C$16964,$B$1,'CF-2'!$BC$17:$BC$16964,$C11,'CF-2'!$D$17:$D$16964,Q$1) -> 0 | R11: =SUMIFS('CF-2'!$BE$17:$BE$16964,'CF-2'!$B$17:$B$16964,$A$1,'CF-2'!$C$17:$C$16964,$B$1,'CF-2'!$BC$17:$BC$16964,$C11,'CF-2'!$D$17:$D$16964,R$1) -> 0 | S11: =SUMIFS('CF-2'!$BE$17:$BE$16964,'CF-2'!$B$17:$B$16964,$A$1,'CF-2'!$C$17:$C$16964,$B$1,'CF-2'!$BC$17:$BC$16964,$C11,'CF-2'!$D$17:$D$16964,S$1) -> 0 | T11: =SUMIFS('CF-2'!$BE$17:$BE$16964,'CF-2'!$B$17:$B$16964,$A$1,'CF-2'!$C$17:$C$16964,$B$1,'CF-2'!$BC$17:$BC$16964,$C11,'CF-2'!$D$17:$D$16964,T$1) -> 0 | U11: =SUMIFS('CF-2'!$BE$17:$BE$16964,'CF-2'!$B$17:$B$16964,$A$1,'CF-2'!$C$17:$C$16964,$B$1,'CF-2'!$BC$17:$BC$16964,$C11,'CF-2'!$D$17:$D$16964,U$1) -> 0 | V11: =SUMIFS('CF-2'!$BE$17:$BE$16964,'CF-2'!$B$17:$B$16964,$A$1,'CF-2'!$C$17:$C$16964,$B$1,'CF-2'!$BC$17:$BC$16964,$C11,'CF-2'!$D$17:$D$16964,V$1) -> 0 | W11: =SUMIFS('CF-2'!$BE$17:$BE$16964,'CF-2'!$B$17:$B$16964,$A$1,'CF-2'!$C$17:$C$16964,$B$1,'CF-2'!$BC$17:$BC$16964,$C11,'CF-2'!$D$17:$D$16964,W$1) -> 0 | X11: =SUMIFS('CF-2'!$BE$17:$BE$16964,'CF-2'!$B$17:$B$16964,$A$1,'CF-2'!$C$17:$C$16964,$B$1,'CF-2'!$BC$17:$BC$16964,$C11,'CF-2'!$D$17:$D$16964,X$1) -> 0 | Y11: =SUMIFS('CF-2'!$BE$17:$BE$16964,'CF-2'!$B$17:$B$16964,$A$1,'CF-2'!$C$17:$C$16964,$B$1,'CF-2'!$BC$17:$BC$16964,$C11,'CF-2'!$D$17:$D$16964,Y$1) -> 0 | Z11: =SUMIFS('CF-2'!$BE$17:$BE$16964,'CF-2'!$B$17:$B$16964,$A$1,'CF-2'!$C$17:$C$16964,$B$1,'CF-2'!$BC$17:$BC$16964,$C11,'CF-2'!$D$17:$D$16964,Z$1) -> 0 | AA11: =SUMIFS('CF-2'!$BE$17:$BE$16964,'CF-2'!$B$17:$B$16964,$A$1,'CF-2'!$C$17:$C$16964,$B$1,'CF-2'!$BC$17:$BC$16964,$C11,'CF-2'!$D$17:$D$16964,AA$1) -> 0 | AB11: =SUMIFS('CF-2'!$BE$17:$BE$16964,'CF-2'!$B$17:$B$16964,$A$1,'CF-2'!$C$17:$C$16964,$B$1,'CF-2'!$BC$17:$BC$16964,$C11,'CF-2'!$D$17:$D$16964,AB$1) -> 0 | AC11: =SUMIFS('CF-2'!$BE$17:$BE$16964,'CF-2'!$B$17:$B$16964,$A$1,'CF-2'!$C$17:$C$16964,$B$1,'CF-2'!$BC$17:$BC$16964,$C11,'CF-2'!$D$17:$D$16964,AC$1) -> 0 | AD11: =SUMIFS('CF-2'!$BE$17:$BE$16964,'CF-2'!$B$17:$B$16964,$A$1,'CF-2'!$C$17:$C$16964,$B$1,'CF-2'!$BC$17:$BC$16964,$C11,'CF-2'!$D$17:$D$16964,AD$1) -> 0 | AE11: =SUMIFS('CF-2'!$BE$17:$BE$16964,'CF-2'!$B$17:$B$16964,$A$1,'CF-2'!$C$17:$C$16964,$B$1,'CF-2'!$BC$17:$BC$16964,$C11,'CF-2'!$D$17:$D$16964,AE$1) -> 0 | AF11: =SUMIFS('CF-2'!$BE$17:$BE$16964,'CF-2'!$B$17:$B$16964,$A$1,'CF-2'!$C$17:$C$16964,$B$1,'CF-2'!$BC$17:$BC$16964,$C11,'CF-2'!$D$17:$D$16964,AF$1) -> 0 | AG11: =SUMIFS('CF-2'!$BE$17:$BE$16964,'CF-2'!$B$17:$B$16964,$A$1,'CF-2'!$C$17:$C$16964,$B$1,'CF-2'!$BC$17:$BC$16964,$C11,'CF-2'!$D$17:$D$16964,AG$1) -> 0 | AH11: =SUMIFS('CF-2'!$BE$17:$BE$16964,'CF-2'!$B$17:$B$16964,$A$1,'CF-2'!$C$17:$C$16964,$B$1,'CF-2'!$BC$17:$BC$16964,$C11,'CF-2'!$D$17:$D$16964,AH$1) -> 0 | AI11: =SUMIFS('CF-2'!$BE$17:$BE$16964,'CF-2'!$B$17:$B$16964,$A$1,'CF-2'!$C$17:$C$16964,$B$1,'CF-2'!$BC$17:$BC$16964,$C11,'CF-2'!$D$17:$D$16964,AI$1) -> 0 | AJ11: 0.4479166667 | AK11: 0.4479166667
C12: 設備ﾄﾗﾌﾞﾙ | E12: =SUMIFS('CF-2'!$BE$17:$BE$16964,'CF-2'!$B$17:$B$16964,$A$1,'CF-2'!$C$17:$C$16964,$B$1,'CF-2'!$BC$17:$BC$16964,$C12,'CF-2'!$D$17:$D$16964,E$1) -> 0 | F12: =SUMIFS('CF-2'!$BE$17:$BE$16964,'CF-2'!$B$17:$B$16964,$A$1,'CF-2'!$C$17:$C$16964,$B$1,'CF-2'!$BC$17:$BC$16964,$C12,'CF-2'!$D$17:$D$16964,F$1) -> 0 | G12: =SUMIFS('CF-2'!$BE$17:$BE$16964,'CF-2'!$B$17:$B$16964,$A$1,'CF-2'!$C$17:$C$16964,$B$1,'CF-2'!$BC$17:$BC$16964,$C12,'CF-2'!$D$17:$D$16964,G$1) -> 0 | H12: =SUMIFS('CF-2'!$BE$17:$BE$16964,'CF-2'!$B$17:$B$16964,$A$1,'CF-2'!$C$17:$C$16964,$B$1,'CF-2'!$BC$17:$BC$16964,$C12,'CF-2'!$D$17:$D$16964,H$1) -> 0 | I12: =SUMIFS('CF-2'!$BE$17:$BE$16964,'CF-2'!$B$17:$B$16964,$A$1,'CF-2'!$C$17:$C$16964,$B$1,'CF-2'!$BC$17:$BC$16964,$C12,'CF-2'!$D$17:$D$16964,I$1) -> 0 | J12: =SUMIFS('CF-2'!$BE$17:$BE$16964,'CF-2'!$B$17:$B$16964,$A$1,'CF-2'!$C$17:$C$16964,$B$1,'CF-2'!$BC$17:$BC$16964,$C12,'CF-2'!$D$17:$D$16964,J$1) -> 0 | K12: =SUMIFS('CF-2'!$BE$17:$BE$16964,'CF-2'!$B$17:$B$16964,$A$1,'CF-2'!$C$17:$C$16964,$B$1,'CF-2'!$BC$17:$BC$16964,$C12,'CF-2'!$D$17:$D$16964,K$1) -> 0 | L12: =SUMIFS('CF-2'!$BE$17:$BE$16964,'CF-2'!$B$17:$B$16964,$A$1,'CF-2'!$C$17:$C$16964,$B$1,'CF-2'!$BC$17:$BC$16964,$C12,'CF-2'!$D$17:$D$16964,L$1) -> 0 | M12: =SUMIFS('CF-2'!$BE$17:$BE$16964,'CF-2'!$B$17:$B$16964,$A$1,'CF-2'!$C$17:$C$16964,$B$1,'CF-2'!$BC$17:$BC$16964,$C12,'CF-2'!$D$17:$D$16964,M$1) -> 0.1770833333 | N12: =SUMIFS('CF-2'!$BE$17:$BE$16964,'CF-2'!$B$17:$B$16964,$A$1,'CF-2'!$C$17:$C$16964,$B$1,'CF-2'!$BC$17:$BC$16964,$C12,'CF-2'!$D$17:$D$16964,N$1) -> 0.06944444444 | O12: =SUMIFS('CF-2'!$BE$17:$BE$16964,'CF-2'!$B$17:$B$16964,$A$1,'CF-2'!$C$17:$C$16964,$B$1,'CF-2'!$BC$17:$BC$16964,$C12,'CF-2'!$D$17:$D$16964,O$1) -> 0 | P12: =SUMIFS('CF-2'!$BE$17:$BE$16964,'CF-2'!$B$17:$B$16964,$A$1,'CF-2'!$C$17:$C$16964,$B$1,'CF-2'!$BC$17:$BC$16964,$C12,'CF-2'!$D$17:$D$16964,P$1) -> 0 | Q12: =SUMIFS('CF-2'!$BE$17:$BE$16964,'CF-2'!$B$17:$B$16964,$A$1,'CF-2'!$C$17:$C$16964,$B$1,'CF-2'!$BC$17:$BC$16964,$C12,'CF-2'!$D$17:$D$16964,Q$1) -> 0 | R12: =SUMIFS('CF-2'!$BE$17:$BE$16964,'CF-2'!$B$17:$B$16964,$A$1,'CF-2'!$C$17:$C$16964,$B$1,'CF-2'!$BC$17:$BC$16964,$C12,'CF-2'!$D$17:$D$16964,R$1) -> 0 | S12: =SUMIFS('CF-2'!$BE$17:$BE$16964,'CF-2'!$B$17:$B$16964,$A$1,'CF-2'!$C$17:$C$16964,$B$1,'CF-2'!$BC$17:$BC$16964,$C12,'CF-2'!$D$17:$D$16964,S$1) -> 0 | T12: =SUMIFS('CF-2'!$BE$17:$BE$16964,'CF-2'!$B$17:$B$16964,$A$1,'CF-2'!$C$17:$C$16964,$B$1,'CF-2'!$BC$17:$BC$16964,$C12,'CF-2'!$D$17:$D$16964,T$1) -> 0 | U12: =SUMIFS('CF-2'!$BE$17:$BE$16964,'CF-2'!$B$17:$B$16964,$A$1,'CF-2'!$C$17:$C$16964,$B$1,'CF-2'!$BC$17:$BC$16964,$C12,'CF-2'!$D$17:$D$16964,U$1) -> 0 | V12: =SUMIFS('CF-2'!$BE$17:$BE$16964,'CF-2'!$B$17:$B$16964,$A$1,'CF-2'!$C$17:$C$16964,$B$1,'CF-2'!$BC$17:$BC$16964,$C12,'CF-2'!$D$17:$D$16964,V$1) -> 0 | W12: =SUMIFS('CF-2'!$BE$17:$BE$16964,'CF-2'!$B$17:$B$16964,$A$1,'CF-2'!$C$17:$C$16964,$B$1,'CF-2'!$BC$17:$BC$16964,$C12,'CF-2'!$D$17:$D$16964,W$1) -> 0 | X12: =SUMIFS('CF-2'!$BE$17:$BE$16964,'CF-2'!$B$17:$B$16964,$A$1,'CF-2'!$C$17:$C$16964,$B$1,'CF-2'!$BC$17:$BC$16964,$C12,'CF-2'!$D$17:$D$16964,X$1) -> 0 | Y12: =SUMIFS('CF-2'!$BE$17:$BE$16964,'CF-2'!$B$17:$B$16964,$A$1,'CF-2'!$C$17:$C$16964,$B$1,'CF-2'!$BC$17:$BC$16964,$C12,'CF-2'!$D$17:$D$16964,Y$1) -> 0 | Z12: =SUMIFS('CF-2'!$BE$17:$BE$16964,'CF-2'!$B$17:$B$16964,$A$1,'CF-2'!$C$17:$C$16964,$B$1,'CF-2'!$BC$17:$BC$16964,$C12,'CF-2'!$D$17:$D$16964,Z$1) -> 0 | AA12: =SUMIFS('CF-2'!$BE$17:$BE$16964,'CF-2'!$B$17:$B$16964,$A$1,'CF-2'!$C$17:$C$16964,$B$1,'CF-2'!$BC$17:$BC$16964,$C12,'CF-2'!$D$17:$D$16964,AA$1) -> 0 | AB12: =SUMIFS('CF-2'!$BE$17:$BE$16964,'CF-2'!$B$17:$B$16964,$A$1,'CF-2'!$C$17:$C$16964,$B$1,'CF-2'!$BC$17:$BC$16964,$C12,'CF-2'!$D$17:$D$16964,AB$1) -> 0 | AC12: =SUMIFS('CF-2'!$BE$17:$BE$16964,'CF-2'!$B$17:$B$16964,$A$1,'CF-2'!$C$17:$C$16964,$B$1,'CF-2'!$BC$17:$BC$16964,$C12,'CF-2'!$D$17:$D$16964,AC$1) -> 0 | AD12: =SUMIFS('CF-2'!$BE$17:$BE$16964,'CF-2'!$B$17:$B$16964,$A$1,'CF-2'!$C$17:$C$16964,$B$1,'CF-2'!$BC$17:$BC$16964,$C12,'CF-2'!$D$17:$D$16964,AD$1) -> 0 | AE12: =SUMIFS('CF-2'!$BE$17:$BE$16964,'CF-2'!$B$17:$B$16964,$A$1,'CF-2'!$C$17:$C$16964,$B$1,'CF-2'!$BC$17:$BC$16964,$C12,'CF-2'!$D$17:$D$16964,AE$1) -> 0 | AF12: =SUMIFS('CF-2'!$BE$17:$BE$16964,'CF-2'!$B$17:$B$16964,$A$1,'CF-2'!$C$17:$C$16964,$B$1,'CF-2'!$BC$17:$BC$16964,$C12,'CF-2'!$D$17:$D$16964,AF$1) -> 0 | AG12: =SUMIFS('CF-2'!$BE$17:$BE$16964,'CF-2'!$B$17:$B$16964,$A$1,'CF-2'!$C$17:$C$16964,$B$1,'CF-2'!$BC$17:$BC$16964,$C12,'CF-2'!$D$17:$D$16964,AG$1) -> 0 | AH12: =SUMIFS('CF-2'!$BE$17:$BE$16964,'CF-2'!$B$17:$B$16964,$A$1,'CF-2'!$C$17:$C$16964,$B$1,'CF-2'!$BC$17:$BC$16964,$C12,'CF-2'!$D$17:$D$16964,AH$1) -> 0 | AI12: =SUMIFS('CF-2'!$BE$17:$BE$16964,'CF-2'!$B$17:$B$16964,$A$1,'CF-2'!$C$17:$C$16964,$B$1,'CF-2'!$BC$17:$BC$16964,$C12,'CF-2'!$D$17:$D$16964,AI$1) -> 0 | AJ12: 0.2465277778 | AK12: 0.2465277778
C13: 計画ﾒﾝﾃ | E13: =SUMIFS('CF-2'!$BE$17:$BE$16964,'CF-2'!$B$17:$B$16964,$A$1,'CF-2'!$C$17:$C$16964,$B$1,'CF-2'!$BC$17:$BC$16964,$C13,'CF-2'!$D$17:$D$16964,E$1) -> 0 | F13: =SUMIFS('CF-2'!$BE$17:$BE$16964,'CF-2'!$B$17:$B$16964,$A$1,'CF-2'!$C$17:$C$16964,$B$1,'CF-2'!$BC$17:$BC$16964,$C13,'CF-2'!$D$17:$D$16964,F$1) -> 0 | G13: =SUMIFS('CF-2'!$BE$17:$BE$16964,'CF-2'!$B$17:$B$16964,$A$1,'CF-2'!$C$17:$C$16964,$B$1,'CF-2'!$BC$17:$BC$16964,$C13,'CF-2'!$D$17:$D$16964,G$1) -> 0 | H13: =SUMIFS('CF-2'!$BE$17:$BE$16964,'CF-2'!$B$17:$B$16964,$A$1,'CF-2'!$C$17:$C$16964,$B$1,'CF-2'!$BC$17:$BC$16964,$C13,'CF-2'!$D$17:$D$16964,H$1) -> 0 | I13: =SUMIFS('CF-2'!$BE$17:$BE$16964,'CF-2'!$B$17:$B$16964,$A$1,'CF-2'!$C$17:$C$16964,$B$1,'CF-2'!$BC$17:$BC$16964,$C13,'CF-2'!$D$17:$D$16964,I$1) -> 0 | J13: =SUMIFS('CF-2'!$BE$17:$BE$16964,'CF-2'!$B$17:$B$16964,$A$1,'CF-2'!$C$17:$C$16964,$B$1,'CF-2'!$BC$17:$BC$16964,$C13,'CF-2'!$D$17:$D$16964,J$1) -> 0 | K13: =SUMIFS('CF-2'!$BE$17:$BE$16964,'CF-2'!$B$17:$B$16964,$A$1,'CF-2'!$C$17:$C$16964,$B$1,'CF-2'!$BC$17:$BC$16964,$C13,'CF-2'!$D$17:$D$16964,K$1) -> 0 | L13: =SUMIFS('CF-2'!$BE$17:$BE$16964,'CF-2'!$B$17:$B$16964,$A$1,'CF-2'!$C$17:$C$16964,$B$1,'CF-2'!$BC$17:$BC$16964,$C13,'CF-2'!$D$17:$D$16964,L$1) -> 0 | M13: =SUMIFS('CF-2'!$BE$17:$BE$16964,'CF-2'!$B$17:$B$16964,$A$1,'CF-2'!$C$17:$C$16964,$B$1,'CF-2'!$BC$17:$BC$16964,$C13,'CF-2'!$D$17:$D$16964,M$1) -> 0 | N13: =SUMIFS('CF-2'!$BE$17:$BE$16964,'CF-2'!$B$17:$B$16964,$A$1,'CF-2'!$C$17:$C$16964,$B$1,'CF-2'!$BC$17:$BC$16964,$C13,'CF-2'!$D$17:$D$16964,N$1) -> 0 | O13: =SUMIFS('CF-2'!$BE$17:$BE$16964,'CF-2'!$B$17:$B$16964,$A$1,'CF-2'!$C$17:$C$16964,$B$1,'CF-2'!$BC$17:$BC$16964,$C13,'CF-2'!$D$17:$D$16964,O$1) -> 0 | P13: =SUMIFS('CF-2'!$BE$17:$BE$16964,'CF-2'!$B$17:$B$16964,$A$1,'CF-2'!$C$17:$C$16964,$B$1,'CF-2'!$BC$17:$BC$16964,$C13,'CF-2'!$D$17:$D$16964,P$1) -> 0 | Q13: =SUMIFS('CF-2'!$BE$17:$BE$16964,'CF-2'!$B$17:$B$16964,$A$1,'CF-2'!$C$17:$C$16964,$B$1,'CF-2'!$BC$17:$BC$16964,$C13,'CF-2'!$D$17:$D$16964,Q$1) -> 0 | R13: =SUMIFS('CF-2'!$BE$17:$BE$16964,'CF-2'!$B$17:$B$16964,$A$1,'CF-2'!$C$17:$C$16964,$B$1,'CF-2'!$BC$17:$BC$16964,$C13,'CF-2'!$D$17:$D$16964,R$1) -> 0 | S13: =SUMIFS('CF-2'!$BE$17:$BE$16964,'CF-2'!$B$17:$B$16964,$A$1,'CF-2'!$C$17:$C$16964,$B$1,'CF-2'!$BC$17:$BC$16964,$C13,'CF-2'!$D$17:$D$16964,S$1) -> 0 | T13: =SUMIFS('CF-2'!$BE$17:$BE$16964,'CF-2'!$B$17:$B$16964,$A$1,'CF-2'!$C$17:$C$16964,$B$1,'CF-2'!$BC$17:$BC$16964,$C13,'CF-2'!$D$17:$D$16964,T$1) -> 0 | U13: =SUMIFS('CF-2'!$BE$17:$BE$16964,'CF-2'!$B$17:$B$16964,$A$1,'CF-2'!$C$17:$C$16964,$B$1,'CF-2'!$BC$17:$BC$16964,$C13,'CF-2'!$D$17:$D$16964,U$1) -> 0 | V13: =SUMIFS('CF-2'!$BE$17:$BE$16964,'CF-2'!$B$17:$B$16964,$A$1,'CF-2'!$C$17:$C$16964,$B$1,'CF-2'!$BC$17:$BC$16964,$C13,'CF-2'!$D$17:$D$16964,V$1) -> 0 | W13: =SUMIFS('CF-2'!$BE$17:$BE$16964,'CF-2'!$B$17:$B$16964,$A$1,'CF-2'!$C$17:$C$16964,$B$1,'CF-2'!$BC$17:$BC$16964,$C13,'CF-2'!$D$17:$D$16964,W$1) -> 0 | X13: =SUMIFS('CF-2'!$BE$17:$BE$16964,'CF-2'!$B$17:$B$16964,$A$1,'CF-2'!$C$17:$C$16964,$B$1,'CF-2'!$BC$17:$BC$16964,$C13,'CF-2'!$D$17:$D$16964,X$1) -> 0 | Y13: =SUMIFS('CF-2'!$BE$17:$BE$16964,'CF-2'!$B$17:$B$16964,$A$1,'CF-2'!$C$17:$C$16964,$B$1,'CF-2'!$BC$17:$BC$16964,$C13,'CF-2'!$D$17:$D$16964,Y$1) -> 0 | Z13: =SUMIFS('CF-2'!$BE$17:$BE$16964,'CF-2'!$B$17:$B$16964,$A$1,'CF-2'!$C$17:$C$16964,$B$1,'CF-2'!$BC$17:$BC$16964,$C13,'CF-2'!$D$17:$D$16964,Z$1) -> 0 | AA13: =SUMIFS('CF-2'!$BE$17:$BE$16964,'CF-2'!$B$17:$B$16964,$A$1,'CF-2'!$C$17:$C$16964,$B$1,'CF-2'!$BC$17:$BC$16964,$C13,'CF-2'!$D$17:$D$16964,AA$1) -> 0 | AB13: =SUMIFS('CF-2'!$BE$17:$BE$16964,'CF-2'!$B$17:$B$16964,$A$1,'CF-2'!$C$17:$C$16964,$B$1,'CF-2'!$BC$17:$BC$16964,$C13,'CF-2'!$D$17:$D$16964,AB$1) -> 0 | AC13: =SUMIFS('CF-2'!$BE$17:$BE$16964,'CF-2'!$B$17:$B$16964,$A$1,'CF-2'!$C$17:$C$16964,$B$1,'CF-2'!$BC$17:$BC$16964,$C13,'CF-2'!$D$17:$D$16964,AC$1) -> 0 | AD13: =SUMIFS('CF-2'!$BE$17:$BE$16964,'CF-2'!$B$17:$B$16964,$A$1,'CF-2'!$C$17:$C$16964,$B$1,'CF-2'!$BC$17:$BC$16964,$C13,'CF-2'!$D$17:$D$16964,AD$1) -> 0 | AE13: =SUMIFS('CF-2'!$BE$17:$BE$16964,'CF-2'!$B$17:$B$16964,$A$1,'CF-2'!$C$17:$C$16964,$B$1,'CF-2'!$BC$17:$BC$16964,$C13,'CF-2'!$D$17:$D$16964,AE$1) -> 0 | AF13: =SUMIFS('CF-2'!$BE$17:$BE$16964,'CF-2'!$B$17:$B$16964,$A$1,'CF-2'!$C$17:$C$16964,$B$1,'CF-2'!$BC$17:$BC$16964,$C13,'CF-2'!$D$17:$D$16964,AF$1) -> 0 | AG13: =SUMIFS('CF-2'!$BE$17:$BE$16964,'CF-2'!$B$17:$B$16964,$A$1,'CF-2'!$C$17:$C$16964,$B$1,'CF-2'!$BC$17:$BC$16964,$C13,'CF-2'!$D$17:$D$16964,AG$1) -> 0 | AH13: =SUMIFS('CF-2'!$BE$17:$BE$16964,'CF-2'!$B$17:$B$16964,$A$1,'CF-2'!$C$17:$C$16964,$B$1,'CF-2'!$BC$17:$BC$16964,$C13,'CF-2'!$D$17:$D$16964,AH$1) -> 0 | AI13: =SUMIFS('CF-2'!$BE$17:$BE$16964,'CF-2'!$B$17:$B$16964,$A$1,'CF-2'!$C$17:$C$16964,$B$1,'CF-2'!$BC$17:$BC$16964,$C13,'CF-2'!$D$17:$D$16964,AI$1) -> 0 | AJ13: 0 | AK13: 0
C14: 安全活動 | E14: =SUMIFS('CF-2'!$BE$17:$BE$16964,'CF-2'!$B$17:$B$16964,$A$1,'CF-2'!$C$17:$C$16964,$B$1,'CF-2'!$BC$17:$BC$16964,$C14,'CF-2'!$D$17:$D$16964,E$1) -> 0 | F14: =SUMIFS('CF-2'!$BE$17:$BE$16964,'CF-2'!$B$17:$B$16964,$A$1,'CF-2'!$C$17:$C$16964,$B$1,'CF-2'!$BC$17:$BC$16964,$C14,'CF-2'!$D$17:$D$16964,F$1) -> 0 | G14: =SUMIFS('CF-2'!$BE$17:$BE$16964,'CF-2'!$B$17:$B$16964,$A$1,'CF-2'!$C$17:$C$16964,$B$1,'CF-2'!$BC$17:$BC$16964,$C14,'CF-2'!$D$17:$D$16964,G$1) -> 0 | H14: =SUMIFS('CF-2'!$BE$17:$BE$16964,'CF-2'!$B$17:$B$16964,$A$1,'CF-2'!$C$17:$C$16964,$B$1,'CF-2'!$BC$17:$BC$16964,$C14,'CF-2'!$D$17:$D$16964,H$1) -> 0 | I14: =SUMIFS('CF-2'!$BE$17:$BE$16964,'CF-2'!$B$17:$B$16964,$A$1,'CF-2'!$C$17:$C$16964,$B$1,'CF-2'!$BC$17:$BC$16964,$C14,'CF-2'!$D$17:$D$16964,I$1) -> 0 | J14: =SUMIFS('CF-2'!$BE$17:$BE$16964,'CF-2'!$B$17:$B$16964,$A$1,'CF-2'!$C$17:$C$16964,$B$1,'CF-2'!$BC$17:$BC$16964,$C14,'CF-2'!$D$17:$D$16964,J$1) -> 0 | K14: =SUMIFS('CF-2'!$BE$17:$BE$16964,'CF-2'!$B$17:$B$16964,$A$1,'CF-2'!$C$17:$C$16964,$B$1,'CF-2'!$BC$17:$BC$16964,$C14,'CF-2'!$D$17:$D$16964,K$1) -> 0 | L14: =SUMIFS('CF-2'!$BE$17:$BE$16964,'CF-2'!$B$17:$B$16964,$A$1,'CF-2'!$C$17:$C$16964,$B$1,'CF-2'!$BC$17:$BC$16964,$C14,'CF-2'!$D$17:$D$16964,L$1) -> 0 | M14: =SUMIFS('CF-2'!$BE$17:$BE$16964,'CF-2'!$B$17:$B$16964,$A$1,'CF-2'!$C$17:$C$16964,$B$1,'CF-2'!$BC$17:$BC$16964,$C14,'CF-2'!$D$17:$D$16964,M$1) -> 0 | N14: =SUMIFS('CF-2'!$BE$17:$BE$16964,'CF-2'!$B$17:$B$16964,$A$1,'CF-2'!$C$17:$C$16964,$B$1,'CF-2'!$BC$17:$BC$16964,$C14,'CF-2'!$D$17:$D$16964,N$1) -> 0 | O14: =SUMIFS('CF-2'!$BE$17:$BE$16964,'CF-2'!$B$17:$B$16964,$A$1,'CF-2'!$C$17:$C$16964,$B$1,'CF-2'!$BC$17:$BC$16964,$C14,'CF-2'!$D$17:$D$16964,O$1) -> 0 | P14: =SUMIFS('CF-2'!$BE$17:$BE$16964,'CF-2'!$B$17:$B$16964,$A$1,'CF-2'!$C$17:$C$16964,$B$1,'CF-2'!$BC$17:$BC$16964,$C14,'CF-2'!$D$17:$D$16964,P$1) -> 0 | Q14: =SUMIFS('CF-2'!$BE$17:$BE$16964,'CF-2'!$B$17:$B$16964,$A$1,'CF-2'!$C$17:$C$16964,$B$1,'CF-2'!$BC$17:$BC$16964,$C14,'CF-2'!$D$17:$D$16964,Q$1) -> 0 | R14: =SUMIFS('CF-2'!$BE$17:$BE$16964,'CF-2'!$B$17:$B$16964,$A$1,'CF-2'!$C$17:$C$16964,$B$1,'CF-2'!$BC$17:$BC$16964,$C14,'CF-2'!$D$17:$D$16964,R$1) -> 0 | S14: =SUMIFS('CF-2'!$BE$17:$BE$16964,'CF-2'!$B$17:$B$16964,$A$1,'CF-2'!$C$17:$C$16964,$B$1,'CF-2'!$BC$17:$BC$16964,$C14,'CF-2'!$D$17:$D$16964,S$1) -> 0 | T14: =SUMIFS('CF-2'!$BE$17:$BE$16964,'CF-2'!$B$17:$B$16964,$A$1,'CF-2'!$C$17:$C$16964,$B$1,'CF-2'!$BC$17:$BC$16964,$C14,'CF-2'!$D$17:$D$16964,T$1) -> 0 | U14: =SUMIFS('CF-2'!$BE$17:$BE$16964,'CF-2'!$B$17:$B$16964,$A$1,'CF-2'!$C$17:$C$16964,$B$1,'CF-2'!$BC$17:$BC$16964,$C14,'CF-2'!$D$17:$D$16964,U$1) -> 0 | V14: =SUMIFS('CF-2'!$BE$17:$BE$16964,'CF-2'!$B$17:$B$16964,$A$1,'CF-2'!$C$17:$C$16964,$B$1,'CF-2'!$BC$17:$BC$16964,$C14,'CF-2'!$D$17:$D$16964,V$1) -> 0 | W14: =SUMIFS('CF-2'!$BE$17:$BE$16964,'CF-2'!$B$17:$B$16964,$A$1,'CF-2'!$C$17:$C$16964,$B$1,'CF-2'!$BC$17:$BC$16964,$C14,'CF-2'!$D$17:$D$16964,W$1) -> 0 | X14: =SUMIFS('CF-2'!$BE$17:$BE$16964,'CF-2'!$B$17:$B$16964,$A$1,'CF-2'!$C$17:$C$16964,$B$1,'CF-2'!$BC$17:$BC$16964,$C14,'CF-2'!$D$17:$D$16964,X$1) -> 0 | Y14: =SUMIFS('CF-2'!$BE$17:$BE$16964,'CF-2'!$B$17:$B$16964,$A$1,'CF-2'!$C$17:$C$16964,$B$1,'CF-2'!$BC$17:$BC$16964,$C14,'CF-2'!$D$17:$D$16964,Y$1) -> 0 | Z14: =SUMIFS('CF-2'!$BE$17:$BE$16964,'CF-2'!$B$17:$B$16964,$A$1,'CF-2'!$C$17:$C$16964,$B$1,'CF-2'!$BC$17:$BC$16964,$C14,'CF-2'!$D$17:$D$16964,Z$1) -> 0 | AA14: =SUMIFS('CF-2'!$BE$17:$BE$16964,'CF-2'!$B$17:$B$16964,$A$1,'CF-2'!$C$17:$C$16964,$B$1,'CF-2'!$BC$17:$BC$16964,$C14,'CF-2'!$D$17:$D$16964,AA$1) -> 0 | AB14: =SUMIFS('CF-2'!$BE$17:$BE$16964,'CF-2'!$B$17:$B$16964,$A$1,'CF-2'!$C$17:$C$16964,$B$1,'CF-2'!$BC$17:$BC$16964,$C14,'CF-2'!$D$17:$D$16964,AB$1) -> 0 | AC14: =SUMIFS('CF-2'!$BE$17:$BE$16964,'CF-2'!$B$17:$B$16964,$A$1,'CF-2'!$C$17:$C$16964,$B$1,'CF-2'!$BC$17:$BC$16964,$C14,'CF-2'!$D$17:$D$16964,AC$1) -> 0 | AD14: =SUMIFS('CF-2'!$BE$17:$BE$16964,'CF-2'!$B$17:$B$16964,$A$1,'CF-2'!$C$17:$C$16964,$B$1,'CF-2'!$BC$17:$BC$16964,$C14,'CF-2'!$D$17:$D$16964,AD$1) -> 0 | AE14: =SUMIFS('CF-2'!$BE$17:$BE$16964,'CF-2'!$B$17:$B$16964,$A$1,'CF-2'!$C$17:$C$16964,$B$1,'CF-2'!$BC$17:$BC$16964,$C14,'CF-2'!$D$17:$D$16964,AE$1) -> 0 | AF14: =SUMIFS('CF-2'!$BE$17:$BE$16964,'CF-2'!$B$17:$B$16964,$A$1,'CF-2'!$C$17:$C$16964,$B$1,'CF-2'!$BC$17:$BC$16964,$C14,'CF-2'!$D$17:$D$16964,AF$1) -> 0 | AG14: =SUMIFS('CF-2'!$BE$17:$BE$16964,'CF-2'!$B$17:$B$16964,$A$1,'CF-2'!$C$17:$C$16964,$B$1,'CF-2'!$BC$17:$BC$16964,$C14,'CF-2'!$D$17:$D$16964,AG$1) -> 0 | AH14: =SUMIFS('CF-2'!$BE$17:$BE$16964,'CF-2'!$B$17:$B$16964,$A$1,'CF-2'!$C$17:$C$16964,$B$1,'CF-2'!$BC$17:$BC$16964,$C14,'CF-2'!$D$17:$D$16964,AH$1) -> 0 | AI14: =SUMIFS('CF-2'!$BE$17:$BE$16964,'CF-2'!$B$17:$B$16964,$A$1,'CF-2'!$C$17:$C$16964,$B$1,'CF-2'!$BC$17:$BC$16964,$C14,'CF-2'!$D$17:$D$16964,AI$1) -> 0 | AJ14: 0 | AK14: 0
C15: その他 | E15: =SUMIFS('CF-2'!$BE$17:$BE$16964,'CF-2'!$B$17:$B$16964,$A$1,'CF-2'!$C$17:$C$16964,$B$1,'CF-2'!$BC$17:$BC$16964,$C15,'CF-2'!$D$17:$D$16964,E$1) -> 0 | F15: =SUMIFS('CF-2'!$BE$17:$BE$16964,'CF-2'!$B$17:$B$16964,$A$1,'CF-2'!$C$17:$C$16964,$B$1,'CF-2'!$BC$17:$BC$16964,$C15,'CF-2'!$D$17:$D$16964,F$1) -> 0 | G15: =SUMIFS('CF-2'!$BE$17:$BE$16964,'CF-2'!$B$17:$B$16964,$A$1,'CF-2'!$C$17:$C$16964,$B$1,'CF-2'!$BC$17:$BC$16964,$C15,'CF-2'!$D$17:$D$16964,G$1) -> 0 | H15: =SUMIFS('CF-2'!$BE$17:$BE$16964,'CF-2'!$B$17:$B$16964,$A$1,'CF-2'!$C$17:$C$16964,$B$1,'CF-2'!$BC$17:$BC$16964,$C15,'CF-2'!$D$17:$D$16964,H$1) -> 0 | I15: =SUMIFS('CF-2'!$BE$17:$BE$16964,'CF-2'!$B$17:$B$16964,$A$1,'CF-2'!$C$17:$C$16964,$B$1,'CF-2'!$BC$17:$BC$16964,$C15,'CF-2'!$D$17:$D$16964,I$1) -> 0 | J15: =SUMIFS('CF-2'!$BE$17:$BE$16964,'CF-2'!$B$17:$B$16964,$A$1,'CF-2'!$C$17:$C$16964,$B$1,'CF-2'!$BC$17:$BC$16964,$C15,'CF-2'!$D$17:$D$16964,J$1) -> 0 | K15: =SUMIFS('CF-2'!$BE$17:$BE$16964,'CF-2'!$B$17:$B$16964,$A$1,'CF-2'!$C$17:$C$16964,$B$1,'CF-2'!$BC$17:$BC$16964,$C15,'CF-2'!$D$17:$D$16964,K$1) -> 0 | L15: =SUMIFS('CF-2'!$BE$17:$BE$16964,'CF-2'!$B$17:$B$16964,$A$1,'CF-2'!$C$17:$C$16964,$B$1,'CF-2'!$BC$17:$BC$16964,$C15,'CF-2'!$D$17:$D$16964,L$1) -> 0 | M15: =SUMIFS('CF-2'!$BE$17:$BE$16964,'CF-2'!$B$17:$B$16964,$A$1,'CF-2'!$C$17:$C$16964,$B$1,'CF-2'!$BC$17:$BC$16964,$C15,'CF-2'!$D$17:$D$16964,M$1) -> 0 | N15: =SUMIFS('CF-2'!$BE$17:$BE$16964,'CF-2'!$B$17:$B$16964,$A$1,'CF-2'!$C$17:$C$16964,$B$1,'CF-2'!$BC$17:$BC$16964,$C15,'CF-2'!$D$17:$D$16964,N$1) -> 0 | O15: =SUMIFS('CF-2'!$BE$17:$BE$16964,'CF-2'!$B$17:$B$16964,$A$1,'CF-2'!$C$17:$C$16964,$B$1,'CF-2'!$BC$17:$BC$16964,$C15,'CF-2'!$D$17:$D$16964,O$1) -> 0 | P15: =SUMIFS('CF-2'!$BE$17:$BE$16964,'CF-2'!$B$17:$B$16964,$A$1,'CF-2'!$C$17:$C$16964,$B$1,'CF-2'!$BC$17:$BC$16964,$C15,'CF-2'!$D$17:$D$16964,P$1) -> 0 | Q15: =SUMIFS('CF-2'!$BE$17:$BE$16964,'CF-2'!$B$17:$B$16964,$A$1,'CF-2'!$C$17:$C$16964,$B$1,'CF-2'!$BC$17:$BC$16964,$C15,'CF-2'!$D$17:$D$16964,Q$1) -> 0 | R15: =SUMIFS('CF-2'!$BE$17:$BE$16964,'CF-2'!$B$17:$B$16964,$A$1,'CF-2'!$C$17:$C$16964,$B$1,'CF-2'!$BC$17:$BC$16964,$C15,'CF-2'!$D$17:$D$16964,R$1) -> 0 | S15: =SUMIFS('CF-2'!$BE$17:$BE$16964,'CF-2'!$B$17:$B$16964,$A$1,'CF-2'!$C$17:$C$16964,$B$1,'CF-2'!$BC$17:$BC$16964,$C15,'CF-2'!$D$17:$D$16964,S$1) -> 0 | T15: =SUMIFS('CF-2'!$BE$17:$BE$16964,'CF-2'!$B$17:$B$16964,$A$1,'CF-2'!$C$17:$C$16964,$B$1,'CF-2'!$BC$17:$BC$16964,$C15,'CF-2'!$D$17:$D$16964,T$1) -> 0 | U15: =SUMIFS('CF-2'!$BE$17:$BE$16964,'CF-2'!$B$17:$B$16964,$A$1,'CF-2'!$C$17:$C$16964,$B$1,'CF-2'!$BC$17:$BC$16964,$C15,'CF-2'!$D$17:$D$16964,U$1) -> 0 | V15: =SUMIFS('CF-2'!$BE$17:$BE$16964,'CF-2'!$B$17:$B$16964,$A$1,'CF-2'!$C$17:$C$16964,$B$1,'CF-2'!$BC$17:$BC$16964,$C15,'CF-2'!$D$17:$D$16964,V$1) -> 0 | W15: =SUMIFS('CF-2'!$BE$17:$BE$16964,'CF-2'!$B$17:$B$16964,$A$1,'CF-2'!$C$17:$C$16964,$B$1,'CF-2'!$BC$17:$BC$16964,$C15,'CF-2'!$D$17:$D$16964,W$1) -> 0 | X15: =SUMIFS('CF-2'!$BE$17:$BE$16964,'CF-2'!$B$17:$B$16964,$A$1,'CF-2'!$C$17:$C$16964,$B$1,'CF-2'!$BC$17:$BC$16964,$C15,'CF-2'!$D$17:$D$16964,X$1) -> 0 | Y15: =SUMIFS('CF-2'!$BE$17:$BE$16964,'CF-2'!$B$17:$B$16964,$A$1,'CF-2'!$C$17:$C$16964,$B$1,'CF-2'!$BC$17:$BC$16964,$C15,'CF-2'!$D$17:$D$16964,Y$1) -> 0 | Z15: =SUMIFS('CF-2'!$BE$17:$BE$16964,'CF-2'!$B$17:$B$16964,$A$1,'CF-2'!$C$17:$C$16964,$B$1,'CF-2'!$BC$17:$BC$16964,$C15,'CF-2'!$D$17:$D$16964,Z$1) -> 0 | AA15: =SUMIFS('CF-2'!$BE$17:$BE$16964,'CF-2'!$B$17:$B$16964,$A$1,'CF-2'!$C$17:$C$16964,$B$1,'CF-2'!$BC$17:$BC$16964,$C15,'CF-2'!$D$17:$D$16964,AA$1) -> 0 | AB15: =SUMIFS('CF-2'!$BE$17:$BE$16964,'CF-2'!$B$17:$B$16964,$A$1,'CF-2'!$C$17:$C$16964,$B$1,'CF-2'!$BC$17:$BC$16964,$C15,'CF-2'!$D$17:$D$16964,AB$1) -> 0 | AC15: =SUMIFS('CF-2'!$BE$17:$BE$16964,'CF-2'!$B$17:$B$16964,$A$1,'CF-2'!$C$17:$C$16964,$B$1,'CF-2'!$BC$17:$BC$16964,$C15,'CF-2'!$D$17:$D$16964,AC$1) -> 0 | AD15: =SUMIFS('CF-2'!$BE$17:$BE$16964,'CF-2'!$B$17:$B$16964,$A$1,'CF-2'!$C$17:$C$16964,$B$1,'CF-2'!$BC$17:$BC$16964,$C15,'CF-2'!$D$17:$D$16964,AD$1) -> 0 | AE15: =SUMIFS('CF-2'!$BE$17:$BE$16964,'CF-2'!$B$17:$B$16964,$A$1,'CF-2'!$C$17:$C$16964,$B$1,'CF-2'!$BC$17:$BC$16964,$C15,'CF-2'!$D$17:$D$16964,AE$1) -> 0 | AF15: =SUMIFS('CF-2'!$BE$17:$BE$16964,'CF-2'!$B$17:$B$16964,$A$1,'CF-2'!$C$17:$C$16964,$B$1,'CF-2'!$BC$17:$BC$16964,$C15,'CF-2'!$D$17:$D$16964,AF$1) -> 0 | AG15: =SUMIFS('CF-2'!$BE$17:$BE$16964,'CF-2'!$B$17:$B$16964,$A$1,'CF-2'!$C$17:$C$16964,$B$1,'CF-2'!$BC$17:$BC$16964,$C15,'CF-2'!$D$17:$D$16964,AG$1) -> 0 | AH15: =SUMIFS('CF-2'!$BE$17:$BE$16964,'CF-2'!$B$17:$B$16964,$A$1,'CF-2'!$C$17:$C$16964,$B$1,'CF-2'!$BC$17:$BC$16964,$C15,'CF-2'!$D$17:$D$16964,AH$1) -> 0 | AI15: =SUMIFS('CF-2'!$BE$17:$BE$16964,'CF-2'!$B$17:$B$16964,$A$1,'CF-2'!$C$17:$C$16964,$B$1,'CF-2'!$BC$17:$BC$16964,$C15,'CF-2'!$D$17:$D$16964,AI$1) -> 0 | AJ15: 0 | AK15: 0
C16: 未配台 | E16: =SUM(E17:E19) -> 0 | F16: =SUM(F17:F19) -> 0 | G16: 0 | H16: 0 | I16: 0 | J16: 0 | K16: 0 | L16: 0 | M16: 0 | N16: 0 | O16: 0 | P16: 0 | Q16: 0 | R16: 0 | S16: 0 | T16: 0 | U16: 0 | V16: 0 | W16: 0 | X16: 0 | Y16: 0 | Z16: 0 | AA16: 0 | AB16: 0 | AC16: 0 | AD16: 0 | AE16: 0 | AF16: 0 | AG16: 0 | AH16: 0 | AI16: 0 | AJ16: 0 | AK16: 0
C17: ﾒﾝﾃﾅﾝｽ | E17: =SUMIFS('CF-2'!$BE$17:$BE$16964,'CF-2'!$B$17:$B$16964,$A$1,'CF-2'!$C$17:$C$16964,$B$1,'CF-2'!$BC$17:$BC$16964,$C$17,'CF-2'!$D$17:$D$16964,E$1) -> 0 | F17: =SUMIFS('CF-2'!$BE$17:$BE$16964,'CF-2'!$B$17:$B$16964,$A$1,'CF-2'!$C$17:$C$16964,$B$1,'CF-2'!$BC$17:$BC$16964,$C$17,'CF-2'!$D$17:$D$16964,F$1) -> 0 | G17: =SUMIFS('CF-2'!$BE$17:$BE$16964,'CF-2'!$B$17:$B$16964,$A$1,'CF-2'!$C$17:$C$16964,$B$1,'CF-2'!$BC$17:$BC$16964,$C$17,'CF-2'!$D$17:$D$16964,G$1) -> 0 | H17: =SUMIFS('CF-2'!$BE$17:$BE$16964,'CF-2'!$B$17:$B$16964,$A$1,'CF-2'!$C$17:$C$16964,$B$1,'CF-2'!$BC$17:$BC$16964,$C$17,'CF-2'!$D$17:$D$16964,H$1) -> 0 | I17: =SUMIFS('CF-2'!$BE$17:$BE$16964,'CF-2'!$B$17:$B$16964,$A$1,'CF-2'!$C$17:$C$16964,$B$1,'CF-2'!$BC$17:$BC$16964,$C$17,'CF-2'!$D$17:$D$16964,I$1) -> 0 | J17: =SUMIFS('CF-2'!$BE$17:$BE$16964,'CF-2'!$B$17:$B$16964,$A$1,'CF-2'!$C$17:$C$16964,$B$1,'CF-2'!$BC$17:$BC$16964,$C$17,'CF-2'!$D$17:$D$16964,J$1) -> 0 | K17: =SUMIFS('CF-2'!$BE$17:$BE$16964,'CF-2'!$B$17:$B$16964,$A$1,'CF-2'!$C$17:$C$16964,$B$1,'CF-2'!$BC$17:$BC$16964,$C$17,'CF-2'!$D$17:$D$16964,K$1) -> 0 | L17: =SUMIFS('CF-2'!$BE$17:$BE$16964,'CF-2'!$B$17:$B$16964,$A$1,'CF-2'!$C$17:$C$16964,$B$1,'CF-2'!$BC$17:$BC$16964,$C$17,'CF-2'!$D$17:$D$16964,L$1) -> 0 | M17: =SUMIFS('CF-2'!$BE$17:$BE$16964,'CF-2'!$B$17:$B$16964,$A$1,'CF-2'!$C$17:$C$16964,$B$1,'CF-2'!$BC$17:$BC$16964,$C$17,'CF-2'!$D$17:$D$16964,M$1) -> 0 | N17: =SUMIFS('CF-2'!$BE$17:$BE$16964,'CF-2'!$B$17:$B$16964,$A$1,'CF-2'!$C$17:$C$16964,$B$1,'CF-2'!$BC$17:$BC$16964,$C$17,'CF-2'!$D$17:$D$16964,N$1) -> 0 | O17: =SUMIFS('CF-2'!$BE$17:$BE$16964,'CF-2'!$B$17:$B$16964,$A$1,'CF-2'!$C$17:$C$16964,$B$1,'CF-2'!$BC$17:$BC$16964,$C$17,'CF-2'!$D$17:$D$16964,O$1) -> 0 | P17: =SUMIFS('CF-2'!$BE$17:$BE$16964,'CF-2'!$B$17:$B$16964,$A$1,'CF-2'!$C$17:$C$16964,$B$1,'CF-2'!$BC$17:$BC$16964,$C$17,'CF-2'!$D$17:$D$16964,P$1) -> 0 | Q17: =SUMIFS('CF-2'!$BE$17:$BE$16964,'CF-2'!$B$17:$B$16964,$A$1,'CF-2'!$C$17:$C$16964,$B$1,'CF-2'!$BC$17:$BC$16964,$C$17,'CF-2'!$D$17:$D$16964,Q$1) -> 0 | R17: =SUMIFS('CF-2'!$BE$17:$BE$16964,'CF-2'!$B$17:$B$16964,$A$1,'CF-2'!$C$17:$C$16964,$B$1,'CF-2'!$BC$17:$BC$16964,$C$17,'CF-2'!$D$17:$D$16964,R$1) -> 0 | S17: =SUMIFS('CF-2'!$BE$17:$BE$16964,'CF-2'!$B$17:$B$16964,$A$1,'CF-2'!$C$17:$C$16964,$B$1,'CF-2'!$BC$17:$BC$16964,$C$17,'CF-2'!$D$17:$D$16964,S$1) -> 0 | T17: =SUMIFS('CF-2'!$BE$17:$BE$16964,'CF-2'!$B$17:$B$16964,$A$1,'CF-2'!$C$17:$C$16964,$B$1,'CF-2'!$BC$17:$BC$16964,$C$17,'CF-2'!$D$17:$D$16964,T$1) -> 0 | U17: =SUMIFS('CF-2'!$BE$17:$BE$16964,'CF-2'!$B$17:$B$16964,$A$1,'CF-2'!$C$17:$C$16964,$B$1,'CF-2'!$BC$17:$BC$16964,$C$17,'CF-2'!$D$17:$D$16964,U$1) -> 0 | V17: =SUMIFS('CF-2'!$BE$17:$BE$16964,'CF-2'!$B$17:$B$16964,$A$1,'CF-2'!$C$17:$C$16964,$B$1,'CF-2'!$BC$17:$BC$16964,$C$17,'CF-2'!$D$17:$D$16964,V$1) -> 0 | W17: =SUMIFS('CF-2'!$BE$17:$BE$16964,'CF-2'!$B$17:$B$16964,$A$1,'CF-2'!$C$17:$C$16964,$B$1,'CF-2'!$BC$17:$BC$16964,$C$17,'CF-2'!$D$17:$D$16964,W$1) -> 0 | X17: =SUMIFS('CF-2'!$BE$17:$BE$16964,'CF-2'!$B$17:$B$16964,$A$1,'CF-2'!$C$17:$C$16964,$B$1,'CF-2'!$BC$17:$BC$16964,$C$17,'CF-2'!$D$17:$D$16964,X$1) -> 0 | Y17: =SUMIFS('CF-2'!$BE$17:$BE$16964,'CF-2'!$B$17:$B$16964,$A$1,'CF-2'!$C$17:$C$16964,$B$1,'CF-2'!$BC$17:$BC$16964,$C$17,'CF-2'!$D$17:$D$16964,Y$1) -> 0 | Z17: =SUMIFS('CF-2'!$BE$17:$BE$16964,'CF-2'!$B$17:$B$16964,$A$1,'CF-2'!$C$17:$C$16964,$B$1,'CF-2'!$BC$17:$BC$16964,$C$17,'CF-2'!$D$17:$D$16964,Z$1) -> 0 | AA17: =SUMIFS('CF-2'!$BE$17:$BE$16964,'CF-2'!$B$17:$B$16964,$A$1,'CF-2'!$C$17:$C$16964,$B$1,'CF-2'!$BC$17:$BC$16964,$C$17,'CF-2'!$D$17:$D$16964,AA$1) -> 0 | AB17: =SUMIFS('CF-2'!$BE$17:$BE$16964,'CF-2'!$B$17:$B$16964,$A$1,'CF-2'!$C$17:$C$16964,$B$1,'CF-2'!$BC$17:$BC$16964,$C$17,'CF-2'!$D$17:$D$16964,AB$1) -> 0 | AC17: =SUMIFS('CF-2'!$BE$17:$BE$16964,'CF-2'!$B$17:$B$16964,$A$1,'CF-2'!$C$17:$C$16964,$B$1,'CF-2'!$BC$17:$BC$16964,$C$17,'CF-2'!$D$17:$D$16964,AC$1) -> 0 | AD17: =SUMIFS('CF-2'!$BE$17:$BE$16964,'CF-2'!$B$17:$B$16964,$A$1,'CF-2'!$C$17:$C$16964,$B$1,'CF-2'!$BC$17:$BC$16964,$C$17,'CF-2'!$D$17:$D$16964,AD$1) -> 0 | AE17: =SUMIFS('CF-2'!$BE$17:$BE$16964,'CF-2'!$B$17:$B$16964,$A$1,'CF-2'!$C$17:$C$16964,$B$1,'CF-2'!$BC$17:$BC$16964,$C$17,'CF-2'!$D$17:$D$16964,AE$1) -> 0 | AF17: =SUMIFS('CF-2'!$BE$17:$BE$16964,'CF-2'!$B$17:$B$16964,$A$1,'CF-2'!$C$17:$C$16964,$B$1,'CF-2'!$BC$17:$BC$16964,$C$17,'CF-2'!$D$17:$D$16964,AF$1) -> 0 | AG17: =SUMIFS('CF-2'!$BE$17:$BE$16964,'CF-2'!$B$17:$B$16964,$A$1,'CF-2'!$C$17:$C$16964,$B$1,'CF-2'!$BC$17:$BC$16964,$C$17,'CF-2'!$D$17:$D$16964,AG$1) -> 0 | AH17: =SUMIFS('CF-2'!$BE$17:$BE$16964,'CF-2'!$B$17:$B$16964,$A$1,'CF-2'!$C$17:$C$16964,$B$1,'CF-2'!$BC$17:$BC$16964,$C$17,'CF-2'!$D$17:$D$16964,AH$1) -> 0 | AI17: =SUMIFS('CF-2'!$BE$17:$BE$16964,'CF-2'!$B$17:$B$16964,$A$1,'CF-2'!$C$17:$C$16964,$B$1,'CF-2'!$BC$17:$BC$16964,$C$17,'CF-2'!$D$17:$D$16964,AI$1) -> 0
C18: 他ﾏｼﾝ応援 | E18: =SUMIFS('CF-2'!$BE$17:$BE$16964,'CF-2'!$B$17:$B$16964,$A$1,'CF-2'!$C$17:$C$16964,$B$1,'CF-2'!$BC$17:$BC$16964,$C$18,'CF-2'!$D$17:$D$16964,E$1) -> 0 | F18: =SUMIFS('CF-2'!$BE$17:$BE$16964,'CF-2'!$B$17:$B$16964,$A$1,'CF-2'!$C$17:$C$16964,$B$1,'CF-2'!$BC$17:$BC$16964,$C$18,'CF-2'!$D$17:$D$16964,F$1) -> 0 | G18: =SUMIFS('CF-2'!$BE$17:$BE$16964,'CF-2'!$B$17:$B$16964,$A$1,'CF-2'!$C$17:$C$16964,$B$1,'CF-2'!$BC$17:$BC$16964,$C$18,'CF-2'!$D$17:$D$16964,G$1) -> 0 | H18: =SUMIFS('CF-2'!$BE$17:$BE$16964,'CF-2'!$B$17:$B$16964,$A$1,'CF-2'!$C$17:$C$16964,$B$1,'CF-2'!$BC$17:$BC$16964,$C$18,'CF-2'!$D$17:$D$16964,H$1) -> 0 | I18: =SUMIFS('CF-2'!$BE$17:$BE$16964,'CF-2'!$B$17:$B$16964,$A$1,'CF-2'!$C$17:$C$16964,$B$1,'CF-2'!$BC$17:$BC$16964,$C$18,'CF-2'!$D$17:$D$16964,I$1) -> 0 | J18: =SUMIFS('CF-2'!$BE$17:$BE$16964,'CF-2'!$B$17:$B$16964,$A$1,'CF-2'!$C$17:$C$16964,$B$1,'CF-2'!$BC$17:$BC$16964,$C$18,'CF-2'!$D$17:$D$16964,J$1) -> 0 | K18: =SUMIFS('CF-2'!$BE$17:$BE$16964,'CF-2'!$B$17:$B$16964,$A$1,'CF-2'!$C$17:$C$16964,$B$1,'CF-2'!$BC$17:$BC$16964,$C$18,'CF-2'!$D$17:$D$16964,K$1) -> 0 | L18: =SUMIFS('CF-2'!$BE$17:$BE$16964,'CF-2'!$B$17:$B$16964,$A$1,'CF-2'!$C$17:$C$16964,$B$1,'CF-2'!$BC$17:$BC$16964,$C$18,'CF-2'!$D$17:$D$16964,L$1) -> 0 | M18: =SUMIFS('CF-2'!$BE$17:$BE$16964,'CF-2'!$B$17:$B$16964,$A$1,'CF-2'!$C$17:$C$16964,$B$1,'CF-2'!$BC$17:$BC$16964,$C$18,'CF-2'!$D$17:$D$16964,M$1) -> 0 | N18: =SUMIFS('CF-2'!$BE$17:$BE$16964,'CF-2'!$B$17:$B$16964,$A$1,'CF-2'!$C$17:$C$16964,$B$1,'CF-2'!$BC$17:$BC$16964,$C$18,'CF-2'!$D$17:$D$16964,N$1) -> 0 | O18: =SUMIFS('CF-2'!$BE$17:$BE$16964,'CF-2'!$B$17:$B$16964,$A$1,'CF-2'!$C$17:$C$16964,$B$1,'CF-2'!$BC$17:$BC$16964,$C$18,'CF-2'!$D$17:$D$16964,O$1) -> 0 | P18: =SUMIFS('CF-2'!$BE$17:$BE$16964,'CF-2'!$B$17:$B$16964,$A$1,'CF-2'!$C$17:$C$16964,$B$1,'CF-2'!$BC$17:$BC$16964,$C$18,'CF-2'!$D$17:$D$16964,P$1) -> 0 | Q18: =SUMIFS('CF-2'!$BE$17:$BE$16964,'CF-2'!$B$17:$B$16964,$A$1,'CF-2'!$C$17:$C$16964,$B$1,'CF-2'!$BC$17:$BC$16964,$C$18,'CF-2'!$D$17:$D$16964,Q$1) -> 0 | R18: =SUMIFS('CF-2'!$BE$17:$BE$16964,'CF-2'!$B$17:$B$16964,$A$1,'CF-2'!$C$17:$C$16964,$B$1,'CF-2'!$BC$17:$BC$16964,$C$18,'CF-2'!$D$17:$D$16964,R$1) -> 0 | S18: =SUMIFS('CF-2'!$BE$17:$BE$16964,'CF-2'!$B$17:$B$16964,$A$1,'CF-2'!$C$17:$C$16964,$B$1,'CF-2'!$BC$17:$BC$16964,$C$18,'CF-2'!$D$17:$D$16964,S$1) -> 0 | T18: =SUMIFS('CF-2'!$BE$17:$BE$16964,'CF-2'!$B$17:$B$16964,$A$1,'CF-2'!$C$17:$C$16964,$B$1,'CF-2'!$BC$17:$BC$16964,$C$18,'CF-2'!$D$17:$D$16964,T$1) -> 0 | U18: =SUMIFS('CF-2'!$BE$17:$BE$16964,'CF-2'!$B$17:$B$16964,$A$1,'CF-2'!$C$17:$C$16964,$B$1,'CF-2'!$BC$17:$BC$16964,$C$18,'CF-2'!$D$17:$D$16964,U$1) -> 0 | V18: =SUMIFS('CF-2'!$BE$17:$BE$16964,'CF-2'!$B$17:$B$16964,$A$1,'CF-2'!$C$17:$C$16964,$B$1,'CF-2'!$BC$17:$BC$16964,$C$18,'CF-2'!$D$17:$D$16964,V$1) -> 0 | W18: =SUMIFS('CF-2'!$BE$17:$BE$16964,'CF-2'!$B$17:$B$16964,$A$1,'CF-2'!$C$17:$C$16964,$B$1,'CF-2'!$BC$17:$BC$16964,$C$18,'CF-2'!$D$17:$D$16964,W$1) -> 0 | X18: =SUMIFS('CF-2'!$BE$17:$BE$16964,'CF-2'!$B$17:$B$16964,$A$1,'CF-2'!$C$17:$C$16964,$B$1,'CF-2'!$BC$17:$BC$16964,$C$18,'CF-2'!$D$17:$D$16964,X$1) -> 0 | Y18: =SUMIFS('CF-2'!$BE$17:$BE$16964,'CF-2'!$B$17:$B$16964,$A$1,'CF-2'!$C$17:$C$16964,$B$1,'CF-2'!$BC$17:$BC$16964,$C$18,'CF-2'!$D$17:$D$16964,Y$1) -> 0 | Z18: =SUMIFS('CF-2'!$BE$17:$BE$16964,'CF-2'!$B$17:$B$16964,$A$1,'CF-2'!$C$17:$C$16964,$B$1,'CF-2'!$BC$17:$BC$16964,$C$18,'CF-2'!$D$17:$D$16964,Z$1) -> 0 | AA18: =SUMIFS('CF-2'!$BE$17:$BE$16964,'CF-2'!$B$17:$B$16964,$A$1,'CF-2'!$C$17:$C$16964,$B$1,'CF-2'!$BC$17:$BC$16964,$C$18,'CF-2'!$D$17:$D$16964,AA$1) -> 0 | AB18: =SUMIFS('CF-2'!$BE$17:$BE$16964,'CF-2'!$B$17:$B$16964,$A$1,'CF-2'!$C$17:$C$16964,$B$1,'CF-2'!$BC$17:$BC$16964,$C$18,'CF-2'!$D$17:$D$16964,AB$1) -> 0 | AC18: =SUMIFS('CF-2'!$BE$17:$BE$16964,'CF-2'!$B$17:$B$16964,$A$1,'CF-2'!$C$17:$C$16964,$B$1,'CF-2'!$BC$17:$BC$16964,$C$18,'CF-2'!$D$17:$D$16964,AC$1) -> 0 | AD18: =SUMIFS('CF-2'!$BE$17:$BE$16964,'CF-2'!$B$17:$B$16964,$A$1,'CF-2'!$C$17:$C$16964,$B$1,'CF-2'!$BC$17:$BC$16964,$C$18,'CF-2'!$D$17:$D$16964,AD$1) -> 0 | AE18: =SUMIFS('CF-2'!$BE$17:$BE$16964,'CF-2'!$B$17:$B$16964,$A$1,'CF-2'!$C$17:$C$16964,$B$1,'CF-2'!$BC$17:$BC$16964,$C$18,'CF-2'!$D$17:$D$16964,AE$1) -> 0 | AF18: =SUMIFS('CF-2'!$BE$17:$BE$16964,'CF-2'!$B$17:$B$16964,$A$1,'CF-2'!$C$17:$C$16964,$B$1,'CF-2'!$BC$17:$BC$16964,$C$18,'CF-2'!$D$17:$D$16964,AF$1) -> 0 | AG18: =SUMIFS('CF-2'!$BE$17:$BE$16964,'CF-2'!$B$17:$B$16964,$A$1,'CF-2'!$C$17:$C$16964,$B$1,'CF-2'!$BC$17:$BC$16964,$C$18,'CF-2'!$D$17:$D$16964,AG$1) -> 0 | AH18: =SUMIFS('CF-2'!$BE$17:$BE$16964,'CF-2'!$B$17:$B$16964,$A$1,'CF-2'!$C$17:$C$16964,$B$1,'CF-2'!$BC$17:$BC$16964,$C$18,'CF-2'!$D$17:$D$16964,AH$1) -> 0 | AI18: =SUMIFS('CF-2'!$BE$17:$BE$16964,'CF-2'!$B$17:$B$16964,$A$1,'CF-2'!$C$17:$C$16964,$B$1,'CF-2'!$BC$17:$BC$16964,$C$18,'CF-2'!$D$17:$D$16964,AI$1) -> 0 | AJ18: 0 | AK18: 0
C19: その他. | E19: =SUMIFS('CF-2'!$BE$17:$BE$16964,'CF-2'!$B$17:$B$16964,$A$1,'CF-2'!$C$17:$C$16964,$B$1,'CF-2'!$BC$17:$BC$16964,$C$19,'CF-2'!$D$17:$D$16964,E$1) -> 0 | F19: =SUMIFS('CF-2'!$BE$17:$BE$16964,'CF-2'!$B$17:$B$16964,$A$1,'CF-2'!$C$17:$C$16964,$B$1,'CF-2'!$BC$17:$BC$16964,$C$19,'CF-2'!$D$17:$D$16964,F$1) -> 0 | G19: =SUMIFS('CF-2'!$BE$17:$BE$16964,'CF-2'!$B$17:$B$16964,$A$1,'CF-2'!$C$17:$C$16964,$B$1,'CF-2'!$BC$17:$BC$16964,$C$19,'CF-2'!$D$17:$D$16964,G$1) -> 0 | H19: =SUMIFS('CF-2'!$BE$17:$BE$16964,'CF-2'!$B$17:$B$16964,$A$1,'CF-2'!$C$17:$C$16964,$B$1,'CF-2'!$BC$17:$BC$16964,$C$19,'CF-2'!$D$17:$D$16964,H$1) -> 0 | I19: =SUMIFS('CF-2'!$BE$17:$BE$16964,'CF-2'!$B$17:$B$16964,$A$1,'CF-2'!$C$17:$C$16964,$B$1,'CF-2'!$BC$17:$BC$16964,$C$19,'CF-2'!$D$17:$D$16964,I$1) -> 0 | J19: =SUMIFS('CF-2'!$BE$17:$BE$16964,'CF-2'!$B$17:$B$16964,$A$1,'CF-2'!$C$17:$C$16964,$B$1,'CF-2'!$BC$17:$BC$16964,$C$19,'CF-2'!$D$17:$D$16964,J$1) -> 0 | K19: =SUMIFS('CF-2'!$BE$17:$BE$16964,'CF-2'!$B$17:$B$16964,$A$1,'CF-2'!$C$17:$C$16964,$B$1,'CF-2'!$BC$17:$BC$16964,$C$19,'CF-2'!$D$17:$D$16964,K$1) -> 0 | L19: =SUMIFS('CF-2'!$BE$17:$BE$16964,'CF-2'!$B$17:$B$16964,$A$1,'CF-2'!$C$17:$C$16964,$B$1,'CF-2'!$BC$17:$BC$16964,$C$19,'CF-2'!$D$17:$D$16964,L$1) -> 0 | M19: =SUMIFS('CF-2'!$BE$17:$BE$16964,'CF-2'!$B$17:$B$16964,$A$1,'CF-2'!$C$17:$C$16964,$B$1,'CF-2'!$BC$17:$BC$16964,$C$19,'CF-2'!$D$17:$D$16964,M$1) -> 0 | N19: =SUMIFS('CF-2'!$BE$17:$BE$16964,'CF-2'!$B$17:$B$16964,$A$1,'CF-2'!$C$17:$C$16964,$B$1,'CF-2'!$BC$17:$BC$16964,$C$19,'CF-2'!$D$17:$D$16964,N$1) -> 0 | O19: =SUMIFS('CF-2'!$BE$17:$BE$16964,'CF-2'!$B$17:$B$16964,$A$1,'CF-2'!$C$17:$C$16964,$B$1,'CF-2'!$BC$17:$BC$16964,$C$19,'CF-2'!$D$17:$D$16964,O$1) -> 0 | P19: =SUMIFS('CF-2'!$BE$17:$BE$16964,'CF-2'!$B$17:$B$16964,$A$1,'CF-2'!$C$17:$C$16964,$B$1,'CF-2'!$BC$17:$BC$16964,$C$19,'CF-2'!$D$17:$D$16964,P$1) -> 0 | Q19: =SUMIFS('CF-2'!$BE$17:$BE$16964,'CF-2'!$B$17:$B$16964,$A$1,'CF-2'!$C$17:$C$16964,$B$1,'CF-2'!$BC$17:$BC$16964,$C$19,'CF-2'!$D$17:$D$16964,Q$1) -> 0 | R19: =SUMIFS('CF-2'!$BE$17:$BE$16964,'CF-2'!$B$17:$B$16964,$A$1,'CF-2'!$C$17:$C$16964,$B$1,'CF-2'!$BC$17:$BC$16964,$C$19,'CF-2'!$D$17:$D$16964,R$1) -> 0 | S19: =SUMIFS('CF-2'!$BE$17:$BE$16964,'CF-2'!$B$17:$B$16964,$A$1,'CF-2'!$C$17:$C$16964,$B$1,'CF-2'!$BC$17:$BC$16964,$C$19,'CF-2'!$D$17:$D$16964,S$1) -> 0 | T19: =SUMIFS('CF-2'!$BE$17:$BE$16964,'CF-2'!$B$17:$B$16964,$A$1,'CF-2'!$C$17:$C$16964,$B$1,'CF-2'!$BC$17:$BC$16964,$C$19,'CF-2'!$D$17:$D$16964,T$1) -> 0 | U19: =SUMIFS('CF-2'!$BE$17:$BE$16964,'CF-2'!$B$17:$B$16964,$A$1,'CF-2'!$C$17:$C$16964,$B$1,'CF-2'!$BC$17:$BC$16964,$C$19,'CF-2'!$D$17:$D$16964,U$1) -> 0 | V19: =SUMIFS('CF-2'!$BE$17:$BE$16964,'CF-2'!$B$17:$B$16964,$A$1,'CF-2'!$C$17:$C$16964,$B$1,'CF-2'!$BC$17:$BC$16964,$C$19,'CF-2'!$D$17:$D$16964,V$1) -> 0 | W19: =SUMIFS('CF-2'!$BE$17:$BE$16964,'CF-2'!$B$17:$B$16964,$A$1,'CF-2'!$C$17:$C$16964,$B$1,'CF-2'!$BC$17:$BC$16964,$C$19,'CF-2'!$D$17:$D$16964,W$1) -> 0 | X19: =SUMIFS('CF-2'!$BE$17:$BE$16964,'CF-2'!$B$17:$B$16964,$A$1,'CF-2'!$C$17:$C$16964,$B$1,'CF-2'!$BC$17:$BC$16964,$C$19,'CF-2'!$D$17:$D$16964,X$1) -> 0 | Y19: =SUMIFS('CF-2'!$BE$17:$BE$16964,'CF-2'!$B$17:$B$16964,$A$1,'CF-2'!$C$17:$C$16964,$B$1,'CF-2'!$BC$17:$BC$16964,$C$19,'CF-2'!$D$17:$D$16964,Y$1) -> 0 | Z19: =SUMIFS('CF-2'!$BE$17:$BE$16964,'CF-2'!$B$17:$B$16964,$A$1,'CF-2'!$C$17:$C$16964,$B$1,'CF-2'!$BC$17:$BC$16964,$C$19,'CF-2'!$D$17:$D$16964,Z$1) -> 0 | AA19: =SUMIFS('CF-2'!$BE$17:$BE$16964,'CF-2'!$B$17:$B$16964,$A$1,'CF-2'!$C$17:$C$16964,$B$1,'CF-2'!$BC$17:$BC$16964,$C$19,'CF-2'!$D$17:$D$16964,AA$1) -> 0 | AB19: =SUMIFS('CF-2'!$BE$17:$BE$16964,'CF-2'!$B$17:$B$16964,$A$1,'CF-2'!$C$17:$C$16964,$B$1,'CF-2'!$BC$17:$BC$16964,$C$19,'CF-2'!$D$17:$D$16964,AB$1) -> 0 | AC19: =SUMIFS('CF-2'!$BE$17:$BE$16964,'CF-2'!$B$17:$B$16964,$A$1,'CF-2'!$C$17:$C$16964,$B$1,'CF-2'!$BC$17:$BC$16964,$C$19,'CF-2'!$D$17:$D$16964,AC$1) -> 0 | AD19: =SUMIFS('CF-2'!$BE$17:$BE$16964,'CF-2'!$B$17:$B$16964,$A$1,'CF-2'!$C$17:$C$16964,$B$1,'CF-2'!$BC$17:$BC$16964,$C$19,'CF-2'!$D$17:$D$16964,AD$1) -> 0 | AE19: =SUMIFS('CF-2'!$BE$17:$BE$16964,'CF-2'!$B$17:$B$16964,$A$1,'CF-2'!$C$17:$C$16964,$B$1,'CF-2'!$BC$17:$BC$16964,$C$19,'CF-2'!$D$17:$D$16964,AE$1) -> 0 | AF19: =SUMIFS('CF-2'!$BE$17:$BE$16964,'CF-2'!$B$17:$B$16964,$A$1,'CF-2'!$C$17:$C$16964,$B$1,'CF-2'!$BC$17:$BC$16964,$C$19,'CF-2'!$D$17:$D$16964,AF$1) -> 0 | AG19: =SUMIFS('CF-2'!$BE$17:$BE$16964,'CF-2'!$B$17:$B$16964,$A$1,'CF-2'!$C$17:$C$16964,$B$1,'CF-2'!$BC$17:$BC$16964,$C$19,'CF-2'!$D$17:$D$16964,AG$1) -> 0 | AH19: =SUMIFS('CF-2'!$BE$17:$BE$16964,'CF-2'!$B$17:$B$16964,$A$1,'CF-2'!$C$17:$C$16964,$B$1,'CF-2'!$BC$17:$BC$16964,$C$19,'CF-2'!$D$17:$D$16964,AH$1) -> 0 | AI19: =SUMIFS('CF-2'!$BE$17:$BE$16964,'CF-2'!$B$17:$B$16964,$A$1,'CF-2'!$C$17:$C$16964,$B$1,'CF-2'!$BC$17:$BC$16964,$C$19,'CF-2'!$D$17:$D$16964,AI$1) -> 0 | AJ19: 0 | AK19: 0
C20: 公休日 | E20: =SUMIFS('CF-2'!$BE$17:$BE$16964,'CF-2'!$B$17:$B$16964,$A$1,'CF-2'!$C$17:$C$16964,$B$1,'CF-2'!$BC$17:$BC$16964,$C$20,'CF-2'!$D$17:$D$16964,E$1) -> 1 | F20: =SUMIFS('CF-2'!$BE$17:$BE$16964,'CF-2'!$B$17:$B$16964,$A$1,'CF-2'!$C$17:$C$16964,$B$1,'CF-2'!$BC$17:$BC$16964,$C$20,'CF-2'!$D$17:$D$16964,F$1) -> 0 | G20: =SUMIFS('CF-2'!$BE$17:$BE$16964,'CF-2'!$B$17:$B$16964,$A$1,'CF-2'!$C$17:$C$16964,$B$1,'CF-2'!$BC$17:$BC$16964,$C$20,'CF-2'!$D$17:$D$16964,G$1) -> 0 | H20: =SUMIFS('CF-2'!$BE$17:$BE$16964,'CF-2'!$B$17:$B$16964,$A$1,'CF-2'!$C$17:$C$16964,$B$1,'CF-2'!$BC$17:$BC$16964,$C$20,'CF-2'!$D$17:$D$16964,H$1) -> 0 | I20: =SUMIFS('CF-2'!$BE$17:$BE$16964,'CF-2'!$B$17:$B$16964,$A$1,'CF-2'!$C$17:$C$16964,$B$1,'CF-2'!$BC$17:$BC$16964,$C$20,'CF-2'!$D$17:$D$16964,I$1) -> 0 | J20: =SUMIFS('CF-2'!$BE$17:$BE$16964,'CF-2'!$B$17:$B$16964,$A$1,'CF-2'!$C$17:$C$16964,$B$1,'CF-2'!$BC$17:$BC$16964,$C$20,'CF-2'!$D$17:$D$16964,J$1) -> 0 | K20: =SUMIFS('CF-2'!$BE$17:$BE$16964,'CF-2'!$B$17:$B$16964,$A$1,'CF-2'!$C$17:$C$16964,$B$1,'CF-2'!$BC$17:$BC$16964,$C$20,'CF-2'!$D$17:$D$16964,K$1) -> 0 | L20: =SUMIFS('CF-2'!$BE$17:$BE$16964,'CF-2'!$B$17:$B$16964,$A$1,'CF-2'!$C$17:$C$16964,$B$1,'CF-2'!$BC$17:$BC$16964,$C$20,'CF-2'!$D$17:$D$16964,L$1) -> 1 | M20: =SUMIFS('CF-2'!$BE$17:$BE$16964,'CF-2'!$B$17:$B$16964,$A$1,'CF-2'!$C$17:$C$16964,$B$1,'CF-2'!$BC$17:$BC$16964,$C$20,'CF-2'!$D$17:$D$16964,M$1) -> 0 | N20: =SUMIFS('CF-2'!$BE$17:$BE$16964,'CF-2'!$B$17:$B$16964,$A$1,'CF-2'!$C$17:$C$16964,$B$1,'CF-2'!$BC$17:$BC$16964,$C$20,'CF-2'!$D$17:$D$16964,N$1) -> 0 | O20: =SUMIFS('CF-2'!$BE$17:$BE$16964,'CF-2'!$B$17:$B$16964,$A$1,'CF-2'!$C$17:$C$16964,$B$1,'CF-2'!$BC$17:$BC$16964,$C$20,'CF-2'!$D$17:$D$16964,O$1) -> 0 | P20: =SUMIFS('CF-2'!$BE$17:$BE$16964,'CF-2'!$B$17:$B$16964,$A$1,'CF-2'!$C$17:$C$16964,$B$1,'CF-2'!$BC$17:$BC$16964,$C$20,'CF-2'!$D$17:$D$16964,P$1) -> 0 | Q20: =SUMIFS('CF-2'!$BE$17:$BE$16964,'CF-2'!$B$17:$B$16964,$A$1,'CF-2'!$C$17:$C$16964,$B$1,'CF-2'!$BC$17:$BC$16964,$C$20,'CF-2'!$D$17:$D$16964,Q$1) -> 0 | R20: =SUMIFS('CF-2'!$BE$17:$BE$16964,'CF-2'!$B$17:$B$16964,$A$1,'CF-2'!$C$17:$C$16964,$B$1,'CF-2'!$BC$17:$BC$16964,$C$20,'CF-2'!$D$17:$D$16964,R$1) -> 0.96875 | S20: =SUMIFS('CF-2'!$BE$17:$BE$16964,'CF-2'!$B$17:$B$16964,$A$1,'CF-2'!$C$17:$C$16964,$B$1,'CF-2'!$BC$17:$BC$16964,$C$20,'CF-2'!$D$17:$D$16964,S$1) -> 1 | T20: =SUMIFS('CF-2'!$BE$17:$BE$16964,'CF-2'!$B$17:$B$16964,$A$1,'CF-2'!$C$17:$C$16964,$B$1,'CF-2'!$BC$17:$BC$16964,$C$20,'CF-2'!$D$17:$D$16964,T$1) -> 0 | U20: =SUMIFS('CF-2'!$BE$17:$BE$16964,'CF-2'!$B$17:$B$16964,$A$1,'CF-2'!$C$17:$C$16964,$B$1,'CF-2'!$BC$17:$BC$16964,$C$20,'CF-2'!$D$17:$D$16964,U$1) -> 0 | V20: =SUMIFS('CF-2'!$BE$17:$BE$16964,'CF-2'!$B$17:$B$16964,$A$1,'CF-2'!$C$17:$C$16964,$B$1,'CF-2'!$BC$17:$BC$16964,$C$20,'CF-2'!$D$17:$D$16964,V$1) -> 0 | W20: =SUMIFS('CF-2'!$BE$17:$BE$16964,'CF-2'!$B$17:$B$16964,$A$1,'CF-2'!$C$17:$C$16964,$B$1,'CF-2'!$BC$17:$BC$16964,$C$20,'CF-2'!$D$17:$D$16964,W$1) -> 0 | X20: =SUMIFS('CF-2'!$BE$17:$BE$16964,'CF-2'!$B$17:$B$16964,$A$1,'CF-2'!$C$17:$C$16964,$B$1,'CF-2'!$BC$17:$BC$16964,$C$20,'CF-2'!$D$17:$D$16964,X$1) -> 0 | Y20: =SUMIFS('CF-2'!$BE$17:$BE$16964,'CF-2'!$B$17:$B$16964,$A$1,'CF-2'!$C$17:$C$16964,$B$1,'CF-2'!$BC$17:$BC$16964,$C$20,'CF-2'!$D$17:$D$16964,Y$1) -> 0 | Z20: =SUMIFS('CF-2'!$BE$17:$BE$16964,'CF-2'!$B$17:$B$16964,$A$1,'CF-2'!$C$17:$C$16964,$B$1,'CF-2'!$BC$17:$BC$16964,$C$20,'CF-2'!$D$17:$D$16964,Z$1) -> 0 | AA20: =SUMIFS('CF-2'!$BE$17:$BE$16964,'CF-2'!$B$17:$B$16964,$A$1,'CF-2'!$C$17:$C$16964,$B$1,'CF-2'!$BC$17:$BC$16964,$C$20,'CF-2'!$D$17:$D$16964,AA$1) -> 0 | AB20: =SUMIFS('CF-2'!$BE$17:$BE$16964,'CF-2'!$B$17:$B$16964,$A$1,'CF-2'!$C$17:$C$16964,$B$1,'CF-2'!$BC$17:$BC$16964,$C$20,'CF-2'!$D$17:$D$16964,AB$1) -> 0 | AC20: =SUMIFS('CF-2'!$BE$17:$BE$16964,'CF-2'!$B$17:$B$16964,$A$1,'CF-2'!$C$17:$C$16964,$B$1,'CF-2'!$BC$17:$BC$16964,$C$20,'CF-2'!$D$17:$D$16964,AC$1) -> 0 | AD20: =SUMIFS('CF-2'!$BE$17:$BE$16964,'CF-2'!$B$17:$B$16964,$A$1,'CF-2'!$C$17:$C$16964,$B$1,'CF-2'!$BC$17:$BC$16964,$C$20,'CF-2'!$D$17:$D$16964,AD$1) -> 0 | AE20: =SUMIFS('CF-2'!$BE$17:$BE$16964,'CF-2'!$B$17:$B$16964,$A$1,'CF-2'!$C$17:$C$16964,$B$1,'CF-2'!$BC$17:$BC$16964,$C$20,'CF-2'!$D$17:$D$16964,AE$1) -> 0 | AF20: =SUMIFS('CF-2'!$BE$17:$BE$16964,'CF-2'!$B$17:$B$16964,$A$1,'CF-2'!$C$17:$C$16964,$B$1,'CF-2'!$BC$17:$BC$16964,$C$20,'CF-2'!$D$17:$D$16964,AF$1) -> 0 | AG20: =SUMIFS('CF-2'!$BE$17:$BE$16964,'CF-2'!$B$17:$B$16964,$A$1,'CF-2'!$C$17:$C$16964,$B$1,'CF-2'!$BC$17:$BC$16964,$C$20,'CF-2'!$D$17:$D$16964,AG$1) -> 0 | AH20: =SUMIFS('CF-2'!$BE$17:$BE$16964,'CF-2'!$B$17:$B$16964,$A$1,'CF-2'!$C$17:$C$16964,$B$1,'CF-2'!$BC$17:$BC$16964,$C$20,'CF-2'!$D$17:$D$16964,AH$1) -> 0 | AI20: =SUMIFS('CF-2'!$BE$17:$BE$16964,'CF-2'!$B$17:$B$16964,$A$1,'CF-2'!$C$17:$C$16964,$B$1,'CF-2'!$BC$17:$BC$16964,$C$20,'CF-2'!$D$17:$D$16964,AI$1) -> 0 | AJ20: 3.96875 | AK20: 3.96875
C21: 加工時間 | E21: =SUM(E2:E5) -> 0 | F21: =SUM(F2:F5) -> 0.6180555556 | G21: 0.5520833333 | H21: 0.3819444444 | I21: 0.6111111111 | J21: 0.9201388889 | K21: 0.6770833333 | L21: 0 | M21: 0.2986111111 | N21: 0.5520833333 | O21: 0.9097222222 | P21: 0.9375 | Q21: 0.8159722222 | R21: 0 | S21: 0 | T21: 0.8020833333 | U21: 0.6006944444 | V21: 0.2013888889 | W21: 0 | X21: 0 | Y21: 0 | Z21: 0 | AA21: 0 | AB21: 0 | AC21: 0 | AD21: 0 | AE21: 0 | AF21: 0 | AG21: 0 | AH21: 0 | AI21: 0
C22: 停機時間 | E22: =SUM(E6:E16) -> 0 | F22: =SUM(F6:F16) -> 0.3819444444 | G22: 0.4479166667 | H22: 0.6180555556 | I22: 0.3888888889 | J22: 0.07986111111 | K22: 0.3229166667 | L22: 0 | M22: 0.7013888889 | N22: 0.1597222222 | O22: 0.3784722222 | P22: 0.0625 | Q22: 0.1840277778 | R22: 0.03125 | S22: 0 | T22: 0.1979166667 | U22: 0.3993055556 | V22: 0.8333333333 | W22: 0 | X22: 0 | Y22: 0 | Z22: 0 | AA22: 0 | AB22: 0 | AC22: 0 | AD22: 0 | AE22: 0 | AF22: 0 | AG22: 0 | AH22: 0 | AI22: 0
C23: 稼働率 | E23: =IFERROR(E21/E24,"") ->  | F23: =IFERROR(F21/F24,"") -> 0.6180555556 | G23: 0.5520833333 | H23: 0.3819444444 | I23: 0.6111111111 | J23: 0.9201388889 | K23: 0.6770833333 | M23: 0.2986111111 | N23: 0.7756097561 | O23: 0.7061994609 | P23: 0.9375 | Q23: 0.8159722222 | R23: 0 | T23: 0.8020833333 | U23: 0.6006944444 | V23: 0.1946308725 | X23: =IFERROR(X21/X24,"") -> 
C24: 公休日以外 | E24: =SUM(E2:E16) -> 0 | F24: =SUM(F2:F16) -> 1 | G24: 1 | H24: 1 | I24: 1 | J24: 1 | K24: 1 | L24: 0 | M24: 1 | N24: 0.7118055556 | O24: 1.288194444 | P24: 1 | Q24: 1 | R24: 0.03125 | S24: 0 | T24: 1 | U24: 1 | V24: 1.034722222 | W24: 0 | X24: 0 | Y24: 0 | Z24: 0 | AA24: 0 | AB24: 0 | AC24: 0 | AD24: 0 | AE24: 0 | AF24: 0 | AG24: 0 | AH24: 0 | AI24: 0
C25: 日トータル | E25: =SUM(E2:E16,E20) -> 1 | F25: =SUM(F2:F16,F20) -> 1 | G25: 1 | H25: 1 | I25: 1 | J25: 1 | K25: 1 | L25: 1 | M25: 1 | N25: 0.7118055556 | O25: 1.288194444 | P25: 1 | Q25: 1 | R25: 1 | S25: 1 | T25: 1 | U25: 1 | V25: 1.034722222 | W25: 0 | X25: 0 | Y25: 0 | Z25: 0 | AA25: 0 | AB25: 0 | AC25: 0 | AD25: 0 | AE25: 0 | AF25: 0 | AG25: 0 | AH25: 0 | AI25: 0
E26: =E25 -> 1 | F26: =E25+F25 -> 2 | G26: =F26+G25 -> 3 | H26: =G26+H25 -> 4 | I26: =H26+I25 -> 5 | J26: =I26+J25 -> 6 | K26: =J26+K25 -> 7 | L26: 8 | M26: 9 | N26: 9.711805556 | O26: =N26+O25 -> 11 | P26: 12 | Q26: 13 | R26: 14 | S26: 15 | T26: 16 | U26: 17 | V26: 18.03472222 | W26: 18.03472222 | X26: 18.03472222 | Y26: 18.03472222 | Z26: 18.03472222 | AA26: 18.03472222 | AB26: 18.03472222 | AC26: 18.03472222 | AD26: =AC26+AD25 -> 18.03472222 | AE26: 18.03472222 | AF26: 18.03472222 | AG26: 18.03472222 | AH26: =AG26+AH25 -> 18.03472222 | AI26: =AH26+AI25 -> 18.03472222
E27: 1 | F27: =E27+24/24 -> 2 | G27: =F27+24/24 -> 3 | H27: =G27+24/24 -> 4 | I27: =H27+24/24 -> 5 | J27: =I27+24/24 -> 6 | K27: 7 | L27: 8 | M27: 9 | N27: 10 | O27: =N27+24/24 -> 11 | P27: 12 | Q27: 13 | R27: 14 | S27: 15 | T27: 16 | U27: 17 | V27: 18 | W27: 19 | X27: 20 | Y27: 21 | Z27: 22 | AA27: 23 | AB27: 24 | AC27: 25 | AD27: =AC27+24/24 -> 26 | AE27: 27 | AF27: 28 | AG27: 29 | AH27: 30 | AI27: =AH27+24/24 -> 31
D28: 差異時間 | E28: =TEXT(ABS(E27-E26),"H:MM") -> 0:00 | F28: =TEXT(ABS(F27-F26),"H:MM") -> 0:00 | G28: 0:00 | H28: 0:00 | I28: 0:00 | J28: 0:00 | K28: 0:00 | L28: 0:00 | M28: =TEXT(ABS(M27-M26),"H:MM") -> 0:00 | N28: =TEXT(ABS(N27-N26),"H:MM") -> 6:55 | O28: =TEXT(ABS(O27-O26),"H:MM") -> 0:00 | P28: =TEXT(ABS(P27-P26),"H:MM") -> 0:00 | Q28: 0:00 | R28: 0:00 | S28: 0:00 | T28: 0:00 | U28: =TEXT(ABS(U27-U26),"H:MM") -> 0:00 | V28: 0:50 | W28: 23:10 | X28: 23:10 | Y28: 23:10 | Z28: 23:10 | AA28: 23:10 | AB28: 23:10 | AC28: 23:10 | AD28: =TEXT(ABS(AD27-AD26),"H:MM") -> 23:10 | AE28: 23:10 | AF28: 23:10 | AG28: 23:10 | AH28: 23:10 | AI28: 23:10
I31: 立下げ | J31: 立上げ | K31: 防塵掃除
I32: 3.5 | J32: 3 | K32: 12
K33: 盆、年始

Sheet 防毒マスク (hidden)
B2: ＣＦ－２ 防毒マスク吸収缶使用交換記録表
B3: １．吸収缶 3001J-55は、累計時間１２０分到達後直ちに新品に交換する。
B4: ２．臭気など異常を感じた場合は、直ちに新品に交換する。
B5: ３．吸収缶を交換した場合は、交換日／使用時間（分）を各自で記録表に記入する
B6: ４．その他 防毒マスクの破損等、異常を感じた場合は日勤スタッフまで連絡する。
B8: 氏 名 | D8: 松川 和樹 | H8: 塩田 真也 | L8: 益子 大成 | P8: 小林 綾太 | T8: はげべ 誠 | X8: 小林 剛久 | AB8: 小岩瀬良哉 | AF8: 渋谷 隼人 | AJ8: 真壁 俊一郎 | AN8: 大河原 巌 | AR8: 室井 愛翔
B9: 交換時間 | D9: 使用時間分（min) | H9: 使用時間分（min) | L9: 使用時間分（min) | P9: 使用時間分（min) | T9: 使用時間分（min) | X9: 使用時間分（min) | AB9: 使用時間分（min) | AF9: 使用時間分（min) | AJ9: 使用時間分（min) | AN9: 使用時間分（min) | AR9: 使用時間分（min)
D10: 30 | E10: 60 | F10: 90 | G10: 120 | H10: 30 | I10: 60 | J10: 90 | K10: 120 | L10: 30 | M10: 60 | N10: 90 | O10: 120 | P10: 30 | Q10: 60 | R10: 90 | S10: 120 | T10: 30 | U10: 60 | V10: 90 | W10: 120 | X10: 30 | Y10: 60 | Z10: 90 | AA10: 120 | AB10: 30 | AC10: 60 | AD10: 90 | AE10: 120 | AF10: 30 | AG10: 60 | AH10: 90 | AI10: 120 | AJ10: 30 | AK10: 60 | AL10: 90 | AM10: 120 | AN10: 30 | AO10: 60 | AP10: 90 | AQ10: 120 | AR10: 30 | AS10: 60 | AT10: 90 | AU10: 120
D11: 松川 和樹 | H11: 塩田 真也 | L11: 益子 大成 | P11: 相馬 太尊 | T11: 長谷部 誠 | X11: 小林 剛久 | AB11: 小林 綾太 | AF11: 渋谷 隼人 | AJ11: 真壁 俊一郎 | AN11: 岩瀬 良太 | AR11: 大河原 巌
D12: 使用時間分（min) | H12: 使用時間分（min) | L12: 使用時間分（min) | P12: 使用時間分（min) | T12: 使用時間分（min) | X12: 使用時間分（min) | AB12: 使用時間分（min) | AF12: 使用時間分（min) | AJ12: 使用時間分（min) | AN12: 使用時間分（min) | AR12: 使用時間分（min)
D13: 30 | E13: 60 | F13: 90 | G13: 120 | H13: 30 | I13: 60 | J13: 90 | K13: 120 | L13: 30 | M13: 60 | N13: 90 | O13: 120 | P13: 30 | Q13: 60 | R13: 90 | S13: 120 | T13: 30 | U13: 60 | V13: 90 | W13: 120 | X13: 30 | Y13: 60 | Z13: 90 | AA13: 120 | AB13: 30 | AC13: 60 | AD13: 90 | AE13: 120 | AF13: 30 | AG13: 60 | AH13: 90 | AI13: 120 | AJ13: 30 | AK13: 60 | AL13: 90 | AM13: 120 | AN13: 30 | AO13: 60 | AP13: 90 | AQ13: 120 | AR13: 30 | AS13: 60 | AT13: 90 | AU13: 120
B14: 2023年 | C14: 2023-01-01
B15: 2023年 | C15: 2023-01-02
B16: 2023年 | C16: 2023-01-03
B17: 2023年 | C17: 2023-01-04
B18: 2023年 | C18: 2023-01-05 | J18: ○ | M18: ○ | R18: ○ | U18: ○ | Y18: ○ | AC18: ○ | AG18: ○ | AK18: ○ | AP18: ○
B19: 2023年 | C19: 2023-01-06 | H19: ○ | L19: ○ | P19: ○ | U19: ○ | Y19: ○ | AB19: ○ | AF19: ○ | AK19: ○ | AN19: ○
B20: 2023年 | C20: 2023-01-07 | J20: ○ | M20: ○ | R20: ○ | U20: ○ | Y20: ○ | AC20: ○ | AG20: ○
B21: 2023年 | C21: 2023-01-08
B22: 2023年 | C22: 2023-01-09
B23: 2023年 | C23: 2023-01-10 | H23: ○ | L23: ○ | P23: ○ | Y23: ○ | AK23: ○ | AO23: ○ | AS23: ○
B24: 2023年 | C24: 2023-01-11 | I24: ○ | M24: ○ | Q24: ○ | X24: ○ | AJ24: ○ | AN24: ○ | AR24: ○
B25: 2023年 | C25: 2023-01-12 | H25: ○ | L25: ○ | P25: ○ | U25: ○ | Y25: ○ | AJ25: ○ | AN25: ○ | AR25: ○
B26: 2023年 | C26: 2023-01-13 | K26: ○ | O26: ○ | S26: ○ | T26: ○ | X26: ○ | AN26: ○ | AR26: ○
B27: 2023年 | C27: 2023-01-14 | J27: ○ | N27: ○ | R27: ○ | T27: ○ | X27: ○ | AN27: ○ | AR27: ○
B28: 2023年 | C28: 2023-01-15
B29: 2023年 | C29: 2023-01-16 | H29: ○ | L29: ○ | P29: ○ | T29: ○ | X29: ○ | AJ29: ○ | AO29: ○ | AS29: ○
B30: 2023年 | C30: 2023-01-17 | H30: ○ | L30: ○ | P30: ○ | T30: ○ | X30: ○ | AJ30: ○ | AN30: ○ | AR30: ○
B31: 2023年 | C31: 2023-01-18 | H31: ○ | L31: ○ | P31: ○ | T31: ○ | X31: ○ | AJ31: ○ | AN31: ○ | AR31: ○
B32: 2023年 | C32: 2023-01-19 | K32: ○ | O32: ○ | S32: ○ | T32: ○ | X32: ○ | AJ32: ○ | AN32: ○ | AR32: ○
B33: 2023年 | C33: 2023-01-20 | U33: ○ | Y33: ○ | AJ33: ○ | AN33: ○ | AR33: ○
B34: 2023年 | C34: 2023-01-21
B35: 2023年 | C35: 2023-01-22
B36: 2023年 | C36: 2023-01-23 | H36: ○ | L36: ○ | P36: ○ | T36: ○ | X36: ○ | AJ36: ○ | AN36: ○ | AR36: ○
B37: 2023年 | C37: 2023-01-24 | H37: ○ | L37: ○ | P37: ○ | T37: ○ | X37: ○ | AJ37: ○ | AN37: ○ | AR37: ○
B38: 2023年 | C38: 2023-01-25 | H38: ○ | L38: ○ | P38: ○ | T38: ○ | X38: ○ | AK38: ○ | AN38: ○ | AR38: ○
B39: 2023年 | C39: 2023-01-26 | H39: ○ | L39: ○ | P39: ○ | U39: ○ | Y39: ○ | AK39: ○ | AN39: ○ | AR39: ○
B40: 2023年 | C40: 2023-01-27 | J40: ○ | N40: ○ | R40: ○ | AJ40: ○ | AO40: ○ | AS40: ○
B41: 2023年 | C41: 2023-01-28 | AR41: ○
B42: 2023年 | C42: 2023-01-29
B43: 2023年 | C43: 2023-01-30 | K43: ○ | O43: ○ | S43: ○ | U43: ○ | Y43: ○ | AK43: ○ | AN43: ○ | AR43: ○
B44: 2023年 | C44: 2023-01-31 | T44: ○ | X44: ○ | AJ44: ○ | AN44: ○ | AR44: ○
B45: 2023年 | C45: 2023-02-01 | H45: ○ | L45: ○ | P45: ○ | AN45: ○ | AR45: ○
B46: 2023年 | C46: 2023-02-02 | H46: ○ | L46: ○ | P46: ○ | U46: ○ | Y46: ○ | AK46: ○ | AN46: ○ | AR46: ○
B47: 2023年 | C47: 2023-02-03 | H47: ○ | L47: ○ | P47: ○ | U47: ○ | Y47: ○ | AK47: ○ | AN47: ○ | AR47: ○
B48: 2023年 | C48: 2023-02-04
B49: 2023年 | C49: 2023-02-05
B50: 2023年 | C50: 2023-02-06 | H50: ○ | L50: ○ | P50: ○ | U50: ○ | Y50: ○ | AN50: ○ | AR50: ○
B51: 2023年 | C51: 2023-02-07 | I51: ○ | N51: ○ | R51: ○ | U51: ○ | Y51: ○ | AN51: ○ | AR51: ○
B52: 2023年 | C52: 2023-02-08 | H52: ○ | L52: ○ | P52: ○ | U52: ○ | Y52: ○ | AN52: ○ | AR52: ○
B53: 2023年 | C53: 2023-02-09 | H53: ○ | L53: ○ | V53: ○ | Z53: ○ | AJ53: ○ | AN53: ○ | AR53: ○
B54: 2023年 | C54: 2023-02-10 | K54: ○ | O54: ○ | U54: ○ | Y54: ○ | AJ54: ○ | AN54: ○ | AR54: ○
B55: 2023年 | C55: 2023-02-11
B56: 2023年 | C56: 2023-02-12
B57: 2023年 | C57: 2023-02-13 | H57: ○ | L57: ○ | P57: ○ | T57: ○ | X57: ○ | AJ57: ○ | AN57: ○ | AR57: ○
B58: 2023年 | C58: 2023-02-14 | H58: ○ | L58: ○ | P58: ○ | T58: ○ | X58: ○ | AJ58: ○ | AO58: ○ | AS58: ○
B59: 2023年 | C59: 2023-02-15 | H59: ○ | L59: ○ | P59: ○ | T59: ○ | X59: ○ | AJ59: ○ | AN59: ○ | AR59: ○
B60: 2023年 | C60: 2023-02-16 | H60: ○ | L60: ○ | P60: ○ | T60: ○ | X60: ○ | AJ60: ○ | AN60: ○ | AR60: ○
B61: 2023年 | C61: 2023-02-17 | H61: ○ | L61: ○ | P61: ○ | T61: ○ | X61: ○ | AJ61: ○ | AN61: ○ | AR61: ○
B62: 2023年 | C62: 2023-02-18
B63: 2023年 | C63: 2023-02-19
B64: 2023年 | C64: 2023-02-20 | H64: ○ | L64: ○ | P64: ○ | T64: ○ | X64: ○ | AJ64: ○ | AN64: ○ | AR64: ○
B65: 2023年 | C65: 2023-02-21 | J65: ○ | N65: ○ | R65: ○ | T65: ○ | X65: ○ | AJ65: ○ | AN65: ○ | AR65: ○
B66: 2023年 | C66: 2023-02-22 | H66: ○ | L66: ○ | P66: ○ | T66: ○ | X66: ○ | AJ66: ○
B67: 2023年 | C67: 2023-02-23
B68: 2023年 | C68: 2023-02-24
B69: 2023年 | C69: 2023-02-25
B70: 2023年 | C70: 2023-02-26
B71: 2023年 | C71: 2023-02-27 | H71: ○ | L71: ○ | P71: ○ | T71: ○ | X71: ○ | AJ71: ○ | AN71: ○ | AR71: ○
B72: 2023年 | C72: 2023-02-28 | H72: ○ | L72: ○ | P72: ○ | T72: ○ | X72: ○ | AJ72: ○ | AN72: ○ | AR72: ○
B73: 2023年 | C73: 2023-03-01 | U73: ○ | Y73: ○ | AJ73: ○ | AN73: ○ | AR73: ○
B74: 2023年 | C74: 2023-03-02 | T74: ○ | X74: ○ | AJ74: ○ | AN74: ○ | AR74: ○
B75: 2023年 | C75: 2023-03-03 | U75: ○ | Y75: ○ | AJ75: ○ | AN75: ○ | AR75: ○
B76: 2023年 | C76: 2023-03-04
B77: 2023年 | C77: 2023-03-05
B78: 2023年 | C78: 2023-03-06 | K78: ○ | O78: ○ | S78: ○ | U78: ○ | Y78: ○ | AK78: ○ | AN78: ○ | AR78: ○
B79: 2023年 | C79: 2023-03-07 | H79: ○ | L79: ○ | P79: ○ | U79: ○ | Y79: ○ | AK79: ○ | AN79: ○ | AR79: ○
B80: 2023年 | C80: 2023-03-08 | H80: ○ | L80: ○ | P80: ○ | U80: ○ | Y80: ○ | AK80: ○ | AO80: ○ | AS80: ○
B81: 2023年 | C81: 2023-03-09 | K81: ○ | O81: ○ | S81: ○ | U81: ○ | Y81: ○ | AK81: ○ | AO81: ○ | AS81: ○
B82: 2023年 | C82: 2023-03-10 | I82: ○ | M82: ○ | Q82: ○ | U82: ○ | Y82: ○ | AK82: ○ | AN82: ○ | AR82: ○
B83: 2023年 | C83: 2023-03-11 | H83: ○ | L83: ○ | P83: ○ | U83: ○ | Y83: ○ | AN83: ○ | AR83: ○
B84: 2023年 | C84: 2023-03-12
B85: 2023年 | C85: 2023-03-13 | K85: ○ | O85: ○ | S85: ○ | V85: ○ | Z85: ○ | AJ85: ○
B86: 2023年 | C86: 2023-03-14 | I86: ○ | M86: ○ | Q86: ○ | U86: ○ | Y86: ○ | AJ86: ○ | AN86: ○ | AR86: ○
B87: 2023年 | C87: 2023-03-15 | I87: ○ | M87: ○ | Q87: ○ | V87: ○ | Z87: ○ | AJ87: ○ | AP87: ○ | AT87: ○
B88: 2023年 | C88: 2023-03-16 | H88: ○ | L88: ○ | P88: ○ | U88: ○ | Y88: ○ | AK88: ○ | AN88: ○ | AR88: ○
B89: 2023年 | C89: 2023-03-17 | I89: ○ | M89: ○ | Q89: ○ | T89: ○ | AJ89: ○ | AN89: ○ | AR89: ○
B90: 2023年 | C90: 2023-03-18
B91: 2023年 | C91: 2023-03-19
B92: 2023年 | C92: 2023-03-20 | H92: ○ | L92: ○ | P92: ○ | T92: ○ | X92: ○ | AJ92: ○ | AN92: ○ | AR92: ○
B93: 2023年 | C93: 2023-03-21 | H93: ○ | L93: ○ | P93: ○ | U93: ○ | Y93: ○ | AK93: ○ | AO93: ○ | AS93: ○
B94: 2023年 | C94: 2023-03-22 | H94: ○ | L94: ○ | P94: ○ | U94: ○ | Y94: ○ | AK94: ○ | AN94: ○ | AR94: ○
B95: 2023年 | C95: 2023-03-23 | H95: ○ | L95: ○ | P95: ○ | T95: ○ | X95: ○ | AO95: ○ | AS95: ○
B96: 2023年 | C96: 2023-03-24 | H96: ○ | L96: ○ | P96: ○ | T96: ○ | X96: ○ | AJ96: ○ | AN96: ○ | AR96: ○
B97: 2023年 | C97: 2023-03-25
B98: 2023年 | C98: 2023-03-26
B99: 2023年 | C99: 2023-03-27 | H99: ○ | L99: ○ | P99: ○ | Y99: ○ | AO99: ○ | AS99: ○
B100: 2023年 | C100: 2023-03-28 | I100: ○ | M100: ○ | Q100: ○ | Z100: ○ | AP100: ○ | AT100: ○
B101: 2023年 | C101: 2023-03-29 | H101: ○ | L101: ○ | P101: ○ | X101: ○ | AP101: ○ | AT101: ○
B102: 2023年 | C102: 2023-03-30 | I102: ○ | M102: ○ | Q102: ○ | T102: ○ | X102: ○ | AN102: ○ | AR102: ○
B103: 2023年 | C103: 2023-03-31 | H103: ○ | L103: ○ | P103: ○ | T103: ○ | X103: ○
B104: 2023年 | C104: 2023-04-01
B105: 2023年 | C105: 2023-04-02
B106: 2023年 | C106: 2023-04-03 | K106: ○ | O106: ○ | S106: ○ | T106: ○ | X106: ○ | AK106: ○ | AO106: ○ | AS106: ○
B107: 2023年 | C107: 2023-04-04 | H107: ○ | L107: ○ | P107: ○ | V107: ○ | Z107: ○ | AK107: ○ | AO107: ○ | AS107: ○
B108: 2023年 | C108: 2023-04-05 | H108: ○ | L108: ○ | P108: ○ | U108: ○ | Y108: ○ | AJ108: ○ | AN108: ○ | AR108: ○
B109: 2023年 | C109: 2023-04-06 | J109: ○ | N109: ○ | R109: ○ | V109: ○ | AO109: ○ | AR109: ○
B110: 2023年 | C110: 2023-04-07 | H110: ○ | L110: ○ | P110: ○ | T110: ○ | X110: ○ | AJ110: ○ | AN110: ○ | AR110: ○
B111: 2023年 | C111: 2023-04-08 | J111: ○ | N111: ○ | R111: ○ | T111: ○ | X111: ○ | AJ111: ○ | AN111: ○ | AR111: ○
B112: 2023年 | C112: 2023-04-09
B113: 2023年 | C113: 2023-04-10 | U113: ○ | Y113: ○ | AJ113: ○ | AN113: ○ | AR113: ○
B114: 2023年 | C114: 2023-04-11 | H114: ○ | L114: ○ | P114: ○ | T114: ○ | X114: ○ | AJ114: ○ | AN114: ○ | AR114: ○
B115: 2023年 | C115: 2023-04-12 | I115: ○ | L115: ○ | P115: ○ | U115: ○ | Y115: ○ | AJ115: ○ | AN115: ○ | AR115: ○
B116: 2023年 | C116: 2023-04-13 | H116: ○ | L116: ○ | P116: ○ | T116: ○ | X116: ○ | AJ116: ○ | AN116: ○ | AR116: ○
B117: 2023年 | C117: 2023-04-14 | I117: ○ | M117: ○ | Q117: ○ | V117: ○ | Z117: ○ | AJ117: ○ | AN117: ○ | AR117: ○
B118: 2023年 | C118: 2023-04-15
B119: 2023年 | C119: 2023-04-16
B120: 2023年 | C120: 2023-04-17 | I120: ○ | M120: ○ | Q120: ○ | U120: ○ | Y120: ○ | AJ120: ○ | AN120: ○ | AR120: ○
B121: 2023年 | C121: 2023-04-18 | H121: ○ | L121: ○ | P121: ○ | T121: ○ | X121: ○ | AJ121: ○ | AN121: ○ | AR121: ○
B122: 2023年 | C122: 2023-04-19 | J122: ○ | N122: ○ | R122: ○ | U122: ○ | Y122: ○ | AJ122: ○ | AN122: ○ | AR122: ○
B123: 2023年 | C123: 2023-04-20 | H123: ○ | L123: ○ | P123: ○ | U123: ○ | Y123: ○ | AL123: ○ | AP123: ○ | AT123: ○
B124: 2023年 | C124: 2023-04-21 | H124: ○ | L124: ○ | P124: ○ | T124: ○ | X124: ○ | AL124: ○ | AP124: ○ | AT124: ○
B125: 2023年 | C125: 2023-04-22
B126: 2023年 | C126: 2023-04-23
B127: 2023年 | C127: 2023-04-24 | H127: ○ | L127: ○ | P127: ○ | U127: ○ | Y127: ○ | AJ127: ○ | AN127: ○ | AR127: ○
B128: 2023年 | C128: 2023-04-25 | H128: ○ | L128: ○ | P128: ○ | V128: ○ | Z128: ○ | AJ128: ○ | AN128: ○ | AR128: ○
B129: 2023年 | C129: 2023-04-26 | H129: ○ | L129: ○ | P129: ○ | U129: ○ | Y129: ○ | AJ129: ○ | AN129: ○ | AR129: ○
B130: 2023年 | C130: 2023-04-27 | H130: ○ | L130: ○ | P130: ○ | T130: ○ | X130: ○ | AJ130: ○ | AN130: ○ | AR130: ○
B131: 2023年 | C131: 2023-04-28 | J131: ○ | N131: ○ | R131: ○ | T131: ○ | X131: ○ | AJ131: ○ | AN131: ○ | AR131: ○
B132: 2023年 | C132: 2023-04-29
B133: 2023年 | C133: 2023-04-30
B134: 2023年 | C134: 2023-05-01 | H134: ○ | L134: ○ | P134: ○ | T134: ○ | X134: ○
B135: 2023年 | C135: 2023-05-02 | T135: ○ | X135: ○
B136: 2023年 | C136: 2023-05-03
B137: 2023年 | C137: 2023-05-04
B138: 2023年 | C138: 2023-05-05
B139: 2023年 | C139: 2023-05-06
B140: 2023年 | C140: 2023-05-07
B141: 2023年 | C141: 2023-05-08 | K141: ○ | O141: ○ | S141: ○ | T141: ○ | Y141: ○ | AJ141: ○ | AN141: ○ | AR141: ○
B142: 2023年 | C142: 2023-05-09 | I142: ○ | M142: ○ | Q142: ○ | T142: ○ | X142: ○ | AL142: ○ | AP142: ○ | AT142: ○
B143: 2023年 | C143: 2023-05-10 | H143: ○ | L143: ○ | P143: ○ | T143: ○ | X143: ○ | AJ143: ○ | AN143: ○ | AR143: ○
B144: 2023年 | C144: 2023-05-11 | H144: ○ | L144: ○ | P144: ○ | T144: ○ | X144: ○ | AJ144: ○ | AN144: ○ | AR144: ○
B145: 2023年 | C145: 2023-05-12 | H145: ○ | L145: ○ | P145: ○ | T145: ○ | X145: ○ | AJ145: ○ | AN145: ○ | AR145: ○
B146: 2023年 | C146: 2023-05-13 | H146: ○ | L146: ○ | P146: ○ | U146: ○ | AK146: ○ | AO146: ○ | AS146: ○
B147: 2023年 | C147: 2023-05-14
B148: 2023年 | C148: 2023-05-15 | J148: ○ | N148: ○ | R148: ○ | T148: ○ | X148: ○
B149: 2023年 | C149: 2023-05-16 | K149: ○ | O149: ○ | S149: ○ | T149: ○ | X149: ○ | AK149: ○ | AO149: ○ | AS149: ○
B150: 2023年 | C150: 2023-05-17 | I150: ○ | M150: ○ | Q150: ○ | U150: ○ | Y150: ○ | AJ150: ○ | AN150: ○ | AR150: ○
B151: 2023年 | C151: 2023-05-18 | J151: ○ | N151: ○ | R151: ○ | T151: ○ | X151: ○ | AJ151: ○ | AN151: ○ | AR151: ○
B152: 2023年 | C152: 2023-05-19 | J152: ○ | N152: ○ | R152: ○
B153: 2023年 | C153: 2023-05-20
B154: 2023年 | C154: 2023-05-21
B155: 2023年 | C155: 2023-05-22 | H155: ○ | L155: ○ | P155: ○ | V155: ○ | Y155: ○ | AJ155: ○ | AN155: ○ | AR155: ○
B156: 2023年 | C156: 2023-05-23 | H156: ○ | L156: ○ | P156: ○ | T156: ○ | X156: ○ | AJ156: ○ | AN156: ○ | AR156: ○
B157: 2023年 | C157: 2023-05-24 | H157: ○ | L157: ○ | P157: ○ | T157: ○ | X157: ○ | AJ157: ○ | AN157: ○ | AR157: ○
B158: 2023年 | C158: 2023-05-25 | J158: ○ | N158: ○ | R158: ○ | T158: ○ | X158: ○ | AJ158: ○ | AN158: ○ | AR158: ○
B159: 2023年 | C159: 2023-05-26 | H159: ○ | L159: ○ | P159: ○ | T159: ○ | X159: ○ | AJ159: ○ | AN159: ○ | AR159: ○
B160: 2023年 | C160: 2023-05-27 | K160: ○ | L160: ○ | S160: ○ | V160: ○ | Z160: ○ | AJ160: ○ | AN160: ○ | AR160: ○
B161: 2023年 | C161: 2023-05-28
B162: 2023年 | C162: 2023-05-29 | H162: ○ | L162: ○ | P162: ○ | AK162: ○ | AO162: ○ | AS162: ○
B163: 2023年 | C163: 2023-05-30 | J163: ○ | N163: ○ | R163: ○ | V163: ○ | Z163: ○ | AL163: ○ | AP163: ○ | AT163: ○
B164: 2023年 | C164: 2023-05-31 | H164: ○ | L164: ○ | P164: ○ | T164: ○ | X164: ○ | AJ164: ○ | AN164: ○ | AR164: ○
B165: 2023年 | C165: 2023-06-01 | H165: ○ | L165: ○ | P165: ○ | T165: ○ | X165: ○ | AJ165: ○ | AN165: ○ | AR165: ○
B166: 2023年 | C166: 2023-06-02 | H166: ○ | L166: ○ | P166: ○ | T166: ○ | X166: ○ | AK166: ○ | AO166: ○ | AS166: ○
B167: 2023年 | C167: 2023-06-03
B168: 2023年 | C168: 2023-06-04
B169: 2023年 | C169: 2023-06-05 | H169: ○ | L169: ○ | P169: ○ | T169: ○ | X169: ○ | AK169: ○ | AO169: ○ | AS169: ○
B170: 2023年 | C170: 2023-06-06 | H170: ○ | L170: ○ | P170: ○ | T170: ○ | X170: ○ | AJ170: ○ | AN170: ○ | AR170: ○
B171: 2023年 | C171: 2023-06-07 | H171: ○ | L171: ○ | P171: ○ | U171: ○ | Y171: ○ | AJ171: ○ | AN171: ○ | AR171: ○
B172: 2023年 | C172: 2023-06-08 | H172: ○ | L172: ○ | P172: ○ | T172: ○ | X172: ○ | AJ172: ○ | AN172: ○ | AR172: ○
B173: 2023年 | C173: 2023-06-09 | J173: ○ | N173: ○ | R173: ○ | T173: ○ | X173: ○ | AJ173: ○ | AN173: ○ | AR173: ○
B174: 2023年 | C174: 2023-06-10
B175: 2023年 | C175: 2023-06-11
B176: 2023年 | C176: 2023-06-12 | H176: ○ | L176: ○ | P176: ○ | T176: ○ | X176: ○ | AJ176: ○ | AN176: ○ | AR176: ○
B177: 2023年 | C177: 2023-06-13 | H177: ○ | L177: ○ | P177: ○ | T177: ○ | X177: ○ | AJ177: ○ | AN177: ○ | AR177: ○
B178: 2023年 | C178: 2023-06-14 | H178: ○ | L178: ○ | P178: ○ | T178: ○ | X178: ○ | AJ178: ○ | AN178: ○ | AR178: ○
B179: 2023年 | C179: 2023-06-15 | K179: ○ | O179: ○ | S179: ○ | U179: ○ | Y179: ○ | AL179: ○ | AP179: ○ | AT179: ○
B180: 2023年 | C180: 2023-06-16 | H180: ○ | L180: ○ | P180: ○ | U180: ○ | Y180: ○ | AJ180: ○ | AN180: ○ | AR180: ○
B181: 2023年 | C181: 2023-06-17
B182: 2023年 | C182: 2023-06-18
B183: 2023年 | C183: 2023-06-19 | H183: ○ | L183: ○ | P183: ○ | T183: ○ | X183: ○ | AJ183: ○ | AN183: ○ | AR183: ○
B184: 2023年 | C184: 2023-06-20 | D184: ○ | K184: ○ | O184: ○ | S184: ○ | X184: ○ | AJ184: ○ | AN184: ○ | AR184: ○
B185: 2023年 | C185: 2023-06-21 | H185: ○ | L185: ○ | P185: ○ | X185: ○ | AJ185: ○ | AN185: ○ | AR185: ○
B186: 2023年 | C186: 2023-06-22 | D186: ○ | H186: ○ | L186: ○ | P186: ○ | U186: ○ | Y186: ○ | AK186: ○ | AO186: ○ | AS186: ○
B187: 2023年 | C187: 2023-06-23 | H187: ○ | L187: ○ | P187: ○ | T187: ○ | X187: ○ | AK187: ○ | AO187: ○ | AS187: ○
B188: 2023年 | C188: 2023-06-24
B189: 2023年 | C189: 2023-06-25
B190: 2023年 | C190: 2023-06-26 | H190: ○ | L190: ○ | P190: ○ | T190: ○ | X190: ○ | AJ190: ○ | AN190: ○ | AR190: ○
B191: 2023年 | C191: 2023-06-27 | H191: ○ | L191: ○ | P191: ○ | T191: ○ | X191: ○ | AJ191: ○ | AN191: ○ | AR191: ○
B192: 2023年 | C192: 2023-06-28 | H192: ○ | L192: ○ | P192: ○ | T192: ○ | X192: ○ | AJ192: ○ | AN192: ○ | AR192: ○
B193: 2023年 | C193: 2023-06-29 | I193: ○ | M193: ○ | Q193: ○ | T193: ○ | X193: ○ | AJ193: ○ | AN193: ○ | AR193: ○
B194: 2023年 | C194: 2023-06-30 | K194: ○ | O194: ○ | S194: ○ | U194: ○ | Y194: ○ | AN194: ○ | AR194: ○
B195: 2023年 | C195: 2023-07-01
B196: 2023年 | C196: 2023-07-02
B197: 2023年 | C197: 2023-07-03 | H197: ○ | L197: ○ | P197: ○ | T197: ○ | X197: ○ | AL197: ○ | AP197: ○ | AT197: ○
B198: 2023年 | C198: 2023-07-04 | H198: ○ | L198: ○ | P198: ○ | T198: ○ | X198: ○ | AJ198: ○ | AN198: ○ | AR198: ○
B199: 2023年 | C199: 2023-07-05 | H199: ○ | L199: ○ | P199: ○ | V199: ○ | Z199: ○ | AJ199: ○ | AN199: ○ | AR199: ○
B200: 2023年 | C200: 2023-07-06 | H200: ○ | L200: ○ | P200: ○ | T200: ○ | X200: ○ | AK200: ○ | AO200: ○ | AS200: ○
B201: 2023年 | C201: 2023-07-07 | H201: ○ | L201: ○ | P201: ○ | V201: ○ | Z201: ○
B202: 2023年 | C202: 2023-07-08
... 640 more rows

Sheet 引継ぎ事項 (hidden)
A2: 記入者名 | B2: 日付 | C2: 引継ぎ事項記載したら 記入者名記載すること | D2: A | E2: B | F2: H | G2: D | H2: 裕一
A3: 渋谷 | B3: 4/1 | C3: ｱﾝｶｰB剤、通常品と代替品混ぜてもOK。ただし調合記録表で分かるようにしておくこと。 | D3: ○ | E3: ○ | F3: ○ | G3: ○ | H3: ○
A4: 渋谷 | B4: 4/1 | C4: 鍬形さんﾃｽﾄ温度変更がある為、予定表通り最後にやるそうです。ﾃｽﾄ2時間前に連絡。 | D4: ○ | E4: ○ | F4: ○ | G4: ○ | H4: ○
A5: 真壁 | B5: 4/1 | C5: 原反ST17番巻き芯ｽﾞﾚてる→投入はするけど塗工中に芯ズレてきたら加工中止で原苦にする 裕一さんより | D5: ○ | E5: ○ | F5: ○ | G5: ○ | H5: ○
A6: 真壁 | B6: 4/1 | C6: 繰出しEPC厚番手であたりそうな時は高さだけ変更してください。斜めになってるのはわざとなってます。 | D6: ○ | E6: ○ | F6: ○ | G6: ○ | H6: ○
A7: 渋谷 | B7: 4/2 | C7: プリンター故障。ラベルのプリンターで伝票出してる→伝えました | D7: ○ | E7: ○ | F7: ○ | G7: ○ | H7: ○
A8: 松川 | B8: 4/3 | C8: XF60R 1番位置 原反倉庫に巻き芯ｽﾞﾚ品置いてあります。日勤に確認してもらってください。原反倉庫側のエアーシャワー出てまっすぐ。表示済→伝えました | D8: ○ | E8: ○ | F8: ○ | G8: ○ | H8: ○
A9: 真壁 | B9: 4/4 | C9: XF60R 1番位置 原反倉庫に巻き芯ｽﾞﾚ品→投入中止 | D9: ○ | E9: ○ | F9: ○ | G9: ○ | H9: ○
A10: 真壁 | B10: 4/4 | C10: 稼働実績チャート今年度のものに変わってます。４月～ | D10: ○ | E10: ○ | F10: ○ | G10: ○ | H10: ○
A11: 松川 | B11: 4/4 | C11: BX 利昌向け ｽﾘｯﾄより巻き芯ｼﾜ混入するため、対策してほしいとのこと。ｽﾌﾟﾗｲｽ時のみ内ﾀｯﾁ圧下げるなど。 | D11: ○ | E11: ○ | F11: ○ | G11: ○ | H11: ○
A12: 菖蒲 | B12: 4/4 | C12: 溶剤排気風圧異常発生・溶剤排気ﾌｧﾝﾍﾞﾙﾄ切れ（3本すべて）ﾍﾞﾙﾄ交換 | D12: ○ | E12: ○ | F12: ○ | G12: ○ | H12: ○
A13: 塩田 | B13: 4/4 | C13: 牧野の結婚お祝い金（1人2000円）を集めます 来週までに渡したいとのことなので早めにお願いいたします 各組の機長が取りまとめ 塩田までお願いいたします | D13: ○ | E13: ○ | F13: ○ | G13: ○ | H13: ○
A14: 菖蒲 | B14: 4/5 | C14: X線測定について、1本30分台以下の製品は2本に1回の測定でOKとなります。ｽﾀｰﾄはみんな測ると思うのである程度、生産安定してからは2本に1回でOK。 | D14: ○ | E14: ○ | F14: ○ | G14: ○ | H14: ○
A15: 菖蒲 | B15: 4/5 | C15: WZ(S)一旦入庫品はﾗｲﾝ210m/minでOK・きつい場合はもう少し落としてもいい。 | D15: ○ | E15: ○ | F15: ○ | G15: ○ | H15: ○
A16: 菖蒲 | B16: 4/6 | C16: WZ(26)1010幅20本口→11本口に変更・その後の1010幅2本口半直が6本口に変更、だが原反来ない為WZ(34)の後に投入・配台更新済み | D16: ○ | E16: ○ | F16: ○ | G16: ○ | H16: ○
A17: 塩田 | B17: 4/8 | C17: 明日BXｽﾀｰﾄしたらBX8A(37)試作何時くらいになるか笠原さんに連絡する | D17: ○ | E17: ○ | F17: ○ | G17: ○ | H17: ○
A18: 菖蒲 | B18: 4/9 | C18: KS3800不足によりBX塗工順変更・数量変更してます。→工程管理注意！！！ | D18: ○ | E18: ○ | F18: ○ | G18: ○ | H18: ○
A19: 塩田 | B19: 4/10 | C19: 空調冬ﾓｰﾄﾞ→夏ﾓｰﾄﾞに切替えてあります | D19: ○ | E19: ○ | F19: ○ | G19: ○ | H19: ○
A20: 菖蒲 | B20: 4/11 | C20: BKE(09)1037幅原反明日入荷が今日入荷、予定通りに変更 BKE(RX)1335幅明日😢 | D20: ○ | E20: ○ | F20: ○ | G20: ○ | H20: ○
A21: 菖蒲 | B21: 4/11 | C21: BKE(09)1057表層ｷｽﾞ有のため1本ショート | D21: ○ | E21: ○ | F21: ○ | G21: ○ | H21: ○
A22: 真壁 | B22: 4/17 | C22: MDA(PRF)Lまで塗料出庫済だけどKS3800だけ在庫なしで出せなかったので入ってきたら出してください→4/19に入る予定 | D22: ○ | E22: ○ | F22: ○ | G22: ○ | H22: ○
A23: 渋谷 | B23: 4/18 | C23: 巻取りｽﾌﾟﾗｲｽ押さえ板ﾐﾗｰﾏｯﾄ2ｍｍ厚のに交換しました。異常がある時は村越さんに連絡してください | D23: ○ | E23: ○ | F23: ○ | G23: ○ | H23: ○
A24: 小林 | B24: 4/19 | C24: XD500P（＃75 1335X4200） 3本 製品ｽﾄｯｶｰ 22・23・24 に移動してあります ※試作品分の原反を入れる為 | D24: ○ | E24: ○ | F24: ○ | G24: ○ | H24: ○
A25: 松川 | B25: 4/19 | C25: TK4/20朝8時ｽﾀｰﾄ予定・笠原さん8時には来ます。 | D25: ○ | E25: ○ | F25: ○ | G25: ○ | H25: ○
A26: 松川 | B26: 4/21 | C26: 定尺合格8本で一旦出す（2042140208105）・次に定尺合格12本（2042140220105）でｻﾝﾌﾟﾙ出す。合計定尺合格20本出荷必要。 | D26: ○ | E26: ○ | F26: ○ | G26: ○ | H26: ○
A27: 松川 | B27: 4/21 | C27: 保留品など出た場合は定尺合格が20本とれるところまで加工してｻﾝﾌﾟﾙ出す（保留品のｻﾝﾌﾟﾙも一緒に）3本保留になれば2042140223105でｻﾝﾌﾟﾙ出すなど。 | D27: ○ | E27: ○ | F27: ○ | G27: ○ | H27: ○
A28: 松川 | B28: 4/21 | C28: SY(09)とSY(08)の塗工順を入れ替えてほしいとｽﾘｯﾄから依頼ありました！12200巻取り合図で12350mあればok！ | D28: ○ | E28: ○ | F28: ○ | G28: ○ | H28: ○
A29: 松川 | B29: 4/21 | C29: RM10とRM1Z各3本巻き芯保管してほしい。RM10は3本保管済み（繰出し西側）RM1Zは1本保管済み！残り2本入ってきたら取っておいてください！ | D29: ○ | E29: ○ | F29: ○ | G29: ○ | H29: ○
A30: 松川 | B30: 4/21 | C30: RM10とRM1Z混在投入OKですが稼働実績など原反名変更必要・今回RM1Z投入したので月末のRM10とRM1Zの数が前後します。注意してください。 | D30: ○ | E30: ○ | F30: ○ | G30: ○ | H30: ○
A31: 松川 | B31: 4/21 | C31: 梱包にはRM10-〇・RM1Z-〇 取り位置で入力お願いしました。 | D31: ○ | E31: ○ | F31: ○ | G31: ○ | H31: ○
A32: 松川 | B32: 4/25 | C32: 配台変更有り・BXはKS3800不足によりﾊﾟﾅｯｸ15本やって残り（37）を塗るのか、ﾊﾟﾅｯｸを塗らず（37）をやるのかまだ決まってません。→27日にKS3800が入ってくるので配台通り加工 | D32: ○ | E32: ○ | F32: ○ | G32: ○ | H32: ○
A33: 松川 | B33: 4/25 | C33: SYは先行ﾃｽﾄにてﾌｨﾙﾑ差引きで2以上ついているのを確認しながら塗工してください。剥離検査やりません。 | D33: ○ | E33: ○ | F33: ○ | G33: ○ | H33: ○
A34: 塩田 | B34: 4/25 | C34: SY→X62-900B足りない（27日入ってくるけど間に合わない）のでSY（08）13本口→11/13本へ変更 SY（09）終わって塗料残るようならSY（08）追加で1本（12/13）塗ってとのこと | D34: ○ | E34: ○ | F34: ○ | G34: ○ | H34: ○
A35: 菖蒲 | B35: 4/26 | C35: BX8A(37)７０本口→ FWPｺｱ 1250.1240幅混合で入ってくる。 ｺｱ位置注意してください。 1240でもOK | D35: ○ | E35: ○ | F35: ○ | G35: ○ | H35: ○
B36: 4/27 | C36: BXはCF5のｴｰｼﾞﾝｸﾞにまとめて入れます。ｻﾝﾌﾟﾙは全部一緒でもOKだが運べなくなるのでBX8A(RX)で出す。BX8A(37)は23・24本ずつくらいで出していきましょう。 | D36: ○ | E36: ○ | F36: ○ | G36: ○ | H36: ○
A37: 渋谷 | B37: 4/29 | C37: 110URｸﾞﾗﾋﾞｱ入ってきてません。5月に入ってくるみたい。来るまでは今の使うか、前使ってたやつ使うか。 | D37: ○ | E37: ○ | F37: ○ | H37: ○
A38: 松川 | B38: 4/29 | C38: №2Gﾄﾙｴﾝ洗浄のみ。ﾀﾞｲｼﾞｪｼﾞﾙ洗浄していないので、GW明けﾀﾞｲｼﾞｪｼﾞﾙ洗浄お願いします。 | D38: ○ | E38: ○ | F38: ○ | H38: ○
A39: 松川 | B39: 5/5 | C39: 配台予定時間について確認してほしい。地下ﾀﾝｸ休みの間ＩＰＡが出ていることになっている。→地下ﾀﾝｸ工務課に確認依頼しました | D39: ○ | E39: ○ | F39: ○ | H39: ○
A40: 真壁 | B40: 5/6 | C40: ↑予定表通り進めていいです。前倒しはしない！！！ | D40: ○ | E40: ○ | F40: ○ | H40: ○
A41: 渋谷 | B41: 5/9 | C41: NO2Gﾛｰﾙ、前使用してたGﾛｰﾙに交換してあります。 | D41: ○ | E41: ○ | F41: ○ | H41: ○
A42: 菖蒲 | B42: 5/9 | C42: KS847Hの在庫なし ５月11日夕方位に入る予定 | D42: ○ | E42: ○ | F42: ○ | H42: ○
A43: 菖蒲 | B43: 5/9 | C43: BX8A(37)ﾃｰﾋﾟﾝｸﾞ 別紙参照 | D43: ○ | E43: ○ | F43: ○ | H43: ○
A44: 渋谷 | B44: 5/10 | C44: 明日MD予定通りくらいでｽﾀｰﾄ | D44: ○ | E44: ○ | F44: ○ | H44: ○
A45: 松川 | B45: 5/13 | C45: KS847H5/17入荷します。配台通り。BX新ロットの主剤が入ってこない為数量変更（塗工できる分のみ）WZも本数変更有 | D45: ○ | E45: ○ | F45: ○ | H45: ○
A46: 菖蒲 | B46: 5/17 | C46: KS847H 5缶入りました。 原反残り１８本しか無い 明日入荷予定 | D46: ○ | E46: ○ | F46: ○ | H46: ○
A47: 菖蒲 | B47: 5/17 | C47: 危険物倉庫に出庫伝票が落ちていたそうです。 夜勤者に確認お願いします。 | D47: ○ | E47: ○ | F47: ○ | H47: ○
A48: 菖蒲 | B48: 5/17 | C48: WZ(S) 1430幅日栄向け 立ち合いしたい 低張力の条件 | D48: ○ | E48: ○ | F48: ○ | H48: ○
A49: 菖蒲 | B49: 5/20 | C49: WZ(34) 原反残取っておく ラベルスリット行き | D49: ○ | E49: ○ | F49: ○ | H49: ○
A50: 真壁 | B50: 5/24 | C50: 今週は試作TKｼﾘｰｽﾞ。その後の切替えまでやって終わり。ﾆｯﾊﾟは来週。 | D50: ○ | E50: ○ | F50: ○ | H50: ○
A51: 真壁 | B51: 5/26 | C51: このままﾄﾗﾌﾞﾙなく行けばTKAは土曜日の7時くらい目安でｽﾀｰﾄ | D51: ○ | E51: ○ | F51: ○ | H51: ○
A52: 真壁 | B52: 5/27 | C52: TKは土曜日の8時ｽﾀｰﾄ 夜勤で切替え、条件設定、昇温お願いします 塗料は朝勤で作ります | D52: ○ | E52: ○ | F52: ○ | H52: ○
A53: 菖蒲 | B53: 5/28 | C53: 新品の110UR出しました！ﾍﾞｱﾘﾝｸﾞ取り付けてあります。5/28まで使用していたGﾛｰﾙはH室に置いてあります。Gﾛｰﾙ削れが強かった110URは再刻行・箱詰めしてあります。 | D53: ○ | E53: ○ | F53: ○ | H53: ○
C54: ↑WZからでも使用してください。 | D54: ○ | E54: ○ | F54: ○ | H54: ○
A55: 菖蒲 | B55: 5/31 | C55: 積水1100×12000 ﾗｽﾄをMK-1行き（全長塗工）でお願いします ※笠原氏より依頼→ロット確認してください 直だしかｽﾘｯﾄ行きか | D55: ○ | E55: ○ | F55: ○ | H55: ○
A56: 菖蒲 | B56: 6/2 | C56: 今後予定表が作業指示書に変わります。（6/2配台の上にある）付け加えてほしいことや、見づらいからこうしてほしいとか要望があれば出してください。←友和さん | D56: ○ | E56: ○ | F56: ○ | H56: ○
A57: 菖蒲 | B57: 6/2 | C57: №2ﾌﾟﾚ前の114番ﾛｰﾙが200に対して190しか出ていませんが、前からそうだったかも。。。ｽﾘｷｽﾞとか消えないとかあれば裕一氏に連絡してください。ﾍﾞｱﾘﾝｸﾞがだめらしい | D57: ○ | E57: ○ | F57: ○ | H57: ○
A58: 菖蒲 | B58: 6/2 | C58: 工程管理製造ロット手打ちです。注意して- | D58: ○ | E58: ○ | F58: ○ | H58: ○
A59: 真壁 | B59: 6/6 | C59: MDの後にTKA２本入れるようです→でも原反入荷6/23なのでまた明日確認します | D59: ○ | E59: ○ | F59: ○ | H59: ○
A60: 真壁 | B60: 6/6 | C60: No1ｵｰﾌﾞﾝﾀﾞﾝﾊﾟｰ切替えSW故障→交換しました（また中でズレて空回りの状態になってしまってました）Oにする時もSにする時も回らなくなったとこで無理に回さないよう注意してください | D60: ○ | E60: ○ | F60: ○ | H60: ○
C61: 矢印付けれなかったのでﾀﾞﾝﾊﾟｰのﾊﾟﾈﾙを見ながら切替えてください もしかしたらﾊﾟﾈﾙのOとS、実際のOとSが逆かもしれないので、その場合No1の差圧が上がるのと匂いがすごい臭くなるみたいなのでﾀﾞﾝﾊﾟｰSにしてください | D61: ○ | E61: ○ | F61: ○ | H61: ○
C62: ↑逆でした。今のﾊﾟﾈﾙはSが空きでOが閉めです→裕一さんに伝えてあります。直してもらうみたいです。→直せないみたいなので表示物作成して貼り付けるようです。 | D62: ○ | E62: ○ | F62: ○ | H62: ○
A63: 塩田 | B63: 6/6 | C63: MDA(CPRF)L 26本口→原反ｺｱ破損により1本ｼｮｰﾄになります リカバリーで予定本数でOKです | D63: ○ | E63: ○ | F63: ○ | H63: ○
A64: 小林 | B64: 6/7 | C64: BX8A(37)(B)にて使用するｺｱ FWP1250.1240幅 混合で入ってきました。1250幅使いきってから1240幅（20本）の使用をお願いします。使用の際はｺｱ位置注意してください。 | D64: ○ | E64: ○ | F64: ○ | H64: ○
A65: 真壁 | B65: 6/10 | C65: 排ガス 週末停止時（休み前）は通常に切替え また月曜日に省エネに変更 田村課長に確認済 | D65: ○ | E65: ○ | F65: ○ | H65: ○
A66: 真壁 | B66: 6/10 | C66: 予定変更 BX9A(S)1120幅を先に塗工（東レからの依頼） | D66: ○ | E66: ○ | F66: ○ | H66: ○
A67: 塩田 | B67: 6/10 | C67: BX8A 新Lotは8.0処方でOKです←旧Lotも8.0処方だった ※BX9Aも今までと同じ9.0処方でいいと思うんですが・・・まだわかんないので旧Lotで9.0処方で加工してください | D67: ○ | E67: ○ | F67: ○ | H67: ○
A68: 真壁 | B68: 6/13 | C68: ↑処方が同じなので調合済の塗料は混ぜてOK（原液同士では混ぜないで！） 橋本和に確認済 | D68: ○ | E68: ○ | F68: ○ | H68: ○
A69: 真壁 | B69: 6/15 | C69: 6/20日朝勤 8時30分～安全装置点検（部長・裕一さん立ち会い） 朝7時30分に裕一さんに連絡 | D69: ○ | E69: ○ | F69: ○ | H69: ○
A70: 塩田 | B70: 6/15 | C70: 製品ST23番に入ってるXD500P→投入中止原反表記になっている 使えない原反？ 使わないの？ 明日聞いてください→１番位置の欠点懸念原反みたい とりあえず入れといてとのこと | D70: ○ | E70: ○ | F70: ○ | H70: ○
A71: 塩田 | B71: 6/15 | C71: 原反ST13・16番のS原反 使わないので外に出せないですか？ 明日聞いてください→SYの原反らしい 出すよう新虹に依頼済 | D71: ○ | E71: ○ | F71: ○ | H71: ○
A72: 菖蒲 | B72: 6/23 | C72: B組 類災検討会いつやるか CF5と連絡して 日にちを決めて下さい | D72: ○ | E72: ○ | F72: ○ | H72: ○
A73: 菖蒲 | B73: 6/23 | C73: 月曜日 NO1EPCロール確認する ﾌｨﾙﾑ無しで測定する １０時頃から 岩井担当 | D73: ○ | E73: ○ | F73: ○ | H73: ○
A74: 塩田 | B74: 6/24 | C74: No2-1ﾌﾛｰﾃｨﾝｸﾞﾉｽﾞﾙの位置決めﾎﾞﾀﾝ動作不良の件→再度日勤に報告済 6/27（月）もう一度動作確認してみてとのこと | D74: ○ | E74: ○ | F74: ○ | H74: ○
A75: 塩田 | B75: 6/24 | C75: No1G新品あるか確認中→連絡くる→エアーシャワー出たとこのﾗｯｸの一番下の奥にある | D75: ○ | E75: ○ | F75: ○ | H75: ○
A76: 真壁 | B76: 6/27 | C76: 友和さんに＃125WZ(S)6/29ｼﾘｰｽﾞと7/12ｼﾘｰｽﾞどちらかと一緒にできないか頼んだところﾀﾞﾒでした。 6/29では7/12分の原反が間に合わない。7/12では6/29分の納期が間に合わないそうで、申し訳ないげど別々でお願いしますとのことです・・・ | D76: ○ | E76: ○ | F76: ○ | H76: ○
A77: 塩田 | B77: 6/29 | C77: WZ(26)梱包仕様→工実書だと端部突っ込み 条件表だと赤ﾃｰﾌﾟ巻き 新虹さん的には端部突っ込みのほうがいいとのことなので・・・突っ込みで！！！ 耳巻くようなら連絡してください | D77: ○ | E77: ○ | F77: ○ | H77: ○
A78: 菖蒲 | B78: 6/30 | C78: ↑笠原さんに確認したところ今後鉄架台にしていきたいので端部巻きでお願いしますとのこと。梱包に連絡済 | D78: ○ | E78: ○ | F78: ○ | H78: ○
A79: 上田ゆ | B79: 7/1 | C79: 7/31 休出希望者2名募集中💛数時間程度真壁と＠1名募集 連絡ください（早い者勝ち） | D79: ○ | E79: ○ | F79: ○ | H79: ○
A80: 菖蒲 | B80: 7/7 | C80: ｽﾘｯﾄ行きBKE(RX)先に塗工 | D80: ○ | E80: ○ | F80: ○ | H80: ○
A81: 塩田 | B81: 7/7 | C81: 繰出しのAﾃｰﾌﾟで端部の粘着が酷くて途中で使用を中止したものは廃棄してください 芯は固形廃ﾌﾟﾗ ﾃｰﾌﾟ部は燃えるｺﾞﾐ しっかり分別お願いします | D81: ○ | E81: ○ | F81: ○ | H81: ○
A82: 長谷部 | B82: 7/11 | C82: No1ｶﾞｽ濃度計異常多発する為No1-1,2,3ﾒﾝﾃﾅﾝｽモードにしてあります | D82: ○ | E82: ○ | F82: ○ | H82: ○
A83: 菖蒲 | B83: 7/13 | C83: No1ｶﾞｽ濃度計異常 No1-3 ポンプがNGだったみたいです。 修理済み | D83: ○ | E83: ○ | F83: ○ | H83: ○
A84: 塩田 | B84: 7/13 | C84: 菖蒲さんから引き継いだ1370幅のﾘｰﾄﾞの件 新虹さんに連絡済です ※入庫時に上出しで入れてもらえるようにお願いしました | D84: ○ | E84: ○ | F84: ○ | H84: ○
A85: 塩田 | B85: 7/13 | C85: 明日の朝勤中に中尾さんと村越さんで巻取りのﾆｱあたりにﾊﾟｰﾃｨｸﾙｶｳﾝﾀｰの取り付けを行うそうです | D85: ○ | E85: ○ | F85: ○ | H85: ○
A86: 塩田 | B86: 7/14 | C86: 配台変更有 BX8A(34)→8月頭に延期 BX8A(34)だったところに押切さんの転写HCが入る | D86: ○ | E86: ○ | F86: ○ | H86: ○
C87: ※塗料は7/15に押切さんが入れる Kｺｱ1450mm新品4本→柳沼さんに連絡済 明日入れてくれる | D87: ○ | E87: ○ | F87: ○ | H87: ○
A88: 村山 | B88: 7/15 | C88: 巻取りチャッキング、E側の外れるスピード遅くしています（表層ズレ対策） 製品下す際注意してください！ 問題があれば村山まで！ | D88: ○ | E88: ○ | F88: ○ | H88: ○
A89: 塩田 | B89: 7/19 | C89: 転写HCｽﾀｰﾄ2時間前に押切さんにTEL | D89: ○ | E89: ○ | F89: ○ | H89: ○
A90: 塩田 | B90: 7/19 | C90: FWP1450mmｺｱの天龍とKｺｱの両方で在庫不足 7/21にｺｱ返却あるので再度確認するとのこと | D90: ○ | E90: ○ | F90: ○ | H90: ○
A91: 長谷部 | B91: 7/19 | C91: BX8A(X)1490幅 原反入庫7/20 17時頃の予定 | D91: ○ | E91: ○ | F91: ○ | H91: ○
A92: 菖蒲 | B92: 7/20 | C92: BKE(RX)巴川 下出し？→下出しで！ | D92: ○ | E92: ○ | F92: ○ | H92: ○
A93: 菖蒲 | B93: 7/20 | C93: 巻き取りのスケールが無い | D93: ○ | E93: ○ | F93: ○ | H93: ○
A94: 小林 | B94: 7/22 | C94: 巻取りｻﾝﾌﾟﾙで使用する【矢印ﾃｰﾌﾟ】ですが、今ので在庫最後のようなので、月曜日に日勤に注文依頼お願いします | D94: ○ | E94: ○ | F94: ○ | H94: ○
A95: 真壁 | B95: 7/23 | C95: 製造伝票印刷した際の製膜ﾏｯﾌﾟへ転機後、自動保存してくれるように杉山さんがやってくれました！ | D95: ○ | E95: ○ | F95: ○ | H95: ○
A96: 長谷部 | B96: 7/25 | C96: 原反STﾏﾃﾊﾝｲﾝﾊﾞｰﾀｰ異常発生しました、ｲﾝﾊﾞｰﾀｰ異常NOをメモして復帰して大丈夫です、多発する場合裕一さんに連絡 | D96: ○ | E96: ○ | F96: ○ | H96: ○
A97: 上田ゆ | B97: 7/28 | C97: 7月の塗料溶剤の締めはＰＥＴ２５ｘ１－ＪＯＬの加工完了後に塗料と溶剤地下タンクの締めを行ってください。（終了時連絡もらえば地下タンクのレシートは俺が出します） | D97: ○ | E97: ○ | F97: ○ | H97: ○
A98: 菖蒲 | B98: 7/28 | C98: ニッパ終了後にＮＯ１・２ｸﾞﾗﾋﾞｱ取り外し | D98: ○ | E98: ○ | F98: ○ | H98: ○
A99: 菖蒲 | B99: 7/28 | C99: 8/1月曜 BX8A(ＲＸ)早めにスタートしたいので ｵｰﾌﾞﾝ掃除進めてください | D99: ○ | E99: ○ | F99: ○ | H99: ○
A100: 上田ゆ | B100: 7/31 | C100: 8/1朝勤出社後ﾋｰﾄｱｯﾌﾟし#188塗工準備お願いします。塗料はBXの塗料で構いません。10時頃加工できるようお願いします。（裕一立ち会います） 厚番手塗工搬送問題ないことを確認後に通常BXの加工に進みます。（ﾛｰﾙ端部汚れているので注意！） | D100: ○ | E100: ○ | F100: ○ | H100: ○
A101: 菖蒲 | B101: 8/3 | C101: WZ 笠原テスト 後日に変更 | D101: ○ | E101: ○ | F101: ○ | H101: ○
A102: 長谷部はげ | B102: 8/8 | C102: BX8A(X)特記事項に1本目 原反両端部：切粉無し 偏光ﾑﾗ無し 外観OK ２本目から原反両端：切粉無し 偏光ﾑﾗ無し を記載してください | D102: ○ | E102: ○ | F102: ○ | H102: ○
A103: 上田ゆ | B103: 8/17 | C103: 切替え清掃、防塵清掃実施後、ﾘｰﾄﾞ通す前に安全装置点検を実施してください | D103: ○ | E103: ○ | F103: ○ | H103: ○
A104: 菖蒲 | B104: 8/17 | C104: No2ﾌﾟﾚ 124番ﾛｰﾙ 異音の為ﾍﾞｱﾘﾝｸﾞ交換 ｱｷｭｰﾑ 341番ﾛｰﾙ 異音の為ﾍﾞｱﾘﾝｸﾞ交換 | D104: ○ | E104: ○ | F104: ○ | H104: ○
A105: 菖蒲 | B105: 8/17 | C105: 巻取りﾆｱﾛｰﾙ 西側 軸受け付近 黒い粉あり（除去済） | D105: ○ | E105: ○ | F105: ○ | H105: ○
A106: 上田ゆ | B106: 8/19 | C106: ﾃﾞﾝｶ向けWZ(26) 資材不足とのこと。（月曜日入荷予定） 加工どうなるのか新虹へ連絡するよう笠原へ伝えてください。←通常通り加工します 端部赤テープ巻く | D106: ○ | E106: ○ | F106: ○ | H106: ○
A107: 菖蒲 | B107: 8/20 | C107: 排ガス装置 失火多発の為、点火プラグ交換により復旧済（工務課対応） | D107: ○ | E107: ○ | F107: ○ | H107: ○
A108: 菖蒲 | B108: 8/22 | C108: WZ(48) 立ち合い（笠原氏） ｺｱFWP1500です | D108: ○ | E108: ○ | F108: ○ | H108: ○
A109: 菖蒲 | B109: 8/22 | C109: 繰出し 32番ﾛｰﾙ（ガタツキあり） 鉄粉があったため、カップリングチェーン交換しました。同時にﾌｨﾙﾑ蛇行調査も入りました（裕一氏・工務課） | D109: ○ | E109: ○ | F109: ○ | H109: ○
A110: 菖蒲 | B110: 8/22 | C110: コンプレッサー３台中（3台稼働中） 一台しか動いてなかったらしいです。（※真ん中はｴｱ漏れでもとから停めてたっぽい！？） 1シフト1回は、見る行く様にお願いします。 | D110: ○ | E110: ○ | F110: ○ | H110: ○
A111: 長谷部 | B111: 8/22 | C111: WZｼﾘｰｽﾞ最後にUV無し塗工ｻﾝﾌﾟﾙ採取お願いします。 | D111: ○ | E111: ○ | F111: ○ | H111: ○
A112: 菖蒲 | B112: 8/23 | C112: BKE(RX) 巴川向け 1450Kｺｱでお願いします | D112: ○ | E112: ○ | F112: ○ | H112: ○
A113: 菖蒲 | B113: 8/24 | C113: ｵｰﾌﾞﾝ掃除 BK(U)の後に変更になります。 | D113: ○ | E113: ○ | F113: ○ | H113: ○
A114: 菖蒲 | B114: 8/24 | C114: 8/29（月）朝から繰出しのﾌｨﾙﾑ蛇行調査入ります。昇温せず、日勤来るまで待機お願いします。 | D114: ○ | E114: ○ | F114: ○ | H114: ○
A115: 菖蒲 | B115: 8/25 | C115: BK(U) 11900 仕上げでお願いします | D115: ○ | E115: ○ | F115: ○ | H115: ○
A116: 塩田 | B116: 8/25 | C116: 先日加工したJWZ（B)→Pﾊｼﾞｷで停めた1285mくらいのやつ梱包して外に出しました（他社向けで使うとのこと） ※ﾗﾍﾞﾙ待ちで保留になってるので明日笠原さんから連絡きます | D116: ○ | E116: ○ | F116: ○ | H116: ○
A117: 菖蒲 | B117: 8/26 | C117: 排ガス ﾒﾝﾃﾅﾝｽの為、強制冷却してあります。月曜日通常に戻してください。（やり方わからない場合は、裕一さんへ） | D117: ○ | E117: ○ | F117: ○ | H117: ○
A118: 塩田 | B118: 8/26 | C118: 製品ＳＴにずっと入ってた＃75 XD500P（欠点懸念で投入中止）の原反は友和さん指示で原反倉庫に戻しました | D118: ○ | E118: ○ | F118: ○ | H118: ○
A119: 菖蒲 | B119: 8/30 | C119: SY(08)予定より1本中止しました 原反 梱包して 原反倉庫側に出しました。 | D119: ○ | E119: ○ | F119: ○ | H119: ○
A120: 塩田 | B120: 9/1 | C120: 裕一さんよりﾛｰﾙ掃除時の治具を使用した写真撮影の依頼がきてます ﾌｨﾙﾑを抜いた状態での撮影依頼なのでｵｰﾌﾞﾝ掃除該当ｼﾌﾄにて対応お願いいたします 詳細は別紙参照 | D120: ○ | E120: ○ | F120: ○ | H120: ○
A121: 上田ゆ | B121: 9/6 | C121: ﾕﾆﾏﾃｯｸ NOK 050-L-0064E-F 購入 在庫ｾﾞﾛ | D121: ○ | E121: ○ | F121: ○ | H121: ○
A122: 塩田 | B122: 9/6 | C122: 繰出し操作方法の作標改定になってます 作業教育前に一度目を通してください 昨日は大変ご迷惑をお掛け致しました | D122: ○ | E122: ○ | F122: ○ | H122: ○
A123: 菖蒲 | B123: 9/7 | C123: 落下に原反 製品ST29番に入れました。 | D123: ○ | E123: ○ | F123: ○ | H123: ○
A124: 渋谷 | B124: 9/9 | C124: UV粗塵ﾌｨﾙﾀｰ交換済（裕一さん対応） | D124: ○ | E124: ○ | F124: ○ | H124: ○
A125: 塩田 | B125: 9/12 | C125: 配台更新されました→9/15以降 BX8ｼﾘｰｽﾞ原反が間に合わないためMDｼﾘｰｽﾞ繰り上げて生産するそうです 朝勤者にも明日説明するとのこと 友和さんより | D125: ○ | E125: ○ | F125: ○ | H125: ○
A126: 塩田 | B126: 9/12 | C126: 稼働実績備考欄に 繰出しｽﾌﾟﾗｲｽ→ があります ｽﾌﾟﾗｲｽ時のﾌｨﾙﾑ切れ具合によって ○ △ × 判定に記入お願いいたします | D126: ○ | E126: ○ | F126: ○ | H126: ○
A127: 渋谷 | B127: 9/13 | C127: BX8G(07) 笠原さん立ち合い ｽﾀｰﾄ2時間前に連絡 | D127: ○ | E127: ○ | F127: ○ | H127: ○
A128: 渋谷 | B128: 9/14 | C128: 転写 押切さん立ち合い ｽﾀｰﾄ2時間前に連絡 スタート ２時間前に塗料調合お願いします。 | D128: ○ | E128: ○ | F128: ○ | H128: ○
A129: 菖蒲 | B129: 9/16 | C129: 1370ﾘｰﾄﾞ 原反ｽﾄｯｶｰ～製品ｽﾄｯｶｰに移動お願いします。 | D129: ○ | E129: ○ | F129: ○ | H129: ○
A130: 塩田 | B130: 9/20 | C130: 明日9/21にSTの年次点検があります（8時～17時）その間はST使えないので3号機のSTから原反もって来るようになります | D130: ○ | E130: ○ | F130: ○ | H130: ○
A131: 塩田 | B131: 9/21 | C131: 繰出しのPC調子悪いので巻取りのPCと入替えしてもらいました ※ﾊﾟｽﾜｰﾄﾞとﾎｰﾑ画面変わってます | D131: ○ | E131: ○ | F131: ○ | H131: ○
A132: 塩田 | B132: 9/21 | C132: ＢＸ８Ａ（Ｘ）の原反が台風の影響で入荷遅れる→予定変更 BK→WZ→BX になりました | D132: ○ | E132: ○ | F132: ○ | H132: ○
A133: 塩田 | B133: 9/21 | C133: 笠原さんのﾃｽﾄ2時間前に連絡 検査と入庫の関係でできるだけ早くｽﾀｰﾄしてもらえると助かるそうなので協力してあげてください・・・ | D133: ○ | E133: ○ | F133: ○ | H133: ○
A134: 長谷部 | B134: 9/21 | C134: 笠原さん朝勤と同じ時間に出社するそうなので連絡いらないです、朝勤からスタート出来るように準備お願します | D134: ○ | E134: ○ | F134: ○ | H134: ○
A135: 渋谷 | B135: 9/21 | C135: ｽﾘｯﾄでﾘｰﾄﾞ作ってくれた。製品ＳＴに2本、製品ラックに3本有り。STから使って。 | D135: ○ | E135: ○ | F135: ○ | H135: ○
A136: 渋谷 | B136: 9/22 | C136: NO1-1ﾛｰﾙ掃除したの誰？床のｱﾙﾐﾃｰﾌﾟがﾎﾞﾛﾎﾞﾛだったけど | D136: ○ | E136: ○ | F136: ○ | H136: ○
A137: 長谷部 | B137: 9/27 | C137: 10/3朝勤でNo1、No2、M側グリスアップお願いします。工務課で8：30からG側グリスアップします。 | D137: ○ | E137: ○ | F137: ○ | H137: ○
A138: 上田ゆ | B138: 9/28 | C138: 10/3安全衛生委員会の後に偉い人がCF2見に来ます。気をつけろ！ | D138: ○ | E138: ○ | F138: ○ | H138: ○
B139: 9/28 | C139: 10/4 安パトです。13:00～事前3Sよろしく。俺もチェックするよ。 | D139: ○ | E139: ○ | F139: ○ | H139: ○
B140: 10/3 | C140: ﾁｬﾝﾊﾞｰ押さえ刃、ブラシの柄が長いやつ欲しいって頼んだ | D140: ○ | E140: ○ | F140: ○ | H140: ○
A141: 塩田 | B141: 10/5 | C141: No1GのﾘﾍﾞﾝｼﾞﾏｯﾁをPRの時にやりたいそうです ｂｙ裕一さん | D141: ○ | E141: ○ | F141: ○ | H141: ○
A142: 菖蒲 | B142: 10/6 | C142: 午勤で チャンバーの写真お願いいたします | D142: ○ | E142: ○ | F142: ○ | H142: ○
A143: 菖蒲 | B143: 10/6 | C143: UV 確認してもらいました。 とりあえず問題ありませんでした。 | D143: ○ | E143: ○ | F143: ○ | H143: ○
A144: 塩田 | B144: 10/6 | C144: ＃31 1370幅のﾘｰﾄﾞ在庫なし→近々入庫予定→それまで＃25のﾘｰﾄﾞ使用して繋がる日本！ ※＃25のﾘｰﾄﾞだとｼﾜで変な欠点拾ったりする可能性あります・・・ | D144: ○ | E144: ○ | F144: ○ | H144: ○
A145: 塩田 | B145: 10/6 | C145: WZｼﾘｰｽﾞ最後に1050幅（＃31 A56Gの原反）ﾘｰﾄﾞ500m塗工依頼 | D145: ○ | E145: ○ | F145: ○ | H145: ○
A146: 塩田 | B146: 10/6 | C146: WZ（E)原反（E5001）のｺｱ内部に木屑が入っているとの連絡がありました 10/6 17：00以前に入庫してあるものは要注意！ 出庫時にｺｱ内部見て掃除機掛けてください | D146: ○ | E146: ○ | F146: ○ | H146: ○
A147: 渋谷 | B147: 10/7 | C147: 古河向けWZ（E)♯38 1245×6200 ♯25 1045×12300 原反虫懸念の為塗工中止 | D147: ○ | E147: ○ | F147: ○ | H147: ○
A148: 菖蒲 | B148: 10/7 | C148: 空調全部止めてください。 節電の為 | D148: ○ | E148: ○ | F148: ○ | H148: ○
A149: 菖蒲 | B149: 10/7 | C149: WZ(S)リンテック 1005幅 原反に虫発生のため １本中止。 | D149: ○ | E149: ○ | F149: ○ | H149: ○
A150: 長谷部 | B150: 10/13 | C150: MDA(PRF)L 1本ｺｱ割れの為1本中止→ﾘｶﾊﾞﾘｰ原反入りました | D150: ○ | E150: ○ | F150: ○ | H150: ○
A151: 長谷部 | B151: 10/14 | C151: 週末の空調停止手順 黄色のﾏｼﾞｯｸが付いてる場所を切る（ブレーカーはきらなくてよい） チラー停止手順 No1チラーの1-1 1-2を停止する（No2は切らない） | D151: ○ | E151: ○ | F151: ○ | H151: ○
A152: 渋谷 | B152: 10/18 | C152: 落下塵調査明後日予定 | D152: ○ | E152: ○ | F152: ○ | H152: ○
A153: 渋谷 | B153: 10/18 | C153: ﾃﾝｼｮﾝﾋﾟｯｸｱｯﾌﾟﾊﾞﾗﾝｽ調整10/21金曜日予定（11月の停機時に変更） | D153: ○ | E153: ○ | F153: ○ | H153: ○
A154: 渋谷 | B154: 10/20 | C154: 内ﾀｯﾁﾛｰﾙ両軸新品に交換しました。ｽﾌﾟﾗｲｽはできたけど塗工してどうなるか。塗ってある状態で、巻き、表層ズレ、軟巻き、ｽﾌﾟﾗｲｽ、巻き芯のｼﾜなどどうなるか。 | D154: ○ | E154: ○ | F154: ○ | H154: ○
A155: 渋谷 | B155: 10/20 | C155: 欠点検出器けしてあります。立ち上げた時エラーとか注意 | D155: ○ | E155: ○ | F155: ○ | H155: ○
A156: 渋谷 | B156: 10/20 | C156: 空調・チラーOFFしてあります。局排は手動で回ってるよ | D156: ○ | E156: ○ | F156: ○ | H156: ○
B157: 10/25 | C157: H・M室ｸﾞﾚｰﾁﾝｸﾞ掃除追加、夜勤でお願いします | D157: ○ | E157: ○ | F157: ○ | H157: ○
B158: 10/25 | C158: VﾍﾞﾙﾄB-96、８本使用。注文しました。 | D158: ○ | E158: ○ | F158: ○ | H158: ○
A159: 上田ゆ | B159: 10/28 | C159: 10/31 繰出しﾕﾆｯﾄEPCｼﾘﾝﾀﾞｰ交換します。朝勤は作業時補佐お願いします。 | D159: ○ | E159: ○ | F159: ○ | H159: ○
B160: 10/28 | C160: 本日夜勤で欠点検知器基準ﾛｰﾙ搬送点検実施してください。 | D160: ○ | E160: ○ | F160: ○ | H160: ○
A161: 塩田 | B161: 10/28 | C161: 搬送確認時に繰出しﾀﾞﾝｻｰﾛｰﾙ付近から異音有（ｷｭｰｷｭｰ） 裕一さんも確認済 発生個所が不明なので後日工務課に見てもらう予定 ←11/7時点分からない(聞こえない）様子見 | D161: ○ | E161: ○ | F161: ○ | H161: ○
A162: 渋谷 | B162: 10/31 | C162: ｻｲﾄﾞｼｰﾙ在庫少ない為注文してください→済 | D162: ○ | E162: ○ | F162: ○ | H162: ○
A163: 塩田 | B163: 11/1 | C163: 空調冬ﾓｰﾄﾞにしてほしい→連絡済 本日対応するとのこと ﾋﾟﾑｽ（地下ﾀﾝｸ）→地下ﾀﾝｸの計測するやつが壊れてる？全ﾏｼﾝ同じ症状 上羽さん案件なので時間」かかるかも | D163: ○ | E163: ○ | F163: ○ | H163: ○
A164: 塩田 | B164: 11/2 | C164: 巻取りｴﾘｱｾﾝｻｰの液晶が壊れてる 太田さんに確認してもらいましたが液晶だけﾀﾞﾒになってるだけでｾﾝｻｰ自体はちゃんと反応してます | D164: ○ | E164: ○ | F164: ○ | H164: ○
A165: 塩田 | B165: 11/2 | C165: 保護ﾏｽｸ入れが破損している方は新品の入れ物と交換してください | D165: ○ | E165: ○ | F165: ○ | H165: ○
A166: 長谷部 | B166: 11/2 | C166: BX8A(37)残原反 製品ST6番に入庫（RM1Z) | D166: ○ | E166: ○ | F166: ○ | H166: ○
A167: 長谷部 | B167: 11/2 | C167: 転写ｽﾀｰﾄ２時間前に押切さんに電話してください(順番変更になり広幅先に加工します） | D167: ○ | E167: ○ | F167: ○ | H167: ○
A168: 塩田 | B168: 11/30 | C168: TKA07X時間あるようなら加工してOKだそうです | D168: ○ | E168: ○ | F168: ○ | H168: ○
A169: 上田ゆ | B169: 11/7 | C169: 11/14（月）加工予定のデンカ向け＃38WZ(26)で原反QZ43のサンプルを10Ｍ採取し品証測定室へ届けてください。 品証課測定で使用するので忘れずに！ | D169: ○ | E169: ○ | F169: ○ | H169: ○
A170: 塩田 | B170: 11/7 | C170: ＢＫＥ（０９）1037幅→製品仕上がり長が8500mと8400mあるので注意してくだい | D170: ○ | E170: ○ | F170: ○ | H170: ○
A171: 長谷部 | B171: 11/8 | C171: ＢＫＥ（09）8500ｍ原反のｺｱ幅違いあるみたいなので注意してください（ＸＤ500Ｐで原反入荷するそうです） | D171: ○ | E171: ○ | F171: ○ | H171: ○
A172: 上田ゆ | B172: 11/17 | C172: 東レ役員監査の作業実査がCF2繰出し原反セットで行われます。14日にマシン停めて練習します、実査当日もマシン停めます。(課長指示） 実査の担当は相馬と岩瀬で実施します。なので練習は午勤でやります。 | D172: ○ | E172: ○ | F172: ○ | H172: ○
A173: 塩田 | B173: 11/10 | C173: ﾄﾞﾗｲｱｲｽによる気流測定？検査？ 11/11の午後にやる | D173: ○ | E173: ○ | F173: ○ | H173: ○
A174: 小林 | B174: 11/11 | C174: 週明け BX8A(37)ｺｱ 3本生産品→1250ｺｱ 7本ﾃｽﾄ品→1270ｺｱ 使用でお願いします | D174: ○ | E174: ○ | F174: ○ | H174: ○
A175: 菖蒲 | B175: 11/11 | C175: 週明け BX8A(37)原反ロット指定らしいです。 全長塗工する原反はＳ テスト塗工の原反はＴ ストッカー登録するみたいです。 | D175: ○ | E175: ○ | F175: ○ | H175: ○
A176: 上田ゆ | B176: 11/15 | C176: 製造条件を更新しました。読み取り専用のため新規で保存しました。旧版削除できないので謙太に相談してください。 | D176: ○ | E176: ○ | F176: ○ | H176: ○
A177: 村越 | B177: 11/16 | C177: No5ﾛｰﾙ（繰出し旋回ﾛｰﾙ）より異音有。岩井さんには見てもらうように連絡済 | D177: ○ | E177: ○ | F177: ○ | H177: ○
A178: 塩田 | B178: 11/17 | C178: ＢＫＥ（09）で製品規格外によるｸﾚｰﾑ有（A組） 製品規格→1030mm 製造伝票幅→1036mm ﾊﾟﾅｯｸにて検査幅→1037mm ※規格的に＋5mmまでの取り交わし←知らなかった・・・ | D178: ○ | E178: ○ | F178: ○ | H178: ○
C179: 製品規格より縮んでる場合はNGの認識だったけど 広すぎてもNGとのことでした・・・ 従来だと1035mm～1036mmで製造伝票に記載あり 1036mm時点でNGになる | D179: ○ | E179: ○ | F179: ○ | H179: ○
C180: 今まで出してても問題なかったのに・・・製造条件表に幅に関する記載がないのでその旨対応するとのことです 詳細は後日決まる？ | D180: ○ | E180: ○ | F180: ○ | H180: ○
A181: 塩田 | B181: 11/17 | C181: BX8A(X)1335幅 原反ｺｱ破損で2本ｼｮｰﾄ 30本→28本に変更です | D181: ○ | E181: ○ | F181: ○ | H181: ○
A182: 長谷部 | B182: 11/21 | C182: 11/22加工分のｻﾝﾌﾟﾙは、品証検査室に置いてください | D182: ○ | E182: ○ | F182: ○ | H182: ○
A183: 小林 | B183: 11/21 | C183: 透過欠点検知器個数表のファイル容量が重かったので（あまり軽くなってませんが…）新しくしました【透過欠点検知器個数表2022.11.21】。開くときは注意お願いします | D183: ○ | E183: ○ | F183: ○ | H183: ○
A184: 菖蒲 | B184: 11/28 | C184: セラピール ＢＸ８Ａ（Ｘ）75 1335X4200ｍの後 新ロット塗料ﾃｽﾄ 入ります。 | D184: ○ | E184: ○ | F184: ○ | H184: ○
A185: 渋谷 | B185: 11/30 | C185: 原反幅、製品幅しっかり確認してください。 | D185: ○ | E185: ○ | F185: ○ | H185: ○
A186: 菖蒲 | B186: 12/02 | C186: 本日より実施で、空調週末停機・立ち上げの方法が変更になります。（別紙あるので参考にしてください） | D186: ○ | E186: ○ | F186: ○ | H186: ○
A187: 渋谷 | B187: 12/05 | C187: MDA(PRF)L ｻｲﾄﾞ品10月製膜原反1番位置3本4番位置3本追加予定。生産安定したら途中でいれると思う | D187: ○ | E187: ○ | F187: ○ | H187: ○
A188: 渋谷 | B188: 12/05 | C188: X線毎日リファレンス測定してくださ。H-1に入ってます。 | D188: ○ | E188: ○ | F188: ○ | H188: ○
A189: 渋谷 | B189: 12/06 | C189: NO2G新品に交換しました | D189: ○ | E189: ○ | F189: ○ | H189: ○
A190: 渋谷 | B190: 12/06 | C190: NO1.2ﾎﾟﾝﾌﾟ流量備考欄に記載。ｽﾀｰﾄ、GD掃除、生産の途中など定期的に記入して→欄作成しました | D190: ○ | E190: ○ | F190: ○ | H190: ○
A191: 渋谷 | B191: 12/06 | C191: MDA(PRF)L後巻取りロールMEK拭きしてSY。SY後ｵｰﾌﾞﾝ掃除 | D191: ○ | E191: ○ | F191: ○ | H191: ○
A192: 塩田 | B192: 12/6 | C192: SYｼﾘｰｽﾞの加工順番を変更します 笠原さんと相談して決めたので別紙確認してください | D192: ○ | E192: ○ | F192: ○ | H192: ○
A193: 塩田 | B193: 12/8 | C193: SY（14）・（08）の条件表は12/9に笠原さんが用意する→SY(09)の条件表を基に手書き修正する 笠原さん立ち会えるの12時30分～だそうです | D193: ○ | E193: ○ | F193: ○ | H193: ○
A194: 上田ゆ | B194: 12/13 | C194: 厚番手用MFA5.2処方 ﾃﾞｽｸﾄｯﾌﾟに貼ってあります | D194: ○ | E194: ○ | F194: ○ | H194: ○
A195: 上田ゆ | B195: 12/13 | C195: MDA(PRF)L 10月製膜4番位置評価します。LOT指定あり。配台確認してください。OKなら残り加工します。 | D195: ○ | E195: ○ | F195: ○ | H195: ○
A196: 上田ゆ | B196: 12/13 | C196: 12月製膜XF60Rの連絡あり。1番位置は他社品向けに製膜するので02～04番位置のみ納品されます。入り目150mで納品されます。重いので注意！(予定未定） | D196: ○ | E196: ○ | F196: ○ | H196: ○
A197: 真壁 | B197: 12/14 | C197: ２３０UR再刻済みなし 再刻行きは原反倉庫に３本有り 裕一さんには連絡済み→1月入荷します（ゆういち） | D197: ○ | E197: ○ | F197: ○ | H197: ○
A198: 2023年
A199: 塩田 | B199: 1/5 | C199: ﾏｼﾝ立ち上げ時に二次ｴｱｰ圧力異常発生→旧事務所のﾌﾞﾚｰｶｰがﾄﾘｯﾌﾟしていた（漏電？原因不明）1/4は正常稼働確認済 業者を呼ぶ手配をしたとのことですが詳細は不明です | D199: ○ | E199: ○ | F199: ○ | H199: ○
A200: 塩田 | B200: 1/5 | C200: ﾏｼﾝ稼働時に再度二次ｴｱｰ圧力異常が発生したら工務課（太田さん）を呼ぶしかないみたいです 旧事務者なんで工務課管轄？ ｵﾍﾟﾚｰﾀｰは基本入室禁止？ | D200: ○ | E200: ○ | F200: ○ | H200: ○
A201: 上田ゆ | B201: 1/11 | C201: 1/14に予定しているMDA(PRF)Lにｼﾜ改善品評価2本が追加されています。(TAKで熱ｼﾜの原因見つかったぽい)評価品の投入は通常品の加工を数本実施し安定したところで お願いします。また、評価品2本の加工終了後直ぐに加工結果（ｼﾜ打点数)を俺に電話で連絡ください。 | D201: ○ | E201: ○ | F201: ○ | H201: ○
... 551 more rows

Sheet ｺｰﾀｰ作業日誌 (hidden)
AP1: 2024 | AQ1: 年 | AR1: 12 | AS1: 月 | AT1: 17 | AU1: 日
AU2: コーティング生産課
I3: ＣＦ－２ 作業日誌 | AI3: 朝勤 | AN3: 午勤 | AS3: 夜勤
A5: 当日 NO | B5: S T U 技 | C5: 加工依頼 | D5: 通し NO | E5: 依頼 数量 | F5: 品 種 | G5: ﾕｰｻﾞｰ | H5: # | I5: 原反 ｔｙｐｅ | J5: 原反 幅 (mm) | K5: 原反 長さ (m) | L5: 原反 投入長 (m) | M5: 製品 仕上幅 (mm) | N5: 製品 仕上 幅数 (本) | O5: 製品 仕様長 (m) | P5: 製品 仕様 長数 (本) | Q5: 製品 仕上長 (m) | R5: 製品 実績長 (m) | S5: 原反 LOT | T5: 製造 LOT | AB5: 原反コア チェック | AI5: C 加工 開始 | AJ5: C 加工 終了 | AK5: C 停機 開始 | AL5: C 停機 終了 | AM5: 加工 チャート | AN5: C 停機 チャート | AO5: 加工 時間 | AP5: 停機 時間 | AQ5: C ｺｰﾄ 面 | AR5: 良短 | AS5: C特記事項 | AZ5: 原反 (㎡) | BA5: 製品 (㎡) | BB5: ロス (㎡) | BC5: 欠点 ロス (㎡） | BD5: 前後 ロス (㎡) | BE5: 耳ロス (㎡) | BF5: 欠点 ロス (m） | BG5: 前後 ロス (m) | BH5: ㎡収率 (%) | BI5: ｍ収率 (%) | BJ5: ㎡欠点 ロス率 | BK5: 投入長
B6: U | C6: 3794796 | D6: 3 | E6: 12 | F6: WZ(26) | G6: デンカ渋川 | H6: 38 | I6: QZ43 | J6: 965 | K6: 12200 | L6: 12200 | M6: 960 | N6: 1 | O6: 6000 | P6: 2 | Q6: 6069 | R6: 6000 | S6: 05890721601 | T6: 4121740201205 | AB6: FWP | AI6: 06:05:00 | AJ6: 06:35:00 | AM6: U試作加工 | AO6: 00:30:00 | AQ6: 内 | AR6: 合定 | AZ6: =IF(J6="",0,J6*L6/1000/N6/P6) -> 5886.5 | BA6: =IF(M6="",0,M6*R6/1000/N6) -> 5760 | BB6: =IF(AZ6="",0,AZ6-BA6) -> 126.5 | BC6: =(M6/1000)*(O6-R6) -> 0 | BD6: =(L6-O6)*(M6/1000) -> 5952 | BE6: =(J6*L6/1000)-(M6*L6/1000) -> 61 | BF6: =L6-(L6-O6)-R6 -> 0 | BG6: =L6-O6 -> 6200 | BH6: =IF(AZ6=0,0,BA6/AZ6) -> 0.9785101503 | BI6: =IF(L6="",0,R6/(L6/P6)) -> 0.9836065574 | BJ6: =IF(AZ6=0,0,BC6/AZ6) -> 0 | BK6: =IF(L6="",0,L6/P6) -> 6100
AI7: 06:35:00 | AJ7: 06:45:00 | AM7: U試作加工 | AO7: 00:10:00 | AZ7: =IF(J7="",0,J7*L7/1000/N7/P7) -> 0 | BA7: 0 | BB7: 0 | BC7: 0 | BD7: =(L7-O7)*(M7/1000) -> 0 | BE7: =(J7*L7/1000)-(M7*L7/1000) -> 0 | BF7: =L7-(L7-O7)-R7 -> 0 | BG7: =L7-O7 -> 0 | BH7: =IF(AZ7=0,0,BA7/AZ7) -> 0 | BI7: =IF(L7="",0,R7/(L7/P7)) -> 0 | BJ7: =IF(AZ7=0,0,BC7/AZ7) -> 0 | BK7: =IF(L7="",0,L7/P7) -> 0
B8: U | C8: 3794796 | D8: 3 | E8: 12 | F8: WZ(26) | G8: デンカ渋川 | H8: 38 | I8: QZ43 | J8: 965 | K8: 12200 | L8: 12200 | M8: 960 | N8: 1 | O8: 6000 | P8: 2 | Q8: 6068 | R8: 6000 | S8: 05890721601 | T8: 4121740202205 | AB8: FWP | AI8: 06:45:00 | AJ8: 07:00:00 | AM8: U試作加工 | AO8: 00:15:00 | AQ8: 内 | AR8: 合定 | AZ8: 5886.5 | BA8: 5760 | BB8: 126.5 | BC8: 0 | BD8: =(L8-O8)*(M8/1000) -> 5952 | BE8: =(J8*L8/1000)-(M8*L8/1000) -> 61 | BF8: =L8-(L8-O8)-R8 -> 0 | BG8: =L8-O8 -> 6200 | BH8: =IF(AZ8=0,0,BA8/AZ8) -> 0.9785101503 | BI8: =IF(L8="",0,R8/(L8/P8)) -> 0.9836065574 | BJ8: =IF(AZ8=0,0,BC8/AZ8) -> 0 | BK8: =IF(L8="",0,L8/P8) -> 6100
B9: U | C9: 3794796 | D9: 4 | E9: 12 | F9: WZ(26) | G9: デンカ渋川 | H9: 38 | I9: QZ43 | J9: 965 | K9: 12200 | L9: 12200 | M9: 960 | N9: 1 | O9: 6000 | P9: 2 | Q9: 6064 | R9: 6000 | S9: 02890721601 | T9: 4121740203205 | AB9: FWP | AI9: 07:00:00 | AJ9: 07:25:00 | AM9: U試作加工 | AO9: 00:25:00 | AQ9: 内 | AR9: 合定 | AZ9: 5886.5 | BA9: 5760 | BB9: 126.5 | BC9: 0 | BD9: =(L9-O9)*(M9/1000) -> 5952 | BE9: =(J9*L9/1000)-(M9*L9/1000) -> 61 | BF9: =L9-(L9-O9)-R9 -> 0 | BG9: =L9-O9 -> 6200 | BH9: =IF(AZ9=0,0,BA9/AZ9) -> 0.9785101503 | BI9: =IF(L9="",0,R9/(L9/P9)) -> 0.9836065574 | BJ9: =IF(AZ9=0,0,BC9/AZ9) -> 0 | BK9: =IF(L9="",0,L9/P9) -> 6100
B10: U | C10: 3794796 | D10: 4 | E10: 12 | F10: WZ(26) | G10: デンカ渋川 | H10: 38 | I10: QZ43 | J10: 965 | K10: 12200 | L10: 12200 | M10: 960 | N10: 1 | O10: 6000 | P10: 2 | Q10: 6068 | R10: 6000 | S10: 02890721601 | T10: 4121740204205 | AB10: FWP | AI10: 07:25:00 | AJ10: 07:50:00 | AM10: U試作加工 | AO10: 00:25:00 | AQ10: 内 | AR10: 合定 | AZ10: 5886.5 | BA10: 5760 | BB10: 126.5 | BC10: 0 | BD10: =(L10-O10)*(M10/1000) -> 5952 | BE10: =(J10*L10/1000)-(M10*L10/1000) -> 61 | BF10: =L10-(L10-O10)-R10 -> 0 | BG10: =L10-O10 -> 6200 | BH10: =IF(AZ10=0,0,BA10/AZ10) -> 0.9785101503 | BI10: =IF(L10="",0,R10/(L10/P10)) -> 0.9836065574 | BJ10: =IF(AZ10=0,0,BC10/AZ10) -> 0 | BK10: =IF(L10="",0,L10/P10) -> 6100
B11: U | C11: 3794796 | D11: 5 | E11: 12 | F11: WZ(26) | G11: デンカ渋川 | H11: 38 | I11: QZ43 | J11: 965 | K11: 12200 | L11: 12200 | M11: 960 | N11: 1 | O11: 6000 | P11: 2 | Q11: 6065 | R11: 6000 | S11: 03890721602 | T11: 4121740205205 | AB11: FWP | AI11: 07:50:00 | AJ11: 08:20:00 | AM11: U試作加工 | AO11: 00:30:00 | AQ11: 内 | AR11: 合定 | AZ11: 5886.5 | BA11: 5760 | BB11: 126.5 | BC11: 0 | BD11: =(L11-O11)*(M11/1000) -> 5952 | BE11: 61 | BF11: 0 | BG11: 6200 | BH11: 0.9785101503 | BI11: 0.9836065574 | BJ11: 0 | BK11: 6100
B12: U | C12: 3794796 | D12: 5 | E12: 12 | F12: WZ(26) | G12: デンカ渋川 | H12: 38 | I12: QZ43 | J12: 965 | K12: 12200 | L12: 12200 | M12: 960 | N12: 1 | O12: 6000 | P12: 2 | Q12: 6064 | R12: 6000 | S12: 03890721602 | T12: 4121740206205 | AB12: FWP | AI12: 08:20:00 | AJ12: 08:45:00 | AM12: U試作加工 | AO12: 00:25:00 | AQ12: 内 | AR12: 合定 | AZ12: 5886.5 | BA12: 5760 | BB12: 126.5 | BC12: 0 | BD12: 5952 | BE12: 61 | BF12: 0 | BG12: 6200 | BH12: 0.9785101503 | BI12: 0.9836065574 | BJ12: 0 | BK12: 6100
B13: U | C13: 3794796 | D13: 6 | E13: 12 | F13: WZ(26) | G13: デンカ渋川 | H13: 38 | I13: QZ43 | J13: 965 | K13: 12200 | L13: 12200 | M13: 960 | N13: 1 | O13: 6000 | P13: 2 | Q13: 6070 | R13: 6000 | S13: 05890721602 | T13: 4121740207205 | AB13: FWP | AI13: 08:45:00 | AJ13: 09:10:00 | AM13: U試作加工 | AO13: 00:25:00 | AQ13: 内 | AR13: 合定 | AZ13: 5886.5 | BA13: 5760 | BB13: 126.5 | BC13: 0 | BD13: 5952 | BE13: 61 | BF13: 0 | BG13: 6200 | BH13: 0.9785101503 | BI13: 0.9836065574 | BJ13: 0 | BK13: 6100
B14: U | C14: 3794796 | D14: 6 | E14: 12 | F14: WZ(26) | G14: デンカ渋川 | H14: 38 | I14: QZ43 | J14: 965 | K14: 12200 | L14: 12200 | M14: 960 | N14: 1 | O14: 6000 | P14: 2 | Q14: 6063 | R14: 6000 | S14: 05890721602 | T14: 4121740208205 | AB14: FWP | AI14: 09:10:00 | AJ14: 09:40:00 | AM14: U試作加工 | AO14: 00:30:00 | AQ14: 内 | AR14: 合定 | AZ14: 5886.5 | BA14: 5760 | BB14: 126.5 | BC14: 0 | BD14: 5952 | BE14: 61 | BF14: 0 | BG14: 6200 | BH14: 0.9785101503 | BI14: 0.9836065574 | BJ14: 0 | BK14: 6100
B15: U | C15: 3794796 | D15: 7 | E15: 12 | F15: WZ(26) | G15: デンカ渋川 | H15: 38 | I15: QZ43 | J15: 965 | K15: 12200 | L15: 12200 | M15: 960 | N15: 1 | O15: 6000 | P15: 2 | Q15: 6063 | R15: 6000 | S15: 02890721602 | T15: 4121740209205 | AB15: FWP | AI15: 09:40:00 | AJ15: 10:05:00 | AM15: U試作加工 | AO15: 00:25:00 | AQ15: 内 | AR15: 合定 | AZ15: 5886.5 | BA15: 5760 | BB15: 126.5 | BC15: 0 | BD15: 5952 | BE15: 61 | BF15: 0 | BG15: 6200 | BH15: 0.9785101503 | BI15: 0.9836065574 | BJ15: 0 | BK15: 6100
B16: U | C16: 3794796 | D16: 7 | E16: 12 | F16: WZ(26) | G16: デンカ渋川 | H16: 38 | I16: QZ43 | J16: 965 | K16: 12200 | L16: 12200 | M16: 960 | N16: 1 | O16: 6000 | P16: 2 | Q16: 6067 | R16: 6000 | S16: 02890721602 | T16: 4121740210205 | AB16: FWP | AI16: 10:05:00 | AJ16: 10:30:00 | AM16: U試作加工 | AO16: 00:25:00 | AQ16: 内 | AR16: 合定 | AZ16: 5886.5 | BA16: 5760 | BB16: 126.5 | BC16: 0 | BD16: 5952 | BE16: 61 | BF16: 0 | BG16: 6200 | BH16: 0.9785101503 | BI16: 0.9836065574 | BJ16: 0 | BK16: 6100
B17: U | C17: 3794796 | D17: 8 | E17: 12 | F17: WZ(26) | G17: デンカ渋川 | H17: 38 | I17: QZ43 | J17: 965 | K17: 12200 | L17: 12200 | M17: 960 | N17: 1 | O17: 6000 | P17: 2 | Q17: 6066 | R17: 6000 | S17: 04890721602 | T17: 4121740211205 | AB17: FWP | AI17: 10:30:00 | AJ17: 11:00:00 | AM17: U試作加工 | AO17: 00:30:00 | AQ17: 内 | AR17: 合定 | AZ17: 5886.5 | BA17: 5760 | BB17: 126.5 | BC17: 0 | BD17: 5952 | BE17: 61 | BF17: 0 | BG17: 6200 | BH17: 0.9785101503 | BI17: 0.9836065574 | BJ17: 0 | BK17: 6100
B18: U | C18: 3794796 | D18: 8 | E18: 12 | F18: WZ(26) | G18: デンカ渋川 | H18: 38 | I18: QZ43 | J18: 965 | K18: 12200 | L18: 12200 | M18: 960 | N18: 1 | O18: 6000 | P18: 2 | Q18: 5600 | R18: 5560 | S18: 04890721602 | T18: 4121740212205 | AB18: FWP | AI18: 11:00:00 | AJ18: 11:25:00 | AM18: U試作加工 | AO18: 00:25:00 | AQ18: 内 | AR18: 合短 | AS18: 巻取り旋回時ﾌｨﾙﾑｽﾞﾚにより除去の為 | AZ18: 5886.5 | BA18: 5337.6 | BB18: 548.9 | BC18: 422.4 | BD18: 5952 | BE18: 61 | BF18: 440 | BG18: 6200 | BH18: 0.9067527393 | BI18: 0.9114754098 | BJ18: 0.07175741103 | BK18: 6100
B19: U | C19: 3794796 | D19: 9 | E19: 12 | F19: WZ(26) | G19: デンカ渋川 | H19: 38 | I19: QZ43 | J19: 965 | K19: 12200 | L19: 12200 | M19: 960 | N19: 1 | O19: 6000 | P19: 2 | Q19: 6062 | R19: 6000 | S19: 02890721604 | T19: 4121740213205 | AB19: FWP | AI19: 11:25:00 | AJ19: 11:50:00 | AM19: U試作加工 | AO19: 00:25:00 | AQ19: 内 | AR19: 合定 | AZ19: 5886.5 | BA19: 5760 | BB19: 126.5 | BC19: 0 | BD19: 5952 | BE19: 61 | BF19: 0 | BG19: 6200 | BH19: 0.9785101503 | BI19: 0.9836065574 | BJ19: 0 | BK19: 6100
B20: U | C20: 3794796 | D20: 9 | E20: 12 | F20: WZ(26) | G20: デンカ渋川 | H20: 38 | I20: QZ43 | J20: 965 | K20: 12200 | L20: 12200 | M20: 960 | N20: 1 | O20: 6000 | P20: 2 | Q20: 6061 | R20: 6000 | S20: 02890721604 | T20: 4121740214205 | AB20: FWP | AI20: 11:50:00 | AJ20: 12:15:00 | AM20: U試作加工 | AO20: 00:25:00 | AQ20: 内 | AR20: 合定 | AZ20: 5886.5 | BA20: 5760 | BB20: 126.5 | BC20: 0 | BD20: 5952 | BE20: 61 | BF20: 0 | BG20: 6200 | BH20: 0.9785101503 | BI20: 0.9836065574 | BJ20: 0 | BK20: 6100
B21: U | C21: 3794796 | D21: 10 | E21: 12 | F21: WZ(26) | G21: デンカ渋川 | H21: 38 | I21: QZ43 | J21: 965 | K21: 12200 | L21: 12200 | M21: 960 | N21: 1 | O21: 6000 | P21: 2 | Q21: 6062 | R21: 6000 | S21: 03890721604 | T21: 4121740215205 | AB21: FWP | AI21: 12:15:00 | AJ21: 12:45:00 | AM21: U試作加工 | AO21: 00:30:00 | AQ21: 内 | AR21: 合定 | AZ21: 5886.5 | BA21: 5760 | BB21: 126.5 | BC21: 0 | BD21: 5952 | BE21: 61 | BF21: 0 | BG21: 6200 | BH21: 0.9785101503 | BI21: 0.9836065574 | BJ21: 0 | BK21: 6100
B22: U | C22: 3794796 | D22: 10 | E22: 12 | F22: WZ(26) | G22: デンカ渋川 | H22: 38 | I22: QZ43 | J22: 965 | K22: 12200 | L22: 12200 | M22: 960 | N22: 1 | O22: 6000 | P22: 2 | Q22: 6068 | R22: 6000 | S22: 03890721604 | T22: 4121740216205 | AB22: FWP | AI22: 12:45:00 | AJ22: 13:10:00 | AM22: U試作加工 | AO22: 00:25:00 | AQ22: 内 | AR22: 合定 | AZ22: 5886.5 | BA22: 5760 | BB22: 126.5 | BC22: 0 | BD22: 5952 | BE22: 61 | BF22: 0 | BG22: 6200 | BH22: 0.9785101503 | BI22: 0.9836065574 | BJ22: 0 | BK22: 6100
B23: U | C23: 3794796 | D23: 11 | E23: 12 | F23: WZ(26) | G23: デンカ渋川 | H23: 38 | I23: QZ43 | J23: 965 | K23: 12200 | L23: 12200 | M23: 960 | N23: 1 | O23: 6000 | P23: 2 | Q23: 6066 | R23: 6000 | S23: 04890721604 | T23: 4121740217205 | AB23: FWP | AI23: 13:10:00 | AJ23: 13:35:00 | AM23: U試作加工 | AO23: 00:25:00 | AQ23: 内 | AR23: 合定 | AZ23: 5886.5 | BA23: 5760 | BB23: 126.5 | BC23: 0 | BD23: 5952 | BE23: 61 | BF23: 0 | BG23: 6200 | BH23: 0.9785101503 | BI23: 0.9836065574 | BJ23: 0 | BK23: 6100
B24: U | C24: 3794796 | D24: 11 | E24: 12 | F24: WZ(26) | G24: デンカ渋川 | H24: 38 | I24: QZ43 | J24: 965 | K24: 12200 | L24: 12200 | M24: 960 | N24: 1 | O24: 6000 | P24: 2 | Q24: 6069 | R24: 6000 | S24: 04890721604 | T24: 4121740218205 | AB24: FWP | AI24: 13:35:00 | AJ24: 14:05:00 | AM24: U試作加工 | AO24: 00:30:00 | AQ24: 内 | AR24: 合定 | AZ24: =IF(J24="",0,J24*L24/1000/N24/P24) -> 5886.5 | BA24: =IF(M24="",0,M24*R24/1000/N24) -> 5760 | BB24: =IF(AZ24="",0,AZ24-BA24) -> 126.5 | BC24: =(M24/1000)*(O24-R24) -> 0 | BD24: 5952 | BE24: 61 | BF24: 0 | BG24: 6200 | BH24: 0.9785101503 | BI24: 0.9836065574 | BJ24: 0 | BK24: 6100
B25: U | C25: 3794796 | D25: 12 | E25: 12 | F25: WZ(26) | G25: デンカ渋川 | H25: 38 | I25: QZ43 | J25: 965 | K25: 12200 | L25: 12200 | M25: 960 | N25: 1 | O25: 6000 | P25: 2 | Q25: 6068 | R25: 6000 | S25: 05890721604 | T25: 4121740219205 | AB25: FWP | AI25: 14:05:00 | AJ25: 14:30:00 | AM25: U試作加工 | AO25: 00:25:00 | AQ25: 内 | AR25: 合定 | AZ25: 5886.5 | BA25: 5760 | BB25: 126.5 | BC25: 0 | BD25: 5952 | BE25: 61 | BF25: 0 | BG25: 6200 | BH25: 0.9785101503 | BI25: 0.9836065574 | BJ25: 0 | BK25: 6100
B26: U | C26: 3794796 | D26: 12 | E26: 12 | F26: WZ(26) | G26: デンカ渋川 | H26: 38 | I26: QZ43 | J26: 965 | K26: 12200 | L26: 12200 | M26: 960 | N26: 1 | O26: 6000 | P26: 2 | Q26: 6068 | R26: 6000 | S26: 05890721604 | T26: 4121740220205 | AB26: FWP | AI26: 14:30:00 | AJ26: 14:55:00 | AM26: U試作加工 | AO26: 00:25:00 | AQ26: 内 | AR26: 合定 | AZ26: 5886.5 | BA26: 5760 | BB26: 126.5 | BC26: 0 | BD26: 5952 | BE26: 61 | BF26: 0 | BG26: 6200 | BH26: 0.9785101503 | BI26: 0.9836065574 | BJ26: 0 | BK26: 6100
AK27: 14:55:00 | AL27: 17:00:00 | AN27: 片付け | AP27: 02:05:00 | AS27: 製品下ろし・排ｶﾞｽOFF・ﾎﾞｲﾗｰOFF・UV立ち下げ・記録類まとめ・塗料廃棄 | AZ27: 0 | BA27: 0 | BB27: 0 | BC27: 0 | BD27: 0 | BE27: 0 | BF27: 0 | BG27: 0 | BH27: 0 | BI27: 0 | BJ27: 0 | BK27: 0
AS28: №12G洗浄、ﾎﾟﾝﾌﾟ（ﾄ）循環、ｻﾌﾞﾀﾝｸ・ﾁｬﾝﾊﾞｰ・調合桶掃除 | AZ28: 0 | BA28: 0 | BB28: 0 | BC28: 0 | BD28: 0 | BE28: 0 | BF28: 0 | BG28: 0 | BH28: 0 | BI28: 0 | BJ28: 0 | BK28: 0
AS29: 15：00～17：00（住化監査） | AZ29: 0 | BA29: 0 | BB29: 0 | BC29: =(M29/1000)*(O29-R29) -> 0 | BD29: 0 | BE29: 0 | BF29: 0 | BG29: 0 | BH29: 0 | BI29: 0 | BJ29: 0 | BK29: 0
AK30: 17:00:00 | AL30: 20:45:00 | AN30: 切替え | AP30: 03:45:00 | AS30: ﾌｨﾙﾑ抜き・高密度除電・除電ﾊﾞｰ掃除・繰出しﾛｰﾙ掃除 | AZ30: 0 | BA30: 0 | BB30: 0 | BC30: 0 | BD30: 0 | BE30: 0 | BF30: 0 | BG30: 0 | BH30: 0 | BI30: 0 | BJ30: 0 | BK30: 0
AS31: №12HD・ﾌﾟﾚ・前室・中二階ﾌﾟﾚ掃除・巻取りﾛｰﾙ掃除 | AZ31: 0 | BA31: 0 | BB31: 0 | BC31: 0 | BD31: 0 | BE31: 0 | BF31: 0 | BG31: 0 | BH31: 0 | BI31: 0 | BJ31: 0 | BK31: 0
AS32: ﾘｰﾄﾞ通し・EPC合わせ・No1.2HDﾛｰﾙﾃｰﾋﾟﾝｸﾞ ﾊﾟｽﾗｲﾝ確認者→真壁 | AZ32: 0 | BA32: 0 | BB32: 0 | BC32: 0 | BD32: 0 | BE32: 0 | BF32: 0 | BG32: 0 | BH32: 0 | BI32: 0 | BJ32: 0 | BK32: 0
AS33: 排ｶﾞｽ・ﾎﾞｲﾗｰON・UV立ち上げ・HD準備・原反出庫・梱包材準備 | AZ33: 0 | BA33: 0 | BB33: 0 | BC33: 0 | BD33: 0 | BE33: 0 | BF33: 0 | BG33: 0 | BH33: 0 | BI33: 0 | BJ33: 0 | BK33: 0
AS34: 条件設定・塗料調合・循環・先行ﾃｽﾄ→OK・X線測定 | AZ34: 0 | BA34: 0 | BB34: 0 | BC34: 0 | BD34: 0 | BE34: 0 | BF34: 0 | BG34: 0 | BH34: 0 | BI34: 0 | BJ34: 0 | BK34: 0
B35: U | C35: 3795190 | D35: 1 | E35: 1 | F35: TKA07(07) | G35: 日東電工㈱豊橋工場 | H35: 75 | I35: R41 | J35: 1100 | K35: 2200 | L35: 2200 | M35: 1090 | N35: 1 | O35: 1000 | P35: 1 | Q35: 1059 | R35: 1000 | S35: 11680202603-1 | T35: 4121740221205 | AB35: FWP | AI35: 20:45:00 | AJ35: 20:50:00 | AM35: U試作加工 | AO35: 00:05:00 | AQ35: 内 | AR35: 合定 | AZ35: 2420 | BA35: 1090 | BB35: 1330 | BC35: 0 | BD35: 1308 | BE35: 22 | BF35: 0 | BG35: 1200 | BH35: 0.4504132231 | BI35: 0.4545454545 | BJ35: 0 | BK35: 2200
B36: U | C36: 3795190 | D36: 1 | E36: 1 | F36: TKA07(07) | G36: 日東電工㈱豊橋工場 | H36: 75 | I36: R41 | J36: 1100 | K36: 2200 | L36: 2200 | M36: 1090 | N36: 1 | O36: 1000 | P36: 1 | Q36: 1005 | R36: 950 | S36: 11680202603-1 | T36: 4121740222205 | AB36: FWP | AI36: 20:50:00 | AJ36: 21:00:00 | AM36: U試作加工 | AO36: 00:10:00 | AQ36: 内 | AR36: 合短 | AS36: 出来高仕上げの為短尺 | AZ36: 2420 | BA36: 1035.5 | BB36: 1384.5 | BC36: 54.5 | BD36: 1308 | BE36: 22 | BF36: 50 | BG36: 1200 | BH36: 0.427892562 | BI36: 0.4318181818 | BJ36: 0.02252066116 | BK36: 2200
AK37: 21:00:00 | AL37: 22:00:00 | AN37: 片付け | AP37: 01:00:00 | AS37: 製品下ろし・排ｶﾞｽOFF・ﾎﾞｲﾗｰOFF・UV立ち下げ・記録類まとめ・塗料廃棄 | AZ37: 0 | BA37: 0 | BB37: 0 | BC37: 0 | BD37: 0 | BE37: 0 | BF37: 0 | BG37: 0 | BH37: 0 | BI37: 0 | BJ37: 0 | BK37: 0
AS38: №12G洗浄、ﾎﾟﾝﾌﾟ（ﾄ）循環、ｻﾌﾞﾀﾝｸ・ﾁｬﾝﾊﾞｰ・調合桶掃除 | AZ38: =IF(J38="",0,J38*L38/1000/N38/P38) -> 0 | BA38: =IF(M38="",0,M38*R38/1000/N38) -> 0 | BB38: =IF(AZ38="",0,AZ38-BA38) -> 0 | BC38: =(M38/1000)*(O38-R38) -> 0 | BD38: =(L38-O38)*(M38/1000) -> 0 | BE38: =(J38*L38/1000)-(M38*L38/1000) -> 0 | BF38: =L38-(L38-O38)-R38 -> 0 | BG38: =L38-O38 -> 0 | BH38: =IF(AZ38=0,0,BA38/AZ38) -> 0 | BI38: =IF(L38="",0,R38/(L38/P38)) -> 0 | BJ38: =IF(AZ38=0,0,BC38/AZ38) -> 0 | BK38: =IF(L38="",0,L38/P38) -> 0
AK39: 22:00:00 | AL39: 23:50:00 | AN39: 切替え | AP39: 01:50:00 | AS39: ﾌｨﾙﾑ抜き・高密度除電・除電ﾊﾞｰ掃除・繰出しﾛｰﾙ掃除 | AZ39: =IF(J39="",0,J39*L39/1000/N39/P39) -> 0 | BA39: =IF(M39="",0,M39*R39/1000/N39) -> 0 | BB39: =IF(AZ39="",0,AZ39-BA39) -> 0 | BC39: =(M39/1000)*(O39-R39) -> 0 | BD39: =(L39-O39)*(M39/1000) -> 0 | BE39: =(J39*L39/1000)-(M39*L39/1000) -> 0 | BF39: =L39-(L39-O39)-R39 -> 0 | BG39: =L39-O39 -> 0 | BH39: =IF(AZ39=0,0,BA39/AZ39) -> 0 | BI39: =IF(L39="",0,R39/(L39/P39)) -> 0 | BJ39: =IF(AZ39=0,0,BC39/AZ39) -> 0 | BK39: =IF(L39="",0,L39/P39) -> 0
AS40: №12HD・ﾌﾟﾚ・前室・中二階ﾌﾟﾚ掃除・巻取りﾛｰﾙ掃除 | AZ40: =IF(J40="",0,J40*L40/1000/N40/P40) -> 0 | BA40: =IF(M40="",0,M40*R40/1000/N40) -> 0 | BB40: =IF(AZ40="",0,AZ40-BA40) -> 0 | BC40: =(M40/1000)*(O40-R40) -> 0 | BD40: =(L40-O40)*(M40/1000) -> 0 | BE40: =(J40*L40/1000)-(M40*L40/1000) -> 0 | BF40: =L40-(L40-O40)-R40 -> 0 | BG40: =L40-O40 -> 0 | BH40: =IF(AZ40=0,0,BA40/AZ40) -> 0 | BI40: =IF(L40="",0,R40/(L40/P40)) -> 0 | BJ40: =IF(AZ40=0,0,BC40/AZ40) -> 0 | BK40: =IF(L40="",0,L40/P40) -> 0
AS41: ﾘｰﾄﾞ通し・EPC合わせ・No1.2HDﾛｰﾙﾃｰﾋﾟﾝｸﾞ ﾊﾟｽﾗｲﾝ確認者→長谷部 | AZ41: =IF(J41="",0,J41*L41/1000/N41/P41) -> 0 | BA41: 0 | BB41: 0 | BC41: 0 | BD41: 0 | BE41: 0 | BF41: 0 | BG41: 0 | BH41: 0 | BI41: 0 | BJ41: 0 | BK41: 0
AS42: 排ｶﾞｽ・ﾎﾞｲﾗｰON・UV立ち上げ・HD準備・原反出庫・梱包材準備 | AZ42: 0 | BA42: 0 | BB42: 0 | BC42: 0 | BD42: 0 | BE42: 0 | BF42: 0 | BG42: 0 | BH42: 0 | BI42: 0 | BJ42: 0 | BK42: 0
AS43: 条件設定・塗料調合・循環・先行ﾃｽﾄ→OK・X線測定 | AZ43: 0 | BA43: 0 | BB43: 0 | BC43: 0 | BD43: 0 | BE43: 0 | BF43: 0 | BG43: 0 | BH43: 0 | BI43: 0 | BJ43: 0 | BK43: 0
B44: S | C44: 3790229 | D44: 1 | E44: 11 | F44: BKE(RX) | G44: ㈱巴川製紙所 | H44: 25 | I44: R75XK | J44: 1337 | K44: 12300 | L44: 12300 | M44: 1337 | N44: 1 | O44: 12300 | P44: 1 | Q44: 12413 | R44: 12300 | S44: Z218P711H4 | T44: 41217402230 | AB44: FWP | AI44: 23:50:00 | AJ44: 00:45:00 | AM44: S加工 | AO44: 00:55:00 | AQ44: 内 | AR44: 合定 | AS44: 原反両端部：切粉無し | AZ44: 16445.1 | BA44: 16445.1 | BB44: 0 | BC44: 0 | BD44: 0 | BE44: 0 | BF44: 0 | BG44: 0 | BH44: 1 | BI44: 1 | BJ44: 0 | BK44: 12300
B45: S | C45: 3790229 | D45: 2 | E45: 11 | F45: BKE(RX) | G45: ㈱巴川製紙所 | H45: 25 | I45: R75XK | J45: 1337 | K45: 12300 | L45: 12300 | M45: 1337 | N45: 1 | O45: 12300 | P45: 1 | Q45: 12483 | R45: 12300 | S45: Z221P711H4 | T45: 41217402240 | AB45: FWP | AI45: 00:45:00 | AJ45: 01:40:00 | AM45: S加工 | AO45: 00:55:00 | AQ45: 内 | AR45: 合定 | AS45: 原反両端部：切粉無し | AZ45: 16445.1 | BA45: 16445.1 | BB45: 0 | BC45: 0 | BD45: 0 | BE45: 0 | BF45: 0 | BG45: 0 | BH45: 1 | BI45: 1 | BJ45: 0 | BK45: 12300
AK46: 01:40:00 | AL46: 02:35:00 | AN46: G/D清掃 | AP46: 00:55:00 | AS46: ﾆｱﾛｰﾙ・旋回ﾛｰﾙ掃除・先行ﾃｽﾄ→OK | AZ46: 0 | BA46: 0 | BB46: 0 | BC46: 0 | BD46: 0 | BE46: 0 | BF46: 0 | BG46: 0 | BH46: 0 | BI46: 0 | BJ46: 0 | BK46: 0
B47: S | C47: 3790229 | D47: 3 | E47: 11 | F47: BKE(RX) | G47: ㈱巴川製紙所 | H47: 25 | I47: R75XK | J47: 1337 | K47: 12300 | L47: 12300 | M47: 1337 | N47: 1 | O47: 12300 | P47: 1 | Q47: 12411 | R47: 12300 | S47: Z219P711H4 | T47: 41217402250 | AB47: FWP | AI47: 02:35:00 | AJ47: 03:30:00 | AM47: S加工 | AO47: 00:55:00 | AQ47: 内 | AR47: 合定 | AS47: 原反両端部：切粉無し | AZ47: 16445.1 | BA47: 16445.1 | BB47: 0 | BC47: 0 | BD47: 0 | BE47: 0 | BF47: 0 | BG47: 0 | BH47: 1 | BI47: 1 | BJ47: 0 | BK47: 12300
B48: S | C48: 3790229 | D48: 4 | E48: 11 | F48: BKE(RX) | G48: ㈱巴川製紙所 | H48: 25 | I48: R75XK | J48: 1337 | K48: 12300 | L48: 12300 | M48: 1337 | N48: 1 | O48: 12300 | P48: 1 | Q48: 12398 | R48: 12300 | S48: Z219P721H4 | T48: 41217402260 | AB48: FWP | AI48: 03:30:00 | AJ48: 04:25:00 | AM48: S加工 | AO48: 00:55:00 | AQ48: 内 | AR48: 合定 | AS48: 原反両端部：切粉無し | AZ48: 16445.1 | BA48: 16445.1 | BB48: 0 | BC48: 0 | BD48: 0 | BE48: 0 | BF48: 0 | BG48: 0 | BH48: 1 | BI48: 1 | BJ48: 0 | BK48: 12300
B49: S | C49: 3790229 | D49: 5 | E49: 11 | F49: BKE(RX) | G49: ㈱巴川製紙所 | H49: 25 | I49: R75XK | J49: 1337 | K49: 12300 | L49: 12300 | M49: 1337 | N49: 1 | O49: 12300 | P49: 1 | Q49: 12470 | R49: 12300 | S49: Z218P721H4 | T49: 41217402270 | AB49: FWP | AI49: 04:25:00 | AJ49: 05:15:00 | AM49: S加工 | AO49: 00:50:00 | AQ49: 内 | AR49: 合定 | AS49: 原反両端部：切粉無し | AZ49: 16445.1 | BA49: 16445.1 | BB49: 0 | BC49: 0 | BD49: 0 | BE49: 0 | BF49: 0 | BG49: 0 | BH49: 1 | BI49: 1 | BJ49: 0 | BK49: 12300
B50: S | C50: 3790229 | D50: 6 | E50: 11 | F50: BKE(RX) | G50: ㈱巴川製紙所 | H50: 25 | I50: R75XK | J50: 1337 | K50: 12300 | L50: 12300 | M50: 1337 | N50: 1 | O50: 12300 | P50: 1 | Q50: 12420 | R50: 12300 | S50: Z221P731H4 | T50: 41217402280 | AB50: FWP | AI50: 05:15:00 | AJ50: 06:10:00 | AM50: S加工 | AO50: 00:55:00 | AQ50: 内 | AR50: 合定 | AS50: 原反両端部：切粉無し | AZ50: 16445.1 | BA50: 16445.1 | BB50: 0 | BC50: 0 | BD50: 0 | BE50: 0 | BF50: 0 | BG50: 0 | BH50: 1 | BI50: 1 | BJ50: 0 | BK50: 12300
AI51: 06:10:00 | AJ51: 06:45:00 | AM51: S加工 | AO51: 00:35:00 | AZ51: 0 | BA51: 0 | BB51: 0 | BC51: 0 | BD51: 0 | BE51: 0 | BF51: 0 | BG51: 0 | BH51: 0 | BI51: 0 | BJ51: 0 | BK51: 0
AZ52: 0 | BA52: 0 | BB52: 0 | BC52: 0 | BD52: 0 | BE52: 0 | BF52: 0 | BG52: 0 | BH52: 0 | BI52: 0 | BJ52: 0 | BK52: 0
AZ53: 0 | BA53: 0 | BB53: 0 | BC53: 0 | BD53: 0 | BE53: 0 | BF53: 0 | BG53: 0 | BH53: 0 | BI53: 0 | BJ53: 0 | BK53: 0
AZ54: 0 | BA54: 0 | BB54: 0 | BC54: 0 | BD54: 0 | BE54: 0 | BF54: 0 | BG54: 0 | BH54: 0 | BI54: 0 | BJ54: 0 | BK54: 0
AZ55: 0 | BA55: 0 | BB55: 0 | BC55: 0 | BD55: 0 | BE55: 0 | BF55: 0 | BG55: 0 | BH55: 0 | BI55: 0 | BJ55: 0 | BK55: 0
AZ56: 0 | BA56: 0 | BB56: 0 | BC56: 0 | BD56: 0 | BE56: 0 | BF56: 0 | BG56: 0 | BH56: 0 | BI56: 0 | BJ56: 0 | BK56: 0
AZ57: 0 | BA57: 0 | BB57: 0 | BC57: 0 | BD57: 0 | BE57: 0 | BF57: 0 | BG57: 0 | BH57: 0 | BI57: 0 | BJ57: 0 | BK57: 0
AZ58: 0 | BA58: 0 | BB58: 0 | BC58: 0 | BD58: 0 | BE58: 0 | BF58: 0 | BG58: 0 | BH58: 0 | BI58: 0 | BJ58: 0 | BK58: 0
AZ59: 0 | BA59: 0 | BB59: 0 | BC59: 0 | BD59: 0 | BE59: 0 | BF59: 0 | BG59: 0 | BH59: 0 | BI59: 0 | BJ59: 0 | BK59: 0
AZ60: 0 | BA60: 0 | BB60: 0 | BC60: 0 | BD60: 0 | BE60: 0 | BF60: 0 | BG60: 0 | BH60: 0 | BI60: 0 | BJ60: 0 | BK60: 0
AZ61: 0 | BA61: 0 | BB61: 0 | BC61: 0 | BD61: 0 | BE61: 0 | BF61: 0 | BG61: 0 | BH61: 0 | BI61: 0 | BJ61: 0 | BK61: 0
AR62: 面積収率
A63: 特記事項 ・ 作業内容 | I63: 使用溶剤 | K63: ロール清掃 | N63: 洗油 | P63: ＴＯＴＡＬ | AR63: 投入（㎡） | AT63: =SUM(AZ6:AZ61) -> 221240.6 | AW63: =SUM(AZ6:AZ61) -> 221240.6
A64: 朝勤 | AR64: 加工（㎡） | AT64: =SUM(BA6:BA61) -> 215573.7
I65: ＭＥＫ (kg) | P65: 0 | AR65: ロス(㎡) | AT65: =AT63-AT64 -> 5666.9
I66: ヘプタン (kg) | P66: 0 | AR66: 収率（％） | AT66: =AT64/AT63 -> 0.9743858044
I67: ＩＰＡ (kg) | P67: 0 | AR67: ﾛｽ率（％） | AT67: =AT65/AT63 -> 0.02561419559
A68: 午勤 | I68: トルエン (kg) | P68: 0 | AR68: 長手収率
I69: ＭＥＫ (kg) | P69: =SUM(K69:O69) -> 0 | AR69: 投入(m) | AT69: =SUM(BK6:BK61) -> 200200
I70: ヘプタン (kg) | P70: 0 | AR70: 加工(m) | AT70: =SUM(R6:R61) -> 195310
I71: ＩＰＡ (kg) | P71: 0 | AR71: ロス(m) | AT71: =AT69-AT70 -> 4890
A72: 夜勤 | I72: トルエン (kg) | P72: 0 | AR72: 収率（％） | AT72: =AT70/AT69 -> 0.9755744256
I73: ＭＥＫ (kg) | P73: 0 | AR73: ﾛｽ率（％） | AT73: =AT71/AT69 -> 0.02442557443
I74: ヘプタン (kg) | P74: =SUM(K74:O74) -> 0
I75: ＩＰＡ (kg) | P75: =SUM(K75:O75) -> 0 | AR75: 年休者 | AS75: 補 勤 | AU75: 審 査
D76: BKE(RX)1337幅
A77: 塗料調合 | D77: アンカー① | F77: シリコン① | H77: アンカー② | J77: シリコン② | L77: アンカー③ | O77: シリコン③ | Q77: アンカー④ | S77: シリコン④ | T77: アンカー⑤ | V77: シリコン④ | AB77: シリコン⑤
A78: Ｇロールｔｙｐｅ．ＮＯ | D78: 230UR | F78: 110UR | H78: 230UR | J78: 110UR | L78: 230UR | O78: 110UR | Q78: 230UR② | S78: 110UR | T78: 230UR② | V78: 110UR③ | AB78: 110UR⑥
A79: 本日調合量 （ｋｇ） | AR79: 年・指・忌 | AS79: ｈｒ | AT79: ｈｒ
A80: 累 積 量 （ｋｇ） | D80: 420 | F80: 900.27
A81: 総 調 合 量 （ｋｇ） | D81: =IF(D79+D80<>0,D79+D80,"") -> 420 | F81: 900.27 | AU81: 承 認
A82: 残 量 （ｋｇ）
A83: 総塗工使用量 （ｋｇ） | D83: =IFERROR(IF(D81-D82<>0,D81-D82,""),"") -> 420 | F83: 900.27 | AR83: 年・指・忌 | AS83: ｈｒ | AT83: ｈｒ
A84: 累 積 塗 工 （㎡） | D84: 99733.515
A85: 総 塗 工 （㎡）
D86: =IFERROR(D83/D85*1000,"") -> 
A87: 洗 油 （ｋｇ） | AM87: . | AR87: 年・指・忌 | AS87: ｈｒ | AT87: ｈｒ
A88: 品質記録－Ｄ１－０９－０３ | L88: =IFERROR(L85/L87*1000,"") ->  | M88: =IFERROR(M85/M87*1000,"") ->  | N88: =IFERROR(N85/N87*1000,"") ->  | O88: =IFERROR(O85/O87*1000,"") ->  | P88: =IFERROR(P85/P87*1000,"") ->  | AP88: 2017 | AQ88: 年 | AR88: 8 | AS88: 月 | AT88: 24 | AU88: 日
AU89: コーティング生産課
H90: =IFERROR(H87/H89*1000,"") ->  | AI90: 朝勤 | AO90: 午勤 | AS90: 夜勤
A92: 当日 NO | B92: S/T U | C92: 加工依頼 | D92: 通し NO | E92: 依頼 数量 | F92: 品 種 | G92: ﾕｰｻﾞｰ | H92: # | I92: 原反 ｔｙｐｅ | J92: 原反 幅 (mm) | K92: 原反 長さ (m) | L92: 原反 投入長 (m) | M92: 製品 仕上幅 (mm) | N92: 製品 仕上 幅数 (本) | O92: 製品 仕様長 (m) | P92: 製品 仕様 長数 (本) | Q92: 製品 仕上長 (m) | R92: 製品 実績長 (m) | S92: 原反 LOT | T92: 製品 LOT | AB92: 原反コア チェック | AI92: 加工 開始 | AJ92: 加工 終了 | AK92: 停機 開始 | AL92: 停機 終了 | AM92: 停機 項目 | AN92: ｺｰﾄ 面 | AO92: 合否 | AP92: 特記事項 | AW92: 原反 (㎡) | AX92: 製品 (㎡) | AY92: ロス (㎡) | AZ92: 欠点 ロス (㎡） | BA92: 前後 ロス (㎡) | BB92: 耳ロス (㎡) | BC92: 欠点 ロス (m） | BD92: 前後 ロス (m) | BE92: ㎡収率 (%) | BF92: ｍ収率 (%)
A93: 41 | AW93: =J93*L93/1000 -> 0 | AX93: =M93*R93/1000 -> 0 | AY93: =AW93-AX93 -> 0 | AZ93: =(M93/1000)*(O93-R93) -> 0 | BA93: =(L93-O93)*(M93/1000) -> 0 | BB93: =(J93*L93/1000)-(M93*L93/1000) -> 0 | BC93: =L93-(L93-O93)-R93 -> 0 | BD93: =L93-O93 -> 0 | BE93: =AX93/AW93 ->  | BF93: =R93/L93 -> 
A94: 42 | AW94: =J94*L94/1000 -> 0 | AX94: =M94*R94/1000 -> 0 | AY94: =AW94-AX94 -> 0 | AZ94: 0 | BA94: 0 | BB94: 0 | BC94: 0 | BD94: 0 | BE94: =AX94/AW94 -> 
A95: 43 | AX95: 0 | AY95: 0 | AZ95: 0 | BA95: 0 | BB95: 0 | BC95: 0 | BD95: 0
A96: 44 | AX96: 0 | AY96: 0 | AZ96: 0 | BA96: 0 | BB96: 0 | BC96: 0 | BD96: 0
A97: 45 | AX97: 0 | AY97: 0 | AZ97: 0 | BA97: 0 | BB97: 0 | BC97: 0 | BD97: 0
A98: 46 | AX98: 0 | AY98: 0 | AZ98: 0 | BA98: 0 | BB98: 0 | BC98: 0 | BD98: 0
A99: 47 | AX99: 0 | AY99: 0 | AZ99: 0 | BA99: 0 | BB99: 0 | BC99: 0 | BD99: 0
A100: 48 | AX100: 0 | AY100: 0 | AZ100: 0 | BA100: 0 | BB100: 0 | BC100: 0 | BD100: 0
A101: 49 | AX101: 0 | AY101: 0 | AZ101: 0 | BA101: 0 | BB101: 0 | BC101: 0 | BD101: 0
A102: 50 | AX102: 0 | AY102: 0 | AZ102: 0 | BA102: 0 | BB102: 0 | BC102: 0 | BD102: 0
A103: 51 | AX103: 0 | AY103: 0 | AZ103: 0 | BA103: 0 | BB103: 0 | BC103: 0 | BD103: 0
A104: 52 | AX104: 0 | AY104: 0 | AZ104: 0 | BA104: 0 | BB104: 0 | BC104: 0 | BD104: 0
A105: 53 | AX105: 0 | AY105: 0 | AZ105: 0 | BA105: 0 | BB105: 0 | BC105: 0 | BD105: 0
A106: 54 | AX106: 0 | AY106: 0 | AZ106: 0 | BA106: 0 | BB106: 0 | BC106: 0 | BD106: 0
A107: 55 | AX107: 0 | AY107: 0 | AZ107: 0 | BA107: 0 | BB107: 0 | BC107: 0 | BD107: 0
A108: 56 | AW108: =J108*L108/1000 -> 0 | AX108: 0 | AY108: 0 | AZ108: 0 | BA108: 0 | BB108: 0 | BC108: 0 | BD108: 0
A109: 57 | AW109: 0 | AX109: 0 | AY109: 0 | AZ109: 0 | BA109: 0 | BB109: 0 | BC109: 0 | BD109: 0
A110: 58 | AW110: 0 | AX110: 0 | AY110: 0 | AZ110: 0 | BA110: 0 | BB110: 0 | BC110: 0 | BD110: 0
A111: 59 | AW111: 0 | AX111: 0 | AY111: 0 | AZ111: 0 | BA111: 0 | BB111: 0 | BC111: 0 | BD111: 0
A112: 60 | AW112: 0 | AX112: 0 | AY112: 0 | AZ112: 0 | BA112: 0 | BB112: 0 | BC112: 0 | BD112: 0
A113: 61 | AW113: 0 | AX113: 0 | AY113: 0 | AZ113: 0 | BA113: 0 | BB113: 0 | BC113: 0 | BD113: 0
A114: 62 | AW114: 0 | AX114: 0 | AY114: 0 | AZ114: 0 | BA114: 0 | BB114: 0 | BC114: 0 | BD114: 0
A115: 63 | AW115: 0 | AX115: 0 | AY115: 0 | AZ115: 0 | BA115: 0 | BB115: 0 | BC115: 0 | BD115: 0
A116: 64 | AW116: 0 | AX116: 0 | AY116: 0 | AZ116: 0 | BA116: 0 | BB116: 0 | BC116: 0 | BD116: 0
A117: 65 | AW117: 0 | AX117: 0 | AY117: 0 | AZ117: 0 | BA117: 0 | BB117: 0 | BC117: 0 | BD117: 0
A118: 66 | AW118: 0 | AX118: 0 | AY118: 0 | AZ118: 0 | BA118: 0 | BB118: 0 | BC118: 0 | BD118: 0
A119: 67 | AW119: 0 | AX119: 0 | AY119: 0 | AZ119: 0 | BA119: 0 | BB119: 0 | BC119: 0 | BD119: 0
A120: 68 | AW120: 0 | AX120: 0 | AY120: 0 | AZ120: 0 | BA120: 0 | BB120: 0 | BC120: 0 | BD120: 0
A121: 69 | AW121: 0 | AX121: 0 | AY121: 0 | AZ121: 0 | BA121: 0 | BB121: 0 | BC121: 0 | BD121: 0
A122: 70 | AW122: 0 | AX122: 0 | AY122: 0 | AZ122: 0 | BA122: 0 | BB122: 0 | BC122: 0 | BD122: 0
A123: 71 | AW123: 0 | AX123: 0 | AY123: 0 | AZ123: 0 | BA123: 0 | BB123: 0 | BC123: 0 | BD123: 0
A124: 72 | AW124: 0 | AX124: 0 | AY124: 0 | AZ124: 0 | BA124: 0 | BB124: 0 | BC124: 0 | BD124: 0
A125: 73 | AW125: 0 | AX125: 0 | AY125: 0 | AZ125: 0 | BA125: 0 | BB125: 0 | BC125: 0 | BD125: 0
A126: 74 | AW126: 0 | AX126: 0 | AY126: 0 | AZ126: 0 | BA126: 0 | BB126: 0 | BC126: 0 | BD126: 0
A127: 75 | AW127: 0 | AX127: 0 | AY127: 0 | AZ127: 0 | BA127: 0 | BB127: 0 | BC127: 0 | BD127: 0
A128: 76 | AW128: 0 | AX128: 0 | AY128: 0 | AZ128: 0 | BA128: 0 | BB128: 0 | BC128: 0 | BD128: 0
A129: 77 | AW129: 0 | AX129: 0 | AY129: 0 | AZ129: 0 | BA129: 0 | BB129: 0 | BC129: 0 | BD129: 0
A130: 78 | AW130: 0 | AX130: 0 | AY130: 0 | AZ130: 0 | BA130: 0 | BB130: 0 | BC130: 0 | BD130: 0
A131: 79 | AW131: 0 | AX131: 0 | AY131: 0 | AZ131: 0 | BA131: 0 | BB131: 0 | BC131: 0 | BD131: 0
A132: 80 | AW132: 0 | AX132: 0 | AY132: 0 | AZ132: 0 | BA132: 0 | BB132: 0 | BC132: 0 | BD132: 0
AR133: 面積収率
A134: 特記事項 ・ 作業内容 | I134: 使用溶剤 | K134: ロール清掃 | N134: 洗油 | P134: ＴＯＴＡＬ | AR134: 投入（㎡） | AT134: =SUM(AW93:AW132) -> 0
A135: 朝勤 | I135: トルエン (kg) | P135: =SUM(K135:O135) -> 0 | AR135: 加工（㎡） | AT135: =SUM(AX93:AX132) -> 0
I136: ＭＥＫ (kg) | P136: =SUM(K136:O136) -> 0 | AR136: ロス（㎡） | AT136: =AT134-AT135 -> 0
I137: ヘプタン (kg) | P137: 0 | AR137: 収率（％） | AT137: =AT135/AT134 -> 
I138: ＩＰＡ (kg) | P138: 0 | AR138: ﾛｽ率（％） | AT138: =AT136/AT134 -> 
A139: 午勤 | I139: トルエン (kg) | P139: 0 | AR139: 長手収率
I140: ＭＥＫ (kg) | P140: 0 | AR140: 投入(m) | AT140: =SUM(L95:L132) -> 0
I141: ヘプタン (kg) | P141: 0 | AR141: 加工(m) | AT141: =SUM(R95:R132) -> 0
I142: ＩＰＡ (kg) | P142: 0 | AR142: ロス(m) | AT142: =AT140-AT141 -> 0
A143: 夜勤 | I143: トルエン (kg) | P143: 0 | AR143: 収率（％） | AT143: =AT141/AT140 -> 
I144: ＭＥＫ (kg) | P144: 0 | AR144: ﾛｽ率（％） | AT144: =AT142/AT140 -> 
I145: ヘプタン (kg) | P145: 0
I146: ＩＰＡ (kg) | P146: 0 | AR146: 年休者 | AS146: 補 勤 | AU146: 審 査
D147: WZ(E）1045
A148: 塗料調合 | D148: アンカー① | F148: シリコン① | H148: アンカー② | J148: シリコン② | L148: アンカー③ | O148: シリコン③
A149: Ｇロールｔｙｐｅ．ＮＯ | D149: 230UR | F149: 110UR | H149: 230UR② | J149: 110UR②
A150: 本日調合量 （ｋｇ） | AR150: 年・指・忌 | AS150: ｈｒ | AT150: ｈｒ
A151: 累 積 量 （ｋｇ）
A152: 総 調 合 量 （ｋｇ） | AU152: 承 認
A153: 残 量 （ｋｇ）
A154: 総塗工使用量 （ｋｇ） | AR154: 年・指・忌 | AS154: ｈｒ | AT154: ｈｒ
A155: 累 積 塗 工 （㎡）
A156: 総 塗 工 （㎡）
A157: 塗 布 量 （ｇ/㎡）
A158: 洗 油 （ｋｇ） | AR158: 年・指・忌 | AS158: ｈｒ | AT158: ｈｒ

Sheet ㎡ (hidden)
J3: 加工平米
J5: 原反 幅 (mm) | L5: 原反 長さ (m) | Q5: 製品 仕上長 (m) | AH5: 加工㎡ | AI5: 加工㎡ | AJ5: 加工㎡ | AK5: 欠点 ロス (㎡） | AL5: 前後 ロス (㎡) | AM5: 耳ロス (㎡) | AN5: 欠点 ロス (m） | AO5: 前後 ロス (m) | AP5: ㎡収率 (%) | AQ5: ｍ収率 (%)
J6: 1335 | K6: 12200 | L6: 12200 | M6: 1330 | N6: 1 | O6: 6000 | P6: 2 | Q6: 3200 | R6: 6000 | AG6: =J6*L6/1000 -> 16287 | AH6: =J6*Q6/1000 -> 4272 | AI6: =J6*L6/1000 -> 16287 | AJ6: =O6*M6/1000 -> 7980 | AK6: =(M6/1000)*(N6-P6) -> -1.33 | AL6: =(L6-N6)*(M6/1000) -> 16224.67 | AM6: =(J6*L6/1000)-(M6*L6/1000) -> 61 | AN6: =L6-(L6-N6)-P6 -> -1 | AO6: =L6-N6 -> 12199 | AP6: =AH6/AG6 -> 0.262295082 | AQ6: =P6/L6 -> 0.0001639344262
J7: 1335 | K7: 12200 | L7: 12200 | M7: 1330 | N7: 1 | O7: 6000 | P7: 2 | Q7: 6000 | R7: 6000 | AG7: =J7*L7/1000 -> 16287 | AH7: =J7*Q7/1000 -> 8010 | AI7: =J7*L7/1000 -> 16287 | AJ7: 7980 | AK7: -1.33 | AL7: 16224.67 | AM7: =(J7*L7/1000)-(M7*L7/1000) -> 61 | AN7: -1 | AO7: 12199 | AP7: =AH7/AG7 -> 0.4918032787 | AQ7: 0.0001639344262
J8: 1335 | K8: 12200 | L8: 12200 | M8: 1330 | N8: 1 | O8: 6000 | P8: 2 | Q8: 6000 | R8: 6000 | AG8: =J8*L8/1000 -> 16287 | AH8: =J8*Q8/1000 -> 8010 | AI8: =J8*L8/1000 -> 16287 | AJ8: 7980 | AK8: -1.33 | AL8: 16224.67 | AM8: =(J8*L8/1000)-(M8*L8/1000) -> 61 | AN8: -1 | AO8: 12199 | AP8: =AH8/AG8 -> 0.4918032787 | AQ8: 0.0001639344262
J9: 1335 | K9: 12200 | L9: 12200 | M9: 1330 | N9: 1 | O9: 6000 | P9: 2 | Q9: 6000 | R9: 6000 | AG9: 16287 | AH9: 8010 | AI9: 16287 | AJ9: 7980 | AK9: -1.33 | AL9: 16224.67 | AM9: 61 | AN9: -1 | AO9: 12199 | AP9: 0.4918032787 | AQ9: 0.0001639344262
J10: 1335 | K10: 12200 | L10: 12200 | M10: 1330 | N10: 1 | O10: 6000 | P10: 2 | Q10: 6000 | R10: 6000 | AG10: 16287 | AH10: 8010 | AI10: 16287 | AJ10: 7980 | AK10: -1.33 | AL10: 16224.67 | AM10: 61 | AN10: -1 | AO10: 12199 | AP10: 0.4918032787 | AQ10: 0.0001639344262
J11: 1335 | K11: 12200 | L11: 12200 | M11: 1330 | N11: 1 | O11: 6000 | P11: 2 | Q11: 6000 | R11: 6000 | AG11: 16287 | AH11: 8010 | AI11: 16287 | AJ11: 7980 | AK11: -1.33 | AL11: 16224.67 | AM11: 61 | AN11: -1 | AO11: 12199 | AP11: 0.4918032787 | AQ11: 0.0001639344262
AG12: 0 | AH12: 0 | AI12: 0 | AJ12: 0 | AK12: 0 | AL12: 0 | AM12: 0 | AN12: 0 | AO12: 0
AG13: 0 | AH13: 0 | AI13: 0 | AJ13: 0 | AK13: 0 | AL13: 0 | AM13: 0 | AN13: 0 | AO13: 0
AG14: 0 | AH14: 0 | AI14: 0 | AJ14: 0 | AK14: 0 | AL14: 0 | AM14: 0 | AN14: 0 | AO14: 0
AG15: 0 | AH15: 0 | AI15: 0 | AJ15: 0 | AK15: 0 | AL15: 0 | AM15: 0 | AN15: 0 | AO15: 0
AG16: 0 | AH16: 0 | AI16: 0 | AJ16: 0 | AK16: 0 | AL16: 0 | AM16: 0 | AN16: 0 | AO16: 0
AG17: 0 | AH17: 0 | AI17: 0 | AJ17: 0 | AK17: 0 | AL17: 0 | AM17: 0 | AN17: 0 | AO17: 0
AG18: 0 | AH18: 0 | AI18: 0 | AJ18: 0 | AK18: 0 | AL18: 0 | AM18: 0 | AN18: 0 | AO18: 0
AG19: 0 | AH19: 0 | AI19: 0 | AJ19: 0 | AK19: 0 | AL19: 0 | AM19: 0 | AN19: 0 | AO19: 0
AG20: 0 | AH20: 0 | AI20: 0 | AJ20: 0 | AK20: 0 | AL20: 0 | AM20: 0 | AN20: 0 | AO20: 0
AG21: 0 | AH21: 0 | AI21: 0 | AJ21: 0 | AK21: 0 | AL21: 0 | AM21: 0 | AN21: 0 | AO21: 0
AG22: 0 | AH22: 0 | AI22: 0 | AJ22: 0 | AK22: 0 | AL22: 0 | AM22: 0 | AN22: 0 | AO22: 0
AG23: 0 | AH23: 0 | AI23: 0 | AJ23: 0 | AK23: 0 | AL23: 0 | AM23: 0 | AN23: 0 | AO23: 0
AG24: 0 | AH24: 0 | AI24: 0 | AJ24: 0 | AK24: 0 | AL24: 0 | AM24: 0 | AN24: 0 | AO24: 0
AG25: 0 | AH25: 0 | AI25: 0 | AJ25: 0 | AK25: 0 | AL25: 0 | AM25: 0 | AN25: 0 | AO25: 0
AG26: 0 | AH26: 0 | AI26: 0 | AJ26: 0 | AK26: 0 | AL26: 0 | AM26: 0 | AN26: 0 | AO26: 0
AG27: 0 | AH27: 0 | AI27: 0 | AJ27: 0 | AK27: 0 | AL27: 0 | AM27: 0 | AN27: 0 | AO27: 0
AG28: 0 | AH28: 0 | AI28: 0 | AJ28: 0 | AK28: 0 | AL28: 0 | AM28: 0 | AN28: 0 | AO28: 0
AG29: 0 | AH29: 0 | AI29: 0 | AJ29: 0 | AK29: 0 | AL29: 0 | AM29: 0 | AN29: 0 | AO29: 0
AG30: 0 | AH30: 0 | AI30: 0 | AJ30: 0 | AK30: 0 | AL30: 0 | AM30: 0 | AN30: 0 | AO30: 0
AG31: 0 | AH31: 0 | AI31: 0 | AJ31: 0 | AK31: 0 | AL31: 0 | AM31: 0 | AN31: 0 | AO31: 0
AG32: 0 | AH32: 0 | AI32: 0 | AJ32: 0 | AK32: 0 | AL32: 0 | AM32: 0 | AN32: 0 | AO32: 0
AG33: 0 | AH33: 0 | AI33: 0 | AJ33: 0 | AK33: 0 | AL33: 0 | AM33: 0 | AN33: 0 | AO33: 0
AG34: 0 | AH34: 0 | AI34: 0 | AJ34: 0 | AK34: 0 | AL34: 0 | AM34: 0 | AN34: 0 | AO34: 0
AG35: 0 | AH35: 0 | AI35: 0 | AJ35: 0 | AK35: 0 | AL35: 0 | AM35: 0 | AN35: 0 | AO35: 0
AG36: 0 | AH36: 0 | AI36: 0 | AJ36: 0 | AK36: 0 | AL36: 0 | AM36: 0 | AN36: 0 | AO36: 0
AG37: 0 | AH37: 0 | AI37: 0 | AJ37: 0 | AK37: 0 | AL37: 0 | AM37: 0 | AN37: 0 | AO37: 0
AG38: 0 | AH38: 0 | AI38: 0 | AJ38: 0 | AK38: 0 | AL38: 0 | AM38: 0 | AN38: 0 | AO38: 0
AG39: 0 | AH39: 0 | AI39: 0 | AJ39: 0 | AK39: 0 | AL39: 0 | AM39: 0 | AN39: 0 | AO39: 0
AG40: 0 | AH40: 0 | AI40: 0 | AJ40: 0 | AK40: 0 | AL40: 0 | AM40: 0 | AN40: 0 | AO40: 0
AG41: 0 | AH41: 0 | AI41: 0 | AJ41: 0 | AK41: 0 | AL41: 0 | AM41: 0 | AN41: 0 | AO41: 0
AG42: 0 | AH42: 0 | AI42: 0 | AJ42: 0 | AK42: 0 | AL42: 0 | AM42: 0 | AN42: 0 | AO42: 0 | AP42: =AH42/AG42 -> 
AG43: 0 | AH43: 0 | AI43: 0 | AJ43: 0 | AK43: 0 | AL43: 0 | AM43: 0 | AN43: 0 | AO43: 0 | AP43: =AH43/AG43 -> 
AG44: =J44*L44/1000 -> 0 | AH44: =J44*Q44/1000 -> 0 | AI44: =J44*L44/1000 -> 0 | AJ44: =O44*M44/1000 -> 0 | AK44: =(M44/1000)*(N44-P44) -> 0 | AL44: =(L44-N44)*(M44/1000) -> 0 | AM44: =(J44*L44/1000)-(M44*L44/1000) -> 0 | AN44: =L44-(L44-N44)-P44 -> 0 | AO44: =L44-N44 -> 0 | AP44: =AH44/AG44 ->  | AQ44: =P44/L44 -> 
AG45: =J45*L45/1000 -> 0 | AH45: =J45*Q45/1000 -> 0 | AI45: =J45*L45/1000 -> 0 | AJ45: =O45*M45/1000 -> 0 | AK45: =(M45/1000)*(N45-P45) -> 0 | AL45: =(L45-N45)*(M45/1000) -> 0 | AM45: =(J45*L45/1000)-(M45*L45/1000) -> 0 | AN45: =L45-(L45-N45)-P45 -> 0 | AO45: =L45-N45 -> 0 | AP45: =AH45/AG45 ->  | AQ45: =P45/L45 -> 
AG46: =J46*L46/1000 -> 0 | AH46: =J46*Q46/1000 -> 0 | AI46: =J46*L46/1000 -> 0 | AJ46: =O46*M46/1000 -> 0 | AK46: =(M46/1000)*(N46-P46) -> 0 | AL46: =(L46-N46)*(M46/1000) -> 0 | AM46: =(J46*L46/1000)-(M46*L46/1000) -> 0 | AN46: =L46-(L46-N46)-P46 -> 0 | AO46: =L46-N46 -> 0 | AP46: =AH46/AG46 ->  | AQ46: =P46/L46 -> 
AG47: =J47*L47/1000 -> 0 | AH47: =J47*Q47/1000 -> 0 | AI47: =J47*L47/1000 -> 0 | AJ47: =O47*M47/1000 -> 0 | AK47: =(M47/1000)*(N47-P47) -> 0 | AL47: =(L47-N47)*(M47/1000) -> 0 | AM47: =(J47*L47/1000)-(M47*L47/1000) -> 0 | AN47: =L47-(L47-N47)-P47 -> 0 | AO47: =L47-N47 -> 0 | AQ47: =P47/L47 -> 
AG48: 0 | AH48: 0 | AI48: 0 | AJ48: 0 | AK48: 0 | AL48: 0 | AM48: 0 | AN48: 0 | AO48: 0
AG49: 0 | AH49: 0 | AI49: 0 | AJ49: 0 | AK49: 0 | AL49: 0 | AM49: 0 | AN49: 0 | AO49: 0
AG50: 0 | AH50: 0 | AI50: 0 | AJ50: 0 | AK50: 0 | AL50: 0 | AM50: 0 | AN50: 0 | AO50: 0
AG51: 0 | AH51: 0 | AI51: 0 | AJ51: 0 | AK51: 0 | AL51: 0 | AM51: 0 | AN51: 0 | AO51: 0
AG52: 0 | AH52: 0 | AI52: 0 | AJ52: 0 | AK52: 0 | AL52: 0 | AM52: 0 | AN52: 0 | AO52: 0
AG53: 0 | AH53: 0 | AI53: 0 | AJ53: 0 | AK53: 0 | AL53: 0 | AM53: 0 | AN53: 0 | AO53: 0
AG54: 0 | AH54: 0 | AI54: 0 | AJ54: 0 | AK54: 0 | AL54: 0 | AM54: 0 | AN54: 0 | AO54: 0
AG55: 0 | AH55: 0 | AI55: 0 | AJ55: 0 | AK55: 0 | AL55: 0 | AM55: 0 | AN55: 0 | AO55: 0
AG56: 0 | AH56: 0 | AI56: 0 | AJ56: 0 | AK56: 0 | AL56: 0 | AM56: 0 | AN56: 0 | AO56: 0
AG57: 0 | AH57: 0 | AI57: 0 | AJ57: 0 | AK57: 0 | AL57: 0 | AM57: 0 | AN57: 0 | AO57: 0
AG58: 0 | AH58: 0 | AI58: 0 | AJ58: 0 | AK58: 0 | AL58: 0 | AM58: 0 | AN58: 0 | AO58: 0
AG59: 0 | AH59: 0 | AI59: 0 | AJ59: 0 | AK59: 0 | AL59: 0 | AM59: 0 | AN59: 0 | AO59: 0
AG60: 0 | AH60: 0 | AI60: 0 | AJ60: 0 | AK60: 0 | AL60: 0 | AM60: 0 | AN60: 0 | AO60: 0
AG61: 0 | AH61: 0 | AI61: 0 | AJ61: 0 | AK61: 0 | AL61: 0 | AM61: 0 | AN61: 0 | AO61: 0
AG62: 0 | AH62: 0 | AI62: 0 | AJ62: 0 | AK62: 0 | AL62: 0 | AM62: 0 | AN62: 0 | AO62: 0
AG63: 0 | AH63: 0 | AI63: 0 | AJ63: 0 | AK63: 0 | AL63: 0 | AM63: 0 | AN63: 0 | AO63: 0
AG64: 0 | AH64: 0 | AI64: 0 | AJ64: 0 | AK64: 0 | AL64: 0 | AM64: 0 | AN64: 0 | AO64: 0
AG65: 0 | AH65: 0 | AI65: 0 | AJ65: 0 | AK65: 0 | AL65: 0 | AM65: 0 | AN65: 0 | AO65: 0
AG66: 0 | AH66: 0 | AI66: 0 | AJ66: 0 | AK66: 0 | AL66: 0 | AM66: 0 | AN66: 0 | AO66: 0
AG67: 0 | AH67: 0 | AI67: 0 | AJ67: 0 | AK67: 0 | AL67: 0 | AM67: 0 | AN67: 0 | AO67: 0
AG68: 0 | AH68: 0 | AI68: 0 | AJ68: 0 | AK68: 0 | AL68: 0 | AM68: 0 | AN68: 0 | AO68: 0
AG69: 0 | AH69: 0 | AI69: 0 | AJ69: 0 | AK69: 0 | AL69: 0 | AM69: 0 | AN69: 0 | AO69: 0
AG70: 0 | AH70: 0 | AI70: 0 | AJ70: 0 | AK70: 0 | AL70: 0 | AM70: 0 | AN70: 0 | AO70: 0
AG71: 0 | AH71: 0 | AI71: 0 | AJ71: 0 | AK71: 0 | AL71: 0 | AM71: 0 | AN71: 0 | AO71: 0
AG72: 0 | AH72: 0 | AI72: 0 | AJ72: 0 | AK72: 0 | AL72: 0 | AM72: 0 | AN72: 0 | AO72: 0 | AP72: =AH72/AG72 -> 
AG73: 0 | AH73: 0 | AI73: 0 | AJ73: 0 | AK73: 0 | AL73: 0 | AM73: 0 | AN73: 0 | AO73: 0
AG74: 0 | AH74: 0 | AI74: 0 | AJ74: 0 | AK74: 0 | AL74: 0 | AM74: 0 | AN74: 0 | AO74: 0
AG75: 0 | AH75: 0 | AI75: 0 | AJ75: 0 | AK75: 0 | AL75: 0 | AM75: 0 | AN75: 0 | AO75: 0
AG76: 0 | AH76: 0 | AI76: 0 | AJ76: 0 | AK76: 0 | AL76: 0 | AM76: 0 | AN76: 0 | AO76: 0
AG77: 0 | AH77: 0 | AI77: 0 | AJ77: 0 | AK77: 0 | AL77: 0 | AM77: 0 | AN77: 0 | AO77: 0
AG78: 0 | AH78: 0 | AI78: 0 | AJ78: 0 | AK78: 0 | AL78: 0 | AM78: 0 | AN78: 0 | AO78: 0
AG79: 0 | AH79: 0 | AI79: 0 | AJ79: 0 | AK79: 0 | AL79: 0 | AM79: 0 | AN79: 0 | AO79: 0
AG80: 0 | AH80: 0 | AI80: 0 | AJ80: 0 | AK80: 0 | AL80: 0 | AM80: 0 | AN80: 0 | AO80: 0
AG81: 0 | AH81: 0 | AI81: 0 | AJ81: 0 | AK81: 0 | AL81: 0 | AM81: 0 | AN81: 0 | AO81: 0
AG82: 0 | AH82: 0 | AI82: 0 | AJ82: 0 | AK82: 0 | AL82: 0 | AM82: 0 | AN82: 0 | AO82: 0
AG83: 0 | AH83: 0 | AI83: 0 | AJ83: 0 | AK83: 0 | AL83: 0 | AM83: 0 | AN83: 0 | AO83: 0
AG84: 0 | AH84: 0 | AI84: 0 | AJ84: 0 | AK84: 0 | AL84: 0 | AM84: 0 | AN84: 0 | AO84: 0
AG85: 0 | AH85: 0 | AI85: 0 | AJ85: 0 | AK85: 0 | AL85: 0 | AM85: 0 | AN85: 0 | AO85: 0
AG86: 0 | AH86: 0 | AI86: 0 | AJ86: 0 | AK86: 0 | AL86: 0 | AM86: 0 | AN86: 0 | AO86: 0
AG87: 0 | AH87: 0 | AI87: 0 | AJ87: 0 | AK87: 0 | AL87: 0 | AM87: 0 | AN87: 0 | AO87: 0
AG88: 0 | AH88: 0 | AI88: 0 | AJ88: 0 | AK88: 0 | AL88: 0 | AM88: 0 | AN88: 0 | AO88: 0
AG89: 0 | AH89: 0 | AI89: 0 | AJ89: 0 | AK89: 0 | AL89: 0 | AM89: 0 | AN89: 0 | AO89: 0
AG90: 0 | AH90: 0 | AI90: 0 | AJ90: 0 | AK90: 0 | AL90: 0 | AM90: 0 | AN90: 0 | AO90: 0
AG91: 0 | AH91: 0 | AI91: 0 | AJ91: 0 | AK91: 0 | AL91: 0 | AM91: 0 | AN91: 0 | AO91: 0
AG92: 0 | AH92: 0 | AI92: 0 | AJ92: 0 | AK92: 0 | AL92: 0 | AM92: 0 | AN92: 0 | AO92: 0
AG93: 0 | AH93: 0 | AI93: 0 | AJ93: 0 | AK93: 0 | AL93: 0 | AM93: 0 | AN93: 0 | AO93: 0
AG94: 0 | AH94: 0 | AI94: 0 | AJ94: 0 | AK94: 0 | AL94: 0 | AM94: 0 | AN94: 0 | AO94: 0
AG95: 0 | AH95: 0 | AI95: 0 | AJ95: 0 | AK95: 0 | AL95: 0 | AM95: 0 | AN95: 0 | AO95: 0
AG96: 0 | AH96: 0 | AI96: 0 | AJ96: 0 | AK96: 0 | AL96: 0 | AM96: 0 | AN96: 0 | AO96: 0
AG97: 0 | AH97: 0 | AI97: 0 | AJ97: 0 | AK97: 0 | AL97: 0 | AM97: 0 | AN97: 0 | AO97: 0
AG98: 0 | AH98: 0 | AI98: 0 | AJ98: 0 | AK98: 0 | AL98: 0 | AM98: 0 | AN98: 0 | AO98: 0
AG99: 0 | AH99: 0 | AI99: 0 | AJ99: 0 | AK99: 0 | AL99: 0 | AM99: 0 | AN99: 0 | AO99: 0
AG100: 0 | AH100: 0 | AI100: 0 | AJ100: 0 | AK100: 0 | AL100: 0 | AM100: 0 | AN100: 0 | AO100: 0
AH101: =SUM(AH6:AH100) -> 44322 | AI101: =SUM(AI6:AI100) -> 97722 | AJ101: =SUM(AJ6:AJ100) -> 47880
K102: 本日加工（㎡） | M102: =AH101 -> 44322 | P102: 前日累計 | Q102: 99733.515
T103: 計算式消しちゃダメ！
S104: 合計 | T104: =M102+Q102 -> 144055.515
Q106: .
Q114: 0
G121: 原反（㎡） | I121: 44322 | M121: 残塗料合計 | O121: ｱﾝｶｰ | P121: =I121*O126/1000+30 -> 162.966 | S121: ←＋30ＫＧ計算に入っている
O123: ｼﾘｺﾝ | P123: =I121*O127/1000+30 -> 304.7964 | S123: ←＋30ＫＧ計算に入っている
M126: 塗布量 | N126: ｱﾝｶｰ | O126: 3 | P126: ←手打ち
N127: ｼﾘｺﾝ | O127: 6.2 | P127: ←手打ち
I128: .
I130: =AJ110 -> 0
M132: 残量 | O132: ｱﾝｶｰ | P132: 0 | S132: ←手打ち
O134: ｼﾘｺﾝ | P134: 150 | S134: ←手打ち
M136: 残調合量 | O136: ｱﾝｶｰ | P136: =(P121-P132) -> 162.966 | S136: 残調合回数 | U136: ｱﾝｶｰ/106ｋｇ | V136: =P136/106 -> 1.537415094 | W136: 回 | X136: コルコート/140ｋｇ | Y136: =P136/140 -> 1.164042857 | Z136: 回
O138: ｼﾘｺﾝ | P138: =(P123-P134) -> 154.7964 | U138: ｼﾘｺﾝ/150ｋｇ | V138: =P138/150 -> 1.031976 | W138: 回 | X138: ｼﾘｺﾝ/100ｋｇ | Y138: =P138/100 -> 1.547964 | Z138: 回
R142: ※ピンク字、計算式消さないで！TKD困っちゃうから～
R145: 半直は㎡割る2で！

Sheet CF-2
AP1: 2021 | AR1: 3 | AT1: 30 | CR1: IF(BB1="",$BC$2:$BC$13,IF(BB1=$BB$6,$BD$2:$BD$4,$BC$2:$BC$13))
E2: A | G2: S | H2: ｺｰﾄ | L2: A | N2: CF2 | O2: SL1 | P2: ｽﾘｯﾄ | Q2: S | V2: 日東尾道 | AN2: 切替 | AO2: 内 | AP2: 合定 | AQ2: FWP | AU2: ｷｽﾞ | AV2: 単発 | AW2: TAF起因 | BB2: S加工 | BC2: G/D清掃 | BD2: ﾒﾝﾃﾅﾝｽ | BF2: 内 | BG2: 合定 | BI2: ｷｽﾞ | BJ2: 単発 | BK2: TAF起因 | CP2: 合格
E3: B | G3: C | H3: 巻返し | L3: B | N3: CF3 | O3: SL2 | P3: 巻返し | Q3: T | V3: 巴川 | AN3: 品質ﾄﾗﾌﾞﾙ | AO3: 外 | AP3: 合短 | AQ3: ABS | AU3: ﾊｼﾞｷ | AV3: 密集 | AW3: 原反起因 | BB3: T試作加工 | BC3: 片付け | BD3: 他ﾏｼﾝ応援 | BF3: 外 | BG3: 合短 | BI3: ﾊｼﾞｷ | BJ3: 密集 | BK3: 原反起因 | CP3: 原反
E4: C | G4: C2 | H4: 欠点取 | L4: C | N4: CF4 | O4: SL3 | P4: 欠点取 | Q4: U | V4: ﾊﾟﾅｯｸ | AN4: 設備ﾄﾗﾌﾞﾙ | AP4: 良短 | AQ4: 紙管 | AU4: 合計2 | AV4: 連続 | AW4: 不明 | BB4: U試作加工 | BC4: 切替え | BD4: その他. | BG4: 良短 | BI4: 異物（暗） | BJ4: 連続 | BK4: 不明 | CP4: 検査待ち
E5: D | G5: C3 | V5: 古河電工 | AK5: C 停機 開始 | AL5: C 停機 終了 | AM5: 加工 チャート | AN5: C 停機 チャート | AO5: 加工 時間 | AP5: 停機 時間 | AQ5: C ｺｰﾄ 面 | AR5: C 合否 | AS5: C特記事項 | AU5: 異物（明） | AV5: ﾋﾟｯﾁ | BB5: 技術試作加工 | BC5: ｵｰﾌﾞﾝ掃除 | BG5: 保留 | BI5: 異物（明） | BJ5: ﾋﾟｯﾁ | CP5: 良品短尺
F6: 1.5 | V6: 2.25 | BB6: 未配台 | BC6: 幅替え | BG6: ＮＧ | BI6: 汚れ | BJ6: 幅方向 | CP6: 保留
BC7: 品質ﾄﾗﾌﾞﾙ | BI7: 尾引 | BJ7: 全面 | CP7: 原反クレーム
B8: 2022-10-01 | BC8: 設備ﾄﾗﾌﾞﾙ | BI8: ｽｼﾞ | BJ8: ｼﾞｸﾞｻﾞｸﾞ | CP8: 製品クレーム
D9: 40 | BC9: 計画ﾒﾝﾃ | BI9: 抜け | BJ9: 繰出
BC10: 安全活動 | BI10: 巻姿不良 | BJ10: 巻取
BC11: その他 | BI11: ｽﾌﾟﾗｲｽ失敗 | BJ11: 該当無
BC12: 公休日 | BI12: 蛇行
BC13: ﾒﾝﾃﾅﾝｽ | BI13: 物性異常
BC14: 他ﾏｼﾝ応援 | BI14: 設備
A16: 条件No | B16: C 西暦 年 | C16: C 月 | D16: C 日 | E16: コートシフト | F16: C 当日 NO | G16: 工程 仕様 | H16: C 作業 項目 | I16: S 西暦 年 | J16: S 月 | K16: S 日 | L16: ｽﾘｯﾄ シフト | M16: S 当日 NO | N16: ｺｰﾄ 工程 | O16: ｽﾘｯﾄ ﾏｼﾝ | P16: S 作業 項目 | Q16: S T U 技 | R16: 加工依頼 | S16: 通し NO | T16: 依頼 数量 | U16: 品 種 | V16: ﾕｰｻﾞｰ | W16: # | X16: 原反 ｔｙｐｅ | Y16: 原反 幅 (mm) | Z16: 原反 長さ (m) | AA16: 原反 投入長 (m) | AB16: 製品 仕上幅 (mm) | AC16: 製品 仕上 幅数 (本) | AD16: 製品 仕様長 (m) | AE16: 製品 仕様 長数 (本) | AF16: 製品 仕上長 (m) | AG16: 製品 実績長 (m) | AH16: 原反 LOT | AI16: 製造 LOT | AJ16: S 加工 開始 | AK16: S 加工 終了 | AL16: S 停機 開始 | AM16: S 停機 終了 | AN16: S 停機 項目 | AO16: S ｺｰﾄ 面 | AP16: S 合否 | AQ16: 原反コア チェック | AS16: S特記事項 | AU16: S不具合 （欠点） | AV16: S不具合 （発生状況） | AW16: S不具合 （起因） | AX16: C 加工 開始 | AY16: C 加工 終了 | AZ16: C 停機 開始 | BA16: C 停機 終了 | BB16: 加工 チャート | BC16: C 停機 チャート | BD16: 加工 時間 | BE16: 停機 時間 | BF16: C ｺｰﾄ 面 | BG16: 良短 | BH16: C特記事項 | BI16: C不具合 （欠点） | BJ16: C不具合 （発生状況） | BK16: C不具合 （起因） | BL16: 投入 （㎡） | BM16: 仕上 （㎡） | BN16: ロス （㎡） | BO16: 幅ロス (㎡) | BP16: 前後ロス (㎡） | BQ16: 欠点ロス (㎡) | BR16: ㎡収率 (%) | BS16: 投入 （m） | BT16: 仕上 （m） | BU16: ※ ロス (m) | BV16: ※ 入り目ロス (m) | BW16: ※ 欠点ロス (m) | BX16: ｍ収率 (%) | BY16: C 加工 時間 (hr) | BZ16: C 停機 時間 (ｈｒ) | CA16: S 加工 時間 (hr) | CB16: S 停機 時間 (ｈｒ) | CC16: RTO測定 時間 | CD16: 炉内 温度(℃) | CE16: 確認者 | CF16: 炉内差圧 （mmH2O） | CG16: 接続ﾀﾞﾝﾊﾟ 開度(%) | CH16: 確認者 | CI16: 稼働チャート ２４用 | CJ16: 給液ﾎﾟﾝﾌﾟ 測定時間 | CK16: ﾎﾟﾝﾌﾟ比率％ | CL16: No1流量 L/min | CM16: ﾎﾟﾝﾌﾟ比率％ | CN16: No2流量 L/min
B17: 2023 | C17: 4 | D17: 1 | AZ17: 06:45:00 | BA17: 14:00:00 | BC17: 公休日 | BD17: =IF(AX17>AY17,1-AX17+AY17,IF(AX17="","",AY17-AX17)) ->  | BE17: =IF(AZ17>BA17,1-AZ17+BA17,IF(AZ17="","",BA17-AZ17)) -> 07:15:00
B18: 2023 | C18: 4 | D18: 1 | AZ18: 14:00:00 | BA18: 22:00:00 | BC18: 公休日 | BD18: =IF(AX18>AY18,1-AX18+AY18,IF(AX18="","",AY18-AX18)) ->  | BE18: =IF(AZ18>BA18,1-AZ18+BA18,IF(AZ18="","",BA18-AZ18)) -> 08:00:00
B19: 2023 | C19: 4 | D19: 1 | AZ19: 22:00:00 | BA19: 06:45:00 | BC19: 公休日 | BE19: 08:45:00
B20: 2023 | C20: 4 | D20: 2 | AZ20: 06:45:00 | BA20: 14:00:00 | BC20: 公休日 | BE20: 07:15:00
B21: 2023 | C21: 4 | D21: 2 | AZ21: 14:00:00 | BA21: 22:00:00 | BC21: 公休日 | BE21: 08:00:00
B22: 2023 | C22: 4 | D22: 2 | AZ22: 22:00:00 | BA22: 06:45:00 | BC22: 公休日 | BE22: 08:45:00
B23: 2023 | C23: 4 | D23: 3 | E23: B | AZ23: 06:45:00 | BA23: 14:00:00 | BC23: 計画ﾒﾝﾃ | BE23: 07:15:00 | BH23: ﾏｼﾝ電源、ﾌﾞﾚｰｶｰON、PAC1-1・PAC1-2循環ﾌｧﾝ（ON）
B24: 2023 | C24: 4 | D24: 3 | E24: B | BH24: 塗料出庫・安全診断前準備・安全診断
B25: 2023 | C25: 4 | D25: 3 | E25: B | BH25: 繰出し両軸ﾁｬｯｷﾝｸﾞ軸ｸﾞﾘｽｱｯﾌﾟ（ｱﾙﾊﾞﾆｱｸﾞﾘｽNo2）
B26: 2023 | C26: 4 | D26: 3 | E26: B | BH26: 巻取り両軸ﾁｬｯｷﾝｸﾞ軸ｸﾞﾘｽｱｯﾌﾟ（ｱﾙﾊﾞﾆｱｸﾞﾘｽNo2）
B27: 2023 | C27: 4 | D27: 3 | E27: B | BH27: 繰出し（A・B両軸）ﾁｬｯｷﾝｸﾞﾁｪｰﾝ交換（工務課対応）
B28: 2023 | C28: 4 | D28: 3 | E28: C | AZ28: 14:00:00 | BA28: 22:00:00 | BC28: 計画ﾒﾝﾃ | BE28: 08:00:00 | BH28: ﾁｬｯｷﾝｸﾞ安全対策工事後の動作説明
B29: 2023 | C29: 4 | D29: 3 | E29: C | BH29: No2ﾀｲﾐﾝｸﾞﾍﾞﾙﾄ調整（工務課対応）・）ﾁｬｯｷﾝｸﾞﾁｪｰﾝ交換後搬送確認（両軸・工務立ち合い）
B30: 2023 | C30: 4 | D30: 3 | E30: C | BH30: 安全柵（東側）仮柵取り外し
B31: 2023 | C31: 4 | D31: 3 | E31: C | BH31: ｴｱｺﾝ・AHU-1・AHU-2電気ﾋｰﾀｰ（入）
B32: 2023 | C32: 4 | D32: 3 | E32: C | BH32: AHU1・2加湿器電源（ON）・No1-1.No1-2.No2-1.2-2ﾁﾗｰ（ON）
B33: 2023 | C33: 4 | D33: 3 | E33: C | BH33: ﾌｨﾙﾑ抜き・日東電工対応掃除（繰出し・ﾍｯﾄﾞ・巻取り）
B34: 2023 | C34: 4 | D34: 3 | E34: A | AZ34: 22:00:00 | BA34: 06:45:00 | BC34: ｵｰﾌﾞﾝ掃除 | BD34: =IF(AX34>AY34,1-AX34+AY34,IF(AX34="","",AY34-AX34)) ->  | BE34: =IF(AZ34>BA34,1-AZ34+BA34,IF(AZ34="","",BA34-AZ34)) -> 08:45:00 | BH34: 日東電工対応掃除（No1.2ｵｰﾌﾞﾝ）・No2ｵｰﾌﾞﾝ通路掃除機掛け
B35: 2023 | C35: 4 | D35: 3 | E35: A | BD35: =IF(AX35>AY35,1-AX35+AY35,IF(AX35="","",AY35-AX35)) ->  | BH35: 繰出し・No1.2HD・巻取りﾛｰﾙ掃除（ｸﾘﾝﾄ・ﾄﾚｼｰ仕上げ）
B36: 2023 | C36: 4 | D36: 4 | E36: B | AZ36: 06:45:00 | BA36: 14:00:00 | BC36: ｵｰﾌﾞﾝ掃除 | BD36: =IF(AX36>AY36,1-AX36+AY36,IF(AX36="","",AY36-AX36)) ->  | BE36: 07:15:00 | BH36: No1ｵｰﾌﾞﾝ・中二階ﾌﾟﾚ・No2ｵｰﾌﾞﾝﾛｰﾙ掃除（ｸﾘﾝﾄ・ﾄﾚｼｰ仕上げ）・片付け
B37: 2023 | C37: 4 | D37: 4 | E37: B | BD37: =IF(AX37>AY37,1-AX37+AY37,IF(AX37="","",AY37-AX37)) ->  | BH37: No1ｵｰﾌﾞﾝ上掃除・給排気ﾌｧﾝ循環（1時間）→ﾊﾟｰﾃｨｸﾙ測定
B38: 2023 | C38: 4 | D38: 4 | E38: C | AZ38: 14:00:00 | BA38: 20:40:00 | BC38: ｵｰﾌﾞﾝ掃除 | BD38: =IF(AX38>AY38,1-AX38+AY38,IF(AX38="","",AY38-AX38)) ->  | BE38: 06:40:00 | BH38: ﾊﾟｰﾃｨｸﾙ測定・No1-1三方弁修理（工務）→給気ﾌｧﾝ入で確認（工務）
B39: 2023 | C39: 4 | D39: 4 | E39: C | BH39: ﾋｰﾄﾀﾞｳﾝ・No2ｵｰﾌﾞﾝ出口近接ｾﾝｻｰ修理（工務）・No1ｵｰﾌﾞﾝ上掃除
B40: 2023 | C40: 4 | D40: 4 | E40: C | BD40: =IF(AX40>AY40,1-AX40+AY40,IF(AX40="","",AY40-AX40)) ->  | BH40: ﾘｰﾄﾞ通し・EPC合わせ・No1.2HDﾛｰﾙﾃｰﾋﾟﾝｸﾞ
B41: 2023 | C41: 4 | D41: 4 | E41: C | BD41: =IF(AX41>AY41,1-AX41+AY41,IF(AX41="","",AY41-AX41)) ->  | BH41: 排ｶﾞｽ・ﾎﾞｲﾗｰON・UV立ち上げ・HD準備・原反出庫・梱包材準備
B42: 2023 | C42: 4 | D42: 4 | E42: C | BD42: =IF(AX42>AY42,1-AX42+AY42,IF(AX42="","",AY42-AX42)) ->  | BH42: 条件設定・塗料調合・循環・先行ﾃｽﾄ→OK・X線測定
B43: 2023 | C43: 4 | D43: 4 | E43: C | BH43: ｱｷｭｰﾑ下まで下がらずｽﾌﾟﾗｲｽ準備完了しない為一旦ﾏｼﾝ停止
B44: 2023 | C44: 4 | D44: 4 | E44: C | BH44: 手動で下げ→下がる・手動で上げ→上がる
B45: 2023 | C45: 4 | D45: 4 | E45: C | BH45: 上げて搬送し下がるか確認→下がる・ｽﾌﾟﾗｲｽ準備完了確認→OK・再ｽﾀｰﾄ準備
A46: 74 | B46: 2023 | C46: 4 | D46: 4 | E46: C | F46: 1 | G46: S | H46: ｺｰﾄ | Q46: S | R46: 3703956 | S46: 1 | T46: 6 | U46: BX8A(RX) | V46: ㈱巴川製紙所 | W46: 38 | X46: R75XK | Y46: 1585 | Z46: 12200 | AA46: 12200 | AB46: 1585 | AC46: 1 | AD46: 12200 | AE46: 1 | AF46: 11001 | AG46: 11000 | AH46: Z359P721F4 | AI46: 30404402010 | AQ46: FWP | AX46: 20:40:00 | AY46: 21:35:00 | BB46: S加工 | BD46: =IF(AX46>AY46,1-AX46+AY46,IF(AX46="","",AY46-AX46)) -> 00:55:00 | BF46: 内 | BG46: 合短 | BH46: 残原反塗工の為短尺 原反両端部：切粉無し | BI46: 設備 | BJ46: 巻取 | BK46: 不明 | CJ46: 20:50:00 | CK46: 32.3 | CL46: 5.68 | CM46: 32.2 | CN46: 7.15
A47: 74 | B47: 2023 | C47: 4 | D47: 4 | E47: A | F47: 2 | G47: S | H47: ｺｰﾄ | Q47: S | R47: 3703956 | S47: 2 | T47: 6 | U47: BX8A(RX) | V47: ㈱巴川製紙所 | W47: 38 | X47: R75XK | Y47: 1585 | Z47: 12200 | AA47: 12200 | AB47: 1585 | AC47: 1 | AD47: 12200 | AE47: 1 | AF47: 12298 | AG47: 12200 | AH47: Z071N721F4 | AI47: 30404402020 | AQ47: FWP | AX47: 21:35:00 | AY47: 22:35:00 | BB47: S加工 | BD47: 01:00:00 | BF47: 内 | BG47: 合定 | BH47: 原反両端部：切粉無し | CJ47: 22:05:00 | CK47: 29.9 | CL47: 5.67 | CM47: 32.3 | CN47: 7.188
A48: 74 | B48: 2023 | C48: 4 | D48: 4 | E48: A | F48: 3 | G48: S | H48: ｺｰﾄ | Q48: S | R48: 3703956 | S48: 3 | T48: 6 | U48: BX8A(RX) | V48: ㈱巴川製紙所 | W48: 38 | X48: R75XK | Y48: 1585 | Z48: 12200 | AA48: 12200 | AB48: 1585 | AC48: 1 | AD48: 12200 | AE48: 1 | AF48: 12331 | AG48: 12200 | AH48: Z066N721F4 | AI48: 30404402030 | AQ48: FWP | AX48: 22:35:00 | AY48: 23:35:00 | BB48: S加工 | BD48: 01:00:00 | BF48: 内 | BG48: 合定 | BH48: 原反両端部：切粉無し
A49: 74 | B49: 2023 | C49: 4 | D49: 4 | E49: A | F49: 4 | G49: S | H49: ｺｰﾄ | Q49: S | R49: 3703956 | S49: 4 | T49: 6 | U49: BX8A(RX) | V49: ㈱巴川製紙所 | W49: 38 | X49: R75XK | Y49: 1585 | Z49: 12200 | AA49: 12200 | AB49: 1585 | AC49: 1 | AD49: 12200 | AE49: 1 | AF49: 12324 | AG49: 12200 | AH49: Z066N731F4 | AI49: 30404402040 | AQ49: FWP | AX49: 23:35:00 | AY49: 00:40:00 | BB49: S加工 | BD49: 01:05:00 | BF49: 内 | BG49: 合定 | BH49: 原反両端部：切粉無し
A50: 74 | B50: 2023 | C50: 4 | D50: 4 | E50: A | F50: 5 | G50: S | H50: ｺｰﾄ | Q50: S | R50: 3703956 | S50: 5 | T50: 6 | U50: BX8A(RX) | V50: ㈱巴川製紙所 | W50: 38 | X50: R75XK | Y50: 1585 | Z50: 12200 | AA50: 12200 | AB50: 1585 | AC50: 1 | AD50: 12200 | AE50: 1 | AF50: 12268 | AG50: 12200 | AH50: Z071N731F4 | AI50: 30404402050 | AQ50: FWP | AX50: 00:40:00 | AY50: 01:40:00 | BB50: S加工 | BD50: 01:00:00 | BF50: 内 | BG50: 合定 | BH50: 原反両端部：切粉無し
A51: 74 | B51: 2023 | C51: 4 | D51: 4 | E51: A | F51: 6 | G51: S | H51: ｺｰﾄ | Q51: S | R51: 3703956 | S51: 6 | T51: 6 | U51: BX8A(RX) | V51: ㈱巴川製紙所 | W51: 38 | X51: R75XK | Y51: 1585 | Z51: 12200 | AA51: 12200 | AB51: 1585 | AC51: 1 | AD51: 12200 | AE51: 1 | AF51: 12331 | AG51: 12200 | AH51: Z357P731F4 | AI51: 30404402060 | AQ51: FWP | AX51: 01:40:00 | AY51: 02:40:00 | BB51: S加工 | BD51: 01:00:00 | BF51: 内 | BG51: 合定 | BH51: 原反両端部：切粉無し
B52: 2023 | C52: 4 | D52: 4 | E52: A | AZ52: 02:40:00 | BA52: 03:10:00 | BC52: 幅替え | BE52: 00:30:00 | BH52: 条件変更
A53: 45 | B53: 2023 | C53: 4 | D53: 4 | E53: A | F53: 7 | G53: S | H53: ｺｰﾄ | Q53: S | R53: 3703959 | S53: 1 | T53: 7 | U53: BX8A(RX) | V53: ㈱巴川製紙所 | W53: 38 | X53: R75XK | Y53: 1335 | Z53: 12200 | AA53: 12200 | AB53: 1335 | AC53: 1 | AD53: 12200 | AE53: 1 | AF53: 12283 | AG53: 12200 | AH53: Z421M721F4 | AI53: 30404402070 | AQ53: FWP | AX53: 03:10:00 | AY53: 04:10:00 | BB53: S加工 | BD53: 01:00:00 | BF53: 内 | BG53: 合定 | BH53: 原反両端部：切粉無し No2ｵｰﾌﾞﾝ出口張力200N No2-3～2-5温度変更（+5度） | CJ53: 03:30:00 | CK53: 29.9 | CL53: 5.65 | CM53: 33 | CN53: 7.22
A54: 45 | B54: 2023 | C54: 4 | D54: 4 | E54: A | F54: 8 | G54: S | H54: ｺｰﾄ | Q54: S | R54: 3703959 | S54: 2 | T54: 7 | U54: BX8A(RX) | V54: ㈱巴川製紙所 | W54: 38 | X54: R75XK | Y54: 1335 | Z54: 12200 | AA54: 12200 | AB54: 1335 | AC54: 1 | AD54: 12200 | AE54: 1 | AF54: 12287 | AG54: 12200 | AH54: Z423M721F4 | AI54: 30404402080 | AQ54: FWP | AX54: 04:10:00 | AY54: 05:15:00 | BB54: S加工 | BD54: 01:05:00 | BF54: 内 | BG54: 合定 | BH54: 原反両端部：切粉無し No2ｵｰﾌﾞﾝ出口張力200N No2-3～2-5温度変更（+5度）
A55: 45 | B55: 2023 | C55: 4 | D55: 4 | E55: A | F55: 9 | G55: S | H55: ｺｰﾄ | Q55: S | R55: 3703959 | S55: 3 | T55: 7 | U55: BX8A(RX) | V55: ㈱巴川製紙所 | W55: 38 | X55: R75XK | Y55: 1335 | Z55: 12200 | AA55: 12200 | AB55: 1335 | AC55: 1 | AD55: 12200 | AE55: 1 | AF55: 12316 | AG55: 12200 | AH55: Z483N721F4 | AI55: 30404402090 | AQ55: FWP | AX55: 05:15:00 | AY55: 06:15:00 | BB55: S加工 | BD55: 01:00:00 | BF55: 内 | BG55: 合定 | BH55: 原反両端部：切粉無し No2ｵｰﾌﾞﾝ出口張力200N No2-3～2-5温度変更（+5度）
B56: 2023 | C56: 4 | D56: 4 | E56: A | AX56: 06:15:00 | AY56: 06:45:00 | BB56: S加工 | BD56: 00:30:00
A57: 45 | B57: 2023 | C57: 4 | D57: 5 | E57: B | F57: 1 | G57: S | H57: ｺｰﾄ | Q57: S | R57: 3703959 | S57: 4 | T57: 7 | U57: BX8A(RX) | V57: ㈱巴川製紙所 | W57: 38 | X57: R75XK | Y57: 1335 | Z57: 12200 | AA57: 12200 | AB57: 1335 | AC57: 1 | AD57: 12200 | AE57: 1 | AF57: 12331 | AG57: 12200 | AH57: Z422M721F4 | AI57: 30405402010 | AQ57: FWP | AX57: 06:45:00 | AY57: 07:15:00 | BB57: S加工 | BD57: 00:30:00 | BF57: 内 | BG57: 合定 | BH57: 原反両端部：切粉無し No2ｵｰﾌﾞﾝ出口張力200N No2-3～2-5温度変更（+5度）
A58: 45 | B58: 2023 | C58: 4 | D58: 5 | E58: B | F58: 2 | G58: S | H58: ｺｰﾄ | Q58: S | R58: 3703959 | S58: 5 | T58: 7 | U58: BX8A(RX) | V58: ㈱巴川製紙所 | W58: 38 | X58: R75XK | Y58: 1335 | Z58: 12200 | AA58: 12200 | AB58: 1335 | AC58: 1 | AD58: 12200 | AE58: 1 | AF58: 12310 | AG58: 12200 | AH58: Z421M731F4 | AI58: 30405402020 | AQ58: FWP | AX58: 07:15:00 | AY58: 08:20:00 | BB58: S加工 | BD58: 01:05:00 | BF58: 内 | BG58: 合定 | BH58: 原反両端部：切粉無し No2ｵｰﾌﾞﾝ出口張力200N No2-3～2-5温度変更（+5度） | CJ58: 08:10:00 | CK58: 29.9 | CL58: 5.66 | CM58: 33.5 | CN58: 7.14
A59: 45 | B59: 2023 | C59: 4 | D59: 5 | E59: B | F59: 3 | G59: S | H59: ｺｰﾄ | Q59: S | R59: 3703959 | S59: 6 | T59: 7 | U59: BX8A(RX) | V59: ㈱巴川製紙所 | W59: 38 | X59: R75XK | Y59: 1335 | Z59: 12200 | AA59: 12200 | AB59: 1335 | AC59: 1 | AD59: 12200 | AE59: 1 | AF59: 12308 | AG59: 12200 | AH59: Z423M731F4 | AI59: 30405402030 | AQ59: FWP | AX59: 08:20:00 | AY59: 09:20:00 | BB59: S加工 | BD59: 01:00:00 | BF59: 内 | BG59: 合定 | BH59: 原反両端部：切粉無し No2ｵｰﾌﾞﾝ出口張力200N No2-3～2-5温度変更（+5度）
A60: 45 | B60: 2023 | C60: 4 | D60: 5 | E60: B | F60: 4 | G60: S | H60: ｺｰﾄ | Q60: S | R60: 3703959 | S60: 7 | T60: 7 | U60: BX8A(RX) | V60: ㈱巴川製紙所 | W60: 38 | X60: R75XK | Y60: 1335 | Z60: 12200 | AA60: 12200 | AB60: 1335 | AC60: 1 | AD60: 12200 | AE60: 1 | AF60: 12316 | AG60: 12200 | AH60: Z422M731F4 | AI60: 30405402040 | AQ60: FWP | AX60: 09:20:00 | AY60: 10:20:00 | BB60: S加工 | BD60: 01:00:00 | BF60: 内 | BG60: 合定 | BH60: 原反両端部：切粉無し No2ｵｰﾌﾞﾝ出口張力200N No2-3～2-5温度変更（+5度）
B61: 2023 | C61: 4 | D61: 5 | E61: B
B62: 2023 | C62: 4 | D62: 5 | E62: B | F62: 5 | G62: C2 | H62: ｺｰﾄ | Q62: S | R62: 3703958 | S62: 1 | T62: 5 | U62: BX8A(RX) | V62: パナック㈱亀山工場 | W62: 38 | X62: R75X | Y62: 1335 | Z62: 12200 | AA62: 12200 | AB62: 1330 | AC62: 1 | AD62: 6000 | AE62: 2 | AF62: 6067 | AG62: 6000 | AH62: Z227F731G4 | AI62: 3040540205005 | AQ62: FWP | AX62: 10:20:00 | AY62: 10:50:00 | BB62: S加工 | BD62: 00:30:00 | BF62: 内 | BG62: 合定 | BH62: ○ No2ｵｰﾌﾞﾝ出口張力200N No2-3～2-5温度変更（+5度）
B63: 2023 | C63: 4 | D63: 5 | E63: B | F63: 6 | G63: C2 | H63: ｺｰﾄ | Q63: S | R63: 3703958 | S63: 1 | T63: 5 | U63: BX8A(RX) | V63: パナック㈱亀山工場 | W63: 38 | X63: R75X | Y63: 1335 | Z63: 12200 | AA63: 12200 | AB63: 1330 | AC63: 1 | AD63: 6000 | AE63: 2 | AF63: 6074 | AG63: 6000 | AH63: Z227F731G4 | AI63: 3040540206005 | AQ63: FWP | AX63: 10:50:00 | AY63: 11:20:00 | BB63: S加工 | BD63: 00:30:00 | BF63: 内 | BG63: 合定 | BH63: ○ No2ｵｰﾌﾞﾝ出口張力200N No2-3～2-5温度変更（+5度）
B64: 2023 | C64: 4 | D64: 5 | E64: B | F64: 7 | G64: C2 | H64: ｺｰﾄ | Q64: S | R64: 3703958 | S64: 2 | T64: 5 | U64: BX8A(RX) | V64: パナック㈱亀山工場 | W64: 38 | X64: R75X | Y64: 1335 | Z64: 12200 | AA64: 12200 | AB64: 1330 | AC64: 1 | AD64: 6000 | AE64: 2 | AF64: 6062 | AG64: 6000 | AH64: Z226F731G4 | AI64: 3040540207005 | AQ64: FWP | AX64: 11:20:00 | AY64: 11:50:00 | BB64: S加工 | BD64: 00:30:00 | BF64: 内 | BG64: 保留 | BH64: ○ 幅方向に塗布ﾑﾗ発生の為、ｴｰｼﾞﾝｸﾞ後保留 No2ｵｰﾌﾞﾝ出口張力200N No2-3～2-5温度変更（+5度）
B65: 2023 | C65: 4 | D65: 5 | E65: B | F65: 8 | G65: C2 | H65: ｺｰﾄ | Q65: S | R65: 3703958 | S65: 2 | T65: 5 | U65: BX8A(RX) | V65: パナック㈱亀山工場 | W65: 38 | X65: R75X | Y65: 1335 | Z65: 12200 | AA65: 12200 | AB65: 1330 | AC65: 1 | AD65: 6000 | AE65: 2 | AF65: 6076 | AG65: 6000 | AH65: Z226F731G4 | AI65: 3040540208005 | AQ65: FWP | AX65: 11:50:00 | AY65: 12:20:00 | BB65: S加工 | BD65: 00:30:00 | BF65: 内 | BG65: 合定 | BH65: ○ No2ｵｰﾌﾞﾝ出口張力200N No2-3～2-5温度変更（+5度）
B66: 2023 | C66: 4 | D66: 5 | E66: B | AZ66: 12:20:00 | BA66: 12:50:00 | BC66: G/D清掃 | BE66: =IF(AZ66>BA66,1-AZ66+BA66,IF(AZ66="","",BA66-AZ66)) -> 00:30:00 | BH66: No2ﾎﾟﾝﾌﾟﾌｨﾙﾀｰ交換
B67: 2023 | C67: 4 | D67: 5 | E67: B | F67: 9 | G67: C2 | H67: ｺｰﾄ | Q67: S | R67: 3703958 | S67: 3 | T67: 5 | U67: BX8A(RX) | V67: パナック㈱亀山工場 | W67: 38 | X67: R75X | Y67: 1335 | Z67: 12200 | AA67: 12200 | AB67: 1330 | AC67: 1 | AD67: 6000 | AE67: 2 | AF67: 6065 | AG67: 6000 | AH67: Z224F721G4 | AI67: 3040540209005 | AQ67: FWP | AX67: 12:50:00 | AY67: 13:20:00 | BB67: S加工 | BD67: =IF(AX67>AY67,1-AX67+AY67,IF(AX67="","",AY67-AX67)) -> 00:30:00 | BF67: 内 | BG67: 合定 | BH67: ○ No2ｵｰﾌﾞﾝ出口張力200N No2-3～2-5温度変更（+5度）
B68: 2023 | C68: 4 | D68: 5 | E68: B | F68: 10 | G68: C2 | H68: ｺｰﾄ | Q68: S | R68: 3703958 | S68: 3 | T68: 5 | U68: BX8A(RX) | V68: パナック㈱亀山工場 | W68: 38 | X68: R75X | Y68: 1335 | Z68: 12200 | AA68: 12200 | AB68: 1330 | AC68: 1 | AD68: 6000 | AE68: 2 | AF68: 6080 | AG68: 6000 | AH68: Z224F721G4 | AI68: 3040540210005 | AQ68: FWP | AX68: 13:20:00 | AY68: 13:50:00 | BB68: S加工 | BD68: 00:30:00 | BF68: 内 | BG68: 合定 | BH68: ○ No2ｵｰﾌﾞﾝ出口張力200N No2-3～2-5温度変更（+5度）
B69: 2023 | C69: 4 | D69: 5 | E69: B | F69: 11 | G69: C2 | H69: ｺｰﾄ | Q69: S | R69: 3703958 | S69: 4 | T69: 5 | U69: BX8A(RX) | V69: パナック㈱亀山工場 | W69: 38 | X69: R75X | Y69: 1335 | Z69: 12200 | AA69: 12200 | AB69: 1330 | AC69: 1 | AD69: 6000 | AE69: 2 | AF69: 6066 | AG69: 6000 | AH69: Z226F711G4 | AI69: 3040540211005 | AQ69: FWP | AX69: 13:50:00 | AY69: 14:20:00 | BB69: S加工 | BD69: 00:30:00 | BF69: 内 | BG69: 合定 | BH69: ○ No2ｵｰﾌﾞﾝ出口張力200N No2-3～2-5温度変更（+5度）
B70: 2023 | C70: 4 | D70: 5 | E70: C | F70: 12 | G70: C2 | H70: ｺｰﾄ | Q70: S | R70: 3703958 | S70: 4 | T70: 5 | U70: BX8A(RX) | V70: パナック㈱亀山工場 | W70: 38 | X70: R75X | Y70: 1335 | Z70: 12200 | AA70: 12200 | AB70: 1330 | AC70: 1 | AD70: 6000 | AE70: 2 | AF70: 6068 | AG70: 6000 | AH70: Z226F711G4 | AI70: 3040540212005 | AQ70: FWP | AX70: 14:20:00 | AY70: 14:50:00 | BB70: S加工 | BD70: 00:30:00 | BF70: 内 | BG70: 合定 | BH70: ○ No2ｵｰﾌﾞﾝ出口張力200N No2-3～2-5温度変更（+5度）
B71: 2023 | C71: 4 | D71: 5 | E71: C | F71: 13 | G71: C2 | H71: ｺｰﾄ | Q71: S | R71: 3703958 | S71: 5 | T71: 5 | U71: BX8A(RX) | V71: パナック㈱亀山工場 | W71: 38 | X71: R75X | Y71: 1335 | Z71: 12200 | AA71: 12200 | AB71: 1330 | AC71: 1 | AD71: 6000 | AE71: 2 | AF71: 6067 | AG71: 6000 | AH71: Z224F711G4 | AI71: 3040540213005 | AQ71: FWP | AX71: 14:50:00 | AY71: 15:25:00 | BB71: S加工 | BD71: 00:35:00 | BF71: 内 | BG71: 合定 | BH71: ○ No2ｵｰﾌﾞﾝ出口張力200N No2-3～2-5温度変更（+5度）
B72: 2023 | C72: 4 | D72: 5 | E72: C | F72: 14 | G72: C2 | H72: ｺｰﾄ | Q72: S | R72: 3703958 | S72: 5 | T72: 5 | U72: BX8A(RX) | V72: パナック㈱亀山工場 | W72: 38 | X72: R75X | Y72: 1335 | Z72: 12200 | AA72: 12200 | AB72: 1330 | AC72: 1 | AD72: 6000 | AE72: 2 | AF72: 6075 | AG72: 6000 | AH72: Z224F711G4 | AI72: 3040540214005 | AQ72: FWP | AX72: 15:25:00 | AY72: 15:55:00 | BB72: S加工 | BD72: 00:30:00 | BF72: 内 | BG72: 合定 | BH72: ○ No2ｵｰﾌﾞﾝ出口張力200N No2-3～2-5温度変更（+5度）
B73: 2023 | C73: 4 | D73: 5 | E73: C | AZ73: 15:55:00 | BA73: 16:15:00 | BC73: G/D清掃 | BE73: 00:20:00 | BH73: 条件変更
A74: 76 | B74: 2023 | C74: 4 | D74: 5 | E74: C | F74: 15 | G74: C | H74: ｺｰﾄ | Q74: S | R74: 3703957 | S74: 1 | T74: 3 | U74: BX8A(X) | V74: ㈱巴川製紙所 | W74: 75 | X74: XD500P | Y74: 1335 | Z74: 4200 | AA74: 4200 | AB74: 1330 | AC74: 1 | AD74: 4100 | AE74: 1 | AF74: 4185 | AG74: 4100 | AH74: Z314PK22F4 | AI74: 3040540215005 | AQ74: FWP | AX74: 16:15:00 | AY74: 16:45:00 | BB74: S加工 | BD74: 00:30:00 | BF74: 内 | BG74: 合定 | BH74: 原反両端部：切粉無し偏光ﾑﾗ無しNO2ｵｰﾌﾞﾝ出口張力180N No2-3～2-5温度変更（+5度） | CJ74: 16:15:00 | CK74: 29.9 | CL74: 5.65 | CM74: 32.6 | CN74: 7.14
A75: 76 | B75: 2023 | C75: 4 | D75: 5 | E75: C | F75: 16 | G75: C | H75: ｺｰﾄ | Q75: S | R75: 3703957 | S75: 2 | T75: 3 | U75: BX8A(X) | V75: ㈱巴川製紙所 | W75: 75 | X75: XD500P | Y75: 1335 | Z75: 4200 | AA75: 4200 | AB75: 1330 | AC75: 1 | AD75: 4100 | AE75: 1 | AF75: 4070 | AG75: 4100 | AH75: Z317PK31F4 | AI75: 3040540216005 | AQ75: FWP | AX75: 16:45:00 | AY75: 17:10:00 | BB75: S加工 | BD75: 00:25:00 | BF75: 内 | BG75: 合短 | BH75: 原反止めした為短尺 原反両端部：切粉無し偏光ﾑﾗ無しNO2ｵｰﾌﾞﾝ出口張力180N No2-3～2-5温度変更（+5度） | BI75: 設備 | BJ75: 巻取 | BK75: TAF起因
B76: 2023 | C76: 4 | D76: 5 | E76: C | AZ76: 17:10:00 | BA76: 18:00:00 | BC76: 設備ﾄﾗﾌﾞﾙ | BE76: 00:50:00 | BH76: 巻取りA軸ﾁｬｯｷﾝｸﾞﾚﾊﾞｰ切圧力検出の為巻取りｽﾌﾟﾗｲｽ準備できない為ﾏｼﾝ停止
B77: 2023 | C77: 4 | D77: 5 | E77: C | BH77: ｾﾝｻｰ位置調整（工務）・再ｽﾀｰﾄ準備
A78: 76 | B78: 2023 | C78: 4 | D78: 5 | E78: C | F78: 17 | G78: C | H78: ｺｰﾄ | Q78: S | R78: 3703957 | S78: 3 | T78: 3 | U78: BX8A(X) | V78: ㈱巴川製紙所 | W78: 75 | X78: XD500P | Y78: 1335 | Z78: 4200 | AA78: 4200 | AB78: 1330 | AC78: 1 | AD78: 4100 | AE78: 1 | AF78: 4185 | AG78: 4100 | AH78: Z314PK42F4 | AI78: 3040540217005 | AQ78: FWP | AX78: 18:00:00 | AY78: 18:30:00 | BB78: S加工 | BD78: 00:30:00 | BF78: 内 | BG78: 合定 | BH78: 原反両端部：切粉無し偏光ﾑﾗ無しNO2ｵｰﾌﾞﾝ出口張力180N No2-3～2-5温度変更（+5度）
B79: 2023 | C79: 4 | D79: 5 | E79: C | AZ79: 18:30:00 | BA79: 18:55:00 | BC79: 幅替え | BE79: 00:25:00 | BH79: 条件変更
B80: 2023 | C80: 4 | D80: 5 | E80: C | F80: 18 | G80: S | H80: ｺｰﾄ | Q80: U | R80: 3705291 | S80: 1 | T80: 1 | U80: BX8A(14) | V80: 河村産業㈱ | W80: 25 | X80: S28M | Y80: 1120 | Z80: 12500 | AA80: 12500 | AB80: 1120 | AC80: 1 | AD80: 12500 | AE80: 1 | AF80: 12517 | AG80: 12500 | AH80: 2380221003 | AI80: 30405402182 | AQ80: FWP | AX80: 18:55:00 | AY80: 20:00:00 | BB80: U試作加工 | BD80: 01:05:00 | BF80: 内 | BG80: 合定
B81: 2023 | C81: 4 | D81: 5 | E81: C | AZ81: 20:00:00 | BA81: 20:15:00 | BC81: G/D清掃 | BE81: 00:15:00 | BH81: 条件変更
A82: 81 | B82: 2023 | C82: 4 | D82: 5 | E82: C | F82: 19 | G82: C | H82: ｺｰﾄ | Q82: S | R82: 3703960 | S82: 1 | T82: 2 | U82: BX8A(X) | V82: 新タック化成㈱ | W82: 75 | X82: XD500P | Y82: 1110 | Z82: 4200 | AA82: 4200 | AB82: 1100 | AC82: 1 | AD82: 4000 | AE82: 1 | AF82: 4088 | AG82: 4000 | AH82: Z191JK42F5 | AI82: 3040540219005 | AQ82: FWP | AX82: 20:15:00 | AY82: 20:45:00 | BB82: S加工 | BD82: 00:30:00 | BF82: 内 | BG82: 合定 | BH82: NO2ｵｰﾌﾞﾝ出口張力180N No2-3～2-5温度変更（+5度）
A83: 81 | B83: 2023 | C83: 4 | D83: 5 | E83: C | F83: 20 | G83: C | H83: ｺｰﾄ | Q83: S | R83: 3703960 | S83: 2 | T83: 2 | U83: BX8A(X) | V83: 新タック化成㈱ | W83: 75 | X83: XD500P | Y83: 1110 | Z83: 4200 | AA83: 4200 | AB83: 1100 | AC83: 1 | AD83: 4000 | AE83: 1 | AF83: 4086 | AG83: 4000 | AH83: Z191JK51F5 | AI83: 3040540220005 | AQ83: FWP | AX83: 20:45:00 | AY83: 21:10:00 | BB83: S加工 | BD83: 00:25:00 | BF83: 内 | BG83: 合定 | BH83: NO2ｵｰﾌﾞﾝ出口張力180N No2-3～2-5温度変更（+5度）
B84: 2023 | C84: 4 | D84: 5 | E84: C | AZ84: 21:10:00 | BA84: 22:00:00 | BC84: 片付け | BE84: 00:50:00 | BH84: 製品下ろし・塗料〆・排ｶﾞｽ、ﾎﾞｲﾗｰOFF・※ﾌｧﾝは入れたままｵｰﾌﾞﾝ温度設定下げ・記録類まとめ
B85: 2023 | C85: 4 | D85: 5 | E85: A | AZ85: 22:00:00 | BA85: 23:30:00 | BC85: 切替え | BE85: 01:30:00 | BH85: 繰出し・No1.2HD・巻取りﾛｰﾙ掃除・条件変更・EPC合わせ・No1.2HDﾛｰﾙﾃｰﾋﾟﾝｸﾞ
B86: 2023 | C86: 4 | D86: 5 | E86: A | Q86: U | AZ86: 23:30:00 | BA86: 04:20:00 | BC86: その他 | BE86: 04:50:00 | BH86: 乾燥給気・溶剤排気ﾌｧﾝ停止・No1.2ｵｰﾌﾞﾝ全室ﾉｽﾞﾙ傘上異物採取
B87: 2023 | C87: 4 | D87: 5 | E87: A | BH87: 乾燥給気・溶剤排気ﾌｧﾝON→1時間待ち・No1-2・3室・No2-6・7室ﾊﾟｰﾃｨｸﾙ測定
B88: 2023 | C88: 4 | D88: 5 | E88: A | BC88: 切替え | BH88: 排ｶﾞｽ・ﾎﾞｲﾗｰON・UV立ち上げ・HD準備・循環・先行ﾃｽﾄ→OK・X線測定
B89: 2023 | C89: 4 | D89: 5 | E89: A | F89: 21 | G89: C | H89: ｺｰﾄ | Q89: U | R89: 3705289 | S89: 1 | T89: 1 | U89: BX8A(37) | V89: 日東電工㈱豊橋工場 | W89: 75 | X89: RM1Z | Y89: 1060 | Z89: 6000 | AA89: 6000 | AB89: 1050 | AC89: 1 | AD89: 5800 | AE89: 1 | AF89: 5820 | AG89: 5780 | AH89: 043206200002 | AI89: 3040540221205 | AQ89: FWP | AX89: 04:20:00 | AY89: 05:00:00 | BB89: U試作加工 | BD89: 00:40:00 | BF89: 内 | BG89: 保留 | BH89: 旋回（有） 製品ﾗｽﾄPｷｽﾞ発生の為 | BI89: ｷｽﾞ | BJ89: 巻取 | BK89: 不明
B90: 2023 | C90: 4 | D90: 5 | E90: A | F90: 22 | G90: C | H90: ｺｰﾄ | Q90: U | R90: 3705290 | S90: 1 | T90: 3 | U90: BX8A(37) | V90: 日東電工㈱豊橋工場 | W90: 75 | X90: RM1Z | Y90: 1060 | Z90: 6200 | AA90: 6200 | AB90: 1050 | AC90: 1 | AD90: 6000 | AE90: 1 | AF90: 6070 | AG90: 6000 | AH90: 053204100001 | AI90: 3040540222205 | AQ90: FWP | AX90: 05:00:00 | AY90: 05:40:00 | BB90: U試作加工 | BD90: 00:40:00 | BF90: 内 | BG90: 合定 | BH90: 旋回（有）
B91: 2023 | C91: 4 | D91: 5 | E91: A | AZ91: 05:40:00 | BA91: 06:00:00 | BC91: G/D清掃 | BE91: 00:20:00
B92: 2023 | C92: 4 | D92: 5 | E92: A | F92: 23 | G92: C | H92: ｺｰﾄ | Q92: U | R92: 3705290 | S92: 2 | T92: 3 | U92: BX8A(37) | V92: 日東電工㈱豊橋工場 | W92: 75 | X92: RM1Z | Y92: 1060 | Z92: 6200 | AA92: 6200 | AB92: 1050 | AC92: 1 | AD92: 6000 | AE92: 1 | AF92: 6065 | AG92: 6000 | AH92: 043204100002 | AI92: 3040540223205 | AQ92: FWP | AX92: 06:00:00 | AY92: 06:40:00 | BB92: U試作加工 | BD92: =IF(AX92>AY92,1-AX92+AY92,IF(AX92="","",AY92-AX92)) -> 00:40:00 | BF92: 内 | BG92: 合定 | BH92: 旋回（無）
B93: 2023 | C93: 4 | D93: 5 | E93: A | AZ93: 06:40:00 | BA93: 06:45:00 | BC93: G/D清掃 | BD93: =IF(AX93>AY93,1-AX93+AY93,IF(AX93="","",AY93-AX93)) ->  | BE93: 00:05:00 | BH93: 巻取りﾆｱﾛｰﾙ異物採取・掃除
B94: 2023 | C94: 4 | D94: 6 | E94: B | AZ94: 06:45:00 | BA94: 07:10:00 | BC94: G/D清掃 | BE94: 00:25:00
B95: 2023 | C95: 4 | D95: 6 | E95: B | F95: 1 | G95: C | H95: ｺｰﾄ | Q95: U | R95: 3705289 | S95: 3 | T95: 3 | U95: BX8A(37) | V95: 日東電工㈱豊橋工場 | W95: 75 | X95: RM1Z | Y95: 1060 | Z95: 6000 | AA95: 6200 | AB95: 1050 | AC95: 1 | AD95: 6000 | AE95: 1 | AF95: 6064 | AG95: 6000 | AH95: 043204100004 | AI95: 3040640201205 | AQ95: FWP | AX95: 07:10:00 | AY95: 07:50:00 | BB95: U試作加工 | BD95: =IF(AX95>AY95,1-AX95+AY95,IF(AX95="","",AY95-AX95)) -> 00:40:00 | BF95: 内 | BG95: 合定 | BH95: 旋回（無）
B96: 2023 | C96: 4 | D96: 6 | E96: B | AZ96: 07:50:00 | BA96: 08:10:00 | BC96: 幅替え | BD96: =IF(AX96>AY96,1-AX96+AY96,IF(AX96="","",AY96-AX96)) ->  | BE96: 00:20:00
B97: 2023 | C97: 4 | D97: 6 | E97: B | AZ97: 08:10:00 | BA97: 09:25:00 | BC97: 設備ﾄﾗﾌﾞﾙ | BE97: 01:15:00 | BH97: 巻取りｺｱ径変更不可→工務課で応急処置
A98: 66 | B98: 2023 | C98: 4 | D98: 6 | E98: B | F98: 2 | G98: C | H98: ｺｰﾄ | Q98: S | R98: 3703962 | S98: 1 | T98: 2 | U98: BX8A(S) | V98: 日榮新化㈱ | W98: 75 | X98: S28 | Y98: 1045 | Z98: 4200 | AA98: 4200 | AB98: 1040 | AC98: 1 | AD98: 4000 | AE98: 1 | AF98: 4066 | AG98: 4000 | AH98: 083206100012 | AI98: 3040640202005 | AQ98: FWP | AX98: 09:25:00 | AY98: 09:55:00 | BB98: S加工 | BD98: =IF(AX98>AY98,1-AX98+AY98,IF(AX98="","",AY98-AX98)) -> 00:30:00 | BE98: =IF(AZ98>BA98,1-AZ98+BA98,IF(AZ98="","",BA98-AZ98)) ->  | BF98: 内 | BG98: 合定
A99: 66 | B99: 2023 | C99: 4 | D99: 6 | E99: B | F99: 3 | G99: C | H99: ｺｰﾄ | Q99: S | R99: 3703962 | S99: 2 | T99: 2 | U99: BX8A(S) | V99: 日榮新化㈱ | W99: 75 | X99: S28 | Y99: 1045 | Z99: 4200 | AA99: 4200 | AB99: 1040 | AC99: 1 | AD99: 4000 | AE99: 1 | AF99: 4063 | AG99: 4000 | AH99: 103206100012 | AI99: 3040640203005 | AQ99: FWP | AX99: 09:55:00 | AY99: 10:20:00 | BB99: S加工 | BD99: =IF(AX99>AY99,1-AX99+AY99,IF(AX99="","",AY99-AX99)) -> 00:25:00 | BF99: 内 | BG99: 合定
B100: 2023 | C100: 4 | D100: 6 | E100: B | AZ100: 10:20:00 | BA100: 11:30:00 | BC100: G/D清掃 | BD100: =IF(AX100>AY100,1-AX100+AY100,IF(AX100="","",AY100-AX100)) ->  | BE100: 01:10:00 | BH100: 塗料〆・塗料調合・塗料入れ替え・循環・先行ﾃｽﾄ→OK・X線測定
A101: 67 | B101: 2023 | C101: 4 | D101: 6 | E101: B | F101: 4 | G101: C | H101: ｺｰﾄ | Q101: S | R101: 3703963 | S101: 1 | T101: 2 | U101: BX9A(S) | V101: 日榮新化㈱ | W101: 75 | X101: S28 | Y101: 1045 | Z101: 4200 | AA101: 4200 | AB101: 1040 | AC101: 1 | AD101: 4000 | AE101: 1 | AF101: 4065 | AG101: 4000 | AH101: 013206110004 | AI101: 3040640204005 | AQ101: FWP | AX101: 11:30:00 | AY101: 12:00:00 | BB101: S加工 | BD101: =IF(AX101>AY101,1-AX101+AY101,IF(AX101="","",AY101-AX101)) -> 00:30:00 | BF101: 内 | BG101: 合定
A102: 67 | B102: 2023 | C102: 4 | D102: 6 | E102: B | F102: 5 | G102: C | H102: ｺｰﾄ | Q102: S | R102: 3703963 | S102: 2 | T102: 2 | U102: BX9A(S) | V102: 日榮新化㈱ | W102: 75 | X102: S28 | Y102: 1045 | Z102: 4200 | AA102: 4200 | AB102: 1040 | AC102: 1 | AD102: 4000 | AE102: 1 | AF102: 4064 | AG102: 4000 | AH102: 083206120006 | AI102: 3040640205005 | AQ102: FWP | AX102: 12:00:00 | AY102: 12:25:00 | BB102: S加工 | BD102: =IF(AX102>AY102,1-AX102+AY102,IF(AX102="","",AY102-AX102)) -> 00:25:00 | BF102: 内 | BG102: 保留 | BH102: 製品ﾗｽﾄの為塗料濃くなり外観NGの為
B103: 2023 | C103: 4 | D103: 6 | E103: B | AZ103: 12:25:00 | BA103: 14:00:00 | BC103: 片付け | BE103: 01:35:00 | BH103: 落下塵回収
B104: 2023 | C104: 4 | D104: 6 | E104: B | BH104: 製品下ろし・排ｶﾞｽOFF・ﾎﾞｲﾗｰOFF・UV立ち下げ・記録類まとめ・塗料廃棄
B105: 2023 | C105: 4 | D105: 6 | E105: B | BH105: №12G洗浄、ﾎﾟﾝﾌﾟ（ﾄ）循環、ｻﾌﾞﾀﾝｸ・ﾁｬﾝﾊﾞｰ・調合桶掃除
B106: 2023 | C106: 4 | D106: 6 | E106: B | AZ106: 14:00:00 | BA106: 21:50:00 | BC106: 切替え | BE106: 07:50:00 | BH106: ﾌｨﾙﾑ抜き・高密度除電・除電ﾊﾞｰ掃除・繰出しﾛｰﾙ掃除
B107: 2023 | C107: 4 | D107: 6 | E107: C | BH107: №12HD・ﾌﾟﾚ・前室・中二階ﾌﾟﾚ掃除・巻取りﾛｰﾙ掃除
B108: 2023 | C108: 4 | D108: 6 | E108: C | BH108: ﾘｰﾄﾞ通し・EPC合わせ・No1.2HDﾛｰﾙﾃｰﾋﾟﾝｸﾞ
B109: 2023 | C109: 4 | D109: 6 | E109: C | BH109: 排ｶﾞｽ・ﾎﾞｲﾗｰON・UV立ち上げ・HD準備・原反出庫・梱包材準備
B110: 2023 | C110: 4 | D110: 6 | E110: C | BH110: No2ｸﾞﾗﾋﾞｱ交換（110UR→75UR)・№2ﾎﾟﾝﾌﾟﾍﾌﾟﾀﾝ循環（1時間)・No2ﾄﾞｸﾀｰ刃交換
B111: 2023 | C111: 4 | D111: 6 | E111: C | BH111: 条件設定・制御盤室57･58･97･99番・ｱｳﾄﾌｨｰﾄﾞ・巻取り・ﾀｯﾁ条件変更・塗料調合・循環
B112: 2023 | C112: 4 | D112: 6 | E112: C | BH112: G回転（150→140）先行ﾃｽﾄ→NG（外観△ｽｼﾞっぽい）・X線測定→OK（16.6ｋｃｐｓ）
B113: 2023 | C113: 4 | D113: 6 | E113: C | BH113: G回転変更（140→170→180→190）先行ﾃｽﾄ→△（外観△ｽｼﾞ改善）・X線測定→NG（12.0ｋｃｐｓ）
B114: 2023 | C114: 4 | D114: 6 | E114: C | BH114: No2塗料配合比変更（固形分増）・先行ﾃｽﾄ→OK・X線測定→△（14.6ｋｃｐｓ）
B115: 2023 | C115: 4 | D115: 6 | E115: C | BH115: No1.2G回転比変更・先行ﾃｽﾄ・X線測定→（15.6ｋｃｐｓ）
B116: 2023 | C116: 4 | D116: 6 | E116: C | BH116: 塗料調合・ｽﾀｰﾄ準備
B117: 2023 | C117: 4 | D117: 6 | E117: C | Y117: 1050 | AD117: 3000 | BH117: 先行ﾃｽﾄ分
B118: 2023 | C118: 4 | D118: 6 | E118: A | F118: 6 | G118: S | H118: ｺｰﾄ | Q118: U | R118: 3705998 | S118: 1 | T118: 1 | U118: JTKE14(B) | V118: 積水化学工業多賀工場 | W118: 25 | X118: QZ54 | Y118: 1110 | Z118: 12100 | AA118: 12100 | AB118: 1110 | AC118: 1 | AD118: 3200 | AE118: 1 | AF118: 3284 | AG118: 3200 | AH118: 1871026602 | AI118: 30406402062 | AQ118: FWP | AX118: 21:50:00 | AY118: 22:10:00 | BB118: U試作加工 | BD118: =IF(AX118>AY118,1-AX118+AY118,IF(AX118="","",AY118-AX118)) -> 00:20:00 | BF118: 内 | BG118: 合定 | BH118: No2ｵｰﾌﾞﾝ2-3～2-5温度140℃
B119: 2023 | C119: 4 | D119: 6 | E119: A | AZ119: 22:10:00 | BA119: 23:00:00 | BC119: G/D清掃 | BE119: 00:50:00 | BH119: 条件変更・ｵｰﾌﾞﾝ温度下がり待ち
B120: 2023 | C120: 4 | D120: 6 | E120: A | F120: 7 | G120: S | H120: ｺｰﾄ | Q120: U | R120: 3705998 | S120: 1 | T120: 1 | U120: JTKE14(B) | V120: 積水化学工業多賀工場 | W120: 25 | X120: QZ54 | Y120: 1110 | Z120: 12100 | AA120: 12100 | AB120: 1110 | AC120: 1 | AD120: 3200 | AE120: 1 | AF120: 3263 | AG120: 3200 | AH120: 1871026602 | AI120: 30406402072 | AQ120: FWP | AX120: 23:00:00 | AY120: 23:20:00 | BB120: U試作加工 | BD120: =IF(AX120>AY120,1-AX120+AY120,IF(AX120="","",AY120-AX120)) -> 00:20:00 | BF120: 内 | BG120: 合定 | BH120: No2ｵｰﾌﾞﾝ2-3～2-5温度120℃
B121: 2023 | C121: 4 | D121: 6 | E121: A | AZ121: 23:20:00 | BA121: 02:00:00 | BC121: 片付け | BE121: 02:40:00 | BH121: 製品下ろし・残原反戻し・排ｶﾞｽOFF・ﾎﾞｲﾗｰOFF・UV立ち下げ・記録類まとめ・塗料廃棄
B122: 2023 | C122: 4 | D122: 6 | E122: A | BH122: №12G洗浄、ﾎﾟﾝﾌﾟ（ﾄ）循環、ｻﾌﾞﾀﾝｸ・ﾁｬﾝﾊﾞｰ・調合桶掃除
B123: 2023 | C123: 4 | D123: 6 | E123: A | P123: ='CF-2'!AF6962 -> 0 | BH123: No2ｸﾞﾗﾋﾞｱ交換（75UR→110UR)
B124: 2023 | C124: 4 | D124: 6 | E124: A | AZ124: 02:00:00 | BA124: 05:30:00 | BC124: 切替え | BE124: 03:30:00 | BH124: ﾌｨﾙﾑ抜き・高密度除電・除電ﾊﾞｰ掃除・繰出しﾛｰﾙ掃除
B125: 2023 | C125: 4 | D125: 6 | E125: A | BH125: №12HD・ﾌﾟﾚ・前室・中二階ﾌﾟﾚ掃除・巻取りﾛｰﾙ掃除
B126: 2023 | C126: 4 | D126: 6 | E126: A | BH126: ﾘｰﾄﾞ通し・EPC合わせ・No1.2HDﾛｰﾙﾃｰﾋﾟﾝｸﾞ
B127: 2023 | C127: 4 | D127: 6 | E127: A | BH127: 排ｶﾞｽ・ﾎﾞｲﾗｰON・UV立ち上げ・HD準備・原反出庫・梱包材準備
B128: 2023 | C128: 4 | D128: 6 | E128: A | BH128: 制御盤室57･58･97･99番・ｱｳﾄﾌｨｰﾄﾞ・巻取り・ﾀｯﾁ条件変更
B129: 2023 | C129: 4 | D129: 6 | E129: A | BH129: 条件設定・塗料調合・循環・先行ﾃｽﾄ→OK・X線測定
B130: 2023 | C130: 4 | D130: 6 | E130: A | F130: 8 | G130: C2 | H130: ｺｰﾄ | Q130: T | R130: 3703964 | S130: 1 | T130: 5 | U130: WZ(34) | V130: 藤産業㈱ | W130: 25E | X130: S105 | Y130: 1420 | Z130: 12700 | AA130: 12700 | AB130: 1410 | AC130: 1 | AD130: 6000 | AE130: 2 | AF130: 6073 | AG130: 6000 | AH130: 05380202001 | AI130: 3040640208105 | AQ130: FWP | AX130: 05:30:00 | AY130: 05:55:00 | BB130: T試作加工 | BD130: =IF(AX130>AY130,1-AX130+AY130,IF(AX130="","",AY130-AX130)) -> 00:25:00 | BE130: =IF(AZ130>BA130,1-AZ130+BA130,IF(AZ130="","",BA130-AZ130)) ->  | BF130: 内 | BG130: 合定 | CJ130: 05:40:00 | CM130: 33 | CN130: 7.38
B131: 2023 | C131: 4 | D131: 6 | E131: A | F131: 9 | G131: C2 | H131: ｺｰﾄ | Q131: T | R131: 3703964 | S131: 1 | T131: 5 | U131: WZ(34) | V131: 藤産業㈱ | W131: 25E | X131: S105 | Y131: 1420 | Z131: 12700 | AA131: 12700 | AB131: 1410 | AC131: 1 | AD131: 6000 | AE131: 2 | AF131: 6067 | AG131: 6000 | AH131: 05380202001 | AI131: 3040640209105 | AQ131: FWP | AX131: 05:55:00 | AY131: 06:25:00 | BB131: T試作加工 | BD131: 00:30:00 | BE131: =IF(AZ131>BA131,1-AZ131+BA131,IF(AZ131="","",BA131-AZ131)) ->  | BF131: 内 | BG131: 合定
B132: 2023 | C132: 4 | D132: 6 | E132: A | AX132: 06:25:00 | AY132: 06:45:00 | BB132: T試作加工 | BD132: 00:20:00
B133: 2023 | C133: 4 | D133: 7 | E133: B | F133: 1 | G133: C2 | H133: ｺｰﾄ | Q133: T | R133: 3703964 | S133: 2 | T133: 5 | U133: WZ(34) | V133: 藤産業㈱ | W133: 25E | X133: S105 | Y133: 1420 | Z133: 12700 | AA133: 12700 | AB133: 1410 | AC133: 1 | AD133: 6000 | AE133: 2 | AF133: 6075 | AG133: 6000 | AH133: 04380301001 | AI133: 3040740201105 | AQ133: FWP | AX133: 06:45:00 | AY133: 06:50:00 | BB133: T試作加工 | BD133: 00:05:00 | BE133: =IF(AZ133>BA133,1-AZ133+BA133,IF(AZ133="","",BA133-AZ133)) ->  | BF133: 内 | BG133: 合定
B134: 2023 | C134: 4 | D134: 7 | E134: B | F134: 2 | G134: C2 | H134: ｺｰﾄ | Q134: T | R134: 3703964 | S134: 2 | T134: 5 | U134: WZ(34) | V134: 藤産業㈱ | W134: 25E | X134: S105 | Y134: 1420 | Z134: 12700 | AA134: 12700 | AB134: 1410 | AC134: 1 | AD134: 6000 | AE134: 2 | AF134: 6069 | AG134: 6000 | AH134: 04380301001 | AI134: 3040740202105 | AQ134: FWP | AX134: 06:50:00 | AY134: 07:15:00 | BB134: T試作加工 | BD134: 00:25:00 | BF134: 内 | BG134: 合定
B135: 2023 | C135: 4 | D135: 7 | E135: B | F135: 3 | G135: C2 | H135: ｺｰﾄ | Q135: T | R135: 3703964 | S135: 3 | T135: 5 | U135: WZ(34) | V135: 藤産業㈱ | W135: 25E | X135: S105 | Y135: 1420 | Z135: 12700 | AA135: 12700 | AB135: 1410 | AC135: 1 | AD135: 6000 | AE135: 2 | AF135: 6072 | AG135: 6000 | AH135: 05380301001 | AI135: 3040740203105 | AQ135: FWP | AX135: 07:15:00 | AY135: 07:45:00 | BB135: T試作加工 | BD135: 00:30:00 | BF135: 内 | BG135: 合定
B136: 2023 | C136: 4 | D136: 7 | E136: B | F136: 4 | G136: C2 | H136: ｺｰﾄ | Q136: T | R136: 3703964 | S136: 3 | T136: 5 | U136: WZ(34) | V136: 藤産業㈱ | W136: 25E | X136: S105 | Y136: 1420 | Z136: 12700 | AA136: 12700 | AB136: 1410 | AC136: 1 | AD136: 6000 | AE136: 2 | AF136: 6067 | AG136: 6000 | AH136: 05380301001 | AI136: 3040740204105 | AQ136: FWP | AX136: 07:45:00 | AY136: 08:10:00 | BB136: T試作加工 | BD136: 00:25:00 | BF136: 内 | BG136: 合定
B137: 2023 | C137: 4 | D137: 7 | E137: B | F137: 5 | G137: C2 | H137: ｺｰﾄ | Q137: T | R137: 3703964 | S137: 4 | T137: 5 | U137: WZ(34) | V137: 藤産業㈱ | W137: 25E | X137: S105 | Y137: 1420 | Z137: 12700 | AA137: 12700 | AB137: 1410 | AC137: 1 | AD137: 6000 | AE137: 2 | AF137: 6072 | AG137: 6000 | AH137: 13380228001 | AI137: 3040740205105 | AQ137: FWP | AX137: 08:10:00 | AY137: 08:35:00 | BB137: T試作加工 | BD137: 00:25:00 | BF137: 内 | BG137: 合定 | CJ137: 08:30:00 | CM137: 33 | CN137: 7.37
B138: 2023 | C138: 4 | D138: 7 | E138: B | F138: 6 | G138: C2 | H138: ｺｰﾄ | Q138: T | R138: 3703964 | S138: 4 | T138: 5 | U138: WZ(34) | V138: 藤産業㈱ | W138: 25E | X138: S105 | Y138: 1420 | Z138: 12700 | AA138: 12700 | AB138: 1410 | AC138: 1 | AD138: 6000 | AE138: 2 | AF138: 6090 | AG138: 6000 | AH138: 13380228001 | AI138: 3040740206105 | AQ138: FWP | AX138: 08:35:00 | AY138: 09:00:00 | BB138: T試作加工 | BD138: 00:25:00 | BF138: 内 | BG138: 合定
B139: 2023 | C139: 4 | D139: 7 | E139: B | F139: 7 | G139: C2 | H139: ｺｰﾄ | Q139: T | R139: 3703964 | S139: 5 | T139: 5 | U139: WZ(34) | V139: 藤産業㈱ | W139: 25E | X139: S105 | Y139: 1420 | Z139: 12700 | AA139: 12700 | AB139: 1410 | AC139: 1 | AD139: 6000 | AE139: 2 | AF139: 6069 | AG139: 6000 | AH139: 01380301001 | AI139: 3040740207105 | AQ139: FWP | AX139: 09:00:00 | AY139: 09:30:00 | BB139: T試作加工 | BD139: 00:30:00 | BF139: 内 | BG139: 合定
B140: 2023 | C140: 4 | D140: 7 | E140: B | F140: 8 | G140: C2 | H140: ｺｰﾄ | Q140: T | R140: 3703964 | S140: 5 | T140: 5 | U140: WZ(34) | V140: 藤産業㈱ | W140: 25E | X140: S105 | Y140: 1420 | Z140: 12700 | AA140: 12700 | AB140: 1410 | AC140: 1 | AD140: 6000 | AE140: 2 | AF140: 6074 | AG140: 6000 | AH140: 01380301001 | AI140: 3040740208105 | AQ140: FWP | AX140: 09:30:00 | AY140: 09:55:00 | BB140: T試作加工 | BD140: 00:25:00 | BF140: 内 | BG140: 合定
B141: 2023 | C141: 4 | D141: 7 | E141: B
B142: 2023 | C142: 4 | D142: 7 | E142: B | F142: 9 | G142: C2 | H142: ｺｰﾄ | Q142: T | R142: 3703965 | S142: 1 | T142: 4 | U142: WZ(34) | V142: 藤産業㈱ | W142: 25E | X142: S105 | Y142: 1420 | Z142: 12700 | AA142: 12700 | AB142: 1410 | AC142: 1 | AD142: 6000 | AE142: 2 | AF142: 6069 | AG142: 6000 | AH142: 04380202003 | AI142: 3040740209105 | AQ142: FWP | AX142: 09:55:00 | AY142: 10:20:00 | BB142: T試作加工 | BD142: 00:25:00 | BF142: 内 | BG142: 合定
B143: 2023 | C143: 4 | D143: 7 | E143: B | F143: 10 | G143: C2 | H143: ｺｰﾄ | Q143: T | R143: 3703965 | S143: 1 | T143: 4 | U143: WZ(34) | V143: 藤産業㈱ | W143: 25E | X143: S105 | Y143: 1420 | Z143: 12700 | AA143: 12700 | AB143: 1410 | AC143: 1 | AD143: 6000 | AE143: 2 | AF143: 6070 | AG143: 6000 | AH143: 04380202003 | AI143: 3040740210105 | AQ143: FWP | AX143: 10:20:00 | AY143: 10:50:00 | BB143: T試作加工 | BD143: 00:30:00 | BF143: 内 | BG143: 合定
B144: 2023 | C144: 4 | D144: 7 | E144: B | F144: 11 | G144: C2 | H144: ｺｰﾄ | Q144: T | R144: 3703965 | S144: 2 | T144: 4 | U144: WZ(34) | V144: 藤産業㈱ | W144: 25E | X144: S105 | Y144: 1420 | Z144: 12700 | AA144: 12700 | AB144: 1410 | AC144: 1 | AD144: 6000 | AE144: 2 | AF144: 6066 | AG144: 6000 | AH144: 07380202003 | AI144: 3040740211105 | AQ144: FWP | AX144: 10:50:00 | AY144: 11:15:00 | BB144: T試作加工 | BD144: 00:25:00 | BF144: 内 | BG144: 合定
B145: 2023 | C145: 4 | D145: 7 | E145: B | F145: 12 | G145: C2 | H145: ｺｰﾄ | Q145: T | R145: 3703965 | S145: 2 | T145: 4 | U145: WZ(34) | V145: 藤産業㈱ | W145: 25E | X145: S105 | Y145: 1420 | Z145: 12700 | AA145: 12700 | AB145: 1410 | AC145: 1 | AD145: 6000 | AE145: 2 | AF145: 6076 | AG145: 6000 | AH145: 07380202003 | AI145: 3040740212105 | AQ145: FWP | AX145: 11:15:00 | AY145: 11:40:00 | BB145: T試作加工 | BD145: 00:25:00 | BF145: 内 | BG145: 合定
B146: 2023 | C146: 4 | D146: 7 | E146: B | F146: 13 | G146: C2 | H146: ｺｰﾄ | Q146: T | R146: 3703965 | S146: 3 | T146: 4 | U146: WZ(34) | V146: 藤産業㈱ | W146: 25E | X146: S105 | Y146: 1420 | Z146: 12700 | AA146: 12700 | AB146: 1410 | AC146: 1 | AD146: 6000 | AE146: 2 | AF146: 6069 | AG146: 6000 | AH146: 05380202003 | AI146: 3040740213105 | AQ146: FWP | AX146: 11:40:00 | AY146: 12:10:00 | BB146: T試作加工 | BD146: 00:30:00 | BF146: 内 | BG146: 合定
B147: 2023 | C147: 4 | D147: 7 | E147: B | F147: 14 | G147: C2 | H147: ｺｰﾄ | Q147: T | R147: 3703965 | S147: 3 | T147: 4 | U147: WZ(34) | V147: 藤産業㈱ | W147: 25E | X147: S105 | Y147: 1420 | Z147: 12700 | AA147: 12700 | AB147: 1410 | AC147: 1 | AD147: 6000 | AE147: 2 | AF147: 6067 | AG147: 6000 | AH147: 05380202003 | AI147: 3040740214105 | AQ147: FWP | AX147: 12:10:00 | AY147: 12:35:00 | BB147: T試作加工 | BD147: 00:25:00 | BF147: 内 | BG147: 合定
B148: 2023 | C148: 4 | D148: 7 | E148: B | F148: 15 | G148: C2 | H148: ｺｰﾄ | Q148: T | R148: 3703965 | S148: 4 | T148: 4 | U148: WZ(34) | V148: 藤産業㈱ | W148: 25E | X148: S105 | Y148: 1420 | Z148: 12700 | AA148: 12700 | AB148: 1410 | AC148: 1 | AD148: 6000 | AE148: 2 | AF148: 6071 | AG148: 6000 | AH148: 13380228003 | AI148: 3040740215105 | AQ148: FWP | AX148: 12:35:00 | AY148: 13:00:00 | BB148: T試作加工 | BD148: 00:25:00 | BF148: 内 | BG148: 合定
B149: 2023 | C149: 4 | D149: 7 | E149: B | F149: 16 | G149: C2 | H149: ｺｰﾄ | Q149: T | R149: 3703965 | S149: 4 | T149: 4 | U149: WZ(34) | V149: 藤産業㈱ | W149: 25E | X149: S105 | Y149: 1420 | Z149: 12700 | AA149: 12700 | AB149: 1410 | AC149: 1 | AD149: 6000 | AE149: 2 | AF149: 6070 | AG149: 6000 | AH149: 13380228003 | AI149: 3040740216105 | AQ149: FWP | AX149: 13:00:00 | AY149: 13:25:00 | BB149: T試作加工 | BD149: 00:25:00 | BF149: 内 | BG149: 合定
B150: 2023 | C150: 4 | D150: 7 | E150: B | AZ150: 13:25:00 | BA150: 13:55:00 | BC150: G/D清掃 | BE150: 00:30:00 | BH150: 塗料〆・条件変更
A151: 33 | B151: 2023 | C151: 4 | D151: 7 | E151: C | F151: 17 | G151: C | H151: ｺｰﾄ | Q151: S | R151: 3703966 | S151: 1 | T151: 8 | U151: WZ(S) | V151: リンテック㈱ | W151: 38 | X151: S28 | Y151: 1415 | Z151: 8000 | AA151: 8000 | AB151: 1410 | AC151: 1 | AD151: 8000 | AE151: 1 | AF151: 7938 | AG151: 7880 | AH151: 06371220001 | AI151: 3040740217005 | AQ151: FWP | AX151: 13:55:00 | AY151: 14:30:00 | BB151: S加工 | BD151: 00:35:00 | BF151: 内 | BG151: 合短 | BH151: 巻取りｽﾌﾟﾗｲｽ時蛇行した為短尺 | BI151: 蛇行 | BJ151: 巻取 | BK151: 原反起因
A152: 33 | B152: 2023 | C152: 4 | D152: 7 | E152: C | F152: 18 | G152: C | H152: ｺｰﾄ | Q152: S | R152: 3703966 | S152: 2 | T152: 8 | U152: WZ(S) | V152: リンテック㈱ | W152: 38 | X152: S28 | Y152: 1415 | Z152: 8000 | AA152: 8000 | AB152: 1410 | AC152: 1 | AD152: 8000 | AE152: 1 | AF152: 8060 | AG152: 8000 | AH152: 02371220001 | AI152: 3040740218005 | AQ152: FWP | AX152: 14:30:00 | AY152: 15:00:00 | BB152: S加工 | BD152: 00:30:00 | BF152: 内 | BG152: 合定
A153: 33 | B153: 2023 | C153: 4 | D153: 7 | E153: C | F153: 19 | G153: C | H153: ｺｰﾄ | Q153: S | R153: 3703966 | S153: 3 | T153: 8 | U153: WZ(S) | V153: リンテック㈱ | W153: 38 | X153: S28 | Y153: 1415 | Z153: 8000 | AA153: 8000 | AB153: 1410 | AC153: 1 | AD153: 8000 | AE153: 1 | AF153: 8067 | AG153: 8000 | AH153: 07371220001 | AI153: 3040740219005 | AQ153: FWP | AX153: 15:00:00 | AY153: 15:30:00 | BB153: S加工 | BD153: 00:30:00 | BF153: 内 | BG153: 合定
A154: 33 | B154: 2023 | C154: 4 | D154: 7 | E154: C | F154: 20 | G154: C | H154: ｺｰﾄ | Q154: S | R154: 3703966 | S154: 4 | T154: 8 | U154: WZ(S) | V154: リンテック㈱ | W154: 38 | X154: S28 | Y154: 1415 | Z154: 8000 | AA154: 8000 | AB154: 1410 | AC154: 1 | AD154: 8000 | AE154: 1 | AF154: 7963 | AG154: 7910 | AH154: 02371220003 | AI154: 3040740220005 | AQ154: FWP | AX154: 15:30:00 | AY154: 16:05:00 | BB154: S加工 | BD154: 00:35:00 | BF154: 内 | BG154: 合短 | BH154: 巻取りｽﾌﾟﾗｲｽ時蛇行した為短尺 | BI154: 蛇行 | BJ154: 巻取 | BK154: 原反起因
A155: 33 | B155: 2023 | C155: 4 | D155: 7 | E155: C | F155: 21 | G155: C | H155: ｺｰﾄ | Q155: S | R155: 3703966 | S155: 5 | T155: 8 | U155: WZ(S) | V155: リンテック㈱ | W155: 38 | X155: S28 | Y155: 1415 | Z155: 8000 | AA155: 8000 | AB155: 1410 | AC155: 1 | AD155: 8000 | AE155: 1 | AF155: 8078 | AG155: 8000 | AH155: 05371220003 | AI155: 3040740221005 | AQ155: FWP | AX155: 16:05:00 | AY155: 16:35:00 | BB155: S加工 | BD155: 00:30:00 | BF155: 内 | BG155: 合定
A156: 33 | B156: 2023 | C156: 4 | D156: 7 | E156: C | F156: 22 | G156: C | H156: ｺｰﾄ | Q156: S | R156: 3703966 | S156: 6 | T156: 8 | U156: WZ(S) | V156: リンテック㈱ | W156: 38 | X156: S28 | Y156: 1415 | Z156: 8000 | AA156: 8000 | AB156: 1410 | AC156: 1 | AD156: 8000 | AE156: 1 | AF156: 8061 | AG156: 8000 | AH156: 07371220003 | AI156: 3040740222005 | AQ156: FWP | AX156: 16:35:00 | AY156: 17:10:00 | BB156: S加工 | BD156: 00:35:00 | BF156: 内 | BG156: 合定
A157: 33 | B157: 2023 | C157: 4 | D157: 7 | E157: C | F157: 23 | G157: C | H157: ｺｰﾄ | Q157: S | R157: 3703966 | S157: 7 | T157: 8 | U157: WZ(S) | V157: リンテック㈱ | W157: 38 | X157: S28 | Y157: 1415 | Z157: 8000 | AA157: 8000 | AB157: 1410 | AC157: 1 | AD157: 8000 | AE157: 1 | AF157: 8071 | AG157: 8000 | AH157: 04371220003 | AI157: 3040740223005 | AQ157: FWP | AX157: 17:10:00 | AY157: 17:40:00 | BB157: S加工 | BD157: 00:30:00 | BF157: 内 | BG157: 合定
A158: 33 | B158: 2023 | C158: 4 | D158: 7 | E158: C | F158: 24 | G158: C | H158: ｺｰﾄ | Q158: S | R158: 3703966 | S158: 8 | T158: 8 | U158: WZ(S) | V158: リンテック㈱ | W158: 38 | X158: S28 | Y158: 1415 | Z158: 8000 | AA158: 8000 | AB158: 1410 | AC158: 1 | AD158: 8000 | AE158: 1 | AF158: 8064 | AG158: 8000 | AH158: 06371220003 | AI158: 3040740224005 | AQ158: FWP | AX158: 17:40:00 | AY158: 18:15:00 | BB158: S加工 | BD158: 00:35:00 | BF158: 内 | BG158: 合定
B159: 2023 | C159: 4 | D159: 7 | E159: C | AZ159: 18:15:00 | BA159: 18:35:00 | BC159: 幅替え | BE159: 00:20:00 | BH159: 塗料〆
B160: 2023 | C160: 4 | D160: 7 | E160: C | F160: 25 | G160: C | H160: ｺｰﾄ | Q160: U | R160: 3706279 | S160: 1 | T160: 1 | U160: WZ(CR) | V160: 東レ㈱ | W160: 31 | X160: A56 | Y160: 1370 | Z160: 13450 | AA160: 13450 | AB160: 1360 | AC160: 1 | AD160: 13250 | AE160: 1 | AF160: 13324 | AG160: 13250 | AH160: 15526019901 | AI160: 3040740225205 | AQ160: FWP | AX160: 18:35:00 | AY160: 19:30:00 | BB160: U試作加工 | BD160: 00:55:00 | BF160: 内 | BG160: 合定
B161: 2023 | C161: 4 | D161: 7 | E161: C
B162: 2023 | C162: 4 | D162: 7 | E162: C | F162: 26 | G162: C | H162: ｺｰﾄ | Q162: U | R162: 3706280 | S162: 1 | T162: 3 | U162: WZ(CR) | V162: 東レ㈱ | W162: 25 | X162: A56 | Y162: 1370 | Z162: 15300 | AA162: 15300 | AB162: 1360 | AC162: 1 | AD162: 15100 | AE162: 1 | AF162: 15168 | AG162: 15100 | AH162: 04526008903 | AI162: 3040740226205 | AQ162: FWP | AX162: 19:30:00 | AY162: 20:30:00 | BB162: U試作加工 | BD162: 01:00:00 | BF162: 内 | BG162: 合定 | CJ162: 20:00:00 | CM162: 33 | CN162: 7.38
B163: 2023 | C163: 4 | D163: 7 | E163: C | F163: 27 | G163: C | H163: ｺｰﾄ | Q163: U | R163: 3706280 | S163: 2 | T163: 3 | U163: WZ(CR) | V163: 東レ㈱ | W163: 25 | X163: A56 | Y163: 1370 | Z163: 15300 | AA163: 15300 | AB163: 1360 | AC163: 1 | AD163: 15100 | AE163: 1 | AF163: 15170 | AG163: 15100 | AH163: 05526008903 | AI163: 3040740227205 | AQ163: FWP | AX163: 20:30:00 | AY163: 21:30:00 | BB163: U試作加工 | BD163: 01:00:00 | BF163: 内 | BG163: 合定
B164: 2023 | C164: 4 | D164: 7 | E164: A | F164: 28 | G164: C | H164: ｺｰﾄ | Q164: U | R164: 3706280 | S164: 3 | T164: 3 | U164: WZ(CR) | V164: 東レ㈱ | W164: 25 | X164: A56 | Y164: 1370 | Z164: 15300 | AA164: 15300 | AB164: 1360 | AC164: 1 | AD164: 15100 | AE164: 1 | AF164: 15165 | AG164: 15100 | AH164: 06526008903 | AI164: 3040740228205 | AQ164: FWP | AX164: 21:30:00 | AY164: 22:35:00 | BB164: U試作加工 | BD164: 01:05:00 | BF164: 内 | BG164: 合定
B165: 2023 | C165: 4 | D165: 7 | E165: A | AZ165: 22:35:00 | BA165: 23:05:00 | BC165: 幅替え | BE165: =IF(AZ165>BA165,1-AZ165+BA165,IF(AZ165="","",BA165-AZ165)) -> 00:30:00 | BH165: 塗料〆・制御盤室57･58･97･99番・ｱｳﾄﾌｨｰﾄﾞ・巻取り・ﾀｯﾁ条件変更
A166: 26 | B166: 2023 | C166: 4 | D166: 7 | E166: A | F166: 29 | G166: C2 | H166: ｺｰﾄ | Q166: S | R166: 3703967 | S166: 1 | T166: 13 | U166: WZ(E) | V166: 古河電気工業㈱ | W166: 25 | X166: E5001 | Y166: 1245 | Z166: 12300 | AA166: 12300 | AB166: 1240 | AC166: 1 | AD166: 6000 | AE166: 2 | AF166: 6084 | AG166: 6000 | AH166: 261807372 | AI166: 3040740229005 | AQ166: FWP | AX166: 23:05:00 | AY166: 23:30:00 | BB166: S加工 | BD166: 00:25:00 | BF166: 内 | BG166: 合定 | BH166: 先行ｻﾝﾌﾟﾙ | CJ166: 23:15:00 | CM166: 33 | CN166: 7.39
A167: 26 | B167: 2023 | C167: 4 | D167: 7 | E167: A | F167: 30 | G167: C2 | H167: ｺｰﾄ | Q167: S | R167: 3703967 | S167: 1 | T167: 13 | U167: WZ(E) | V167: 古河電気工業㈱ | W167: 25 | X167: E5001 | Y167: 1245 | Z167: 12300 | AA167: 12300 | AB167: 1240 | AC167: 1 | AD167: 6000 | AE167: 2 | AF167: 6065 | AG167: 6000 | AH167: 261807372 | AI167: 3040740230005 | AQ167: FWP | AX167: 23:30:00 | AY167: 00:00:00 | BB167: S加工 | BD167: 00:30:00 | BF167: 内 | BG167: 合定
A168: 26 | B168: 2023 | C168: 4 | D168: 7 | E168: A | F168: 31 | G168: C2 | H168: ｺｰﾄ | Q168: S | R168: 3703967 | S168: 2 | T168: 13 | U168: WZ(E) | V168: 古河電気工業㈱ | W168: 25 | X168: E5001 | Y168: 1245 | Z168: 12300 | AA168: 12300 | AB168: 1240 | AC168: 1 | AD168: 6000 | AE168: 2 | AF168: 6072 | AG168: 6000 | AH168: 261808072 | AI168: 3040740231005 | AQ168: FWP | AX168: 00:00:00 | AY168: 00:25:00 | BB168: S加工 | BD168: 00:25:00 | BF168: 内 | BG168: 合定
A169: 26 | B169: 2023 | C169: 4 | D169: 7 | E169: A | F169: 32 | G169: C2 | H169: ｺｰﾄ | Q169: S | R169: 3703967 | S169: 2 | T169: 13 | U169: WZ(E) | V169: 古河電気工業㈱ | W169: 25 | X169: E5001 | Y169: 1245 | Z169: 12300 | AA169: 12300 | AB169: 1240 | AC169: 1 | AD169: 6000 | AE169: 2 | AF169: 6067 | AG169: 6000 | AH169: 261808072 | AI169: 3040740232005 | AQ169: FWP | AX169: 00:25:00 | AY169: 00:50:00 | BB169: S加工 | BD169: 00:25:00 | BF169: 内 | BG169: 合定
A170: 26 | B170: 2023 | C170: 4 | D170: 7 | E170: A | F170: 33 | G170: C2 | H170: ｺｰﾄ | Q170: S | R170: 3703967 | S170: 3 | T170: 13 | U170: WZ(E) | V170: 古河電気工業㈱ | W170: 25 | X170: E5001 | Y170: 1245 | Z170: 12300 | AA170: 12300 | AB170: 1240 | AC170: 1 | AD170: 6000 | AE170: 2 | AF170: 6071 | AG170: 6000 | AH170: 261807972 | AI170: 3040740233005 | AQ170: FWP | AX170: 00:50:00 | AY170: 01:20:00 | BB170: S加工 | BD170: 00:30:00 | BF170: 内 | BG170: 合定
A171: 26 | B171: 2023 | C171: 4 | D171: 7 | E171: A | F171: 34 | G171: C2 | H171: ｺｰﾄ | Q171: S | R171: 3703967 | S171: 3 | T171: 13 | U171: WZ(E) | V171: 古河電気工業㈱ | W171: 25 | X171: E5001 | Y171: 1245 | Z171: 12300 | AA171: 12300 | AB171: 1240 | AC171: 1 | AD171: 6000 | AE171: 2 | AF171: 6066 | AG171: 6000 | AH171: 261807972 | AI171: 3040740234005 | AQ171: FWP | AX171: 01:20:00 | AY171: 01:45:00 | BB171: S加工 | BD171: 00:25:00 | BF171: 内 | BG171: 合定
A172: 26 | B172: 2023 | C172: 4 | D172: 7 | E172: A | F172: 35 | G172: C2 | H172: ｺｰﾄ | Q172: S | R172: 3703967 | S172: 4 | T172: 13 | U172: WZ(E) | V172: 古河電気工業㈱ | W172: 25 | X172: E5001 | Y172: 1245 | Z172: 12300 | AA172: 12300 | AB172: 1240 | AC172: 1 | AD172: 6000 | AE172: 2 | AF172: 6073 | AG172: 6000 | AH172: 261807872 | AI172: 3040740235005 | AQ172: FWP | AX172: 01:45:00 | AY172: 02:10:00 | BB172: S加工 | BD172: 00:25:00 | BF172: 内 | BG172: 合定
A173: 26 | B173: 2023 | C173: 4 | D173: 7 | E173: A | F173: 36 | G173: C2 | H173: ｺｰﾄ | Q173: S | R173: 3703967 | S173: 4 | T173: 13 | U173: WZ(E) | V173: 古河電気工業㈱ | W173: 25 | X173: E5001 | Y173: 1245 | Z173: 12300 | AA173: 12300 | AB173: 1240 | AC173: 1 | AD173: 6000 | AE173: 2 | AF173: 6065 | AG173: 6000 | AH173: 261807872 | AI173: 3040740236005 | AQ173: FWP | AX173: 02:10:00 | AY173: 02:35:00 | BB173: S加工 | BD173: 00:25:00 | BF173: 内 | BG173: 合定
A174: 26 | B174: 2023 | C174: 4 | D174: 7 | E174: A | F174: 37 | G174: C2 | H174: ｺｰﾄ | Q174: S | R174: 3703967 | S174: 5 | T174: 13 | U174: WZ(E) | V174: 古河電気工業㈱ | W174: 25 | X174: E5001 | Y174: 1245 | Z174: 12300 | AA174: 12300 | AB174: 1240 | AC174: 1 | AD174: 6000 | AE174: 2 | AF174: 6078 | AG174: 6000 | AH174: 247403472 | AI174: 3040740237005 | AQ174: FWP | AX174: 02:35:00 | AY174: 03:05:00 | BB174: S加工 | BD174: 00:30:00 | BF174: 内 | BG174: 合定
B175: 2023 | C175: 4 | D175: 7 | E175: A | AZ175: 03:05:00 | BA175: 03:30:00 | BC175: 設備ﾄﾗﾌﾞﾙ | BE175: 00:25:00 | BH175: 巻取りA軸ﾁｬｯｷﾝｸﾞﾚﾊﾞｰ位置異常旋回不可異常発生 ﾏｼﾝ減速停止 | BI175: 設備 | BJ175: 巻取 | BK175: TAF起因
A176: 26 | B176: 2023 | C176: 4 | D176: 7 | E176: A | F176: 38 | G176: C2 | H176: ｺｰﾄ | Q176: S | R176: 3703967 | S176: 5 | T176: 13 | U176: WZ(E) | V176: 古河電気工業㈱ | W176: 25 | X176: E5001 | Y176: 1245 | Z176: 12300 | AA176: 12300 | AB176: 1240 | AC176: 1 | AD176: 6000 | AE176: 2 | AF176: 5962 | AG176: 5900 | AH176: 247403472 | AI176: 3040740238005 | AQ176: FWP | AX176: 03:30:00 | AY176: 03:55:00 | BB176: S加工 | BD176: =IF(AX176>AY176,1-AX176+AY176,IF(AX176="","",AY176-AX176)) -> 00:25:00 | BF176: 内 | BG176: 合短 | BH176: 残原反塗工の為
A177: 26 | B177: 2023 | C177: 4 | D177: 7 | E177: A | F177: 39 | G177: C2 | H177: ｺｰﾄ | Q177: S | R177: 3703967 | S177: 6 | T177: 13 | U177: WZ(E) | V177: 古河電気工業㈱ | W177: 25 | X177: E5001 | Y177: 1245 | Z177: 12300 | AA177: 12300 | AB177: 1240 | AC177: 1 | AD177: 6000 | AE177: 2 | AF177: 6073 | AG177: 6000 | AH177: 261807773 | AI177: 3040740239005 | AQ177: FWP | AX177: 03:55:00 | AY177: 04:25:00 | BB177: S加工 | BD177: 00:30:00 | BF177: 内 | BG177: 合定
A178: 26 | B178: 2023 | C178: 4 | D178: 7 | E178: A | F178: 40 | G178: C2 | H178: ｺｰﾄ | Q178: S | R178: 3703967 | S178: 6 | T178: 13 | U178: WZ(E) | V178: 古河電気工業㈱ | W178: 25 | X178: E5001 | Y178: 1245 | Z178: 12300 | AA178: 12300 | AB178: 1240 | AC178: 1 | AD178: 6000 | AE178: 2 | AF178: 6063 | AG178: 6000 | AH178: 261807773 | AI178: 3040740240005 | AQ178: FWP | AX178: 04:25:00 | AY178: 04:50:00 | BB178: S加工 | BD178: 00:25:00 | BF178: 内 | BG178: 合定
A179: 26 | B179: 2023 | C179: 4 | D179: 7 | E179: A | F179: 41 | G179: C2 | H179: ｺｰﾄ | Q179: S | R179: 3703967 | S179: 7 | T179: 13 | U179: WZ(E) | V179: 古河電気工業㈱ | W179: 25 | X179: E5001 | Y179: 1245 | Z179: 12300 | AA179: 12300 | AB179: 1240 | AC179: 1 | AD179: 6000 | AE179: 2 | AF179: 6078 | AG179: 6000 | AH179: 247404773 | AI179: 3040740241005 | AQ179: FWP | AX179: 04:50:00 | AY179: 05:15:00 | BB179: S加工 | BD179: 00:25:00 | BF179: 内 | BG179: 合定 | CJ179: 05:30:00 | CM179: 33 | CN179: 7.36
A180: 26 | B180: 2023 | C180: 4 | D180: 7 | E180: A | F180: 42 | G180: C2 | H180: ｺｰﾄ | Q180: S | R180: 3703967 | S180: 7 | T180: 13 | U180: WZ(E) | V180: 古河電気工業㈱ | W180: 25 | X180: E5001 | Y180: 1245 | Z180: 12300 | AA180: 12300 | AB180: 1240 | AC180: 1 | AD180: 6000 | AE180: 2 | AF180: 5952 | AG180: 5900 | AH180: 247404773 | AI180: 3040740242005 | AQ180: FWP | AX180: 05:15:00 | AY180: 05:45:00 | BB180: S加工 | BD180: 00:30:00 | BF180: 内 | BG180: 合短 | BH180: 巻取りA軸ﾁｬｯｷﾝｸﾞﾚﾊﾞｰ位置異常旋回不可異常発生 ﾏｼﾝ減速停止 | BI180: 設備 | BJ180: 巻取 | BK180: TAF起因
B181: 2023 | C181: 4 | D181: 7 | E181: A | AZ181: 05:45:00 | BA181: 06:45:00 | BC181: 設備ﾄﾗﾌﾞﾙ | BE181: 01:00:00 | BH181: 藤田課長へ連絡→工務課太田さん対応
B182: 2023 | C182: 4 | D182: 8 | E182: B | AZ182: 06:45:00 | BA182: 07:40:00 | BC182: 設備ﾄﾗﾌﾞﾙ | BE182: 00:55:00 | BH182: 工務課太田さん対応
A183: 26 | B183: 2023 | C183: 4 | D183: 8 | E183: B | F183: 1 | G183: C2 | H183: ｺｰﾄ | Q183: S | R183: 3703967 | S183: 8 | T183: 13 | U183: WZ(E) | V183: 古河電気工業㈱ | W183: 25 | X183: E5001 | Y183: 1245 | Z183: 12300 | AA183: 12300 | AB183: 1240 | AC183: 1 | AD183: 6000 | AE183: 2 | AF183: 3280 | AG183: 3200 | AH183: 247404373 | AI183: 3040840201005 | AQ183: FWP | AX183: 07:40:00 | AY183: 08:05:00 | BB183: S加工 | BD183: 00:25:00 | BF183: 内 | BG183: 良短 | BH183: 巻取りﾁｬｯｷﾝｸﾞ圧異常の為ﾏｼﾝ減速停止
B184: 2023 | C184: 4 | D184: 8 | E184: B | AZ184: 08:05:00 | BA184: 09:50:00 | BC184: 設備ﾄﾗﾌﾞﾙ | BE184: 01:45:00 | BH184: 工務課太田さん対応（巻取りｾﾝｻｰ取り付けﾊﾟｲﾌﾟ切断・ｶﾊﾞｰ取り付け不可の為虎ﾃｰﾌﾟ代用）
B185: 2023 | C185: 4 | D185: 8 | E185: B | BH185: 巻取り両軸ｽﾌﾟﾗｲｽ時の動作確認・再ｽﾀｰﾄ準備
A186: 26 | B186: 2023 | C186: 4 | D186: 8 | E186: B | F186: 2 | G186: C2 | H186: ｺｰﾄ | Q186: S | R186: 3703967 | S186: 8 | T186: 13 | U186: WZ(E) | V186: 古河電気工業㈱ | W186: 25 | X186: E5001 | Y186: 1245 | Z186: 12300 | AA186: 12300 | AB186: 1240 | AC186: 1 | AD186: 6000 | AE186: 2 | AF186: 6076 | AG186: 6000 | AH186: 247404373 | AI186: 3040840202005 | AQ186: FWP | AX186: 09:50:00 | AY186: 10:15:00 | BB186: S加工 | BD186: =IF(AX186>AY186,1-AX186+AY186,IF(AX186="","",AY186-AX186)) -> 00:25:00 | BF186: 内 | BG186: 合短 | CJ186: 10:10:00 | CM186: 33 | CN186: 7.303
A187: 26 | B187: 2023 | C187: 4 | D187: 8 | E187: B | F187: 2 | G187: C2 | H187: ｺｰﾄ | Q187: S | R187: 3703967 | S187: 8 | T187: 13 | U187: WZ(E) | V187: 古河電気工業㈱ | W187: 25 | X187: E5001 | Y187: 1245 | Z187: 12300 | AA187: 12300 | AB187: 1240 | AC187: 1 | AD187: 6000 | AE187: 2 | AF187: 2466 | AG187: 2400 | AH187: 247404373 | AI187: 3040840203005 | AQ187: FWP | AX187: 10:15:00 | AY187: 10:25:00 | BB187: S加工 | BD187: 00:10:00 | BF187: 内 | BG187: 良短 | BH187: 残原反塗工の為良品短尺保留
B188: 2023 | C188: 4 | D188: 8 | E188: B | AZ188: 10:25:00 | BA188: 10:45:00 | BC188: G/D清掃 | BE188: 00:20:00
A189: 26 | B189: 2023 | C189: 4 | D189: 8 | E189: B | F189: 3 | G189: C2 | H189: ｺｰﾄ | Q189: S | R189: 3703967 | S189: 9 | T189: 13 | U189: WZ(E) | V189: 古河電気工業㈱ | W189: 25 | X189: E5001 | Y189: 1245 | Z189: 12300 | AA189: 12300 | AB189: 1240 | AC189: 1 | AD189: 6000 | AE189: 2 | AF189: 6074 | AG189: 6000 | AH189: 261807073 | AI189: 3040840204005 | AQ189: FWP | AX189: 10:45:00 | AY189: 11:10:00 | BB189: S加工 | BD189: 00:25:00 | BF189: 内 | BG189: 合定
A190: 26 | B190: 2023 | C190: 4 | D190: 8 | E190: B | F190: 4 | G190: C2 | H190: ｺｰﾄ | Q190: S | R190: 3703967 | S190: 9 | T190: 13 | U190: WZ(E) | V190: 古河電気工業㈱ | W190: 25 | X190: E5001 | Y190: 1245 | Z190: 12300 | AA190: 12300 | AB190: 1240 | AC190: 1 | AD190: 6000 | AE190: 2 | AF190: 6067 | AG190: 6000 | AH190: 261807073 | AI190: 3040840205005 | AQ190: FWP | AX190: 11:10:00 | AY190: 11:40:00 | BB190: S加工 | BD190: 00:30:00 | BF190: 内 | BG190: 合定
A191: 26 | B191: 2023 | C191: 4 | D191: 8 | E191: B | F191: 5 | G191: C2 | H191: ｺｰﾄ | Q191: S | R191: 3703967 | S191: 10 | T191: 13 | U191: WZ(E) | V191: 古河電気工業㈱ | W191: 25 | X191: E5001 | Y191: 1245 | Z191: 12300 | AA191: 12300 | AB191: 1240 | AC191: 1 | AD191: 6000 | AE191: 2 | AF191: 6069 | AG191: 6000 | AH191: 261808073 | AI191: 3040840206005 | AQ191: FWP | AX191: 11:40:00 | AY191: 12:05:00 | BB191: S加工 | BD191: 00:25:00 | BF191: 内 | BG191: 合定
A192: 26 | B192: 2023 | C192: 4 | D192: 8 | E192: B | F192: 6 | G192: C2 | H192: ｺｰﾄ | Q192: S | R192: 3703967 | S192: 10 | T192: 13 | U192: WZ(E) | V192: 古河電気工業㈱ | W192: 25 | X192: E5001 | Y192: 1245 | Z192: 12300 | AA192: 12300 | AB192: 1240 | AC192: 1 | AD192: 6000 | AE192: 2 | AF192: 6066 | AG192: 6000 | AH192: 261808073 | AI192: 3040840207005 | AQ192: FWP | AX192: 12:05:00 | AY192: 12:30:00 | BB192: S加工 | BD192: 00:25:00 | BF192: 内 | BG192: 合定
A193: 26 | B193: 2023 | C193: 4 | D193: 8 | E193: B | F193: 7 | G193: C2 | H193: ｺｰﾄ | Q193: S | R193: 3703967 | S193: 11 | T193: 13 | U193: WZ(E) | V193: 古河電気工業㈱ | W193: 25 | X193: E5001 | Y193: 1245 | Z193: 12300 | AA193: 12300 | AB193: 1240 | AC193: 1 | AD193: 6000 | AE193: 2 | AF193: 6074 | AG193: 6000 | AH193: 261807373 | AI193: 3040840208005 | AQ193: FWP | AX193: 12:30:00 | AY193: 13:00:00 | BB193: S加工 | BD193: 00:30:00 | BF193: 内 | BG193: 合定
A194: 26 | B194: 2023 | C194: 4 | D194: 8 | E194: B | F194: 8 | G194: C2 | H194: ｺｰﾄ | Q194: S | R194: 3703967 | S194: 11 | T194: 13 | U194: WZ(E) | V194: 古河電気工業㈱ | W194: 25 | X194: E5001 | Y194: 1245 | Z194: 12300 | AA194: 12300 | AB194: 1240 | AC194: 1 | AD194: 6000 | AE194: 2 | AF194: 6066 | AG194: 6000 | AH194: 261807373 | AI194: 3040840209005 | AQ194: FWP | AX194: 13:00:00 | AY194: 13:25:00 | BB194: S加工 | BD194: 00:25:00 | BF194: 内 | BG194: 合定
A195: 26 | B195: 2023 | C195: 4 | D195: 8 | E195: B | F195: 9 | G195: C2 | H195: ｺｰﾄ | Q195: S | R195: 3703967 | S195: 12 | T195: 13 | U195: WZ(E) | V195: 古河電気工業㈱ | W195: 25 | X195: E5001 | Y195: 1245 | Z195: 12300 | AA195: 12300 | AB195: 1240 | AC195: 1 | AD195: 6000 | AE195: 2 | AF195: 6070 | AG195: 6000 | AH195: 261807873 | AI195: 3040840210005 | AQ195: FWP | AX195: 13:25:00 | AY195: 13:50:00 | BB195: S加工 | BD195: 00:25:00 | BF195: 内 | BG195: 合定
A196: 26 | B196: 2023 | C196: 4 | D196: 8 | E196: C | F196: 10 | G196: C2 | H196: ｺｰﾄ | Q196: S | R196: 3703967 | S196: 12 | T196: 13 | U196: WZ(E) | V196: 古河電気工業㈱ | W196: 25 | X196: E5001 | Y196: 1245 | Z196: 12300 | AA196: 12300 | AB196: 1240 | AC196: 1 | AD196: 6000 | AE196: 2 | AF196: 6068 | AG196: 6000 | AH196: 261807873 | AI196: 3040840211005 | AQ196: FWP | AX196: 13:50:00 | AY196: 14:15:00 | BB196: S加工 | BD196: 00:25:00 | BF196: 内 | BG196: 合定
A197: 26 | B197: 2023 | C197: 4 | D197: 8 | E197: C | F197: 11 | G197: C2 | H197: ｺｰﾄ | Q197: S | R197: 3703967 | S197: 13 | T197: 13 | U197: WZ(E) | V197: 古河電気工業㈱ | W197: 25 | X197: E5001 | Y197: 1245 | Z197: 12300 | AA197: 12300 | AB197: 1240 | AC197: 1 | AD197: 6000 | AE197: 2 | AF197: 6074 | AG197: 6000 | AH197: 261807173 | AI197: 3040840212005 | AQ197: FWP | AX197: 14:15:00 | AY197: 14:45:00 | BB197: S加工 | BD197: 00:30:00 | BE197: =IF(AZ197>BA197,1-AZ197+BA197,IF(AZ197="","",BA197-AZ197)) ->  | BF197: 内 | BG197: 合定
A198: 26 | B198: 2023 | C198: 4 | D198: 8 | E198: C | F198: 12 | G198: C2 | H198: ｺｰﾄ | Q198: S | R198: 3703967 | S198: 13 | T198: 13 | U198: WZ(E) | V198: 古河電気工業㈱ | W198: 25 | X198: E5001 | Y198: 1245 | Z198: 12300 | AA198: 12300 | AB198: 1240 | AC198: 1 | AD198: 6000 | AE198: 2 | AF198: 6069 | AG198: 6000 | AH198: 261807173 | AI198: 3040840213005 | AQ198: FWP | AX198: 14:45:00 | AY198: 15:10:00 | BB198: S加工 | BD198: 00:25:00 | BF198: 内 | BG198: 合定
B199: 2023 | C199: 4 | D199: 8 | E199: C
A200: 26・27 | B200: 2023 | C200: 4 | D200: 8 | E200: C | F200: 13 | G200: C | H200: ｺｰﾄ | Q200: S | R200: 3703968 | S200: 1 | T200: 10 | U200: WZ(E) | V200: 古河電気工業㈱ | W200: 38 | X200: E5001 | Y200: 1245 | Z200: 6200 | AA200: 6200 | AB200: 1240 | AC200: 1 | AD200: 6000 | AE200: 1 | AF200: 6080 | AG200: 6000 | AH200: 232600871 | AI200: 3040840214005 | AQ200: FWP | AX200: 15:10:00 | AY200: 15:35:00 | BB200: S加工 | BD200: 00:25:00 | BF200: 内 | BG200: 合定 | BH200: 先行ｻﾝﾌﾟﾙ
A201: 26・27 | B201: 2023 | C201: 4 | D201: 8 | E201: C | F201: 14 | G201: C | H201: ｺｰﾄ | Q201: S | R201: 3703968 | S201: 2 | T201: 10 | U201: WZ(E) | V201: 古河電気工業㈱ | W201: 38 | X201: E5001 | Y201: 1245 | Z201: 6200 | AA201: 6200 | AB201: 1240 | AC201: 1 | AD201: 6000 | AE201: 1 | AF201: 6068 | AG201: 6000 | AH201: 232600571 | AI201: 3040840215005 | AQ201: FWP | AX201: 15:35:00 | AY201: 16:05:00 | BB201: S加工 | BD201: 00:30:00 | BF201: 内 | BG201: 合定
... 923 more rows

Sheet PIMS
B1: 開：年 | C1: 月 | D1: 日 | E1: 終：年 | G1: 月 | H1: 日
B2: 2024 | C2: 12 | D2: 11 | E2: 2024 | G2: 12 | H2: 13 | AP2: 2021 | AR2: 3 | AT2: 30 | CR2: IF(BB1="",$BC$2:$BC$13,IF(BB1=$BB$6,$BD$2:$BD$4,$BC$2:$BC$13))
A3: 条件No | B3: C 西暦 年 | C3: C 月 | D3: C 日 | E3: コートシフト | F3: C 当日 NO | G3: 工程 仕様 | H3: C 作業 項目 | I3: S 西暦 年 | J3: S 月 | K3: S 日 | L3: ｽﾘｯﾄ シフト | M3: S 当日 NO | N3: ｺｰﾄ 工程 | O3: ｽﾘｯﾄ ﾏｼﾝ | P3: S 作業 項目 | Q3: S T U 技 | R3: 加工依頼 | S3: 通し NO | T3: 依頼 数量 | U3: 品 種 | V3: ﾕｰｻﾞｰ | W3: # | X3: 原反 ｔｙｐｅ | Y3: 原反 幅 (mm) | Z3: 原反 長さ (m) | AA3: 原反 投入長 (m) | AB3: 製品 仕上幅 (mm) | AC3: 製品 仕上 幅数 (本) | AD3: 製品 仕様長 (m) | AE3: 製品 仕様 長数 (本) | AF3: 製品 仕上長 (m) | AG3: 製品 実績長 (m) | AH3: 原反 LOT | AI3: 製造 LOT | AJ3: S 加工 開始 | AK3: S 加工 終了 | AL3: S 停機 開始 | AM3: S 停機 終了 | AN3: S 停機 項目 | AO3: S ｺｰﾄ 面 | AP3: S 合否 | AQ3: 原反コア チェック | AS3: S特記事項 | AU3: S不具合 （欠点） | AV3: S不具合 （発生状況） | AW3: S不具合 （起因） | AX3: C 加工 開始 | AY3: C 加工 終了 | AZ3: C 停機 開始 | BA3: C 停機 終了 | BB3: 加工 チャート | BC3: C 停機 チャート | BD3: 加工 時間 | BE3: 停機 時間 | BF3: C ｺｰﾄ 面 | BG3: 良短 | BH3: C特記事項 | BI3: C不具合 （欠点） | BJ3: C不具合 （発生状況） | BK3: C不具合 （起因） | BL3: 投入 （㎡） | BM3: 仕上 （㎡） | BN3: ロス （㎡） | BO3: 幅ロス (㎡) | BP3: 前後ロス (㎡） | BQ3: 欠点ロス (㎡) | BR3: ㎡収率 (%) | BS3: 投入 （m） | BT3: 仕上 （m） | BU3: ※ ロス (m) | BV3: ※ 入り目ロス (m) | BW3: ※ 欠点ロス (m) | BX3: ｍ収率 (%) | BY3: C 加工 時間 (hr) | BZ3: C 停機 時間 (ｈｒ) | CA3: S 加工 時間 (hr) | CB3: S 停機 時間 (ｈｒ) | CC3: RTO測定 時間 | CD3: 炉内 温度(℃) | CE3: 確認者 | CF3: 炉内差圧 （mmH2O） | CG3: 接続ﾀﾞﾝﾊﾟ 開度(%) | CH3: 確認者 | CI3: 稼働チャート ２４用 | CJ3: 給液ﾎﾟﾝﾌﾟ 測定時間 | CK3: ﾎﾟﾝﾌﾟ比率％ | CL3: No1流量 L/min | CM3: ﾎﾟﾝﾌﾟ比率％ | CN3: No2流量 L/min
B4: 2024 | C4: 12 | D4: 11 | E4: B | F4: 24 | G4: C | H4: ｺｰﾄ | Q4: T | R4: 3790216 | S4: 3 | T4: 14 | U4: BX8A(14) | V4: 河村産業㈱ | W4: 25 | X4: S28M | Y4: 1110 | Z4: 12500 | AA4: 12500 | AB4: 1110 | AC4: 1 | AD4: 12500 | AE4: 1 | AF4: 12689 | AG4: 12500 | AH4: 09391012002 | AI4: 41210402241 | AQ4: FWP | AX4: 23:50:00 | AY4: 00:55:00 | BB4: T試作加工 | BD4: =IF(AX4>AY4,1-AX4+AY4,IF(AX4="","",AY4-AX4)) -> 01:05:00 | BE4: =IF(AZ4>BA4,1-AZ4+BA4,IF(AZ4="","",BA4-AZ4)) ->  | BF4: 内 | BG4: 合定 | CJ4: 23:50:00 | CK4: 29.9 | CL4: 5.29 | CM4: 28.8 | CN4: 7.49
B5: 2024 | C5: 12 | D5: 11 | E5: B | F5: 25 | G5: C | H5: ｺｰﾄ | Q5: T | R5: 3790216 | S5: 4 | T5: 14 | U5: BX8A(14) | V5: 河村産業㈱ | W5: 25 | X5: S28M | Y5: 1110 | Z5: 12500 | AA5: 12500 | AB5: 1110 | AC5: 1 | AD5: 12500 | AE5: 1 | AF5: 12695 | AG5: 12500 | AH5: 08391012002 | AI5: 41210402251 | AQ5: FWP | AX5: 00:55:00 | AY5: 01:55:00 | BB5: T試作加工 | BD5: 01:00:00 | BF5: 内 | BG5: 合定
B6: 2024 | C6: 12 | D6: 11 | E6: B | F6: 26 | G6: C | H6: ｺｰﾄ | Q6: T | R6: 3790216 | S6: 5 | T6: 14 | U6: BX8A(14) | V6: 河村産業㈱ | W6: 25 | X6: S28M | Y6: 1110 | Z6: 12500 | AA6: 12500 | AB6: 1110 | AC6: 1 | AD6: 12500 | AE6: 1 | AF6: 12676 | AG6: 12500 | AH6: 03390902003 | AI6: 41210402261 | AQ6: FWP | AX6: 01:55:00 | AY6: 03:00:00 | BB6: T試作加工 | BD6: 01:05:00 | BF6: 内 | BG6: 合定
B7: 2024 | C7: 12 | D7: 11 | E7: B | F7: 27 | G7: C | H7: ｺｰﾄ | Q7: T | R7: 3790216 | S7: 6 | T7: 14 | U7: BX8A(14) | V7: 河村産業㈱ | W7: 25 | X7: S28M | Y7: 1110 | Z7: 12500 | AA7: 12500 | AB7: 1110 | AC7: 1 | AD7: 12500 | AE7: 1 | AF7: 12683 | AG7: 12500 | AH7: 09391012003 | AI7: 41210402271 | AQ7: FWP | AX7: 03:00:00 | AY7: 04:00:00 | BB7: T試作加工 | BD7: 01:00:00 | BF7: 内 | BG7: 合定 | CJ7: 03:45:00 | CK7: 29.9 | CL7: 5.29 | CM7: 29.5 | CN7: 7.69
B8: 2024 | C8: 12 | D8: 11 | E8: B | F8: 28 | G8: C | H8: ｺｰﾄ | Q8: T | R8: 3790216 | S8: 7 | T8: 14 | U8: BX8A(14) | V8: 河村産業㈱ | W8: 25 | X8: S28M | Y8: 1110 | Z8: 12500 | AA8: 12500 | AB8: 1110 | AC8: 1 | AD8: 12500 | AE8: 1 | AF8: 12692 | AG8: 12500 | AH8: 11390901003 | AI8: 41210402281 | AQ8: FWP | AX8: 04:00:00 | AY8: 05:05:00 | BB8: T試作加工 | BD8: 01:05:00 | BF8: 内 | BG8: 合定
B9: 2024 | C9: 12 | D9: 11 | E9: B | F9: 29 | G9: C | H9: ｺｰﾄ | Q9: T | R9: 3790216 | S9: 8 | T9: 14 | U9: BX8A(14) | V9: 河村産業㈱ | W9: 25 | X9: S28M | Y9: 1110 | Z9: 12500 | AA9: 12500 | AB9: 1110 | AC9: 1 | AD9: 12500 | AE9: 1 | AF9: 12696 | AG9: 12500 | AH9: 13390901003 | AI9: 41210402291 | AQ9: FWP | AX9: 05:05:00 | AY9: 06:10:00 | BB9: T試作加工 | BD9: 01:05:00 | BF9: 内 | BG9: 合定
B10: 2024 | C10: 12 | D10: 11 | E10: B | AZ10: 06:10:00 | BA10: 06:45:00 | BC10: G/D清掃 | BE10: 00:35:00 | BH10: No2給液ﾌｨﾙﾀｰ交換・No2配管バラシ洗浄・再ｽﾀｰﾄ準備・引継ぎ
B11: 2024 | C11: 12 | D11: 11 | E11: C | F11: 1 | G11: C | H11: ｺｰﾄ | Q11: T | R11: 3790216 | S11: 9 | T11: 14 | U11: BX8A(14) | V11: 河村産業㈱ | W11: 25 | X11: S28M | Y11: 1110 | Z11: 12500 | AA11: 12500 | AB11: 1110 | AC11: 1 | AD11: 12500 | AE11: 1 | AF11: 12682 | AG11: 12500 | AH11: 12391012003 | AI11: 41211402011 | AQ11: FWP | AX11: 06:45:00 | AY11: 07:50:00 | BB11: T試作加工 | BD11: =IF(AX11>AY11,1-AX11+AY11,IF(AX11="","",AY11-AX11)) -> 01:05:00 | BE11: =IF(AZ11>BA11,1-AZ11+BA11,IF(AZ11="","",BA11-AZ11)) ->  | BF11: 内 | BG11: 合定 | CJ11: 07:10:00 | CK11: 29.9 | CL11: 5.3 | CM11: 28.8 | CN11: 7.65
B12: 2024 | C12: 12 | D12: 11 | E12: C | F12: 2 | G12: C | H12: ｺｰﾄ | Q12: T | R12: 3790216 | S12: 10 | T12: 14 | U12: BX8A(14) | V12: 河村産業㈱ | W12: 25 | X12: S28M | Y12: 1110 | Z12: 12500 | AA12: 12500 | AB12: 1110 | AC12: 1 | AD12: 12500 | AE12: 1 | AF12: 12726 | AG12: 12500 | AH12: 07390901003 | AI12: 41211402021 | AQ12: FWP | AX12: 07:50:00 | AY12: 08:50:00 | BB12: T試作加工 | BD12: 01:00:00 | BF12: 内 | BG12: 合定
B13: 2024 | C13: 12 | D13: 11 | E13: C | F13: 3 | G13: C | H13: ｺｰﾄ | Q13: T | R13: 3790216 | S13: 11 | T13: 14 | U13: BX8A(14) | V13: 河村産業㈱ | W13: 25 | X13: S28M | Y13: 1110 | Z13: 12500 | AA13: 12500 | AB13: 1110 | AC13: 1 | AD13: 12500 | AE13: 1 | AF13: 12631 | AG13: 12500 | AH13: 08391012003 | AI13: 41211402031 | AQ13: FWP | AX13: 08:50:00 | AY13: 09:55:00 | BB13: T試作加工 | BD13: 01:05:00 | BF13: 内 | BG13: 合定
B14: 2024 | C14: 12 | D14: 11 | E14: C | F14: 4 | G14: C | H14: ｺｰﾄ | Q14: T | R14: 3790216 | S14: 12 | T14: 14 | U14: BX8A(14) | V14: 河村産業㈱ | W14: 25 | X14: S28M | Y14: 1110 | Z14: 12500 | AA14: 12500 | AB14: 1110 | AC14: 1 | AD14: 12500 | AE14: 1 | AF14: 12696 | AG14: 12500 | AH14: 13391012003 | AI14: 41211402041 | AQ14: FWP | AX14: 09:55:00 | AY14: 10:55:00 | BB14: T試作加工 | BD14: 01:00:00 | BF14: 内 | BG14: 合定
B15: 2024 | C15: 12 | D15: 11 | E15: C | F15: 5 | G15: C | H15: ｺｰﾄ | Q15: T | R15: 3790216 | S15: 13 | T15: 14 | U15: BX8A(14) | V15: 河村産業㈱ | W15: 25 | X15: S28M | Y15: 1110 | Z15: 12500 | AA15: 12500 | AB15: 1110 | AC15: 1 | AD15: 12500 | AE15: 1 | AF15: 12696 | AG15: 12500 | AH15: 11391012003 | AI15: 41211402051 | AQ15: FWP | AX15: 10:55:00 | AY15: 12:00:00 | BB15: T試作加工 | BD15: 01:05:00 | BF15: 内 | BG15: 合定
B16: 2024 | C16: 12 | D16: 11 | E16: C | F16: 6 | G16: C | H16: ｺｰﾄ | Q16: T | R16: 3790216 | S16: 14 | T16: 14 | U16: BX8A(14) | V16: 河村産業㈱ | W16: 25 | X16: S28M | Y16: 1110 | Z16: 12500 | AA16: 12500 | AB16: 1110 | AC16: 1 | AD16: 12500 | AE16: 1 | AF16: 12692 | AG16: 12500 | AH16: 14390901003 | AI16: 41211402061 | AQ16: FWP | AX16: 12:00:00 | AY16: 13:05:00 | BB16: T試作加工 | BD16: 01:05:00 | BF16: 内 | BG16: 合定
B17: 2024 | C17: 12 | D17: 11 | E17: C | AZ17: 13:05:00 | BA17: 13:40:00 | BC17: 幅替え | BE17: 00:35:00
B18: 2024 | C18: 12 | D18: 11 | E18: C | F18: 7 | G18: C | H18: ｺｰﾄ | Q18: U | R18: 3794090 | S18: 1 | T18: 1 | U18: BX8A(07) | V18: 日東電工㈱豊橋工場 | W18: 75 | X18: R41 | Y18: 1100 | Z18: 4400 | AA18: 4400 | AB18: 1090 | AC18: 1 | AD18: 1000 | AE18: 1 | AF18: 1067 | AG18: 1000 | AH18: 11680202603 | AI18: 4121140207205 | AQ18: FWP | AX18: 13:40:00 | AY18: 13:50:00 | BB18: U試作加工 | BD18: 00:10:00 | BF18: 内 | BG18: 合定
B19: 2024 | C19: 12 | D19: 11 | E19: C | F19: 8 | G19: C | H19: ｺｰﾄ | Q19: U | R19: 3794090 | S19: 1 | T19: 1 | U19: BX8A(07) | V19: 日東電工㈱豊橋工場 | W19: 75 | X19: R41 | Y19: 1100 | Z19: 4400 | AA19: 4400 | AB19: 1090 | AC19: 1 | AD19: 1000 | AE19: 1 | AF19: 1079 | AG19: 1000 | AH19: 11680202603 | AI19: 4121140208205 | AQ19: FWP | AX19: 13:50:00 | AY19: 13:55:00 | BB19: U試作加工 | BD19: 00:05:00 | BF19: 内 | BG19: 合定
B20: 2024 | C20: 12 | D20: 11 | E20: A | AZ20: 13:55:00 | BA20: 16:15:00 | BC20: 切替え | BE20: 02:20:00 | BH20: 製品下ろし・排ｶﾞｽOFF・ﾎﾞｲﾗｰOFF・UV立ち下げ・記録類まとめ・塗料廃棄
B21: 2024 | C21: 12 | D21: 11 | E21: A | BH21: ﾌｨﾙﾑ抜き・高密度除電・除電ﾊﾞｰ掃除・繰出しﾛｰﾙ掃除
B22: 2024 | C22: 12 | D22: 11 | E22: A | BH22: №12HD・ﾌﾟﾚ・前室・中二階ﾌﾟﾚ掃除・巻取りﾛｰﾙ掃除
B23: 2024 | C23: 12 | D23: 11 | E23: A | BH23: ﾘｰﾄﾞ通し・EPC合わせ・No1.2HDﾛｰﾙﾃｰﾋﾟﾝｸﾞ ﾊﾟｽﾗｲﾝ確認者→塩田
B24: 2024 | C24: 12 | D24: 11 | E24: A | BH24: 排ｶﾞｽ・ﾎﾞｲﾗｰON・UV立ち上げ・HD準備・原反出庫・梱包材準備
B25: 2024 | C25: 12 | D25: 11 | E25: A | BD25: =IF(AX25>AY25,1-AX25+AY25,IF(AX25="","",AY25-AX25)) ->  | BE25: =IF(AZ25>BA25,1-AZ25+BA25,IF(AZ25="","",BA25-AZ25)) ->  | BH25: 条件設定・塗料調合・循環・先行ﾃｽﾄ→OK・X線測定
B26: 2024 | C26: 12 | D26: 11 | E26: A | F26: 9 | G26: C | H26: ｺｰﾄ | Q26: U | R26: 3794091 | S26: 1 | T26: 1 | U26: BX9A(09) | V26: トーヨーケム川越 | W26: 50 | X26: XD500P | Y26: 1280 | Z26: 6500 | AA26: 6500 | AB26: 1270 | AC26: 1 | AD26: 6300 | AE26: 1 | AF26: 6363 | AG26: 6300 | AH26: Z109FK32H4 | AI26: 4121140209205 | AQ26: FWP | AX26: 16:15:00 | AY26: 17:00:00 | BB26: U試作加工 | BD26: =IF(AX26>AY26,1-AX26+AY26,IF(AX26="","",AY26-AX26)) -> 00:45:00 | BF26: 内 | BG26: 合定
B27: 2024 | C27: 12 | D27: 11 | E27: A | AZ27: 17:00:00 | BA27: 17:20:00 | BC27: 幅替え | BE27: 00:20:00 | BH27: 条件変更
A28: 67 | B28: 2024 | C28: 12 | D28: 11 | E28: A | F28: 10 | G28: C | H28: ｺｰﾄ | Q28: S | R28: 3790217 | S28: 1 | T28: 4 | U28: BX9A(S) | V28: 日榮新化㈱ | W28: 75 | X28: S28 | Y28: 1045 | Z28: 4200 | AA28: 4200 | AB28: 1040 | AC28: 1 | AD28: 4000 | AE28: 1 | AF28: 4065 | AG28: 4000 | AH28: 063409220011 | AI28: 4121140210005 | AQ28: FWP | AX28: 17:20:00 | AY28: 17:50:00 | BB28: S加工 | BD28: =IF(AX28>AY28,1-AX28+AY28,IF(AX28="","",AY28-AX28)) -> 00:30:00 | BF28: 内 | BG28: 合定
A29: 67 | B29: 2024 | C29: 12 | D29: 11 | E29: A | F29: 11 | G29: C | H29: ｺｰﾄ | Q29: S | R29: 3790217 | S29: 2 | T29: 4 | U29: BX9A(S) | V29: 日榮新化㈱ | W29: 75 | X29: S28 | Y29: 1045 | Z29: 4200 | AA29: 4200 | AB29: 1040 | AC29: 1 | AD29: 4000 | AE29: 1 | AF29: 4072 | AG29: 4000 | AH29: 073409220012 | AI29: 4121140211005 | AQ29: FWP | AX29: 17:50:00 | AY29: 18:15:00 | BB29: S加工 | BD29: 00:25:00 | BF29: 内 | BG29: 合定
A30: 67 | B30: 2024 | C30: 12 | D30: 11 | E30: A | F30: 12 | G30: C | H30: ｺｰﾄ | Q30: S | R30: 3790217 | S30: 3 | T30: 4 | U30: BX9A(S) | V30: 日榮新化㈱ | W30: 75 | X30: S28 | Y30: 1045 | Z30: 4200 | AA30: 4200 | AB30: 1040 | AC30: 1 | AD30: 4000 | AE30: 1 | AF30: 4068 | AG30: 4000 | AH30: 073409220006 | AI30: 4121140212005 | AQ30: FWP | AX30: 18:15:00 | AY30: 18:40:00 | BB30: S加工 | BD30: 00:25:00 | BF30: 内 | BG30: 合定
A31: 67 | B31: 2024 | C31: 12 | D31: 11 | E31: A | F31: 13 | G31: C | H31: ｺｰﾄ | Q31: S | R31: 3790217 | S31: 4 | T31: 4 | U31: BX9A(S) | V31: 日榮新化㈱ | W31: 75 | X31: S28 | Y31: 1045 | Z31: 4200 | AA31: 4200 | AB31: 1040 | AC31: 1 | AD31: 4000 | AE31: 1 | AF31: 4066 | AG31: 4000 | AH31: 063409220008 | AI31: 4121140213005 | AQ31: FWP | AX31: 18:40:00 | AY31: 19:10:00 | BB31: S加工 | BD31: 00:30:00 | BF31: 内 | BG31: 合定
B32: 2024 | C32: 12 | D32: 11 | E32: A | AZ32: 19:10:00 | BA32: 19:40:00 | BC32: 切替え | BE32: 00:30:00 | BH32: ﾄﾙｴﾝ洗浄
B33: 2024 | C33: 12 | D33: 11 | E33: A | BH33: 条件変更・塗料調合、入替え・循環・先行ﾃｽﾄ→OK
B34: 2024 | C34: 12 | D34: 11 | E34: A | G34: C | H34: ｺｰﾄ | U34: X62-2832塗料配合テスト | AX34: 19:40:00 | AY34: 22:15:00 | BB34: S加工 | BD34: 02:35:00
B35: 2024 | C35: 12 | D35: 11 | E35: A | G35: C | H35: ｺｰﾄ | U35: BX8A8.0処方 | BH35: BX8A(RX) 8.0処方
B36: 2024 | C36: 12 | D36: 11 | E36: A | BH36: 塗料調合、入替え・循環
B37: 2024 | C37: 12 | D37: 11 | E37: A | G37: C | H37: ｺｰﾄ | U37: BX8A8.2処方 | BH37: BX8A(RX) 8.2処方
B38: 2024 | C38: 12 | D38: 11 | E38: A | BH38: ﾄﾙｴﾝ洗浄・塗料調合、入替え・循環
B39: 2024 | C39: 12 | D39: 11 | E39: A | G39: C | H39: ｺｰﾄ | U39: BX9A9.0処方 | BH39: BX9A(RX) 9.0処方
B40: 2024 | C40: 12 | D40: 11 | E40: A | BH40: 塗料調合、入替え・循環
B41: 2024 | C41: 12 | D41: 11 | E41: A | G41: C | H41: ｺｰﾄ | U41: BX9A9.2処方 | BH41: BX9A(RX) 9.2処方
B42: 2024 | C42: 12 | D42: 11 | E42: B | AZ42: 22:15:00 | BA42: 00:00:00 | BC42: 片付け | BE42: 01:45:00 | BH42: 排ｶﾞｽOFF・ﾎﾞｲﾗｰOFF・UV立ち下げ・塗料廃棄
B43: 2024 | C43: 12 | D43: 11 | E43: B | BH43: №12G洗浄、ﾎﾟﾝﾌﾟ（ﾄ）循環、ｻﾌﾞﾀﾝｸ・ﾁｬﾝﾊﾞｰ・調合桶掃除
B44: 2024 | C44: 12 | D44: 11 | E44: B | AZ44: 00:00:00 | BA44: 02:30:00 | BC44: 切替え | BE44: 02:30:00 | BH44: ﾌｨﾙﾑ抜き・高密度除電・除電ﾊﾞｰ掃除・繰出しﾛｰﾙ掃除
B45: 2024 | C45: 12 | D45: 11 | E45: B | BH45: №12HD・ﾌﾟﾚ・前室・中二階ﾌﾟﾚ掃除・巻取りﾛｰﾙ掃除
B46: 2024 | C46: 12 | D46: 11 | E46: B | BH46: ﾘｰﾄﾞ通し・EPC合わせ・No1.2HDﾛｰﾙﾃｰﾋﾟﾝｸﾞ ﾊﾟｽﾗｲﾝ確認者→真壁
B47: 2024 | C47: 12 | D47: 11 | E47: B | BH47: 排ｶﾞｽ・ﾎﾞｲﾗｰON・UV立ち上げ・HD準備・原反出庫・梱包材準備・内ﾀｯﾁﾊﾞﾗﾝｽ調整
B48: 2024 | C48: 12 | D48: 11 | E48: B | BH48: 条件設定・塗料調合・循環・先行ﾃｽﾄ→OK・X線測定
B49: 2024 | C49: 12 | D49: 12 | E49: B | F49: 14 | G49: C | H49: ｺｰﾄ | Q49: U | R49: 3794795 | S49: 1 | T49: 3 | U49: JWZ(B) | V49: ３Ｍジャパン | W49: 38 | X49: JR70 | Y49: 1590 | Z49: 6200 | AA49: 6200 | AB49: 1585 | AC49: 1 | AD49: 6000 | AE49: 1 | AF49: 6037 | AG49: 6000 | AH49: 05890919003 | AI49: 4121140214205 | AQ49: FWP | AX49: 02:30:00 | AY49: 03:00:00 | BB49: U試作加工 | BD49: 00:30:00 | BF49: 内 | BG49: 合定
B50: 2024 | C50: 12 | D50: 12 | E50: B | F50: 15 | G50: C | H50: ｺｰﾄ | Q50: U | R50: 3794795 | S50: 2 | T50: 3 | U50: JWZ(B) | V50: ３Ｍジャパン | W50: 38 | X50: JR70 | Y50: 1590 | Z50: 6200 | AA50: 6200 | AB50: 1585 | AC50: 1 | AD50: 6000 | AE50: 1 | AF50: 6061 | AG50: 6000 | AH50: 04890919004 | AI50: 4121140215205 | AQ50: FWP | AX50: 03:00:00 | AY50: 03:30:00 | BB50: U試作加工 | BD50: 00:30:00 | BF50: 内 | BG50: 合定
B51: 2024 | C51: 12 | D51: 12 | E51: B | F51: 16 | G51: C | H51: ｺｰﾄ | Q51: U | R51: 3794795 | S51: 3 | T51: 3 | U51: JWZ(B) | V51: ３Ｍジャパン | W51: 38 | X51: JR70 | Y51: 1590 | Z51: 6200 | AA51: 6200 | AB51: 1585 | AC51: 1 | AD51: 6000 | AE51: 1 | AF51: 6062 | AG51: 6000 | AH51: 05890713005 | AI51: 4121140216205 | AQ51: FWP | AX51: 03:30:00 | AY51: 04:00:00 | BB51: U試作加工 | BD51: 00:30:00 | BF51: 内 | BG51: 合定
B52: 2024 | C52: 12 | D52: 12 | E52: B | AZ52: 04:00:00 | BA52: 04:30:00 | BC52: 幅替え | BE52: 00:30:00 | BH52: 条件変更・制御盤室57･58･97･99番・ｱｳﾄﾌｨｰﾄﾞ・巻取り・ﾀｯﾁ条件変更
A53: 98 | B53: 2024 | C53: 12 | D53: 12 | E53: B | F53: 17 | G53: C | H53: ｺｰﾄ | Q53: S | R53: 3790218 | S53: 1 | T53: 18 | U53: WZ(14) | V53: 藤産業㈱ | W53: 25 | X53: S28M | Y53: 1428 | Z53: 12500 | AA53: 12500 | AB53: 1420 | AC53: 1 | AD53: 12400 | AE53: 1 | AF53: 12468 | AG53: 12400 | AH53: 11391013001 | AI53: 4121140217005 | AQ53: FWP | AX53: 04:30:00 | AY53: 05:20:00 | BB53: S加工 | BD53: 00:50:00 | BF53: 内 | BG53: 合定
A54: 98 | B54: 2024 | C54: 12 | D54: 12 | E54: B | F54: 18 | G54: C | H54: ｺｰﾄ | Q54: S | R54: 3790218 | S54: 2 | T54: 18 | U54: WZ(14) | V54: 藤産業㈱ | W54: 25 | X54: S28M | Y54: 1428 | Z54: 12500 | AA54: 12500 | AB54: 1420 | AC54: 1 | AD54: 12400 | AE54: 1 | AF54: 12469 | AG54: 12400 | AH54: 12391012001 | AI54: 4121140218005 | AQ54: FWP | AX54: 05:20:00 | AY54: 06:10:00 | BB54: S加工 | BD54: 00:50:00 | BF54: 内 | BG54: 合定
B55: 2024 | C55: 12 | D55: 12 | E55: B | AX55: 06:10:00 | AY55: 06:45:00 | BB55: S加工 | BD55: 00:35:00
A56: 98 | B56: 2024 | C56: 12 | D56: 12 | E56: C | F56: 1 | G56: C | H56: ｺｰﾄ | Q56: S | R56: 3790218 | S56: 3 | T56: 18 | U56: WZ(14) | V56: 藤産業㈱ | W56: 25 | X56: S28M | Y56: 1428 | Z56: 12500 | AA56: 12500 | AB56: 1420 | AC56: 1 | AD56: 12400 | AE56: 1 | AF56: 12466 | AG56: 12400 | AH56: 03391013001 | AI56: 4121240201005 | AQ56: FWP | AX56: 06:45:00 | AY56: 07:00:00 | BB56: S加工 | BD56: 00:15:00 | BF56: 内 | BG56: 合定
A57: 98 | B57: 2024 | C57: 12 | D57: 12 | E57: C | F57: 2 | G57: C | H57: ｺｰﾄ | Q57: S | R57: 3790218 | S57: 4 | T57: 18 | U57: WZ(14) | V57: 藤産業㈱ | W57: 25 | X57: S28M | Y57: 1428 | Z57: 12500 | AA57: 12500 | AB57: 1420 | AC57: 1 | AD57: 12400 | AE57: 1 | AF57: 12466 | AG57: 12400 | AH57: 06391013001 | AI57: 4121240202005 | AQ57: FWP | AX57: 07:00:00 | AY57: 07:50:00 | BB57: S加工 | BD57: 00:50:00 | BF57: 内 | BG57: 合定 | CJ57: 06:45:00 | CM57: 28.8 | CN57: 7.48
A58: 98 | B58: 2024 | C58: 12 | D58: 12 | E58: C | F58: 3 | G58: C | H58: ｺｰﾄ | Q58: S | R58: 3790218 | S58: 5 | T58: 18 | U58: WZ(14) | V58: 藤産業㈱ | W58: 25 | X58: S28M | Y58: 1428 | Z58: 12500 | AA58: 12500 | AB58: 1420 | AC58: 1 | AD58: 12400 | AE58: 1 | AF58: 12467 | AG58: 12400 | AH58: 03391013002 | AI58: 4121240203005 | AQ58: FWP | AX58: 07:50:00 | AY58: 08:40:00 | BB58: S加工 | BD58: 00:50:00 | BF58: 内 | BG58: 合定
A59: 98 | B59: 2024 | C59: 12 | D59: 12 | E59: C | F59: 4 | G59: C | H59: ｺｰﾄ | Q59: S | R59: 3790218 | S59: 6 | T59: 18 | U59: WZ(14) | V59: 藤産業㈱ | W59: 25 | X59: S28M | Y59: 1428 | Z59: 12500 | AA59: 12500 | AB59: 1420 | AC59: 1 | AD59: 12400 | AE59: 1 | AF59: 12465 | AG59: 12400 | AH59: 07391013002 | AI59: 4121240204005 | AQ59: FWP | AX59: 08:40:00 | AY59: 09:30:00 | BB59: S加工 | BD59: 00:50:00 | BF59: 内 | BG59: 合定
A60: 98 | B60: 2024 | C60: 12 | D60: 12 | E60: C | F60: 5 | G60: C | H60: ｺｰﾄ | Q60: S | R60: 3790218 | S60: 7 | T60: 18 | U60: WZ(14) | V60: 藤産業㈱ | W60: 25 | X60: S28M | Y60: 1428 | Z60: 12500 | AA60: 12500 | AB60: 1420 | AC60: 1 | AD60: 12400 | AE60: 1 | AF60: 12476 | AG60: 12400 | AH60: 12391013002 | AI60: 4121240205005 | AQ60: FWP | AX60: 09:30:00 | AY60: 10:20:00 | BB60: S加工 | BD60: 00:50:00 | BF60: 内 | BG60: 合定
A61: 98 | B61: 2024 | C61: 12 | D61: 12 | E61: C | F61: 6 | G61: C | H61: ｺｰﾄ | Q61: S | R61: 3790218 | S61: 8 | T61: 18 | U61: WZ(14) | V61: 藤産業㈱ | W61: 25 | X61: S28M | Y61: 1428 | Z61: 12500 | AA61: 12500 | AB61: 1420 | AC61: 1 | AD61: 12400 | AE61: 1 | AF61: 12466 | AG61: 12400 | AH61: 14391012002 | AI61: 4121240206005 | AQ61: FWP | AX61: 10:20:00 | AY61: 11:10:00 | BB61: S加工 | BD61: 00:50:00 | BF61: 内 | BG61: 合定
A62: 98 | B62: 2024 | C62: 12 | D62: 12 | E62: C | F62: 7 | G62: C | H62: ｺｰﾄ | Q62: S | R62: 3790218 | S62: 9 | T62: 18 | U62: WZ(14) | V62: 藤産業㈱ | W62: 25 | X62: S28M | Y62: 1428 | Z62: 12500 | AA62: 12500 | AB62: 1420 | AC62: 1 | AD62: 12400 | AE62: 1 | AF62: 12463 | AG62: 12400 | AH62: 02391013002 | AI62: 4121240207005 | AQ62: FWP | AX62: 11:10:00 | AY62: 12:00:00 | BB62: S加工 | BD62: 00:50:00 | BF62: 内 | BG62: 合定
A63: 98 | B63: 2024 | C63: 12 | D63: 12 | E63: C | F63: 8 | G63: C | H63: ｺｰﾄ | Q63: S | R63: 3790218 | S63: 10 | T63: 18 | U63: WZ(14) | V63: 藤産業㈱ | W63: 25 | X63: S28M | Y63: 1428 | Z63: 12500 | AA63: 12500 | AB63: 1420 | AC63: 1 | AD63: 12400 | AE63: 1 | AF63: 12465 | AG63: 12400 | AH63: 12391012002 | AI63: 4121240208005 | AQ63: FWP | AX63: 12:00:00 | AY63: 12:50:00 | BB63: S加工 | BD63: 00:50:00 | BF63: 内 | BG63: 合定
A64: 98 | B64: 2024 | C64: 12 | D64: 12 | E64: C | F64: 9 | G64: C | H64: ｺｰﾄ | Q64: S | R64: 3790218 | S64: 11 | T64: 18 | U64: WZ(14) | V64: 藤産業㈱ | W64: 25 | X64: S28M | Y64: 1428 | Z64: 12500 | AA64: 12500 | AB64: 1420 | AC64: 1 | AD64: 12400 | AE64: 1 | AF64: 12466 | AG64: 12400 | AH64: 04391013002 | AI64: 4121240209005 | AQ64: FWP | AX64: 12:50:00 | AY64: 13:40:00 | BB64: S加工 | BD64: 00:50:00 | BF64: 内 | BG64: 合定
A65: 98 | B65: 2024 | C65: 12 | D65: 12 | E65: A | F65: 10 | G65: C | H65: ｺｰﾄ | Q65: S | R65: 3790218 | S65: 12 | T65: 18 | U65: WZ(14) | V65: 藤産業㈱ | W65: 25 | X65: S28M | Y65: 1428 | Z65: 12500 | AA65: 12500 | AB65: 1420 | AC65: 1 | AD65: 12400 | AE65: 1 | AF65: 12464 | AG65: 12400 | AH65: 11391013002 | AI65: 4121240210005 | AQ65: FWP | AX65: 13:40:00 | AY65: 14:30:00 | BB65: S加工 | BD65: 00:50:00 | BF65: 内 | BG65: 合定
A66: 98 | B66: 2024 | C66: 12 | D66: 12 | E66: A | F66: 11 | G66: C | H66: ｺｰﾄ | Q66: S | R66: 3790218 | S66: 13 | T66: 18 | U66: WZ(14) | V66: 藤産業㈱ | W66: 25 | X66: S28M | Y66: 1428 | Z66: 12500 | AA66: 12500 | AB66: 1420 | AC66: 1 | AD66: 12400 | AE66: 1 | AF66: 12463 | AG66: 12400 | AH66: 06391013002 | AI66: 4121240211005 | AQ66: FWP | AX66: 14:30:00 | AY66: 15:20:00 | BB66: S加工 | BD66: 00:50:00 | BF66: 内 | BG66: 合定 | CJ66: 15:00:00 | CM66: 28.8 | CN66: 7.45
A67: 98 | B67: 2024 | C67: 12 | D67: 12 | E67: A | F67: 12 | G67: C | H67: ｺｰﾄ | Q67: S | R67: 3790218 | S67: 14 | T67: 18 | U67: WZ(14) | V67: 藤産業㈱ | W67: 25 | X67: S28M | Y67: 1428 | Z67: 12500 | AA67: 12500 | AB67: 1420 | AC67: 1 | AD67: 12400 | AE67: 1 | AF67: 12466 | AG67: 12400 | AH67: 13391012002 | AI67: 4121240212005 | AQ67: FWP | AX67: 15:20:00 | AY67: 16:10:00 | BB67: S加工 | BD67: 00:50:00 | BF67: 内 | BG67: 合定
A68: 98 | B68: 2024 | C68: 12 | D68: 12 | E68: A | F68: 13 | G68: C | H68: ｺｰﾄ | Q68: S | R68: 3790218 | S68: 15 | T68: 18 | U68: WZ(14) | V68: 藤産業㈱ | W68: 25 | X68: S28M | Y68: 1428 | Z68: 12500 | AA68: 12500 | AB68: 1420 | AC68: 1 | AD68: 12400 | AE68: 1 | AF68: 12461 | AG68: 12400 | AH68: 13391012001 | AI68: 4121240213005 | AQ68: FWP | AX68: 16:10:00 | AY68: 17:00:00 | BB68: S加工 | BD68: 00:50:00 | BF68: 内 | BG68: 合定
A69: 98 | B69: 2024 | C69: 12 | D69: 12 | E69: A | F69: 14 | G69: C | H69: ｺｰﾄ | Q69: S | R69: 3790218 | S69: 16 | T69: 18 | U69: WZ(14) | V69: 藤産業㈱ | W69: 25 | X69: S28M | Y69: 1428 | Z69: 12500 | AA69: 12500 | AB69: 1420 | AC69: 1 | AD69: 12400 | AE69: 1 | AF69: 12462 | AG69: 12400 | AH69: 14391012001 | AI69: 4121240214005 | AQ69: FWP | AX69: 17:00:00 | AY69: 17:50:00 | BB69: S加工 | BD69: 00:50:00 | BF69: 内 | BG69: 合定
A70: 98 | B70: 2024 | C70: 12 | D70: 12 | E70: A | F70: 15 | G70: C | H70: ｺｰﾄ | Q70: S | R70: 3790218 | S70: 17 | T70: 18 | U70: WZ(14) | V70: 藤産業㈱ | W70: 25 | X70: S28M | Y70: 1428 | Z70: 12500 | AA70: 12500 | AB70: 1420 | AC70: 1 | AD70: 12400 | AE70: 1 | AF70: 12468 | AG70: 12400 | AH70: 07391013001 | AI70: 4121240215005 | AQ70: FWP | AX70: 17:50:00 | AY70: 18:40:00 | BB70: S加工 | BD70: 00:50:00 | BF70: 内 | BG70: 合定
A71: 98 | B71: 2024 | C71: 12 | D71: 12 | E71: A | F71: 16 | G71: C | H71: ｺｰﾄ | Q71: S | R71: 3790218 | S71: 18 | T71: 18 | U71: WZ(14) | V71: 藤産業㈱ | W71: 25 | X71: S28M | Y71: 1428 | Z71: 12500 | AA71: 12500 | AB71: 1420 | AC71: 1 | AD71: 12400 | AE71: 1 | AF71: 12465 | AG71: 12400 | AH71: 02391013001 | AI71: 4121240216005 | AQ71: FWP | AX71: 18:40:00 | AY71: 19:35:00 | BB71: S加工 | BD71: 00:55:00 | BF71: 内 | BG71: 合定
B72: 2024 | C72: 12 | D72: 12 | E72: A | AZ72: 19:35:00 | BA72: 19:55:00 | BC72: G/D清掃 | BE72: 00:20:00 | BH72: 条件変更
A73: 98 | B73: 2024 | C73: 12 | D73: 12 | E73: A | F73: 17 | G73: C2 | H73: ｺｰﾄ | Q73: S | R73: 3790219 | S73: 1 | T73: 2 | U73: WZ(14) | V73: 藤産業㈱ | W73: 25 | X73: S28M | Y73: 1428 | Z73: 12500 | AA73: 12500 | AB73: 1420 | AC73: 1 | AD73: 6000 | AE73: 2 | AF73: 6066 | AG73: 6000 | AH73: 12391013001 | AI73: 4121240217005 | AQ73: FWP | AX73: 19:55:00 | AY73: 20:20:00 | BB73: S加工 | BD73: 00:25:00 | BF73: 内 | BG73: 合定
A74: 98 | B74: 2024 | C74: 12 | D74: 12 | E74: A | F74: 18 | G74: C2 | H74: ｺｰﾄ | Q74: S | R74: 3790219 | S74: 1 | T74: 2 | U74: WZ(14) | V74: 藤産業㈱ | W74: 25 | X74: S28M | Y74: 1428 | Z74: 12500 | AA74: 12500 | AB74: 1420 | AC74: 1 | AD74: 6000 | AE74: 2 | AF74: 6069 | AG74: 6000 | AH74: 12391013001 | AI74: 4121240218005 | AQ74: FWP | AX74: 20:20:00 | AY74: 20:50:00 | BB74: S加工 | BD74: 00:30:00 | BF74: 内 | BG74: 合定
A75: 98 | B75: 2024 | C75: 12 | D75: 12 | E75: A | F75: 19 | G75: C2 | H75: ｺｰﾄ | Q75: S | R75: 3790219 | S75: 2 | T75: 2 | U75: WZ(14) | V75: 藤産業㈱ | W75: 25 | X75: S28M | Y75: 1428 | Z75: 12500 | AA75: 12500 | AB75: 1420 | AC75: 1 | AD75: 6000 | AE75: 2 | AF75: 6061 | AG75: 6000 | AH75: 04391013001 | AI75: 4121240219005 | AQ75: FWP | AX75: 20:50:00 | AY75: 21:15:00 | BB75: S加工 | BD75: 00:25:00 | BF75: 内 | BG75: 合定
A76: 98 | B76: 2024 | C76: 12 | D76: 12 | E76: A | F76: 20 | G76: C2 | H76: ｺｰﾄ | Q76: S | R76: 3790219 | S76: 2 | T76: 2 | U76: WZ(14) | V76: 藤産業㈱ | W76: 25 | X76: S28M | Y76: 1428 | Z76: 12500 | AA76: 12500 | AB76: 1420 | AC76: 1 | AD76: 6000 | AE76: 2 | AF76: 6066 | AG76: 6000 | AH76: 04391013001 | AI76: 4121240220005 | AQ76: FWP | AX76: 21:15:00 | AY76: 21:40:00 | BB76: S加工 | BD76: 00:25:00 | BF76: 内 | BG76: 合定
B77: 2024 | C77: 12 | D77: 12 | E77: A | AZ77: 21:40:00 | BA77: 22:00:00 | BC77: 幅替え | BE77: 00:20:00 | BH77: 条件変更・制御盤室57･58･97･99番・ｱｳﾄﾌｨｰﾄﾞ・巻取り・ﾀｯﾁ条件変更
A78: 33 | B78: 2024 | C78: 12 | D78: 12 | E78: B | F78: 21 | G78: C | H78: ｺｰﾄ | Q78: S | R78: 3790220 | S78: 1 | T78: 4 | U78: WZ(S) | V78: リンテック㈱ | W78: 38 | X78: S28 | Y78: 1415 | Z78: 8000 | AA78: 8000 | AB78: 1410 | AC78: 1 | AD78: 8000 | AE78: 1 | AF78: 7983 | AG78: 7930 | AH78: 13390917001 | AI78: 4121240221005 | AQ78: FWP | AX78: 22:00:00 | AY78: 22:30:00 | BB78: S加工 | BD78: 00:30:00 | BF78: 内 | BG78: 合短 | BH78: 巻取り蛇行の為 | BI78: 蛇行 | BJ78: 巻取 | BK78: 原反起因
A79: 33 | B79: 2024 | C79: 12 | D79: 12 | E79: B | F79: 22 | G79: C | H79: ｺｰﾄ | Q79: S | R79: 3790220 | S79: 2 | T79: 4 | U79: WZ(S) | V79: リンテック㈱ | W79: 38 | X79: S28 | Y79: 1415 | Z79: 8000 | AA79: 8000 | AB79: 1410 | AC79: 1 | AD79: 8000 | AE79: 1 | AF79: 8054 | AG79: 8000 | AH79: 10390917002 | AI79: 4121240222005 | AQ79: FWP | AX79: 22:30:00 | AY79: 23:05:00 | BB79: S加工 | BD79: 00:35:00 | BF79: 内 | BG79: 合定 | CJ79: 23:00:00 | CM79: 28.8 | CN79: 7.41
A80: 33 | B80: 2024 | C80: 12 | D80: 12 | E80: B | F80: 23 | G80: C | H80: ｺｰﾄ | Q80: S | R80: 3790220 | S80: 3 | T80: 4 | U80: WZ(S) | V80: リンテック㈱ | W80: 38 | X80: S28 | Y80: 1415 | Z80: 8000 | AA80: 8000 | AB80: 1410 | AC80: 1 | AD80: 8000 | AE80: 1 | AF80: 8066 | AG80: 8000 | AH80: 15390917002 | AI80: 4121240223005 | AQ80: FWP | AX80: 23:05:00 | AY80: 23:35:00 | BB80: S加工 | BD80: 00:30:00 | BF80: 内 | BG80: 合定
A81: 33 | B81: 2024 | C81: 12 | D81: 13 | E81: B | F81: 24 | G81: C | H81: ｺｰﾄ | Q81: S | R81: 3790220 | S81: 4 | T81: 4 | U81: WZ(S) | V81: リンテック㈱ | W81: 38 | X81: S28 | Y81: 1415 | Z81: 8000 | AA81: 8000 | AB81: 1410 | AC81: 1 | AD81: 8000 | AE81: 1 | AF81: 8063 | AG81: 8000 | AH81: 01390918002 | AI81: 4121240224005 | AQ81: FWP | AX81: 23:35:00 | AY81: 00:10:00 | BB81: S加工 | BD81: 00:35:00 | BF81: 内 | BG81: 合定
B82: 2024 | C82: 12 | D82: 13 | E82: B | AZ82: 00:10:00 | BA82: 00:30:00 | BC82: 幅替え | BE82: 00:20:00 | BH82: 条件変更
A83: 28 | B83: 2024 | C83: 12 | D83: 13 | E83: B | F83: 25 | G83: S | H83: ｺｰﾄ | Q83: S | R83: 3793648 | S83: 1 | T83: 1 | U83: WZ(RX) | V83: 三栄産業㈱尾久工場 | W83: 25 | X83: R75X | Y83: 1337 | Z83: 12300 | AA83: 12300 | AB83: 1337 | AC83: 1 | AD83: 12300 | AE83: 1 | AF83: 12395 | AG83: 12300 | AH83: Z220P741H4 | AI83: 41212402250 | AQ83: FWP | AX83: 00:30:00 | AY83: 01:20:00 | BB83: S加工 | BD83: 00:50:00 | BF83: 内 | BG83: 合定
B84: 2024 | C84: 12 | D84: 13 | E84: B | AZ84: 01:20:00 | BA84: 01:50:00 | BC84: 幅替え | BE84: 00:30:00 | BH84: 条件変更・制御盤室57･58･97･99番・ｱｳﾄﾌｨｰﾄﾞ・巻取り・ﾀｯﾁ条件変更
A85: 26 | B85: 2024 | C85: 12 | D85: 13 | E85: B | F85: 26 | G85: C2 | H85: ｺｰﾄ | Q85: S | R85: 3790221 | S85: 1 | T85: 7 | U85: WZ(E) | V85: 古河電気工業㈱ | W85: 25 | X85: E5001 | Y85: 1245 | Z85: 12200 | AA85: 12200 | AB85: 1240 | AC85: 1 | AD85: 6000 | AE85: 2 | AF85: 6071 | AG85: 6000 | AH85: 430903172 | AI85: 4121240226005 | AQ85: FWP | AX85: 01:50:00 | AY85: 02:15:00 | BB85: S加工 | BD85: 00:25:00 | BF85: 内 | BG85: 合定 | BH85: 先行ｻﾝﾌﾟﾙ
A86: 26 | B86: 2024 | C86: 12 | D86: 13 | E86: B | F86: 27 | G86: C2 | H86: ｺｰﾄ | Q86: S | R86: 3790221 | S86: 1 | T86: 7 | U86: WZ(E) | V86: 古河電気工業㈱ | W86: 25 | X86: E5001 | Y86: 1245 | Z86: 12200 | AA86: 12200 | AB86: 1240 | AC86: 1 | AD86: 6000 | AE86: 2 | AF86: 6063 | AG86: 6000 | AH86: 430903172 | AI86: 4121240227005 | AQ86: FWP | AX86: 02:15:00 | AY86: 02:45:00 | BB86: S加工 | BD86: 00:30:00 | BF86: 内 | BG86: 合定
A87: 26 | B87: 2024 | C87: 12 | D87: 13 | E87: B | F87: 28 | G87: C2 | H87: ｺｰﾄ | Q87: S | R87: 3790221 | S87: 2 | T87: 7 | U87: WZ(E) | V87: 古河電気工業㈱ | W87: 25 | X87: E5001 | Y87: 1245 | Z87: 12200 | AA87: 12200 | AB87: 1240 | AC87: 1 | AD87: 6000 | AE87: 2 | AF87: 6067 | AG87: 6000 | AH87: 430904372 | AI87: 4121240228005 | AQ87: FWP | AX87: 02:45:00 | AY87: 03:10:00 | BB87: S加工 | BD87: 00:25:00 | BF87: 内 | BG87: 合定
A88: 26 | B88: 2024 | C88: 12 | D88: 13 | E88: B | F88: 29 | G88: C2 | H88: ｺｰﾄ | Q88: S | R88: 3790221 | S88: 2 | T88: 7 | U88: WZ(E) | V88: 古河電気工業㈱ | W88: 25 | X88: E5001 | Y88: 1245 | Z88: 12200 | AA88: 12200 | AB88: 1240 | AC88: 1 | AD88: 6000 | AE88: 2 | AF88: 6067 | AG88: 6000 | AH88: 430904372 | AI88: 4121240229005 | AQ88: FWP | AX88: 03:10:00 | AY88: 03:35:00 | BB88: S加工 | BD88: 00:25:00 | BF88: 内 | BG88: 合定
A89: 26 | B89: 2024 | C89: 12 | D89: 13 | E89: B | F89: 30 | G89: C2 | H89: ｺｰﾄ | Q89: S | R89: 3790221 | S89: 3 | T89: 7 | U89: WZ(E) | V89: 古河電気工業㈱ | W89: 25 | X89: E5001 | Y89: 1245 | Z89: 12200 | AA89: 12200 | AB89: 1240 | AC89: 1 | AD89: 6000 | AE89: 2 | AF89: 6066 | AG89: 6000 | AH89: 430903372 | AI89: 4121240230005 | AQ89: FWP | AX89: 03:35:00 | AY89: 04:05:00 | BB89: S加工 | BD89: 00:30:00 | BE89: =IF(AZ89>BA89,1-AZ89+BA89,IF(AZ89="","",BA89-AZ89)) ->  | BF89: 内 | BG89: 合定
A90: 26 | B90: 2024 | C90: 12 | D90: 13 | E90: B | F90: 31 | G90: C2 | H90: ｺｰﾄ | Q90: S | R90: 3790221 | S90: 3 | T90: 7 | U90: WZ(E) | V90: 古河電気工業㈱ | W90: 25 | X90: E5001 | Y90: 1245 | Z90: 12200 | AA90: 12200 | AB90: 1240 | AC90: 1 | AD90: 6000 | AE90: 2 | AF90: 6066 | AG90: 6000 | AH90: 430903372 | AI90: 4121240231005 | AQ90: FWP | AX90: 04:05:00 | AY90: 04:30:00 | BB90: S加工 | BD90: 00:25:00 | BF90: 内 | BG90: 合定
A91: 26 | B91: 2024 | C91: 12 | D91: 13 | E91: B | F91: 32 | G91: C2 | H91: ｺｰﾄ | Q91: S | R91: 3790221 | S91: 4 | T91: 7 | U91: WZ(E) | V91: 古河電気工業㈱ | W91: 25 | X91: E5001 | Y91: 1245 | Z91: 12200 | AA91: 12200 | AB91: 1240 | AC91: 1 | AD91: 6000 | AE91: 2 | AF91: 6070 | AG91: 6000 | AH91: 430905172 | AI91: 4121240232005 | AQ91: FWP | AX91: 04:30:00 | AY91: 04:55:00 | BB91: S加工 | BD91: 00:25:00 | BF91: 内 | BG91: 合定
A92: 26 | B92: 2024 | C92: 12 | D92: 13 | E92: B | F92: 33 | G92: C2 | H92: ｺｰﾄ | Q92: S | R92: 3790221 | S92: 4 | T92: 7 | U92: WZ(E) | V92: 古河電気工業㈱ | W92: 25 | X92: E5001 | Y92: 1245 | Z92: 12200 | AA92: 12200 | AB92: 1240 | AC92: 1 | AD92: 6000 | AE92: 2 | AF92: 6068 | AG92: 6000 | AH92: 430905172 | AI92: 4121240233005 | AQ92: FWP | AX92: 04:55:00 | AY92: 05:20:00 | BB92: S加工 | BD92: =IF(AX92>AY92,1-AX92+AY92,IF(AX92="","",AY92-AX92)) -> 00:25:00 | BF92: 内 | BG92: 合定
A93: 26 | B93: 2024 | C93: 12 | D93: 13 | E93: B | F93: 34 | G93: C2 | H93: ｺｰﾄ | Q93: S | R93: 3790221 | S93: 5 | T93: 7 | U93: WZ(E) | V93: 古河電気工業㈱ | W93: 25 | X93: E5001 | Y93: 1245 | Z93: 12200 | AA93: 12200 | AB93: 1240 | AC93: 1 | AD93: 6000 | AE93: 2 | AF93: 6073 | AG93: 6000 | AH93: 430904472 | AI93: 4121240234005 | AQ93: FWP | AX93: 05:20:00 | AY93: 05:50:00 | BB93: S加工 | BD93: 00:30:00 | BF93: 内 | BG93: 合定
A94: 26 | B94: 2024 | C94: 12 | D94: 13 | E94: B | F94: 35 | G94: C2 | H94: ｺｰﾄ | Q94: S | R94: 3790221 | S94: 5 | T94: 7 | U94: WZ(E) | V94: 古河電気工業㈱ | W94: 25 | X94: E5001 | Y94: 1245 | Z94: 12200 | AA94: 12200 | AB94: 1240 | AC94: 1 | AD94: 6000 | AE94: 2 | AF94: 6069 | AG94: 6000 | AH94: 430904472 | AI94: 4121240235005 | AQ94: FWP | AX94: 05:50:00 | AY94: 06:15:00 | BB94: S加工 | BD94: 00:25:00 | BF94: 内 | BG94: 合定
A95: 26 | B95: 2024 | C95: 12 | D95: 13 | E95: B | F95: 1 | G95: C2 | H95: ｺｰﾄ | Q95: S | R95: 3790221 | S95: 6 | T95: 7 | U95: WZ(E) | V95: 古河電気工業㈱ | W95: 25 | X95: E5001 | Y95: 1245 | Z95: 12200 | AA95: 12200 | AB95: 1240 | AC95: 1 | AD95: 6000 | AE95: 2 | AF95: 6073 | AG95: 6000 | AH95: 430903572 | AI95: 4121340201005 | AQ95: FWP | AX95: 06:15:00 | AY95: 06:40:00 | BB95: S加工 | BD95: 00:25:00 | BF95: 内 | BG95: 合定
B96: 2024 | C96: 12 | D96: 13 | E96: B | AX96: 06:40:00 | AY96: 06:45:00 | BB96: S加工 | BD96: 00:05:00
A97: 26 | B97: 2024 | C97: 12 | D97: 13 | E97: C | F97: 2 | G97: C2 | H97: ｺｰﾄ | Q97: S | R97: 3790221 | S97: 6 | T97: 7 | U97: WZ(E) | V97: 古河電気工業㈱ | W97: 25 | X97: E5001 | Y97: 1245 | Z97: 12200 | AA97: 12200 | AB97: 1240 | AC97: 1 | AD97: 6000 | AE97: 2 | AF97: 6068 | AG97: 6000 | AH97: 430903572 | AI97: 4121340202005 | AQ97: FWP | AX97: 06:45:00 | AY97: 07:10:00 | BB97: S加工 | BD97: 00:25:00 | BE97: =IF(AZ97>BA97,1-AZ97+BA97,IF(AZ97="","",BA97-AZ97)) ->  | BF97: 内 | BG97: 合定
A98: 26 | B98: 2024 | C98: 12 | D98: 13 | E98: C | F98: 3 | G98: C2 | H98: ｺｰﾄ | Q98: S | R98: 3790221 | S98: 7 | T98: 7 | U98: WZ(E) | V98: 古河電気工業㈱ | W98: 25 | X98: E5001 | Y98: 1245 | Z98: 12200 | AA98: 12200 | AB98: 1240 | AC98: 1 | AD98: 6000 | AE98: 2 | AF98: 6071 | AG98: 6000 | AH98: 430904873 | AI98: 4121340203005 | AQ98: FWP | AX98: 07:10:00 | AY98: 07:35:00 | BB98: S加工 | BD98: 00:25:00 | BF98: 内 | BG98: 合定
A99: 26 | B99: 2024 | C99: 12 | D99: 13 | E99: C | F99: 4 | G99: C2 | H99: ｺｰﾄ | Q99: S | R99: 3790221 | S99: 7 | T99: 7 | U99: WZ(E) | V99: 古河電気工業㈱ | W99: 25 | X99: E5001 | Y99: 1245 | Z99: 12200 | AA99: 12200 | AB99: 1240 | AC99: 1 | AD99: 6000 | AE99: 2 | AF99: 6067 | AG99: 6000 | AH99: 430904873 | AI99: 4121340204005 | AQ99: FWP | AX99: 07:35:00 | AY99: 08:00:00 | BB99: S加工 | BD99: 00:25:00 | BF99: 内 | BG99: 合定
B100: 2024 | C100: 12 | D100: 13 | E100: C | BG100: 合定
A101: 26・27 | B101: 2024 | C101: 12 | D101: 13 | E101: C | F101: 5 | G101: C | H101: ｺｰﾄ | Q101: S | R101: 3790222 | S101: 1 | T101: 12 | U101: WZ(E) | V101: 古河電気工業㈱ | W101: 38 | X101: E5001 | Y101: 1245 | Z101: 6200 | AA101: 6200 | AB101: 1240 | AC101: 1 | AD101: 6000 | AE101: 1 | AF101: 6065 | AG101: 6000 | AH101: 462002474 | AI101: 4121340205005 | AQ101: FWP | AX101: 08:00:00 | AY101: 08:25:00 | BB101: S加工 | BD101: 00:25:00 | BF101: 内 | BG101: 合定 | BH101: 先行ｻﾝﾌﾟﾙ
A102: 26・27 | B102: 2024 | C102: 12 | D102: 13 | E102: C | F102: 6 | G102: C | H102: ｺｰﾄ | Q102: S | R102: 3790222 | S102: 2 | T102: 12 | U102: WZ(E) | V102: 古河電気工業㈱ | W102: 38 | X102: E5001 | Y102: 1245 | Z102: 6200 | AA102: 6200 | AB102: 1240 | AC102: 1 | AD102: 6000 | AE102: 1 | AF102: 6145 | AG102: 6000 | AH102: 462002374 | AI102: 4121340206005 | AQ102: FWP | AX102: 08:25:00 | AY102: 08:55:00 | BB102: S加工 | BD102: 00:30:00 | BF102: 内 | BG102: 合定
A103: 26・27 | B103: 2024 | C103: 12 | D103: 13 | E103: C | F103: 7 | G103: C | H103: ｺｰﾄ | Q103: S | R103: 3790222 | S103: 3 | T103: 12 | U103: WZ(E) | V103: 古河電気工業㈱ | W103: 38 | X103: E5001 | Y103: 1245 | Z103: 6200 | AA103: 6200 | AB103: 1240 | AC103: 1 | AD103: 6000 | AE103: 1 | AF103: 6074 | AG103: 6000 | AH103: 462002574 | AI103: 4121340207005 | AQ103: FWP | AX103: 08:55:00 | AY103: 09:20:00 | BB103: S加工 | BD103: 00:25:00 | BF103: 内 | BG103: 合定
A104: 26・27 | B104: 2024 | C104: 12 | D104: 13 | E104: C | F104: 8 | G104: C | H104: ｺｰﾄ | Q104: S | R104: 3790222 | S104: 4 | T104: 12 | U104: WZ(E) | V104: 古河電気工業㈱ | W104: 38 | X104: E5001 | Y104: 1245 | Z104: 6200 | AA104: 6200 | AB104: 1240 | AC104: 1 | AD104: 6000 | AE104: 1 | AF104: 6062 | AG104: 6000 | AH104: 462004174 | AI104: 4121340208005 | AQ104: FWP | AX104: 09:20:00 | AY104: 09:45:00 | BB104: S加工 | BD104: 00:25:00 | BF104: 内 | BG104: 合定
A105: 26・27 | B105: 2024 | C105: 12 | D105: 13 | E105: C | F105: 9 | G105: C | H105: ｺｰﾄ | Q105: S | R105: 3790222 | S105: 5 | T105: 12 | U105: WZ(E) | V105: 古河電気工業㈱ | W105: 38 | X105: E5001 | Y105: 1245 | Z105: 6200 | AA105: 6200 | AB105: 1240 | AC105: 1 | AD105: 6000 | AE105: 1 | AF105: 6067 | AG105: 6000 | AH105: 462001874 | AI105: 4121340209005 | AQ105: FWP | AX105: 09:45:00 | AY105: 10:15:00 | BB105: S加工 | BD105: 00:30:00 | BF105: 内 | BG105: 合定
